Workbook

Sheet Disclaimer
A2: Sehr geehrte Nutzerin, sehr geehrter Nutzer,
A4: bitte beachten Sie, dass die von Ihnen genutzte Berechnungsdatei kostenfrei und als Hilfe für die Abwicklung der Jahresabrechnung im förderseitigen Wälzungsmechanismus des EEG zur Verfügung gestellt wird. Die Berechnungsdatei wurde nach besten Wissen und Gewissen erstellt. Trotzdem kann nicht zuletzt aufgrund von besonderen Fallkonstellationen, die der TransnetBW GmbH bislang nicht bekannt sind, nicht ausgeschlossen werden, dass die konkrete Nutzung in einzelnen Fällen auch zu fehlerhaften Berechnungsergebnissen führen kann. Vor diesem Hintergrund übernimmt die TransnetBW GmbH keine Gewähr für die sachliche Richtigkeit der Berechnungsdatei und der in Nutzung dieser Datei gewonnen Berechnungsergebnisse. Die TransnetBW GmbH macht sich daher die Berechnungsergebnisse nicht zu eigen. Wir weisen ausdrücklich auf die Notwendigkeit einer Überprüfung der Berechnungsergebnisse durch Sie / Ihr Haus hin, da die sachliche Richtigkeit der gemeldeten Daten in Ihrer Verantwortungssphäre liegt.
A6: Bei Unregelmäßigkeiten in der Berechnung bitten wir Sie, uns hierüber unverzüglich per E-Mail an eeg-vnb@transnetbw.de zu informieren.
A8: Vielen Dank für Ihr Verständnis.

Sheet Deckblatt
H1: 2018-04-30
B3: Gesetz für den Ausbau erneuerbarer Energien (EEG 2017)
B4: Erhebungsbogen zur Erfassung Ihrer EEG-Jahresabrechnung 2017 als Verteilnetzbetreiber
B5: (Version 4.7 vom 30.04.2018)
B6: Zusammenstellung der detaillierten Angaben Ihrer Endabrechnung nach § 72 Abs. 1 Nummer 2 EEG 2017 gegenüber der TransnetBW GmbH als zuständigen Übertragungsnetzbetreiber im Zeitraum vom 01.01.2017 bis 31.12.2017
B8: Verbindliche detaillierte Angaben der Ihrem Prüfungsvermerk nach § 75 EEG 2017 zugrundeliegenden Daten.
B11: Netzbetreiber : | C11: Gammertinger Energie- u. Wasserversorgung GmbH
B13: BNetzA-Nr.: | C13: 10000066
B15: Datenstand : | C15: 04.06.2018 | D15: Dieses Feld wird automatisch befüllt mit dem Datum der Ausführung der Prüfung
B17: Ausgleichsbilanzkreis 2018 * : | C17: 11XENBW-V------O | D17: Bitte klären Sie den Eintrag in diesem Feld unbedingt mit Ihrem Vorlieferanten ab. Über diesen Bilanzkreis wird im September 2018 ein Ausgleichsfahrplan abgewickelt.
B22: Wichtige Hinweise zum Ausfüllen der Formulare:
B24: - Auszufüllen sind jeweils nur die gelb hinterlegten Felder in gelb hinterlgeten Tabellenblättern
B25: - Eine anlagenscharfe Endabrechnung ist zwingend vorzunehmen und ist die Grundlage für die Durchführung der EEG-Jahresabrechnung.
B27: * Bitte geben Sie hier Ihren Ausgleichsbilanzkreis für den physikalischen Ausgleich an. Der energetische und monetäre Ausgleich zwischen ÜNB und VNB für das Jahr 2017 wird im September 2018 durchgeführt.
B28: Die Energie wird hierfür in Form eines gleichbleibenden Bandes vom 1. September 00:00 Uhr bis 30. September 24:00 Uhr geliefert (die Lieferung/Rücklieferung erfolgt in Form von Fahrplananmeldungen).
B30: - Nachdem alle im Importprotokoll aufgeführten Fehler behoben sind, senden Sie die Datei bitte an folgende E-Mail-Adresse:
B31: eeg-vnb@transnetbw.de

Sheet Zeitplan

Sheet Fehlerprotokoll
A1: Prüfungsschritt/Fehlernummer: | B1: Fehlerbeschreibung | C1: Anlagenschlüssel (sofern möglich) | D1: Zeile (bei Schritt 1 u. 2) | E1: Tabellenblatt (nur bei Schritt 1 und 2) | F1: Spalte (nur bei Schritt 2, sofern möglich)
A2: E0001 | B2: Die Testatdaten wurden am 04.06.2018 um 09:43:50 erfolgreich berechnet. | D2: Daten Prüfungsvermerk

Sheet Warnhinweise
A1: Prüfungsschritt/Fehlernummer: | B1: Fehlerbeschreibung | C1: Anlagenschlüssel (sofern möglich) | D1: Zeile (bei Schritt 1 u. 2) | E1: Tabellenblatt (nur bei Schritt 1 und 2) | F1: Spalte (nur bei Schritt 2, sofern möglich)

Sheet Daten Prüfungsvermerk
D1: =Deckblatt!H1 -> 2018-04-30
A3: Netzbetreiber : | B3: =Deckblatt!C11 -> Gammertinger Energie- u. Wasserversorgung GmbH
A5: =Deckblatt!B6 -> Zusammenstellung der detaillierten Angaben Ihrer Endabrechnung nach § 72 Abs. 1 Nummer 2 EEG 2017 gegenüber der TransnetBW GmbH als zuständigen Übertragungsnetzbetreiber im Zeitraum vom 01.01.2017 bis 31.12.2017
A8: Daten Prüfungsvermerk
A10: Einspeisevergütung
B11: kaufmännisch abgenommene Strommenge | C11: Einspeisevergütung
B12: [kWh] | C12: [EUR]
A13: Wasserkraft | B13: 89266 | C13: 10417.34 | J13: 0
A14: Deponie-, Klär-, Grubengas | B14: 0 | C14: 0 | J14: 0
A15: Biomasse | B15: 0 | C15: 0 | J15: 0
A16: Geothermie | B16: 0 | C16: 0 | J16: 0
A17: Windenergie an Land | B17: 0 | C17: 0
A18: Solare Strahlungsenergie | B18: 2890391 | C18: 1002076
A20: Summe | B20: =SUM(B13:B18) -> 2979657 | C20: =SUM(C13:C18) -> 1012493.34
C21: (1)
A22: Solarstrom-Selbstverbrauch durch Anlagenbetreiber oder Dritte nach § 33 Abs. 2 EEG 2009 - muss nicht separat im Testat ausgewiesen werden.
A23: Selbstverbrauchsvergütung [€] (in Zelle C18 oben enthalten): | C23: 1203.3
A24: Selbstverbrauchte Strommenge [kWh] (nicht in Zelle B18 oben enthalten): | C24: 11563
A27: Direktvermarktung
B28: Marktprämie | C28: Marktprämienmodell | D28: sonstige Direktvermarktung | E28: GSP
B29: [EUR] | C29: [kWh] | D29: [kWh] | E29: [kWh]
A30: Wasserkraft | B30: 0 | C30: 0 | D30: 0 | E30: 0 | I30: 0 | J30: 0
A31: Deponie-, Klär-, Grubengas | B31: 0 | C31: 0 | D31: 0 | E31: 0 | I31: 0 | J31: 0
A32: Biomasse | B32: 0 | C32: 0 | D32: 0 | E32: 0 | I32: 0 | J32: 0
A33: Geothermie | B33: 0 | C33: 0 | D33: 0 | E33: 0 | I33: 0 | J33: 0
A34: Windenergie an Land | B34: 0 | C34: 0 | D34: 0 | E34: 0
A35: Solare Strahlungsenergie | B35: 1183.63 | C35: 15140 | D35: 0 | E35: 0
A37: Summe | B37: =SUM(B30:B35) -> 1183.63 | C37: =SUM(C30:C35) -> 15140 | D37: =SUM(D30:D35) -> 0 | E37: =SUM(E30:E35) -> 0
B38: (2)
A40: Mieterstromzuschlag
B41: Menge [kWh] | C41: Zuschlag [EUR]
A43: Mieterstromzuschlag | B43: 0 | C43: 0
C44: (3)
A46: Förderung für Flexibilität | I46: 0
B47: Förderung [EUR] | I47: 0
I48: 0
A49: Flexibilitätszuschlag und Flexibilitätsprämie | B49: 0 | I49: 0
B50: (4)
A53: vermiedene Netzentgelte (vNE)
B54: vNE nach § 35 Abs. 2 EEG [EUR]
A56: Wasserkraft | B56: 1053.34
A57: Deponie-, Klär-, Grubengas | B57: 0
A58: Biomasse | B58: 0
A59: Geothermie | B59: 0
A60: Windenergie an Land | B60: 0
A61: Solare Strahlungsenergie | B61: 42076.98
A63: Summe | B63: =SUM(B56:B61) -> 43130.32
B64: (5)
A67: EEG-Umlage aus Eigenversorgung für 2017
A68: EEG-Umlageart: | B68: Strommengen [kWh] | C68: Erhaltene Zahlungen [€] | D68: EEG-umlagepflichtige Strommengen [kWh]
A69: 40% der EEG-Umlage | B69: 11108 | C69: 305.69 | D69: =B69 -> 11108
A70: 100% der EEG-Umlage | B70: 0 | C70: 0 | D70: =B70 -> 0
A71: Entfall der eine Umlage | B71: 0 | C71: 0 | D71: -
A72: Summe | B72: =SUM(B69:B71) -> 11108 | C72: =SUM(C69:C71) -> 305.69 | D72: =SUM(D69:D70) -> 11108
C73: (6)
A74: Erhöhung der EEG-Umlage um 20 Prozentpunkte aufgrund Sanktionierung nach § 61g Abs. 2 i.V.m. § 61a, § 61b, § 61c, § 61d EEG 2017 | B74: 0 | C74: 0
C75: (7)
A76: Verringerung der EEG-Umlage aufgrund von: | B76: Strommengen [kWh] | C76: Verringerung der Umlage [€]
A77: § 61k Abs. 1 EEG 2017 (von einem elektrischen, chemischen, mechanischem oder physikalischen Stromspeicher bei der Beladung verbrauchter Strom) | B77: 0 | C77: 0
A78: § 61k Abs. 2 EEG 2017 (zur Erzeugung von Speichergas verbrauchter Strom) | B78: 0 | C78: 0
A79: Summe | B79: =SUM(B77:B78) -> 0 | C79: =SUM(C77:C78) -> 0
C80: (8)
A81: Zinsen aufgrund von § 61i Abs. 4 i.V.m. § 60 Abs. 3 EEG 2017 | C81: 0
C82: (10)
A84: Zusammenstellung (ohne Korrekturen aus Vorjahren)
C86: [€]
A87: Einspeisevergütung | B87: (1) =Zelle C20 | C87: =C20 -> 1012493.34
A88: + Marktprämie | B88: (2) = Zelle B37 | C88: =B37 -> 1183.63
A89: + Mieterstromzuschlag | B89: (3) = Zelle C43 | C89: =C43 -> 0
A90: + Förderung für Flexibilität | B90: (4) = Zelle B49 | C90: =B49 -> 0
A91: - Vermiedene Netzentgelte | B91: (5) = Zelle B63 | C91: =B63 -> 43130.32
A92: Zwischenergebnis | B92: (Z1) = (1) + (2) + (3) + (4) - (5) | C92: =SUM(C87:C90)-C91 -> 970546.65 | D92: (Z1)
A94: - Erhaltene Zahlungen auf die EEG-Umlage für Eigenversorgung in Jahr 2017 | B94: (6) = Zelle C72 | C94: =C72 -> 305.69
A95: - Erhaltene Sanktionszahlungen nach § 61g Abs. 2 EEG 2017 | B95: (7) = Zelle C74 | C95: =C74 -> 0
A96: - Saldierungsbetrag nach § 61k EEG 2017 | B96: (8) = Zelle C79 | C96: =C79 -> 0
A97: - Von Eigenversorgern erhaltene Zinsen | B97: (10) = Zelle C81 | C97: =C81 -> 0
A98: Zwischenergebnis | B98: (Z2) = (6) + (7) + (8) + (10) | C98: =SUM(C94:C97) -> 305.69 | D98: (Z2)
A100: - Nachträgliche Korrekturen von Eigenversorgern nach §61 Abs. 3 i.V.m. § 62 Abs. 2 EEG 2017 | B100: (8) | C100: =J34 -> 0
A101: + Nachträgliche finanzielle Förderungen aufgrund von Übergangsbestimmungen des EEG 2017 | B101: (9) | C101: =J50 -> 0
A102: + Nachträgliche Korrekturen nach § 62 Abs. 1 EEG 2017 | B102: (10) | C102: =L87 -> 0
A104: Saldo | B104: =(Z1)-(Z2) | C104: =C92-C98 -> 970240.96
A107: Auf dieser Seite werden die in dieser Datei erfassten Bewegungsdaten entsprechend den Energieträgern zusammengefasst. Die im blauen Rahmen enthaltenen Angaben sind in Ihrer Wirtschaftsprüferbescheinigung (Testat) aufzuführen. Abweichungen der Testatwerte von den hier aufgeführten Summen sind nur soweit zulässig, wie sie auf Rundungsfehler zurückzuführen sind. Beachten Sie bitte, dass die vermiedenen Netzentgelte innerhalb des Testats wie hier aufgeführt mit positiven Vorzeichen anzugeben sind.
A113: Falls in der Tabelle Inhalte nicht angezeigt werden: Ergänzen Sie bitte die Bewegungsdaten in den dafür vorgesehenen Tabellenblättern, indem Sie für die betroffenen Anlagen in einer weiteren Zeile die entsprechenden Daten eintragen. Die vNE sind als positiver Wert einzutragen.
A123: zusätzliche Informationen, die nicht im Testat aufzuführen sind (zur Kontrolle):
B125: vermiedene Netzentgelte
A126: HöS | B126: 0
A127: Hös/HS | B127: 0
A128: HS | B128: 0
A129: HS/MS | B129: 0
A130: MS | B130: 234.41
A131: MS/NS | B131: 0
A132: NS | B132: 42895.91
A133: Summe | B133: =SUM(B126:B132) -> 43130.32
B136: Anzahl Anlagen
A137: Wasserkraft | B137: 1
A138: Deponie-, Klär-, Grubengas | B138: 0
A139: Biomasse | B139: 0
A140: Geothermie | B140: 0
A141: Windenergie an Land | B141: 0
A142: Solare Strahlungsenergie | B142: 211
A143: Summe | B143: =SUM(B137:B142) -> 212

Sheet Daten Prüfungsvermerk (vorl.)
D1: =Deckblatt!H1 -> 2018-04-30
A3: Netzbetreiber : | B3: =Deckblatt!C11 -> Gammertinger Energie- u. Wasserversorgung GmbH
A5: =Deckblatt!B6 -> Zusammenstellung der detaillierten Angaben Ihrer Endabrechnung nach § 72 Abs. 1 Nummer 2 EEG 2017 gegenüber der TransnetBW GmbH als zuständigen Übertragungsnetzbetreiber im Zeitraum vom 01.01.2017 bis 31.12.2017
A8: Daten Prüfungsvermerk
A10: Einspeisevergütung
B11: kaufmännisch abgenommene Strommenge | C11: Einspeisevergütung
B12: [kWh] | C12: [EUR]
A13: Wasserkraft | B13: 89266 | C13: 10417.34 | J13: 0
A14: Deponie-, Klär-, Grubengas | B14: 0 | C14: 0 | J14: 0
A15: Biomasse | B15: 0 | C15: 0 | J15: 0
A16: Geothermie | B16: 0 | C16: 0 | J16: 0
A17: Windenergie an Land | B17: 0 | C17: 0
A18: Solare Strahlungsenergie | B18: 2890391 | C18: 1002076
A20: Summe | B20: =SUM(B13:B18) -> 2979657 | C20: =SUM(C13:C18) -> 1012493.34
C21: (1)
A22: Solarstrom-Selbstverbrauch durch Anlagenbetreiber oder Dritte nach § 33 Abs. 2 EEG 2009 - muss nicht separat im Testat ausgewiesen werden.
A23: Selbstverbrauchsvergütung [€] (in Zelle C18 oben enthalten): | C23: 1203.3
A24: Selbstverbrauchte Strommenge [kWh] (nicht in Zelle B18 oben enthalten): | C24: 11563
A27: Direktvermarktung
B28: Marktprämie | C28: Marktprämienmodell | D28: sonstige Direktvermarktung | E28: GSP
B29: [EUR] | C29: [kWh] | D29: [kWh] | E29: [kWh]
A30: Wasserkraft | B30: 0 | C30: 0 | D30: 0 | E30: 0
A31: Deponie-, Klär-, Grubengas | B31: 0 | C31: 0 | D31: 0 | E31: 0
A32: Biomasse | B32: 0 | C32: 0 | D32: 0 | E32: 0
A33: Geothermie | B33: 0 | C33: 0 | D33: 0 | E33: 0
A34: Windenergie an Land | B34: 0 | C34: 0 | D34: 0 | E34: 0
A35: Solare Strahlungsenergie | B35: 1183.63 | C35: 15140 | D35: 0 | E35: 0
A37: Summe | B37: =SUM(B30:B35) -> 1183.63 | C37: =SUM(C30:C35) -> 15140 | D37: =SUM(D30:D35) -> 0 | E37: =SUM(E30:E35) -> 0
B38: (2)
A40: Mieterstromzuschlag
B41: Menge [kWh] | C41: Zuschlag [EUR]
A43: Mieterstromzuschlag | B43: 0 | C43: 0
C44: (3)
A46: Förderung für Flexibilität
B47: Förderung [EUR]
A49: Flexibilitätszuschlag und Flexibilitätsprämie | B49: 0
B50: (4)
A53: vermiedene Netzentgelte (vNE)
B54: vNE nach § 35 Abs. 2 EEG [EUR]
A56: Wasserkraft | B56: 1053.34
A57: Deponie-, Klär-, Grubengas | B57: 0
A58: Biomasse | B58: 0
A59: Geothermie | B59: 0
A60: Windenergie an Land | B60: 0
A61: Solare Strahlungsenergie | B61: 42076.98
A63: Summe | B63: =SUM(B56:B61) -> 43130.32
B64: (5)
A67: EEG-Umlage aus Eigenversorgung für 2017
A68: EEG-Umlageart: | B68: Strommengen [kWh] | C68: Erhaltene Zahlungen [€] | D68: EEG-umlagepflichtige Strommengen [kWh]
A69: 40% der EEG-Umlage | B69: 11108 | C69: 305.69 | D69: =B69 -> 11108
A70: 100% der EEG-Umlage | B70: 0 | C70: 0 | D70: =B70 -> 0
A71: Entfall der eine Umlage | B71: 0 | C71: 0 | D71: -
A72: Summe | B72: =SUM(B69:B71) -> 11108 | C72: =SUM(C69:C71) -> 305.69 | D72: =SUM(D69:D70) -> 11108
C73: (6)
A74: Erhöhung der EEG-Umlage um 20 Prozentpunkte aufgrund Sanktionierung nach § 61g Abs. 2 i.V.m. § 61a, § 61b, § 61c, § 61d EEG 2017 | B74: 0 | C74: 0
C75: (7)
A76: Verringerung der EEG-Umlage aufgrund von: | B76: Strommengen [kWh] | C76: Verringerung der Umlage [€]
A77: § 61k Abs. 1 EEG 2017 (von einem elektrischen, chemischen, mechanischem oder physikalischen Stromspeicher bei der Beladung verbrauchter Strom) | B77: 0 | C77: 0
A78: § 61k Abs. 2 EEG 2017 (zur Erzeugung von Speichergas verbrauchter Strom) | B78: 0 | C78: 0
A79: Summe | B79: =SUM(B77:B78) -> 0 | C79: =SUM(C77:C78) -> 0
C80: (8)
A81: Zinsen aufgrund von § 61i Abs. 4 i.V.m. § 60 Abs. 3 EEG 2017 | C81: 0
C82: (10)
A84: Zusammenstellung (ohne Korrekturen aus Vorjahren)
C86: [€]
A87: Einspeisevergütung | B87: (1) =Zelle C20 | C87: =C20 -> 1012493.34
A88: + Marktprämie | B88: (2) = Zelle B37 | C88: =B37 -> 1183.63
A89: + Mieterstromzuschlag | B89: (3) = Zelle C43 | C89: =C43 -> 0
A90: + Förderung für Flexibilität | B90: (4) = Zelle B49 | C90: =B49 -> 0
A91: - Vermiedene Netzentgelte | B91: (5) = Zelle B63 | C91: =B63 -> 43130.32
A92: Zwischenergebnis | B92: (Z1) = (1) + (2) + (3) + (4) - (5) | C92: =SUM(C87:C90)-C91 -> 970546.65 | D92: (Z1)
A94: - Erhaltene Zahlungen auf die EEG-Umlage für Eigenversorgung in Jahr 2017 | B94: (6) = Zelle C72 | C94: =C72 -> 305.69
A95: - Erhaltene Sanktionszahlungen nach § 61g Abs. 2 EEG 2017 | B95: (7) = Zelle C74 | C95: =C74 -> 0
A96: - Saldierungsbetrag nach § 61k EEG 2017 | B96: (8) = Zelle C79 | C96: =C79 -> 0
A97: - Von Eigenversorgern erhaltene Zinsen | B97: (10) = Zelle C81 | C97: =C81 -> 0
A98: Zwischenergebnis | B98: (Z2) = (6) + (7) + (8) + (10) | C98: =SUM(C94:C97) -> 305.69 | D98: (Z2)
A100: - Nachträgliche Korrekturen von Eigenversorgern nach §61 Abs. 3 i.V.m. § 62 Abs. 2 EEG 2017 | B100: (8) | C100: =J34 -> 0
A101: + Nachträgliche finanzielle Förderungen aufgrund von Übergangsbestimmungen des EEG 2017 | B101: (9) | C101: =J50 -> 0
A102: + Nachträgliche Korrekturen nach § 62 Abs. 1 EEG 2017 | B102: (10) | C102: =L87 -> 0
A104: Saldo | B104: =(Z1)-(Z2) | C104: =C92-C98 -> 970240.96
A123: zusätzliche Informationen, die nicht im Testat aufzuführen sind (zur Kontrolle):
B125: vermiedene Netzentgelte [€]
A126: HöS | B126: 0
A127: Hös/HS | B127: 0
A128: HS | B128: 0
A129: HS/MS | B129: 0
A130: MS | B130: 234.41
A131: MS/NS | B131: 0
A132: NS | B132: 42895.91
A133: Summe | B133: =SUM(B126:B132) -> 43130.32
B136: Anzahl Anlagen
A137: Wasserkraft | B137: 1
A138: Deponie-, Klär-, Grubengas | B138: 0
A139: Biomasse | B139: 0
A140: Geothermie | B140: 0
A141: Windenergie an Land | B141: 0
A142: Solare Strahlungsenergie | B142: 211
A143: Summe | B143: =SUM(B137:B142) -> 212

Sheet Stammdaten
A3: Netzbetreiber : | B3: =Deckblatt!C11 -> Gammertinger Energie- u. Wasserversorgung GmbH
D5: Standort / Lage der Anlage (nicht des Anlagenbetreibers) | AA5: nur bei PV-Anlagen | AE5: bei Biomasseanlagen | AI5: bei Deponiegas, Klärgas und Grubengas | AJ5: Geographische Koordinaten (nur bei Wind- und Solaranlagen) | AP5: nur bei Windenergieanlagen | AS5: Angabe zu Ausschreibungen | AU5: Zeitscheibe der Meldung
A6: Anlagenschlüssel | B6: Zählpunktbezeichnung / MaLo-ID der Einspeisestelle | C6: BNetzA-MaStR-Nummer | D6: Ort / Gemarkung | E6: Bundesland | F6: PLZ | G6: Straße / Flurstück | H6: Gemeindeschlüssel | I6: Installierte Leistung [kW] | J6: Energieträger | K6: Inbetriebnahmedatum [TT.MM.JJJJ] | L6: Außerbetriebnahmedatum [TT.MM.JJJJ] | M6: Netzzugangsdatum [TT.MM.JJJJ] | N6: Netzabgangsdatum [TT.MM.JJJJ] | O6: Modernisierungsdatum (bei Wasserkraftanlagen) bzw. Datum nach §39f Abs. 2 (bei Biomassanlagen) [TT.MM.JJJJ] | P6: Einspeisespannungsebene | Q6: Anlageninstallation für Selbstverbrauch ausgelegt | R6: Kann der Strom aus der Anlage vor Einspeisung in das öffentliche Netz zwischengespeichert werden? | S6: Einspeisemanagement | T6: Anlage mit Lastgangzählung | U6: Anlage mit intelligentem Messsystem | V6: Zeitreihentyp für Bilanzierung der Stromerzeugung der Anlage | W6: Angaben nach § 71 EEG 2017: Erhält die Anlage im Meldejahr eine Steuerbegünstigung nach § 9 Abs. 1 Nummer 1 oder 3 des Stromsteuergesetzes? | X6: Angaben nach § 71 EEG 2017: Wurden für die Anlage im Meldejahr Regionalnachweise ausgestellt? | Y6: Anlagenspezifisches Netzentgelt (Arbeitspreis) [ct/kWh] | Z6: Anlagenspezifisches Netzentgelt (Leistungspreis) [EUR/kW] | AA6: Bilanzierung Eigenverbrauch Wie wird bei der Anlage der Eigenverbrauch für die Bilanzierung berücksichtigt? - Auswahlfeld | AB6: Spezifizierung zu Bilanzierung Eigenverbrauch | AC6: Referenzanlage für Zeitreihenhochrechnung | AD6: Datum nach § 23b Abs. 2 Nr. 1 | AE6: KWK-Bonus | AF6: Technologie-Bonus | AG6: Datum der ersten Inanspruchnahme der Flexibilitätsprämie | AH6: Höchstbemessungsleistung nach § 101 Abs. 1 EEG 2017 | AI6: Technologiebonus Gas | AJ6: Grad, nördliche Breite | AK6: Minuten, nördliche Breite | AL6: Sekunden, nördliche Breite | AM6: Grad, östliche Länge | AN6: Minuten, östliche Länge | AO6: Sekunden, östliche länge | AP6: Schalloptimierung | AQ6: Standortertrag bzw. Ertrag der Anlage, der für die Berechnung der Vergütung der Anlage angesetzt wurde Einheit: [kWh] mit 3 Nachkommastellen | AR6: Referenzertrag der Anlage Einheit: [kWh] mit 3 Nachkommastellen | AS6: Zuschlagswert der Anlage (sofern die Leistung einer Anlage über mehrere Ausschreibungen bezuschlagt wurde, ist ein mengengewichteter Durchschnittssatz anzugeben) [ct/kWh] | AT6: bezuschlagte Leistung, sofern Bezuschlagung über Ausschreibung (Summe über alle Ausschreibungen, an denen die Anlage bezuschlagt wurde) [kW] | AU6: Gültig ab [TT.MM.JJJJ] | AV6: Gültig bis [TT.MM.JJJJ] | AW6: Grund für Stammdatenänderung bzw. Korrektur [Auswahlfeld] | AX6: Bemerkungsfeld als Freitext | AY6: nur eingeschränkte Prüfung möglich | AZ6: Erläuterung für eingeschränkte Prüfung
A7: Pflichtfeld | B7: Pflichtfeld | C7: Optional, Pflichtfeld ab Start des MaStR | D7: Pflichtfeld | E7: Pflichtfeld | F7: Pflichtfeld | G7: Pflichtfeld | H7: Pflichtfeld | I7: Pflichtfeld | J7: Pflichtfeld | K7: Pflichtfeld | L7: Pflichtfeld wenn Anlage außer Betrieb | M7: Pflichtfeld bei Netzübergang der Anlage | N7: Pflichtfeld bei Netzübergang der Anlage | O7: Pflichtfeld im Falle mind. einer erfolgten vergütungswirksamen Modernisierung (Datum der letzten vergütungswirksamen Modernisierung) | P7: Pflichtfeld | Q7: Pflichtfeld (bzw. ohne Angabe heißt "Nein") | R7: Pflichtfeld | S7: Pflichtfeld | T7: Pflichtfeld (bzw. ohne Angabe heißt "Nein") | U7: Pflichtfeld (bzw. ohne Angabe heißt "Nicht bekannt") | V7: Pflichtfeld | W7: Pflichtfeld im Rahmen der Jahresabrechnung, unterjährig optional | X7: Pflichtfeld im Rahmen der Jahresabrechnung, unterjährig optional | Y7: Optional, Pflichtfeld ab 1.7.2018 für volatile Erzeuger mit Inbetriebnahme vor 1.1.2018 und für sonstige Erzeuger mit Inbetriebnahme vor 1.1.2023 | Z7: Optional, Pflichtfeld ab 1.7.2018 für volatile Erzeuger mit Inbetriebnahme vor 1.1.2018 und für sonstige Erzeuger mit Inbetriebnahme vor 1.1.2023 | AA7: Pflichtfeld wenn Eingenverbrauch möglich bzw. wenn Spalte Q gleich "Ja" und Spalte V gleich "SOT". | AB7: Freitext - Pflichtfeld wenn Eingenverbrauch möglich bzw. wenn Spalte Q gleich "Ja", Spalte V gleich "SOT" und Spalte Y ungleich "Keine Berücksichtigung" | AC7: Pflichtfeld sofern Angabe bekannt und sofern die Hochrechnung nicht durch einen Dienstleister erfolgt. | AD7: Pflichtfeld bei Inanspruchnahme des Mieterstromzuschlags | AE7: Pflichtfeld (bzw. ohne Angabe heißt "Nein") | AF7: Pflichtfeld (bzw. ohne Angabe heißt "Nein") | AG7: Pflichtfeld bei Inanspruchnahme der Prämie | AH7: Pflichtfeld bei Biogasanlagen mit Inbetriebnahme vor 01.08.2014 | AI7: Pflichtfeld (ohne Angabe heißt "Nein") | AJ7: Optional | AK7: Optional | AL7: Optional | AM7: Optional | AN7: Optional | AO7: Optional | AP7: Optional (ohne Angabe heißt "Nein") | AQ7: Pflichtfeld bei Windenergieanlagen ab 50 kW (sofern im Jahr der Abrechnung bereits mind. 5 Jahre in Betrieb) und bei Windenergieanlagen, deren anzulegender Wert durch eine Ausschreibung bestimmt wurde | AR7: Pflichtfeld bei Windenergieanlagen ab 50 kW (sofern im Jahr der Abrechnung bereits mind. 5 Jahre in Betrieb) und bei Windenergieanlagen, deren anzulegender Wert durch eine Ausschreibung bestimmt wurde | AS7: Pflichtfeld bei Anlagen, deren anzulegender Wert durch eine Ausschreibung bestimmt wurde | AT7: Pflichtfeld bei Anlagen, deren anzulegender Wert durch eine Ausschreibung bestimmt wurde | AU7: Pflichtfeld, wenn der gemeldete Datenstand nicht bereits ab Inbetriebnahme gültig ist. | AV7: Pflichtfeld, sofern der gemeldete Stand aktuell nicht mehr gültig ist. | AW7: Pflichtfeld bei Änderungen oder wenn mehrere Stände für die Anlage in derselben Datei gemeldet werden. | AX7: Pflichtfeld, sofern in Spalte AT "Sonstiges" angegeben wurde. | AY7: optional - sofern Sondersachverhalte vorliegen | AZ7: Plichtfeld sofern Spalte AV befüllt ist
A8: E1006601S725010021200160359400001 | B8: DE0002147250100001002120016003594 | D8: Gammertingen | E8: Baden-Württemberg | F8: 72501 | G8: Achalmstr. 16 | H8: 8437031 | I8: 1.3 | J8: Solar | K8: 2001-07-17 | P8: NS | Q8: Nein | R8: Nein | S8: Nicht regelbar | T8: Nein | U8: Nein | V8: SOT | W8: Nein | X8: Nein | AC8: Nein
A9: E1006601S725010021200030087200001 | B9: DE0002147250100001002120003000872 | D9: Gammertingen | E9: Baden-Württemberg | F9: 72501 | G9: Achalmstr. 3 | H9: 8437031 | I9: 10.56 | J9: Solar/Gebäude | K9: 2009-09-21 | P9: NS | Q9: Nein | R9: Nein | S9: Nicht regelbar | T9: Nein | U9: Nein | V9: SOT | W9: Nein | X9: Nein | AC9: Nein
A10: E1006601S725010021200050000200001 | B10: DE0002147250100001002120005000002 | D10: Gammertingen | E10: Baden-Württemberg | F10: 72501 | G10: Achalmstr. 5 | H10: 8437031 | I10: 7.36 | J10: Solar | K10: 2008-06-23 | P10: NS | Q10: Nein | R10: Nein | S10: Nicht regelbar | T10: Nein | U10: Nein | V10: SOT | W10: Nein | X10: Nein | AC10: Nein
A11: E1006001S725010021200090088700001 | B11: DE0002147250100001002120009000887 | D11: Gammertingen | E11: Baden-Württemberg | F11: 72501 | G11: Achalmstr. 9 | H11: 8437031 | I11: 5.28 | J11: Solar/Gebäude | K11: 2012-03-30 | P11: NS | Q11: Ja (keine Belieferung Dritter) | R11: Nein | S11: regelbar nach § 6 Abs. 2 EEG 2012 | T11: Nein | U11: Nein | V11: SOT | W11: Nein | X11: Nein | AA11: Prozentual | AB11: 0.3 | AC11: Nein
A12: E1006601S725010041200040282000001 | B12: DE0002147250100001004120004002820 | D12: Gammertingen | E12: Baden-Württemberg | F12: 72501 | G12: Alemannenweg 4 | H12: 8437031 | I12: 28.28 | J12: Solar/Gebäude | K12: 2010-06-01 | P12: NS | Q12: Nein | R12: Nein | S12: Nicht regelbar | T12: Nein | U12: Nein | V12: SOT | W12: Nein | X12: Nein | AC12: Nein
A13: E1006601S725010010100250003300001 | B13: DE0002147250100001001010025000033 | D13: Gammertingen | E13: Baden-Württemberg | F13: 72501 | G13: Alte Steige 25 | H13: 8437031 | I13: 6.65 | J13: Solar | K13: 2006-10-06 | P13: NS | Q13: Nein | R13: Nein | S13: Nicht regelbar | T13: Nein | U13: Nein | V13: SOT | W13: Nein | X13: Nein | AC13: Nein
A14: E1006601S725010010100080000100001 | B14: DE8002147250100001001010008000001 | D14: Gammertingen | E14: Baden-Württemberg | F14: 72501 | G14: Alte Steige 8 | H14: 8437031 | I14: 4.14 | J14: Solar/Gebäude | K14: 2010-09-30 | P14: NS | Q14: Nein | R14: Nein | S14: Nicht regelbar | T14: Nein | U14: Nein | V14: SOT | W14: Nein | X14: Nein | AC14: Nein
A15: E1006001S725010021800030363100001 | B15: DE8002147250100001002180003003631 | D15: Gammertingen | E15: Baden-Württemberg | F15: 72501 | G15: Augstbergweg 3 | H15: 8437031 | I15: 2.52 | J15: Solar/Gebäude | K15: 2011-06-24 | P15: NS | Q15: Nein | R15: Nein | S15: Nicht regelbar | T15: Nein | U15: Nein | V15: SOT | W15: Nein | X15: Nein | AC15: Nein
A16: E1006601S725010021800030363100001 | B16: DE0002147250100001002180003003631 | D16: Gammertingen | E16: Baden-Württemberg | F16: 72501 | G16: Augstbergweg 3 | H16: 8437031 | I16: 2.24 | J16: Solar | K16: 2001-08-28 | P16: NS | Q16: Nein | R16: Nein | S16: Nicht regelbar | T16: Nein | U16: Nein | V16: SOT | W16: Nein | X16: Nein | AC16: Nein
A17: E1006601S725010021800050010400001 | B17: DE0002147250100001002180005001004 | D17: Gammertingen | E17: Baden-Württemberg | F17: 72501 | G17: Augstbergweg 5 | H17: 8437031 | I17: 5.5 | J17: Solar | K17: 2008-04-22 | P17: NS | Q17: Nein | R17: Nein | S17: Nicht regelbar | T17: Nein | U17: Nein | V17: SOT | W17: Nein | X17: Nein | AC17: Nein
A18: E1006601S725010021800080100600001 | B18: DE8002147250100001002180008001006 | D18: Gammertingen | E18: Baden-Württemberg | F18: 72501 | G18: Augstbergweg 8 | H18: 8437031 | I18: 8.19 | J18: Solar/Gebäude | K18: 2011-08-30 | P18: NS | Q18: Nein | R18: Nein | S18: Nicht regelbar | T18: Nein | U18: Nein | V18: SOT | W18: Nein | X18: Nein | AC18: Nein
A19: E1006601S725010010200100409400001 | B19: DE0002147250100001001020010004094 | D19: Gammertingen | E19: Baden-Württemberg | F19: 72501 | G19: August-Reiser-Str. 10 | H19: 8437031 | I19: 3.22 | J19: Solar | K19: 2002-12-13 | P19: NS | Q19: Nein | R19: Nein | S19: Nicht regelbar | T19: Nein | U19: Nein | V19: SOT | W19: Nein | X19: Nein | AC19: Nein
A20: E1006601S725010022600170117100001 | B20: DE0002147250100001002260017001171 | D20: Gammertingen | E20: Baden-Württemberg | F20: 72501 | G20: Äussere Lochern 17 | H20: 8437031 | I20: 4.99 | J20: Solar | K20: 2005-06-02 | P20: NS | Q20: Nein | R20: Nein | S20: Nicht regelbar | T20: Nein | U20: Nein | V20: SOT | W20: Nein | X20: Nein | AC20: Nein
A21: E1006601S725010022600290118700001 | B21: DE8002147250100001002260029001187 | D21: Gammertingen | E21: Baden-Württemberg | F21: 72501 | G21: Äußere Lochern 29 | H21: 8437031 | I21: 5.04 | J21: Solar/Gebäude | K21: 2011-05-27 | P21: NS | Q21: Ja (keine Belieferung Dritter) | R21: Nein | S21: Nicht regelbar | T21: Nein | U21: Nein | V21: SOT | W21: Nein | X21: Nein | AA21: Prozentual | AB21: 0.3 | AC21: Nein
A22: E1006601S725010022600030114300001 | B22: DE0002147250100001002260003001143 | D22: Gammertingen | E22: Baden-Württemberg | F22: 72501 | G22: Äussere Lochern 3 | H22: 8437031 | I22: 2 | J22: Solar | K22: 2000-08-31 | P22: NS | Q22: Nein | R22: Nein | S22: Nicht regelbar | T22: Nein | U22: Nein | V22: SOT | W22: Nein | X22: Nein | AC22: Nein
A23: E1006601S725010022600060114900001 | B23: DE0002147250100001002260006001149 | D23: Gammertingen | E23: Baden-Württemberg | F23: 72501 | G23: Äussere Lochern 6 | H23: 8437031 | I23: 4.2 | J23: Solar | K23: 2003-12-11 | P23: NS | Q23: Nein | R23: Nein | S23: Nicht regelbar | T23: Nein | U23: Nein | V23: SOT | W23: Nein | X23: Nein | AC23: Nein
A24: E1006601S725010022600080345200001 | B24: DE0002147250100001002260008003452 | D24: Gammertingen | E24: Baden-Württemberg | F24: 72501 | G24: Äussere Lochern 8 | H24: 8437031 | I24: 2 | J24: Solar | K24: 2001-01-22 | P24: NS | Q24: Nein | R24: Nein | S24: Nicht regelbar | T24: Nein | U24: Nein | V24: SOT | W24: Nein | X24: Nein | AC24: Nein
A25: E1006601S725010022600080345200002 | B25: DE0002147250100001002260008003452 | D25: Gammertingen | E25: Baden-Württemberg | F25: 72501 | G25: Äußere Lochern 8 | H25: 8437031 | I25: 2.05 | J25: Solar | K25: 2007-10-02 | P25: NS | Q25: Nein | R25: Nein | S25: Nicht regelbar | T25: Nein | U25: Nein | V25: SOT | W25: Nein | X25: Nein | AC25: Nein
A26: E1006601S725010031700030232100001 | B26: DE0002147250100001003170003002321 | D26: Gammertingen | E26: Baden-Württemberg | F26: 72501 | G26: Beethovenstr. 3 | H26: 8437031 | I26: 4.42 | J26: Solar | K26: 2003-08-27 | P26: NS | Q26: Nein | R26: Nein | S26: Nicht regelbar | T26: Nein | U26: Nein | V26: SOT | W26: Nein | X26: Nein | AC26: Nein
A27: E1006001S725010021000130084900001 | B27: DE8002147250100001002100013000849 | D27: Gammertingen | E27: Baden-Württemberg | F27: 72501 | G27: Birkenweg 13 | H27: 8437031 | I27: 14.28 | J27: Solar/Gebäude | K27: 2011-12-20 | P27: NS | Q27: Nein | R27: Nein | S27: Nicht regelbar | T27: Nein | U27: Nein | V27: SOT | W27: Nein | X27: Nein | AC27: Nein
A28: E1006001S725010031400040202900001 | B28: DE0002147250100001003140004002029 | D28: Gammertingen | E28: Baden-Württemberg | F28: 72501 | G28: Bohlhalde 4 | H28: 8437031 | I28: 10.533 | J28: Solar/Gebäude | K28: 2012-03-30 | P28: NS | Q28: Ja (keine Belieferung Dritter) | R28: Nein | S28: regelbar nach § 6 Abs. 2 EEG 2012 | T28: Nein | U28: Nein | V28: SOT | W28: Nein | X28: Nein | AA28: Prozentual | AB28: 0.3 | AC28: Nein
A29: E1006001S725010031400040202900002 | B29: DE0002147250100001003140004002029 | D29: Gammertingen | E29: Baden-Württemberg | F29: 72501 | G29: Bohlhalde 4 | H29: 8437031 | I29: 2.24 | J29: Solar/Gebäude | K29: 2017-12-23 | P29: NS | Q29: Ja (keine Belieferung Dritter) | R29: Nein | S29: 70%-Begrenzung | T29: Nein | U29: Nein | V29: SOT | W29: Nein | X29: Nein | AA29: Prozentual | AB29: 0.3 | AC29: Nein
A30: E1006001S725010011400120052500001 | B30: DE0002147250100001001140012000525 | D30: Gammertingen | E30: Baden-Württemberg | F30: 72501 | G30: Breitestr. 12 | H30: 8437031 | I30: 3.99 | J30: Solar/Gebäude | K30: 2017-06-27 | P30: NS | Q30: Ja (keine Belieferung Dritter) | R30: Ja | S30: 70%-Begrenzung | T30: Nein | U30: Nein | V30: SOT | W30: Nein | X30: Nein | AA30: Prozentual | AB30: 0.3 | AC30: Nein
A31: E1006001S725010022700190122600001 | B31: DE0002147250100001002270019001226 | D31: Gammertingen | E31: Baden-Württemberg | F31: 72501 | G31: Breslauer Str. 19 | H31: 8437031 | I31: 3.36 | J31: Solar/Gebäude | K31: 2012-07-27 | P31: NS | Q31: Ja (keine Belieferung Dritter) | R31: Nein | S31: 70%-Begrenzung | T31: Nein | U31: Nein | V31: SOT | W31: Nein | X31: Nein | AA31: Prozentual | AB31: 0.3 | AC31: Nein
A32: E1006601S725010022700310125400001 | B32: DE0002147250100001002270031001254 | D32: Gammertingen | E32: Baden-Württemberg | F32: 72501 | G32: Breslauer Str. 31 | H32: 8437031 | I32: 5.58 | J32: Solar/Gebäude | K32: 2009-07-22 | P32: NS | Q32: Nein | R32: Nein | S32: Nicht regelbar | T32: Nein | U32: Nein | V32: SOT | W32: Nein | X32: Nein | AC32: Nein
A33: E1006001S725010022700070120500001 | B33: DE8002147250100001002270007001205 | D33: Gammertingen | E33: Baden-Württemberg | F33: 72501 | G33: Breslauer Straße 7 | H33: 8437031 | I33: 9.24 | J33: Solar/Gebäude | K33: 2011-09-28 | P33: NS | Q33: Nein | R33: Nein | S33: Nicht regelbar | T33: Nein | U33: Nein | V33: SOT | W33: Nein | X33: Nein | AC33: Nein
A34: E1006601S725010041700010385300001 | B34: DE0002147250100001004170001003853 | D34: Gammertingen | E34: Baden-Württemberg | F34: 72501 | G34: Bubenhofenstr. 1 | H34: 8437031 | I34: 2.04 | J34: Solar | K34: 2002-03-27 | P34: NS | Q34: Nein | R34: Nein | S34: Nicht regelbar | T34: Nein | U34: Nein | V34: SOT | W34: Nein | X34: Nein | AC34: Nein
A35: E1006601S725010041700160300700001 | B35: DE8002147250100001004170016003007 | D35: Gammertingen | E35: Baden-Württemberg | F35: 72501 | G35: Bubenhofenstr. 16 | H35: 8437031 | I35: 3.36 | J35: Solar/Gebäude | K35: 2010-12-22 | P35: NS | Q35: Nein | R35: Nein | S35: Nicht regelbar | T35: Nein | U35: Nein | V35: SOT | W35: Nein | X35: Nein | AC35: Nein
A36: E1006001S725010041700040299200001 | B36: DE0002147250100001004170004002992 | D36: Gammertingen | E36: Baden-Württemberg | F36: 72501 | G36: Bubenhofenstr. 4/1 | H36: 8437031 | I36: 8.19 | J36: Solar/Gebäude | K36: 2011-12-31 | P36: NS | Q36: Nein | R36: Nein | S36: Nicht regelbar | T36: Nein | U36: Nein | V36: SOT | W36: Nein | X36: Nein | AC36: Nein
A37: E1006601S725010041700050299200001 | B37: DE0002147250100001004170005002992 | D37: Gammertingen | E37: Baden-Württemberg | F37: 72501 | G37: Bubenhofenstr. 5 | H37: 8437031 | I37: 9.1 | J37: Solar | K37: 2003-10-14 | P37: NS | Q37: Nein | R37: Nein | S37: Nicht regelbar | T37: Nein | U37: Nein | V37: SOT | W37: Nein | X37: Nein | AC37: Nein
A38: E1006601S725010041700070299700001 | B38: DE0002147250100001004170007002997 | D38: Gammertingen | E38: Baden-Württemberg | F38: 72501 | G38: Bubenhofenstr. 7 | H38: 8437031 | I38: 2 | J38: Solar | K38: 2000-04-01 | P38: NS | Q38: Nein | R38: Nein | S38: Nicht regelbar | T38: Nein | U38: Nein | V38: SOT | W38: Nein | X38: Nein | AC38: Nein
A39: E1006601S725010021100100086100001 | B39: DE0002147250100001002110010000861 | D39: Gammertingen | E39: Baden-Württemberg | F39: 72501 | G39: Buchenweg 10 | H39: 8437031 | I39: 6.63 | J39: Solar | K39: 2006-03-17 | P39: NS | Q39: Nein | R39: Nein | S39: Nicht regelbar | T39: Nein | U39: Nein | V39: SOT | W39: Nein | X39: Nein | AC39: Nein
A40: E1006601S725010021100030085200001 | B40: DE0002147250100001002110003000852 | D40: Gammertingen | E40: Baden-Württemberg | F40: 72501 | G40: Buchenweg 3 | H40: 8437031 | I40: 9 | J40: Solar/Gebäude | K40: 2010-08-25 | P40: NS | Q40: Nein | R40: Nein | S40: Nicht regelbar | T40: Nein | U40: Nein | V40: SOT | W40: Nein | X40: Nein | AC40: Nein
A41: E1006601S725010023100140403100001 | B41: DE0002147250100001002310014004031 | D41: Gammertingen | E41: Baden-Württemberg | F41: 72501 | G41: Burladinger Str. 14 | H41: 8437031 | I41: 29.93 | J41: Solar/Gebäude | K41: 2010-03-16 | P41: NS | Q41: Nein | R41: Nein | S41: Nicht regelbar | T41: Nein | U41: Nein | V41: SOT | W41: Nein | X41: Nein | AC41: Nein
A42: E1006601S725010023100220000100001 | B42: DE0002147250100001002310022000001 | D42: Gammertingen | E42: Baden-Württemberg | F42: 72501 | G42: Burladinger Str. 22 | H42: 8437031 | I42: 125.58 | J42: Solar/Gebäude | K42: 2010-06-30 | P42: NS | Q42: Nein | R42: Nein | S42: regelbar nach § 6 Abs. 1 EEG 2012 | T42: Ja | U42: Nein | V42: SOL | W42: Nein | X42: Nein | AC42: Ja
A43: E1006601S725010023100220000300001 | B43: DE8002147250100001002310022000003 | D43: Gammertingen | E43: Baden-Württemberg | F43: 72501 | G43: Burladinger Str. 22 | H43: 8437031 | I43: 491.92 | J43: Solar/Gebäude | K43: 2010-12-31 | P43: NS | Q43: Nein | R43: Nein | S43: regelbar nach § 6 Abs. 1 EEG 2012 | T43: Ja | U43: Nein | V43: SOL | W43: Nein | X43: Nein | AC43: Ja
A44: E1006001S725010023100050135800001 | B44: DE0002147250100001002310005001358 | D44: Gammertingen | E44: Baden-Württemberg | F44: 72501 | G44: Burladinger Str. 5 | H44: 8437031 | I44: 29.8 | J44: Solar/Gebäude | K44: 2011-12-29 | P44: NS | Q44: Nein | R44: Nein | S44: Nicht regelbar | T44: Nein | U44: Nein | V44: SOT | W44: Nein | X44: Nein | AC44: Nein
A45: E1006601S725010023100060000200001 | B45: DE8002147250100001002310006000002 | D45: Gammertingen | E45: Baden-Württemberg | F45: 72501 | G45: Burladinger Str. 6 | H45: 8437031 | I45: 30.36 | J45: Solar/Gebäude | K45: 2011-06-29 | P45: NS | Q45: Nein | R45: Nein | S45: regelbar nach § 9 Abs. 2 EEG 2014 | T45: Nein | U45: Nein | V45: SOT | W45: Nein | X45: Nein | AC45: Nein
A46: E1006601S725010023100080400000001 | B46: DE0002147250100001002310008004000 | D46: Gammertingen | E46: Baden-Württemberg | F46: 72501 | G46: Burladinger Str. 8 | H46: 8437031 | I46: 31.2 | J46: Solar | K46: 2007-11-12 | P46: NS | Q46: Nein | R46: Nein | S46: Nicht regelbar | T46: Nein | U46: Nein | V46: SOT | W46: Nein | X46: Nein | AC46: Nein
A47: E1006601S725010023100090405700001 | B47: DE0002147250100001002310009004057 | D47: Gammertingen | E47: Baden-Württemberg | F47: 72501 | G47: Burladinger Str. 9 | H47: 8437031 | I47: 12.825 | J47: Solar/Gebäude | K47: 2010-04-22 | P47: NS | Q47: Nein | R47: Nein | S47: Nicht regelbar | T47: Nein | U47: Nein | V47: SOT | W47: Nein | X47: Nein | AC47: Nein
A48: E1006001S725010042200010313800001 | B48: DE0002147250100001004220001003136 | D48: Gammertingen | E48: Baden-Württemberg | F48: 72501 | G48: Constantin-Hanner-Str. 1 | H48: 8437031 | I48: 9.8 | J48: Solar/Gebäude | K48: 2012-10-26 | P48: NS | Q48: Ja (keine Belieferung Dritter) | R48: Nein | S48: regelbar nach § 6 Abs. 2 EEG 2012 | T48: Nein | U48: Nein | V48: SOT | W48: Nein | X48: Nein | AA48: Prozentual | AB48: 0.3 | AC48: Nein
A49: E1006001S725010042200060314100001 | B49: DE0002147250100001004220006003141 | D49: Gammertingen | E49: Baden-Württemberg | F49: 72501 | G49: Constantin-Hanner-Str. 6 | H49: 8437031 | I49: 4.935 | J49: Solar/Gebäude | K49: 2012-05-29 | P49: NS | Q49: Ja (keine Belieferung Dritter) | R49: Nein | S49: regelbar nach § 6 Abs. 2 EEG 2012 | T49: Nein | U49: Nein | V49: SOT | W49: Nein | X49: Nein | AA49: Prozentual | AB49: 0.3 | AC49: Nein
A50: E1006601S725010020300100064100001 | B50: DE0002147250100001002030010000641 | D50: Gammertingen | E50: Baden-Württemberg | F50: 72501 | G50: Daimlerstr. 10 | H50: 8437031 | I50: 5.1 | J50: Solar | K50: 2005-11-09 | P50: NS | Q50: Nein | R50: Nein | S50: Nicht regelbar | T50: Nein | U50: Nein | V50: SOT | W50: Nein | X50: Nein | AC50: Nein
A51: E1006601S725010020300100064200001 | B51: DE0002147250100001002030010000642 | D51: Gammertingen | E51: Baden-Württemberg | F51: 72501 | G51: Daimlerstr. 10 | H51: 8437031 | I51: 8.28 | J51: Solar/Gebäude | K51: 2009-12-10 | P51: NS | Q51: Nein | R51: Nein | S51: Nicht regelbar | T51: Nein | U51: Nein | V51: SOT | W51: Nein | X51: Nein | AC51: Nein
A52: E1006601S725010020300150064900001 | B52: DE0002147250100001002030015000649 | D52: Gammertingen | E52: Baden-Württemberg | F52: 72501 | G52: Daimlerstr. 15 | H52: 8437031 | I52: 12.83 | J52: Solar | K52: 2007-06-19 | P52: NS | Q52: Nein | R52: Nein | S52: Nicht regelbar | T52: Nein | U52: Nein | V52: SOT | W52: Nein | X52: Nein | AC52: Nein
A53: E1006601S725010020300150065000001 | B53: DE0002147250100001002030015000650 | D53: Gammertingen | E53: Baden-Württemberg | F53: 72501 | G53: Daimlerstr. 15 | H53: 8437031 | I53: 19.43 | J53: Solar/Gebäude | K53: 2010-06-01 | P53: NS | Q53: Nein | R53: Nein | S53: Nicht regelbar | T53: Nein | U53: Nein | V53: SOT | W53: Nein | X53: Nein | AC53: Nein
A54: E1006601S725010020300150065100001 | B54: DE0002147250100001002030015000651 | D54: Gammertingen | E54: Baden-Württemberg | F54: 72501 | G54: Daimlerstr. 15 | H54: 8437031 | I54: 8.75 | J54: Solar/Gebäude | K54: 2010-06-01 | P54: NS | Q54: Nein | R54: Nein | S54: Nicht regelbar | T54: Nein | U54: Nein | V54: SOT | W54: Nein | X54: Nein | AC54: Nein
A55: E1006001S725010020300030063100001 | B55: DE0002147250100001002030003000631 | D55: Gammertingen | E55: Baden-Württemberg | F55: 72501 | G55: Daimlerstr. 3 | H55: 8437031 | I55: 6 | J55: Solar/Gebäude | K55: 2013-05-16 | P55: NS | Q55: Ja (keine Belieferung Dritter) | R55: Nein | S55: regelbar nach § 6 Abs. 2 EEG 2012 | T55: nein | U55: Nein | V55: SOT | W55: Nein | X55: Nein | AA55: Prozentual | AB55: 0.3 | AC55: Nein
A56: E1006001S725010020300060000100001 | B56: DE0002147250100001002030006000001 | D56: Gammertingen | E56: Baden-Württemberg | F56: 72501 | G56: Daimlerstr. 6 | H56: 8437031 | I56: 5 | J56: Solar/Gebäude | K56: 2016-11-23 | P56: NS | Q56: Ja (keine Belieferung Dritter) | R56: Nein | S56: 70%-Begrenzung | T56: Nein | U56: Nein | V56: SOT | W56: Nein | X56: Nein | AA56: Prozentual | AB56: 0.3 | AC56: Nein
A57: E1006001S725010022900020366400001 | B57: DE0002147250100001002290002003664 | D57: Gammertingen | E57: Baden-Württemberg | F57: 72501 | G57: Danziger Str. 2 | H57: 8437031 | I57: 17 | J57: Solar/Gebäude | K57: 2011-12-29 | P57: NS | Q57: Nein | R57: Nein | S57: Nicht regelbar | T57: Nein | U57: Nein | V57: SOT | W57: Nein | X57: Nein | AC57: Nein
A58: E1006601S725010022900020366200001 | B58: DE0002147250100001002290002003662 | D58: Gammertingen | E58: Baden-Württemberg | F58: 72501 | G58: Danziger Str. 2 | H58: 8437031 | I58: 14.3 | J58: Solar | K58: 2001-07-30 | P58: NS | Q58: Nein | R58: Nein | S58: Nicht regelbar | T58: Nein | U58: Nein | V58: SOT | W58: Nein | X58: Nein | AC58: Nein
A59: E1006601S725010022900020366300001 | B59: DE0002147250100001002290002003663 | D59: Gammertingen | E59: Baden-Württemberg | F59: 72501 | G59: Danziger Str. 2 | H59: 8437031 | I59: 4 | J59: Solar | K59: 2004-03-29 | P59: NS | Q59: Nein | R59: Nein | S59: Nicht regelbar | T59: Nein | U59: Nein | V59: SOT | W59: Nein | X59: Nein | AC59: Nein
A60: E1006601S725010022900030129700001 | B60: DE0002147250100001002290003001297 | D60: Gammertingen | E60: Baden-Württemberg | F60: 72501 | G60: Danziger Str. 3 | H60: 8437031 | I60: 4.68 | J60: Solar/Gebäude | K60: 2009-07-02 | P60: NS | Q60: Nein | R60: Nein | S60: Nicht regelbar | T60: Nein | U60: Nein | V60: SOT | W60: Nein | X60: Nein | AC60: Nein
A61: E1006601S725010022900030129800001 | B61: DE0002147250100001002290003001298 | D61: Gammertingen | E61: Baden-Württemberg | F61: 72501 | G61: Danziger Str. 3 | H61: 8437031 | I61: 4.68 | J61: Solar/Gebäude | K61: 2009-07-02 | P61: NS | Q61: Nein | R61: Nein | S61: Nicht regelbar | T61: Nein | U61: Nein | V61: SOT | W61: Nein | X61: Nein | AC61: Nein
A62: E1006001S725010022900060130300001 | B62: DE0002147250100001002290006001303 | D62: Gammertingen | E62: Baden-Württemberg | F62: 72501 | G62: Danziger Str. 6 | H62: 8437031 | I62: 29.4 | J62: Solar/Gebäude | K62: 2011-12-30 | P62: NS | Q62: Nein | R62: Nein | S62: Nicht regelbar | T62: Nein | U62: Nein | V62: SOT | W62: Nein | X62: Nein | AC62: Nein
A63: E1006601S725010023500140143000001 | B63: DE0002147250100001002350014001430 | D63: Gammertingen | E63: Baden-Württemberg | F63: 72501 | G63: Dresdener Str. 14 | H63: 8437031 | I63: 12.6 | J63: Solar/Gebäude | K63: 2010-06-30 | P63: NS | Q63: Nein | R63: Nein | S63: Nicht regelbar | T63: Nein | U63: Nein | V63: SOT | W63: Nein | X63: Nein | AC63: Nein
A64: E1006001S725010023500240144600001 | B64: DE0002147250100001002350024001446 | D64: Gammertingen | E64: Baden-Württemberg | F64: 72501 | G64: Dresdener Str. 24 | H64: 8437031 | I64: 11.04 | J64: Solar/Gebäude | K64: 2012-07-07 | P64: NS | Q64: Ja (keine Belieferung Dritter) | R64: Nein | S64: regelbar nach § 6 Abs. 2 EEG 2012 | T64: Nein | U64: Nein | V64: SOT | W64: Nein | X64: Nein | AA64: Prozentual | AB64: 0.3 | AC64: Nein
A65: E1006601S725010023500260144800001 | B65: DE0002147250100001002350026001448 | D65: Gammertingen | E65: Baden-Württemberg | F65: 72501 | G65: Dresdener Str. 26 | H65: 8437031 | I65: 5.75 | J65: Solar | K65: 2004-08-02 | P65: NS | Q65: Nein | R65: Nein | S65: Nicht regelbar | T65: Nein | U65: Nein | V65: SOT | W65: Nein | X65: Nein | AC65: Nein
A66: E1006601S725010023500280144900001 | B66: DE0002147250100001002350028001449 | D66: Gammertingen | E66: Baden-Württemberg | F66: 72501 | G66: Dresdener Str. 28 | H66: 8437031 | I66: 10.4 | J66: Solar/Gebäude | K66: 2009-05-22 | P66: NS | Q66: Nein | R66: Nein | S66: Nicht regelbar | T66: Nein | U66: Nein | V66: SOT | W66: Nein | X66: Nein | AC66: Nein
A67: E1006001S725010023500420000400001 | B67: DE0002147250100001002350042000004 | D67: Gammertingen | E67: Baden-Württemberg | F67: 72501 | G67: Dresdener Str. 42 | H67: 8437031 | I67: 5.2 | J67: Solar/Gebäude | K67: 2014-05-28 | P67: NS | Q67: Ja (keine Belieferung Dritter) | R67: Nein | S67: regelbar nach § 6 Abs. 2 EEG 2012 | T67: Nein | U67: Nein | V67: SOT | W67: Nein | X67: Nein | AA67: Prozentual | AB67: 0.3 | AC67: Nein
A68: E1006001S725010023500050000300001 | B68: DE0002147250100001002350050000003 | D68: Gammertingen | E68: Baden-Württemberg | F68: 72501 | G68: Dresdener Str. 50 | H68: 8437031 | I68: 8.13 | J68: Solar/Gebäude | K68: 2013-01-31 | P68: NS | Q68: Ja (keine Belieferung Dritter) | R68: Nein | S68: regelbar nach § 6 Abs. 2 EEG 2012 | T68: Nein | U68: Nein | V68: SOT | W68: Nein | X68: Nein | AA68: Prozentual | AB68: 0.3 | AC68: Nein
A69: E1006601S725010023500090141700001 | B69: DE0002147250100001002350009001417 | D69: Gammertingen | E69: Baden-Württemberg | F69: 72501 | G69: Dresdener Str. 9 | H69: 8437031 | I69: 8.46 | J69: Solar | K69: 2007-04-12 | P69: NS | Q69: Nein | R69: Nein | S69: Nicht regelbar | T69: Nein | U69: Nein | V69: SOT | W69: Nein | X69: Nein | AC69: Nein
A70: E1006001S725010024100110000300001 | B70: DE0002147250100001002410011000003 | D70: Gammertingen | E70: Baden-Württemberg | F70: 72501 | G70: Egertsbühl 11 | H70: 8437031 | I70: 7.8 | J70: Solar/Gebäude | K70: 2014-06-23 | P70: NS | Q70: Ja (keine Belieferung Dritter) | R70: Nein | S70: regelbar nach § 6 Abs. 2 EEG 2012 | T70: Nein | U70: Nein | V70: SOT | W70: Nein | X70: Nein | AA70: Prozentual | AB70: 0.3 | AC70: Nein
A71: E1006001S725010031100020000400001 | B71: DE0002147250100001003110002000004 | D71: Gammertingen | E71: Baden-Württemberg | F71: 72501 | G71: Eichendorffstr. 2/1 | H71: 8437031 | I71: 9.88 | J71: Solar/Gebäude | K71: 2015-04-20 | P71: NS | Q71: Ja (keine Belieferung Dritter) | R71: Ja | S71: 70%-Begrenzung | T71: Nein | U71: Ja | V71: SOT | W71: Nein | X71: Nein | AA71: Prozentual | AB71: 0.3 | AC71: Nein
A72: E1006601S725010031100250191100001 | B72: DE8002147250100001003110025001911 | D72: Gammertingen | E72: Baden-Württemberg | F72: 72501 | G72: Eichendorffstr. 25 | H72: 8437031 | I72: 5.7 | J72: Solar/Gebäude | K72: 2010-12-15 | P72: NS | Q72: Nein | R72: Nein | S72: Nicht regelbar | T72: Nein | U72: Nein | V72: SOT | W72: Nein | X72: Nein | AC72: Nein
A73: E1006601S725010031100040188200001 | B73: DE0002147250100001003110004001882 | D73: Gammertingen | E73: Baden-Württemberg | F73: 72501 | G73: Eichendorffstr. 4 | H73: 8437031 | I73: 6.48 | J73: Solar | K73: 2008-10-22 | P73: NS | Q73: Nein | R73: Nein | S73: Nicht regelbar | T73: Nein | U73: Nein | V73: SOT | W73: Nein | X73: Nein | AC73: Nein
A74: E1006601S725010031100040188300001 | B74: DE0002147250100001003110004001883 | D74: Gammertingen | E74: Baden-Württemberg | F74: 72501 | G74: Eichendorffstr. 4 | H74: 8437031 | I74: 4.68 | J74: Solar/Gebäude | K74: 2009-08-05 | P74: NS | Q74: Nein | R74: Nein | S74: Nicht regelbar | T74: Nein | U74: Nein | V74: SOT | W74: Nein | X74: Nein | AC74: Nein
A75: E1006601S725010023900050149600001 | B75: DE0002147250100001002390005001496 | D75: Gammertingen | E75: Baden-Württemberg | F75: 72501 | G75: Erfurter Str. 5 | H75: 8437031 | I75: 8.6 | J75: Solar | K75: 2008-09-16 | P75: NS | Q75: Nein | R75: Nein | S75: Nicht regelbar | T75: Nein | U75: Nein | V75: SOT | W75: Nein | X75: Nein | AC75: Nein
A76: E1006601S725010020800130076900001 | B76: DE0002147250100001002080013000769 | D76: Gammertingen | E76: Baden-Württemberg | F76: 72501 | G76: Eschenweg 13 | H76: 8437031 | I76: 27.2 | J76: Solar/Gebäude | K76: 2010-06-18 | P76: NS | Q76: Nein | R76: Nein | S76: Nicht regelbar | T76: Nein | U76: Nein | V76: SOT | W76: Nein | X76: Nein | AC76: Nein
A77: E1006001S725010020800170000100001 | B77: DE0002147250100001002080017000001 | D77: Gammertingen | E77: Baden-Württemberg | F77: 72501 | G77: Eschenweg 17 | H77: 8437031 | I77: 5.4 | J77: Solar/Gebäude | K77: 2015-06-26 | P77: NS | Q77: Ja (keine Belieferung Dritter) | R77: Ja | S77: 70%-Begrenzung | T77: Nein | U77: Ja | V77: SOT | W77: Nein | X77: Nein | AA77: Prozentual | AB77: 0.3 | AC77: Nein
A78: E1006001S725010020800250079200001 | B78: DE8002147250100001002080025000792 | D78: Gammertingen | E78: Baden-Württemberg | F78: 72501 | G78: Eschenweg 25 | H78: 8437031 | I78: 7.98 | J78: Solar/Gebäude | K78: 2011-12-19 | P78: NS | Q78: Nein | R78: Nein | S78: Nicht regelbar | T78: Nein | U78: Nein | V78: SOT | W78: Nein | X78: Nein | AC78: Nein
A79: E1006001S725010020800080076100001 | B79: DE8002147250100001002080008000761 | D79: Gammertingen | E79: Baden-Württemberg | F79: 72501 | G79: Eschenweg 8 | H79: 8437031 | I79: 14.44 | J79: Solar/Gebäude | K79: 2011-12-06 | P79: NS | Q79: Nein | R79: Nein | S79: Nicht regelbar | T79: Nein | U79: Nein | V79: SOT | W79: Nein | X79: Nein | AC79: Nein
A80: E1006001S725010020800090076400001 | B80: DE0002147250100001002080009000764 | D80: Gammertingen | E80: Baden-Württemberg | F80: 72501 | G80: Eschenweg 9 | H80: 8437031 | I80: 6.96 | J80: Solar/Gebäude | K80: 2017-07-07 | P80: NS | Q80: Ja (keine Belieferung Dritter) | R80: Nein | S80: 70%-Begrenzung | T80: Nein | U80: Nein | V80: SOT | W80: Nein | X80: Nein | AA80: Prozentual | AB80: 0.3 | AC80: Nein
A81: E1006001S725010020100160057100001 | B81: DE0002147250100001002010016000571 | D81: Gammertingen | E81: Baden-Württemberg | F81: 72501 | G81: Europastr. 16 | H81: 8437031 | I81: 5.4 | J81: Solar/Gebäude | K81: 2016-06-29 | P81: NS | Q81: Ja (keine Belieferung Dritter) | R81: Nein | S81: 70%-Begrenzung | T81: Nein | U81: Nein | V81: SOT | W81: Nein | X81: Nein | AA81: Prozentual | AB81: 0.3 | AC81: Nein
A82: E1006601S725010022400110111500001 | B82: DE8002147250100001002240011001115 | D82: Gammertingen | E82: Baden-Württemberg | F82: 72501 | G82: Fehlatalstr. 11 | H82: 8437031 | I82: 17.64 | J82: Solar/Gebäude | K82: 2011-08-30 | P82: NS | Q82: Nein | R82: Nein | S82: Nicht regelbar | T82: Nein | U82: Nein | V82: SOT | W82: Nein | X82: Nein | AC82: Nein
A83: E1006601S725010022400060111700001 | B83: DE0002147250100001002240006001117 | D83: Gammertingen | E83: Baden-Württemberg | F83: 72501 | G83: Fehlatalstr. 41 | H83: 8437031 | I83: 19.98 | J83: Solar/Gebäude | K83: 2009-11-18 | P83: NS | Q83: Nein | R83: Nein | S83: Nicht regelbar | T83: Nein | U83: Nein | V83: SOT | W83: Nein | X83: Nein | AC83: Nein
A84: E1006001S725010022400090111200001 | B84: DE0002147250100001002240009001112 | D84: Gammertingen | E84: Baden-Württemberg | F84: 72501 | G84: Fehlatalstr. 9 | H84: 8437031 | I84: 9.88 | J84: Solar/Gebäude | K84: 2012-12-18 | P84: NS | Q84: Ja (mit Belieferung Dritter) | R84: Nein | S84: regelbar nach § 6 Abs. 2 EEG 2012 | T84: Nein | U84: Nein | V84: SOT | W84: Nein | X84: Nein | AA84: Prozentual | AB84: 0.3 | AC84: Nein
A85: E1006001S725010020900150082800001 | B85: DE8002147250100001002090015000828 | D85: Gammertingen | E85: Baden-Württemberg | F85: 72501 | G85: Fichtenweg 15 | H85: 8437031 | I85: 22.94 | J85: Solar/Gebäude | K85: 2011-09-12 | P85: NS | Q85: Nein | R85: Nein | S85: Nicht regelbar | T85: Nein | U85: Nein | V85: SOT | W85: Nein | X85: Nein | AC85: Nein
A86: E1006001S725010020900070081400001 | B86: DE0002147250100001002090007000814 | D86: Gammertingen | E86: Baden-Württemberg | F86: 72501 | G86: Fichtenweg 7 | H86: 8437031 | I86: 6.3 | J86: Solar/Gebäude | K86: 2017-03-01 | P86: NS | Q86: Ja (keine Belieferung Dritter) | R86: Nein | S86: regelbar nach § 9 Abs. 2 EEG 2014 | T86: Nein | U86: Nein | V86: SOT | W86: Nein | X86: Nein | AA86: Prozentual | AB86: 0.3 | AC86: Nein
A87: E1006601S725010040300050244300001 | B87: DE0002147250100001004030005002443 | D87: Gammertingen | E87: Baden-Württemberg | F87: 72501 | G87: Fidelisweg 5 | H87: 8437031 | I87: 7.7 | J87: Solar | K87: 2008-08-28 | P87: NS | Q87: Nein | R87: Nein | S87: Nicht regelbar | T87: Nein | U87: Nein | V87: SOT | W87: Nein | X87: Nein | AC87: Nein
A88: E1006601S725010042000110307200001 | B88: DE8002147250100001004200011003072 | D88: Gammertingen | E88: Baden-Württemberg | F88: 72501 | G88: Freiherrn-von-Speth-Str. 11 | H88: 8437031 | I88: 8.58 | J88: Solar/Gebäude | K88: 2011-03-30 | P88: NS | Q88: Nein | R88: Nein | S88: Nicht regelbar | T88: Nein | U88: Nein | V88: SOT | W88: Nein | X88: Nein | AC88: Nein
A89: E1006001S725010042000120000500001 | B89: DE0002147250100001004200012000005 | D89: Gammertingen | E89: Baden-Württemberg | F89: 72501 | G89: Freiherrn-von-Speth-Str. 12 | H89: 8437031 | I89: 9.4 | J89: Solar/Gebäude | K89: 2012-03-27 | P89: NS | Q89: Ja (keine Belieferung Dritter) | R89: Nein | S89: regelbar nach § 6 Abs. 2 EEG 2012 | T89: Nein | U89: Nein | V89: SOT | W89: Nein | X89: Nein | AA89: Prozentual | AB89: 0.3 | AC89: Nein
A90: E1006001S725010042000290310300001 | B90: DE0002147250100001004200029003103 | D90: Gammertingen | E90: Baden-Württemberg | F90: 72501 | G90: Freiherrn-von-Speth-Str. 29 | H90: 8437031 | I90: 5.31 | J90: Solar/Gebäude | K90: 2017-07-26 | P90: NS | Q90: Ja (keine Belieferung Dritter) | R90: Ja | S90: 70%-Begrenzung | T90: Nein | U90: Nein | V90: SOT | W90: Nein | X90: Nein | AA90: Prozentual | AB90: 0.3 | AC90: Nein
A91: E1006601S725010042000050346400001 | B91: DE0002147250100001004200005003064 | D91: Gammertingen | E91: Baden-Württemberg | F91: 72501 | G91: Freiherrn-von-Speth-Str. 5 | H91: 8437031 | I91: 6.38 | J91: Solar/Gebäude | K91: 2009-06-10 | P91: NS | Q91: Nein | R91: Nein | S91: Nicht regelbar | T91: Nein | U91: Nein | V91: SOT | W91: Nein | X91: Nein | AC91: Nein
A92: E1006601S725010030100220153900001 | B92: DE0002147250100001003010022001539 | D92: Gammertingen | E92: Baden-Württemberg | F92: 72501 | G92: Friedhofstr. 22 | H92: 8437031 | I92: 11.52 | J92: Solar | K92: 2006-11-02 | P92: NS | Q92: Nein | R92: Nein | S92: Nicht regelbar | T92: Nein | U92: Nein | V92: SOT | W92: Nein | X92: Nein | AC92: Nein
A93: E1006001S725010000000000040100001 | B93: DE0002147250100000000000000000401 | D93: Gammertingen | E93: Baden-Württemberg | F93: 72501 | G93: Friedrich-List-Str. 9 | H93: 8437031 | I93: 99.18 | J93: Solar/Gebäude | K93: 2017-04-27 | P93: NS | Q93: Ja (keine Belieferung Dritter) | R93: Nein | S93: regelbar nach § 9 Abs. 2 | T93: Ja | U93: Nein | V93: SOL | W93: Nein | X93: Nein | AC93: Ja
A94: E1006001S725010041600110000100001 | B94: DE0002147250100001004160011000001 | D94: Gammertingen | E94: Baden-Württemberg | F94: 72501 | G94: Gartenstr. 11 | H94: 8437031 | I94: 5.46 | J94: Solar/Gebäude | K94: 2014-10-30 | P94: NS | Q94: Ja (keine Belieferung Dritter) | R94: Ja | S94: 70%-Begrenzung | T94: Nein | U94: Ja | V94: SOT | W94: Nein | X94: Nein | AA94: Prozentual | AB94: 0.3 | AC94: Nein
A95: E1006601S725010041600020296200001 | B95: DE8002147250100001004160002002962 | D95: Gammertingen | E95: Baden-Württemberg | F95: 72501 | G95: Gartenstr. 2/2 | H95: 8437031 | I95: 28.2 | J95: Solar/Gebäude | K95: 2011-07-27 | P95: NS | Q95: Nein | R95: Nein | S95: Nicht regelbar | T95: Nein | U95: Nein | V95: SOT | W95: Nein | X95: Nein | AC95: Nein
A96: E1006601S725010041600040298200001 | B96: DE0002147250100001004160004002982 | D96: Gammertingen | E96: Baden-Württemberg | F96: 72501 | G96: Gartenstr. 4 | H96: 8437031 | I96: 29.725 | J96: Solar/Gebäude | K96: 2009-10-29 | P96: NS | Q96: Nein | R96: Nein | S96: Nicht regelbar | T96: Nein | U96: Nein | V96: SOT | W96: Nein | X96: Nein | AC96: Nein
A97: E1006601S725010041600040298300001 | B97: DE0002147250100001004160004002983 | D97: Gammertingen | E97: Baden-Württemberg | F97: 72501 | G97: Gartenstr. 4 | H97: 8437031 | I97: 9.84 | J97: Solar/Gebäude | K97: 2010-06-30 | P97: NS | Q97: Nein | R97: Nein | S97: Nicht regelbar | T97: Nein | U97: Nein | V97: SOT | W97: Nein | X97: Nein | AC97: Nein
A98: E1006601S725010041600060296800001 | B98: DE0002147250100001004160006002968 | D98: Gammertingen | E98: Baden-Württemberg | F98: 72501 | G98: Gartenstr. 6 | H98: 8437031 | I98: 10.66 | J98: Solar/Gebäude | K98: 2009-10-29 | P98: NS | Q98: Nein | R98: Nein | S98: Nicht regelbar | T98: Nein | U98: Nein | V98: SOT | W98: Nein | X98: Nein | AC98: Nein
A99: E1006601S725010030400070167100001 | B99: DE0002147250100001003040007001671 | D99: Gammertingen | E99: Baden-Württemberg | F99: 72501 | G99: Goethestr. 7 | H99: 8437031 | I99: 5.75 | J99: Solar/Gebäude | K99: 2009-06-23 | P99: NS | Q99: Nein | R99: Nein | S99: Nicht regelbar | T99: Nein | U99: Nein | V99: SOT | W99: Nein | X99: Nein | AC99: Nein
A100: E1006601S725010030400080167200001 | B100: DE8002147250100001003040008001672 | D100: Gammertingen | E100: Baden-Württemberg | F100: 72501 | G100: Goethestr. 8 | H100: 8437031 | I100: 8.05 | J100: Solar/Gebäude | K100: 2010-10-27 | P100: NS | Q100: Nein | R100: Nein | S100: Nicht regelbar | T100: Nein | U100: Nein | V100: SOT | W100: Nein | X100: Nein | AC100: Nein
A101: E1006001S725010042300020314500001 | B101: DE0002147250100001004230002003145 | D101: Gammertingen | E101: Baden-Württemberg | F101: 72501 | G101: Graf-Arnold-Str. 2 | H101: 8437031 | I101: 5.46 | J101: Solar/Gebäude | K101: 2016-01-22 | P101: NS | Q101: Ja (keine Belieferung Dritter) | R101: Ja | S101: 70%-Begrenzung | T101: Nein | U101: Ja | V101: SOT | W101: Nein | X101: Nein | AA101: Prozentual | AB101: 0.3 | AC101: Nein
A102: E1006601S725010042500100317400001 | B102: DE0002147250100001004250010003174 | D102: Gammertingen | E102: Baden-Württemberg | F102: 72501 | G102: Gräfin-Adelheid-Str. 10 | H102: 8437031 | I102: 10.915 | J102: Solar/Gebäude | K102: 2010-06-30 | P102: NS | Q102: Nein | R102: Nein | S102: Nicht regelbar | T102: Nein | U102: Nein | V102: SOT | W102: Nein | X102: Nein | AC102: Nein
A103: E1006601S725010042500140317800001 | B103: DE0002147250100001004250014003178 | D103: Gammertingen | E103: Baden-Württemberg | F103: 72501 | G103: Gräfin-Adelheid-Str. 14 | H103: 8437031 | I103: 6.21 | J103: Solar | K103: 2004-09-30 | P103: NS | Q103: Nein | R103: Nein | S103: Nicht regelbar | T103: Nein | U103: Nein | V103: SOT | W103: Nein | X103: Nein | AC103: Nein
A104: E1006001S725010042500060362800001 | B104: DE0002147250100001004250006003628 | D104: Gammertingen | E104: Baden-Württemberg | F104: 72501 | G104: Gräfin-Adelheid-Str. 6 | H104: 8437031 | I104: 9.8 | J104: Solar/Gebäude | K104: 2016-09-19 | P104: NS | Q104: Ja (keine Belieferung Dritter) | R104: Ja | S104: regelbar nach § 9 Abs. 2 EEG 2014 | T104: Nein | U104: Nein | V104: SOT | W104: Nein | X104: Nein | AA104: Prozentual | AB104: 0.3 | AC104: Nein
A105: E1006601S725010031550090197300001 | B105: DE0002147250100001003115009001973 | D105: Gammertingen | E105: Baden-Württemberg | F105: 72501 | G105: Hauffstr. 9 | H105: 8437031 | I105: 13.5 | J105: Solar/Gebäude | K105: 2010-06-01 | P105: NS | Q105: Nein | R105: Nein | S105: Nicht regelbar | T105: Nein | U105: Nein | V105: SOT | W105: Nein | X105: Nein | AC105: Nein
A106: E1006001S725010010300070011500001 | B106: DE0002147250100001001030007000115 | D106: Gammertingen | E106: Baden-Württemberg | F106: 72501 | G106: Hechinger Str. 7 | H106: 8437031 | I106: 9.69 | J106: Solar/Gebäude | K106: 2016-08-25 | P106: NS | Q106: Ja (keine Belieferung Dritter) | R106: Nein | S106: 70%-Begrenzung | T106: Nein | U106: Nein | V106: SOT | W106: Nein | X106: Nein | AA106: Prozentual | AB106: 0.3 | AC106: Nein
A107: E1006601S725010042900010368900001 | B107: DE0002147250100001004290001003689 | D107: Gammertingen | E107: Baden-Württemberg | F107: 72501 | G107: Heiligenbühlweg 1 | H107: 8437031 | I107: 4.056 | J107: Solar | K107: 2001-10-22 | P107: NS | Q107: Nein | R107: Nein | S107: Nicht regelbar | T107: Nein | U107: Nein | V107: SOT | W107: Nein | X107: Nein | AC107: Nein
A108: E1006001S725010042900070417700001 | B108: DE0002147250100001004290007004177 | D108: Gammertingen | E108: Baden-Württemberg | F108: 72501 | G108: Heiligenbühlweg 7 | H108: 8437031 | I108: 7.82 | J108: Solar/Gebäude | K108: 2012-03-29 | P108: NS | Q108: Nein | R108: Nein | S108: regelbar nach § 6 Abs. 2 EEG 2012 | T108: Nein | U108: Nein | V108: SOT | W108: Nein | X108: Nein | AC108: Nein
A109: E1006601S725010042900080389800001 | B109: DE0002147250100001004290008003898 | D109: Gammertingen | E109: Baden-Württemberg | F109: 72501 | G109: Heiligenbühlweg 8 | H109: 8437031 | I109: 4.59 | J109: Solar | K109: 2007-07-12 | P109: NS | Q109: Nein | R109: Nein | S109: Nicht regelbar | T109: Nein | U109: Nein | V109: SOT | W109: Nein | X109: Nein | AC109: Nein
A110: E1006601S725010042900080389900001 | B110: DE0002147250100001004290008003899 | D110: Gammertingen | E110: Baden-Württemberg | F110: 72501 | G110: Heiligenbühlweg 8 | H110: 8437031 | I110: 4.48 | J110: Solar/Gebäude | K110: 2010-04-29 | P110: NS | Q110: Nein | R110: Nein | S110: Nicht regelbar | T110: Nein | U110: Nein | V110: SOT | W110: Nein | X110: Nein | AC110: Nein
A111: E1006601S725010023000010000100001 | B111: DE0002147250100001002300001000001 | D111: Gammertingen | E111: Baden-Württemberg | F111: 72501 | G111: Herdleäcker 1 | H111: 8437031 | I111: 29.64 | J111: Solar | K111: 2007-07-17 | P111: NS | Q111: Nein | R111: Nein | S111: Nicht regelbar | T111: Nein | U111: Nein | V111: SOT | W111: Nein | X111: Nein | AC111: Nein
A112: E1006601S725010021300100000100001 | B112: DE0002147250100001002130010000001 | D112: Gammertingen | E112: Baden-Württemberg | F112: 72501 | G112: Hochbergstr. 10 | H112: 8437031 | I112: 9.8 | J112: Solar | K112: 2008-09-24 | P112: NS | Q112: Nein | R112: Nein | S112: Nicht regelbar | T112: Nein | U112: Nein | V112: SOT | W112: Nein | X112: Nein | AC112: Nein
A113: E1006001S725010021300320093100001 | B113: DE0002147250100001002130032000931 | D113: Gammertingen | E113: Baden-Württemberg | F113: 72501 | G113: Hochbergstr. 32 | H113: 8437031 | I113: 32.18 | J113: Solar/Gebäude | K113: 2012-10-24 | P113: NS | Q113: Ja (keine Belieferung Dritter) | R113: Nein | S113: regelbar nach § 6 Abs. 2 EEG 2012 | T113: Nein | U113: Nein | V113: SOT | W113: Nein | X113: Nein | AA113: Prozentual | AB113: 0.3 | AC113: Nein
A114: E1006601S725010021300340093200001 | B114: DE0002147250100001002130034000932 | D114: Gammertingen | E114: Baden-Württemberg | F114: 72501 | G114: Hochbergstr. 34 | H114: 8437031 | I114: 6.4 | J114: Solar | K114: 2006-04-19 | P114: NS | Q114: Nein | R114: Nein | S114: Nicht regelbar | T114: Nein | U114: Nein | V114: SOT | W114: Nein | X114: Nein | AC114: Nein
A115: E1006601S725010030600180404000001 | B115: DE0002147250100001003060018004040 | D115: Gammertingen | E115: Baden-Württemberg | F115: 72501 | G115: Hölderlinstr. 18 | H115: 8437031 | I115: 3.45 | J115: Solar | K115: 2002-11-13 | P115: NS | Q115: Nein | R115: Nein | S115: Nicht regelbar | T115: Nein | U115: Nein | V115: SOT | W115: Nein | X115: Nein | AC115: Nein
A116: E1006601S725010030600030176600001 | B116: DE0002147250100001003060003001766 | D116: Gammertingen | E116: Baden-Württemberg | F116: 72501 | G116: Hölderlinstr. 3 | H116: 8437031 | I116: 7.02 | J116: Solar/Gebäude | K116: 2009-02-11 | P116: NS | Q116: Nein | R116: Nein | S116: Nicht regelbar | T116: Nein | U116: Nein | V116: SOT | W116: Nein | X116: Nein | AC116: Nein
A117: E1006601S725010030600090000900001 | B117: DE0002147250100001003060009000009 | D117: Gammertingen | E117: Baden-Württemberg | F117: 72501 | G117: Hölderlinstr. 9 | H117: 8437031 | I117: 12.95 | J117: Solar | K117: 2008-07-28 | P117: NS | Q117: Nein | R117: Nein | S117: Nicht regelbar | T117: Nein | U117: Nein | V117: SOT | W117: Nein | X117: Nein | AC117: Nein
A118: E1006001S725010023800070149100001 | B118: DE0002147250100001002380007001491 | D118: Gammertingen | E118: Baden-Württemberg | F118: 72501 | G118: Jenaer Str. 7 | H118: 8437031 | I118: 9.25 | J118: Solar/Gebäude | K118: 2012-03-31 | P118: NS | Q118: Ja (keine Belieferung Dritter) | R118: Nein | S118: regelbar nach § 6 Abs. 2 EEG 2012 | T118: Nein | U118: Nein | V118: SOT | W118: Nein | X118: Nein | AA118: Prozentual | AB118: 0.3 | AC118: Nein
A119: E1006601S725010010800230000100001 | B119: DE0002147250100001001080023000001 | D119: Gammertingen | E119: Baden-Württemberg | F119: 72501 | G119: Kiverlinstr. 23 | H119: 8437031 | I119: 1 | J119: Solar | K119: 2004-01-01 | P119: NS | Q119: Nein | R119: Nein | S119: Nicht regelbar | T119: Nein | U119: Nein | V119: SOT | W119: Nein | X119: Nein | AC119: Nein
A120: E1006601S725010010800250000100001 | B120: DE0002147250100001001080025000001 | D120: Gammertingen | E120: Baden-Württemberg | F120: 72501 | G120: Kiverlinstr. 25 | H120: 8437031 | I120: 1 | J120: Solar | K120: 2004-01-01 | P120: NS | Q120: Nein | R120: Nein | S120: Nicht regelbar | T120: Nein | U120: Nein | V120: SOT | W120: Nein | X120: Nein | AC120: Nein
A121: E1006601S725010022800170128600001 | B121: DE0002147250100001002280017001286 | D121: Gammertingen | E121: Baden-Württemberg | F121: 72501 | G121: Kohlhalde 17 | H121: 8437031 | I121: 5.72 | J121: Solar/Gebäude | K121: 2009-06-29 | P121: NS | Q121: Nein | R121: Nein | S121: Nicht regelbar | T121: Nein | U121: Nein | V121: SOT | W121: Nein | X121: Nein | AC121: Nein
A122: E1006001S725010022800170128700001 | B122: DE0002147250100001002280017001287 | D122: Gammertingen | E122: Baden-Württemberg | F122: 72501 | G122: Kohlhalde 17 | H122: 8437031 | I122: 3.9 | J122: Solar/Gebäude | K122: 2016-04-06 | P122: NS | Q122: Ja (keine Belieferung Dritter) | R122: Nein | S122: 70%-Begrenzung | T122: Nein | U122: Nein | V122: SOT | W122: Nein | X122: Nein | AA122: Prozentual | AB122: 0.3 | AC122: Nein
A123: E1006601S725010022800060127000001 | B123: DE0002147250100001002280006001270 | D123: Gammertingen | E123: Baden-Württemberg | F123: 72501 | G123: Kohlhalde 6 | H123: 8437031 | I123: 5.34 | J123: Solar | K123: 2003-09-19 | P123: NS | Q123: Nein | R123: Nein | S123: Nicht regelbar | T123: Nein | U123: Nein | V123: SOT | W123: Nein | X123: Nein | AC123: Nein
A124: E1006601S725010022800060127100001 | B124: DE0002147250100001002280006001271 | D124: Gammertingen | E124: Baden-Württemberg | F124: 72501 | G124: Kohlhalde 6 | H124: 8437031 | I124: 2.04 | J124: Solar | K124: 2004-04-06 | P124: NS | Q124: Nein | R124: Nein | S124: Nicht regelbar | T124: Nein | U124: Nein | V124: SOT | W124: Nein | X124: Nein | AC124: Nein
A125: E1006001S725010024300190000500001 | B125: DE0002147250100001002430019000005 | D125: Gammertingen | E125: Baden-Württemberg | F125: 72501 | G125: Leipziger Str. 19 | H125: 8437031 | I125: 9.9 | J125: Solar/Gebäude | K125: 2017-01-29 | P125: NS | Q125: Ja (keine Belieferung Dritter) | R125: Ja | S125: 70%-Begrenzung | T125: Nein | U125: Nein | V125: SOT | W125: Nein | X125: Nein | AA125: Prozentual | AB125: 0.3 | AC125: Nein
A126: E1006601S725010024300020416100001 | B126: DE0002147250100001002430002004161 | D126: Gammertingen | E126: Baden-Württemberg | F126: 72501 | G126: Leipziger Str. 2 | H126: 8437031 | I126: 5.52 | J126: Solar | K126: 2007-10-12 | P126: NS | Q126: Nein | R126: Nein | S126: Nicht regelbar | T126: Nein | U126: Nein | V126: SOT | W126: Nein | X126: Nein | AC126: Nein
A127: E1006601S725010024300090410600001 | B127: DE0002147250100001002430009004106 | D127: Gammertingen | E127: Baden-Württemberg | F127: 72501 | G127: Leipziger Str. 9 | H127: 8437031 | I127: 2 | J127: Solar | K127: 2003-06-20 | P127: NS | Q127: Nein | R127: Nein | S127: Nicht regelbar | T127: Nein | U127: Nein | V127: SOT | W127: Nein | X127: Nein | AC127: Nein
A128: E1006601S725010040200060000100001 | B128: DE0002147250100001004020006000001 | D128: Gammertingen | E128: Baden-Württemberg | F128: 72501 | G128: Marktstr. 6 | H128: 8437031 | I128: 12.15 | J128: Solar/Gebäude | K128: 2010-06-22 | P128: NS | Q128: Nein | R128: Nein | S128: Nicht regelbar | T128: Nein | U128: Nein | V128: SOT | W128: Nein | X128: Nein | AC128: Nein
A129: E1006601S725010042100140358500001 | B129: DE0002147250100001004210014003585 | D129: Gammertingen | E129: Baden-Württemberg | F129: 72501 | G129: Mauren 14 | H129: 8437031 | I129: 8.5 | J129: Solar | K129: 2001-06-21 | P129: NS | Q129: Nein | R129: Nein | S129: Nicht regelbar | T129: Nein | U129: Nein | V129: SOT | W129: Nein | X129: Nein | AC129: Nein
A130: E1006001S725010042100150418200001 | B130: DE0002147250100001004210015004182 | D130: Gammertingen | E130: Baden-Württemberg | F130: 72501 | G130: Mauren 15 | H130: 8437031 | I130: 9.8 | J130: Solar/Gebäude | K130: 2013-03-15 | P130: NS | Q130: Ja (keine Belieferung Dritter) | R130: Nein | S130: regelbar nach § 6 Abs. 2 EEG 2012 | T130: Nein | U130: Nein | V130: SOT | W130: Nein | X130: Nein | AA130: Prozentual | AB130: 0.3 | AC130: Nein
A131: E1006001S725010042100200312600001 | B131: DE0002147250100001004210020003126 | D131: Gammertingen | E131: Baden-Württemberg | F131: 72501 | G131: Mauren 20 | H131: 8437031 | I131: 8.4 | J131: Solar/Gebäude | K131: 2012-05-22 | P131: NS | Q131: Ja (keine Belieferung Dritter) | R131: Nein | S131: regelbar nach § 6 Abs. 2 EEG 2012 | T131: Nein | U131: Nein | V131: SOT | W131: Nein | X131: Nein | AA131: Prozentual | AB131: 0.3 | AC131: Nein
A132: E1006601S725010024600020000200001 | B132: DE0002147250100001002460002000002 | D132: Gammertingen | E132: Baden-Württemberg | F132: 72501 | G132: Maybachstr. 2 | H132: 8437031 | I132: 38.5 | J132: Solar | K132: 2007-12-27 | P132: NS | Q132: Nein | R132: Nein | S132: regelbar nach § 9 Abs. 2 EEG 2014 | T132: Nein | U132: Nein | V132: SOT | W132: Nein | X132: Nein | AC132: Nein
A133: E1006601S725010020350100065300001 | B133: DE0002147250100001002035002000653 | D133: Gammertingen | E133: Baden-Württemberg | F133: 72501 | G133: Mittelberg 10 | H133: 8437031 | I133: 58.3 | J133: Solar/Gebäude | K133: 2010-06-30 | P133: NS | Q133: Nein | R133: Nein | S133: regelbar nach § 9 Abs. 2 EEG 2014 | T133: Ja | U133: Nein | V133: SOL | W133: Nein | X133: Nein | AC133: Nein
A134: E1006601S725010020350020000200001 | B134: DE0002147250100001002035002000002 | D134: Gammertingen | E134: Baden-Württemberg | F134: 72501 | G134: Mittelberg 2 | H134: 8437031 | I134: 104.5 | J134: Solar/Gebäude | K134: 2010-06-30 | P134: NS | Q134: Nein | R134: Nein | S134: regelbar nach § 6 Abs. 1 EEG 2012 | T134: Ja | U134: Nein | V134: SOL | W134: Nein | X134: Nein | AC134: Ja
A135: E1006001S725010020350060000200001 | B135: DE0002147250100001002035006000002 | D135: Gammertingen | E135: Baden-Württemberg | F135: 72501 | G135: Mittelberg 6 | H135: 8437031 | I135: 83.79 | J135: Solar/Gebäude | K135: 2017-07-31 | P135: NS | Q135: Ja (keine Belieferung Dritter) | R135: Nein | S135: regelbar nach § 9 Abs. 2 | T135: Ja | U135: Nein | V135: SOL | W135: Nein | X135: Nein | AC135: Ja
A136: E1006601S725010031600100215500001 | B136: DE0002147250100001003160010002155 | D136: Gammertingen | E136: Baden-Württemberg | F136: 72501 | G136: Mozartstr. 10 | H136: 8437031 | I136: 9.25 | J136: Solar/Gebäude | K136: 2010-05-21 | P136: NS | Q136: Nein | R136: Nein | S136: Nicht regelbar | T136: Nein | U136: Nein | V136: SOT | W136: Nein | X136: Nein | AC136: Nein
A137: E1006001S725010031600110000100001 | B137: DE0002147250100001003160011000001 | D137: Gammertingen | E137: Baden-Württemberg | F137: 72501 | G137: Mozartstr. 11 | H137: 8437031 | I137: 6.44 | J137: Solar/Gebäude | K137: 2014-12-19 | P137: NS | Q137: Ja (keine Belieferung Dritter) | R137: Nein | S137: 70%-Begrenzung | T137: Nein | U137: Nein | V137: SOT | W137: Nein | X137: Nein | AA137: Prozentual | AB137: 0.3 | AC137: Nein
A138: E1006001S725010031600130000100001 | B138: DE0002147250100001003160013000001 | D138: Gammertingen | E138: Baden-Württemberg | F138: 72501 | G138: Mozartstr. 13 | H138: 8437031 | I138: 9.62 | J138: Solar/Gebäude | K138: 2014-02-25 | P138: NS | Q138: Ja (keine Belieferung Dritter) | R138: Nein | S138: regelbar nach § 6 Abs. 2 EEG 2012 | T138: Nein | U138: Nein | V138: SOT | W138: Nein | X138: Nein | AA138: Prozentual | AB138: 0.3 | AC138: Nein
A139: E1006601S725010031600060215000001 | B139: DE0002147250100001003160006002150 | D139: Gammertingen | E139: Baden-Württemberg | F139: 72501 | G139: Mozartstr. 6 | H139: 8437031 | I139: 9.625 | J139: Solar/Gebäude | K139: 2010-09-01 | P139: NS | Q139: Nein | R139: Nein | S139: Nicht regelbar | T139: Nein | U139: Nein | V139: SOT | W139: Nein | X139: Nein | AC139: Nein
A140: E1006601S725010040600020250000001 | B140: DE8002147250100001004060002002500 | D140: Gammertingen | E140: Baden-Württemberg | F140: 72501 | G140: Mühlburren 2 | H140: 8437031 | I140: 91.93 | J140: Solar/Gebäude | K140: 2010-12-31 | P140: NS | Q140: Nein | R140: Nein | S140: regelbar nach § 9 Abs. 2 EEG 2014 | T140: Ja | U140: Nein | V140: SOL | W140: Nein | X140: Nein | AC140: Nein
A141: E1006601S725010022000130104700001 | B141: DE0002147250100001002200013001047 | D141: Gammertingen | E141: Baden-Württemberg | F141: 72501 | G141: Neufraer Str. 13 | H141: 8437031 | I141: 5.845 | J141: Solar | K141: 2005-03-23 | P141: NS | Q141: Nein | R141: Nein | S141: Nicht regelbar | T141: Nein | U141: Nein | V141: SOT | W141: Nein | X141: Nein | AC141: Nein
A142: E1006601S725010022000070104000001 | B142: DE8002147250100001002200007001040 | D142: Gammertingen | E142: Baden-Württemberg | F142: 72501 | G142: Neufraer Str. 7 | H142: 8437031 | I142: 6.58 | J142: Solar/Gebäude | K142: 2010-12-31 | P142: NS | Q142: Ja (keine Belieferung Dritter) | R142: Nein | S142: Nicht regelbar | T142: Nein | U142: Nein | V142: SOT | W142: Nein | X142: Nein | AA142: Prozentual | AB142: 0.3 | AC142: Nein
A143: E1006001S725010031500100210700001 | B143: DE0002147250100001003150010002107 | D143: Gammertingen | E143: Baden-Württemberg | F143: 72501 | G143: Obere Bohlstr. 10 | H143: 8437031 | I143: 8.91 | J143: Solar/Gebäude | K143: 2017-06-06 | P143: NS | Q143: Ja (keine Belieferung Dritter) | R143: Ja | S143: 70%-Begrenzung | T143: Nein | U143: Nein | V143: SOT | W143: Nein | X143: Nein | AA143: Prozentual | AB143: 0.3 | AC143: Nein
A144: E1006601S725010031500110211100001 | B144: DE0002147250100001003150011002111 | D144: Gammertingen | E144: Baden-Württemberg | F144: 72501 | G144: Obere Bohlstr. 11 | H144: 8437031 | I144: 6.3 | J144: Solar/Gebäude | K144: 2009-05-19 | P144: NS | Q144: Nein | R144: Nein | S144: Nicht regelbar | T144: Nein | U144: Nein | V144: SOT | W144: Nein | X144: Nein | AC144: Nein
A145: E1006601S725010031500090210600001 | B145: DE0002147250100001003150009002106 | D145: Gammertingen | E145: Baden-Württemberg | F145: 72501 | G145: Obere Bohlstr. 9 | H145: 8437031 | I145: 4.5 | J145: Solar | K145: 2005-12-06 | P145: NS | Q145: Nein | R145: Nein | S145: Nicht regelbar | T145: Nein | U145: Nein | V145: SOT | W145: Nein | X145: Nein | AC145: Nein
A146: E1006001S725010010900240040800001 | B146: DE0002147250100001001090024000408 | D146: Gammertingen | E146: Baden-Württemberg | F146: 72501 | G146: Ölbergstraße 24 | H146: 8437031 | I146: 348.84 | J146: Solar/Gebäude | K146: 2017-10-10 | P146: NS | Q146: Ja (mit Belieferung Dritter) | R146: Nein | S146: regelbar nach § 9 Abs. 2 | T146: Ja | U146: Nein | V146: SOL | W146: Nein | X146: Nein | AC146: Nein
A147: E1006601S725010020400050151200001 | B147: DE0002147250100001002400005001512 | D147: Gammertingen | E147: Baden-Württemberg | F147: 72501 | G147: Papstdorfer Weg 5 | H147: 8437031 | I147: 8.8 | J147: Solar/Gebäude | K147: 2009-05-06 | P147: NS | Q147: Nein | R147: Nein | S147: Nicht regelbar | T147: Nein | U147: Nein | V147: SOT | W147: Nein | X147: Nein | AC147: Nein
A148: E1006601S725010024000060151300001 | B148: DE0002147250100001002400006001513 | D148: Gammertingen | E148: Baden-Württemberg | F148: 72501 | G148: Papstdorfer Weg 6 | H148: 8437031 | I148: 10.98 | J148: Solar | K148: 2007-10-12 | P148: NS | Q148: Nein | R148: Nein | S148: Nicht regelbar | T148: Nein | U148: Nein | V148: SOT | W148: Nein | X148: Nein | AC148: Nein
A149: E1006601S725010024000060151400001 | B149: DE8002147250100001002400006001514 | D149: Gammertingen | E149: Baden-Württemberg | F149: 72501 | G149: Papstdorfer Weg 6 | H149: 8437031 | I149: 6.84 | J149: Solar/Gebäude | K149: 2010-09-30 | P149: NS | Q149: Nein | R149: Nein | S149: Nicht regelbar | T149: Nein | U149: Nein | V149: SOT | W149: Nein | X149: Nein | AC149: Nein
A150: E1006001S725010024200110000300001 | B150: DE0002147250100001002420011000003 | D150: Gammertingen | E150: Baden-Württemberg | F150: 72501 | G150: Potsdamer Str. 11 | H150: 8437031 | I150: 6.48 | J150: Solar/Gebäude | K150: 2014-12-23 | P150: NS | Q150: Ja (keine Belieferung Dritter) | R150: Nein | S150: 70%-Begrenzung | T150: Nein | U150: Nein | V150: SOT | W150: Nein | X150: Nein | AA150: Prozentual | AB150: 0.3 | AC150: Nein
A151: E1006001S725010024200040414700001 | B151: DE0002147250100001002420016004147 | D151: Gammertingen | E151: Baden-Württemberg | F151: 72501 | G151: Potsdamer Str. 4 | H151: 8437031 | I151: 7.595 | J151: Solar/Gebäude | K151: 2013-03-28 | P151: NS | Q151: Ja (keine Belieferung Dritter) | R151: Nein | S151: regelbar nach § 6 Abs. 2 EEG 2012 | T151: Nein | U151: Nein | V151: SOT | W151: Nein | X151: Nein | AA151: Prozentual | AB151: 0.3 | AC151: Nein
A152: E1006001S725010024200060000200001 | B152: DE8002147250100001002420006000002 | D152: Gammertingen | E152: Baden-Württemberg | F152: 72501 | G152: Potsdamer Str. 6 | H152: 8437031 | I152: 8.575 | J152: Solar/Gebäude | K152: 2011-11-18 | P152: NS | Q152: Nein | R152: Nein | S152: Nicht regelbar | T152: Nein | U152: Nein | V152: SOT | W152: Nein | X152: Nein | AC152: Nein
A153: E1006601S725010024200080000300001 | B153: DE0002147250100001002420008000003 | D153: Gammertingen | E153: Baden-Württemberg | F153: 72501 | G153: Potsdamer Str. 8 | H153: 8437031 | I153: 6.63 | J153: Solar | K153: 2008-12-22 | P153: NS | Q153: Nein | R153: Nein | S153: Nicht regelbar | T153: Nein | U153: Nein | V153: SOT | W153: Nein | X153: Nein | AC153: Nein
A154: E1006601S725010022300070110200001 | B154: DE0002147250100001002230007001102 | D154: Gammertingen | E154: Baden-Württemberg | F154: 72501 | G154: Raichbergweg 7 | H154: 8437031 | I154: 16.577 | J154: Solar/Gebäude | K154: 2010-04-09 | P154: NS | Q154: Nein | R154: Nein | S154: Nicht regelbar | T154: Nein | U154: Nein | V154: SOT | W154: Nein | X154: Nein | AC154: Nein
A155: E1006001S725010040800270000400001 | B155: DE0002147250100001004080027000004 | D155: Gammertingen | E155: Baden-Württemberg | F155: 72501 | G155: Reutlinger Str. 27 | H155: 8437031 | I155: 83.63 | J155: Solar/Gebäude | K155: 2016-10-07 | P155: NS | Q155: Ja (keine Belieferung Dritter) | R155: Nein | S155: regelbar nach § 9 Abs. 2 EEG 2014 | T155: Nein | U155: Nein | V155: SOT | W155: Nein | X155: Nein | AA155: Prozentual | AB155: 0.3 | AC155: Nein
A156: E1006601S725010040800060251400001 | B156: DE0002147250100001004080006002514 | D156: Gammertingen | E156: Baden-Württemberg | F156: 72501 | G156: Reutlinger Str. 6 | H156: 8437031 | I156: 24.5 | J156: Solar | K156: 2007-09-29 | P156: NS | Q156: Nein | R156: Nein | S156: Nicht regelbar | T156: Nein | U156: Nein | V156: SOT | W156: Nein | X156: Nein | AC156: Nein
A157: E1006001S725010031000010186300001 | B157: DE0002147250100001003100001001863 | D157: Gammertingen | E157: Baden-Württemberg | F157: 72501 | G157: Rilkeweg 1 | H157: 8437031 | I157: 4.875 | J157: Solar/Gebäude | K157: 2011-12-29 | P157: NS | Q157: Nein | R157: Nein | S157: Nicht regelbar | T157: Nein | U157: Nein | V157: SOT | W157: Nein | X157: Nein | AC157: Nein
A158: E1006601S725010020400030000200001 | B158: DE0002147250100001002040003000002 | D158: Gammertingen | E158: Baden-Württemberg | F158: 72501 | G158: Robert-Bosch-Str. 3 | H158: 8437031 | I158: 62.422 | J158: Solar | K158: 2008-06-23 | P158: NS | Q158: Nein | R158: Nein | S158: regelbar nach § 9 Abs. 2 EEG 2014 | T158: Nein | U158: Nein | V158: SOT | W158: Nein | X158: Nein | AC158: Nein
A159: E1006001S725010020400040065800001 | B159: DE0002147250100001002040004000658 | D159: Gammertingen | E159: Baden-Württemberg | F159: 72501 | G159: Robert-Bosch-Str. 4 | H159: 8437031 | I159: 9.87 | J159: Solar/Gebäude | K159: 2012-07-12 | P159: NS | Q159: Ja (keine Belieferung Dritter) | R159: Nein | S159: regelbar nach § 6 Abs. 2 EEG 2012 | T159: Nein | U159: Nein | V159: SOT | W159: Nein | X159: Nein | AA159: Prozentual | AB159: 0.3 | AC159: Nein
A160: E1006601S725010041550110404700001 | B160: DE0002147250100001004155011004047 | D160: Gammertingen | E160: Baden-Württemberg | F160: 72501 | G160: Robert-Seifert-Str. 11 | H160: 8437031 | I160: 3.52 | J160: Solar | K160: 2002-11-25 | P160: NS | Q160: Nein | R160: Nein | S160: Nicht regelbar | T160: Nein | U160: Nein | V160: SOT | W160: Nein | X160: Nein | AC160: Nein
A161: E1006601S725010041550140292700001 | B161: DE8002147250100001004155014002927 | D161: Gammertingen | E161: Baden-Württemberg | F161: 72501 | G161: Robert-Seifert-Str. 14 | H161: 8437031 | I161: 13.735 | J161: Solar/Gebäude | K161: 2010-09-23 | P161: NS | Q161: Nein | R161: Nein | S161: Nicht regelbar | T161: Nein | U161: Nein | V161: SOT | W161: Nein | X161: Nein | AC161: Nein
A162: E1006601S725010041550150292800001 | B162: DE0002147250100001004155015002928 | D162: Gammertingen | E162: Baden-Württemberg | F162: 72501 | G162: Robert-Seifert-Str. 15 | H162: 8437031 | I162: 7.48 | J162: Solar | K162: 2006-04-20 | P162: NS | Q162: Nein | R162: Nein | S162: Nicht regelbar | T162: Nein | U162: Nein | V162: SOT | W162: Nein | X162: Nein | AC162: Nein
A163: E1006601S725010041550190293300001 | B163: DE0002147250100001004155019002933 | D163: Gammertingen | E163: Baden-Württemberg | F163: 72501 | G163: Robert-Seifert-Str. 19 | H163: 8437031 | I163: 9.24 | J163: Solar/Gebäude | K163: 2010-06-29 | P163: NS | Q163: Nein | R163: Nein | S163: Nicht regelbar | T163: Nein | U163: Nein | V163: SOT | W163: Nein | X163: Nein | AC163: Nein
A164: E1006601S725010041550340418800001 | B164: DE0002147250100001004155034004188 | D164: Gammertingen | E164: Baden-Württemberg | F164: 72501 | G164: Robert-Seifert-Str. 34 | H164: 8437031 | I164: 2 | J164: Solar | K164: 2003-05-20 | P164: NS | Q164: Nein | R164: Nein | S164: Nicht regelbar | T164: Nein | U164: Nein | V164: SOT | W164: Nein | X164: Nein | AC164: Nein
A165: E1006601S725010041550350294900001 | B165: DE0002147250100001004155035002949 | D165: Gammertingen | E165: Baden-Württemberg | F165: 72501 | G165: Robert-Seifert-Str. 35 | H165: 8437031 | I165: 10.58 | J165: Solar/Gebäude | K165: 2009-03-24 | P165: NS | Q165: Nein | R165: Nein | S165: Nicht regelbar | T165: Nein | U165: Nein | V165: SOT | W165: Nein | X165: Nein | AC165: Nein
A166: E1006001S725010041550360348600001 | B166: DE0002147250100001004155036003486 | D166: Gammertingen | E166: Baden-Württemberg | F166: 72501 | G166: Robert-Seifert-Str. 36 | H166: 8437031 | I166: 9.69 | J166: Solar/Gebäude | K166: 2017-09-27 | P166: NS | Q166: Ja (keine Belieferung Dritter) | R166: Nein | S166: 70%-Begrenzung | T166: Nein | U166: Nein | V166: SOT | W166: Nein | X166: Nein | AA166: Prozentual | AB166: 0.3 | AC166: Nein
A167: E1006601S725010041550040291300001 | B167: DE0002147250100001004155004002913 | D167: Gammertingen | E167: Baden-Württemberg | F167: 72501 | G167: Robert-Seifert-Str. 4 | H167: 8437031 | I167: 8.46 | J167: Solar/Gebäude | K167: 2009-06-25 | P167: NS | Q167: Nein | R167: Nein | S167: Nicht regelbar | T167: Nein | U167: Nein | V167: SOT | W167: Nein | X167: Nein | AC167: Nein
A168: E1006601S725010041550450295600001 | B168: DE0002147250100001004155045002956 | D168: Gammertingen | E168: Baden-Württemberg | F168: 72501 | G168: Robert-Seifert-Str. 45 | H168: 8437031 | I168: 9.43 | J168: Solar/Gebäude | K168: 2010-06-01 | P168: NS | Q168: Nein | R168: Nein | S168: Nicht regelbar | T168: Nein | U168: Nein | V168: SOT | W168: Nein | X168: Nein | AC168: Nein
A169: E1006601S725010041550050291400001 | B169: DE8002147250100001004155005002914 | D169: Gammertingen | E169: Baden-Württemberg | F169: 72501 | G169: Robert-Seifert-Str. 5 | H169: 8437031 | I169: 13.475 | J169: Solar/Gebäude | K169: 2011-08-22 | P169: NS | Q169: Nein | R169: Nein | S169: Nicht regelbar | T169: Nein | U169: Nein | V169: SOT | W169: Nein | X169: Nein | AC169: Nein
A170: E1006601S725010041550070291700001 | B170: DE0002147250100001004155007002917 | D170: Gammertingen | E170: Baden-Württemberg | F170: 72501 | G170: Robert-Seifert-Str. 7 | H170: 8437031 | I170: 12.42 | J170: Solar/Gebäude | K170: 2009-03-12 | P170: NS | Q170: Nein | R170: Nein | S170: Nicht regelbar | T170: Nein | U170: Nein | V170: SOT | W170: Nein | X170: Nein | AC170: Nein
A171: E1006601S725010041550080291800001 | B171: DE0002147250100001004155008002918 | D171: Gammertingen | E171: Baden-Württemberg | F171: 72501 | G171: Robert-Seifert-Str. 8 | H171: 8437031 | I171: 10.2 | J171: Solar | K171: 2006-03-30 | P171: NS | Q171: Nein | R171: Nein | S171: Nicht regelbar | T171: Nein | U171: Nein | V171: SOT | W171: Nein | X171: Nein | AC171: Nein
A172: E1006001S725010011000070043200001 | B172: DE0002147250100001001100007000432 | D172: Gammertingen | E172: Baden-Württemberg | F172: 72501 | G172: Römerweg 7 | H172: 8437031 | I172: 6.4 | J172: Solar/Gebäude | K172: 2017-02-03 | P172: NS | Q172: Ja (keine Belieferung Dritter) | R172: Ja | S172: 70%-Begrenzung | T172: Nein | U172: Nein | V172: SOT | W172: Nein | X172: Nein | AA172: Prozentual | AB172: 0.3 | AC172: Nein
A173: E1006601S725010023700030147700001 | B173: DE0002147250100001002370003001477 | D173: Gammertingen | E173: Baden-Württemberg | F173: 72501 | G173: Rostocker Str. 3 | H173: 8437031 | I173: 10.08 | J173: Solar/Gebäude | K173: 2010-06-25 | P173: NS | Q173: Nein | R173: Nein | S173: Nicht regelbar | T173: Nein | U173: Nein | V173: SOT | W173: Nein | X173: Nein | AC173: Nein
A174: E1006001S725010023700050000100001 | B174: DE8002147250100001002370005000001 | D174: Gammertingen | E174: Baden-Württemberg | F174: 72501 | G174: Rostocker Str. 5 | H174: 8437031 | I174: 11.96 | J174: Solar/Gebäude | K174: 2011-07-05 | P174: NS | Q174: Nein | R174: Nein | S174: Nicht regelbar | T174: Nein | U174: Nein | V174: SOT | W174: Nein | X174: Nein | AC174: Nein
A175: E1006601S725010011100020387200001 | B175: DE0002147250100001001110002003872 | D175: Gammertingen | E175: Baden-Württemberg | F175: 72501 | G175: Roter Dill 2 | H175: 8437031 | I175: 1.92 | J175: Solar | K175: 2002-04-30 | P175: NS | Q175: Nein | R175: Nein | S175: Nicht regelbar | T175: Nein | U175: Nein | V175: SOT | W175: Nein | X175: Nein | AC175: Nein
A176: E1006601S725010011100020387200002 | B176: DE0002147250100001001110002003872 | D176: Gammertingen | E176: Baden-Württemberg | F176: 72501 | G176: Roter Dill 2 | H176: 8437031 | I176: 1.92 | J176: Solar | K176: 2004-05-19 | P176: NS | Q176: Nein | R176: Nein | S176: Nicht regelbar | T176: Nein | U176: Nein | V176: SOT | W176: Nein | X176: Nein | AC176: Nein
A177: E1006001S725010042700120319600001 | B177: DE8002147250100001004270012003196 | D177: Gammertingen | E177: Baden-Württemberg | F177: 72501 | G177: Salierstr. 12 | H177: 8437031 | I177: 10.92 | J177: Solar/Gebäude | K177: 2011-10-19 | P177: NS | Q177: Nein | R177: Nein | S177: Nicht regelbar | T177: Nein | U177: Nein | V177: SOT | W177: Nein | X177: Nein | AC177: Nein
A178: E1006601S725010042700170342900001 | B178: DE0002147250100001004270017003429 | D178: Gammertingen | E178: Baden-Württemberg | F178: 72501 | G178: Salierstr. 17 | H178: 8437031 | I178: 7.35 | J178: Solar/Gebäude | K178: 2009-05-26 | P178: NS | Q178: Nein | R178: Nein | S178: Nicht regelbar | T178: Nein | U178: Nein | V178: SOT | W178: Nein | X178: Nein | AC178: Nein
A179: E1006001S725010042700210000300001 | B179: DE0002147250100001004270021000003 | D179: Gammertingen | E179: Baden-Württemberg | F179: 72501 | G179: Salierstr. 21 | H179: 8437031 | I179: 12.495 | J179: Solar/Gebäude | K179: 2012-03-30 | P179: NS | Q179: Ja (keine Belieferung Dritter) | R179: Nein | S179: regelbar nach § 6 Abs. 2 EEG 2012 | T179: Nein | U179: Nein | V179: SOT | W179: Nein | X179: Nein | AA179: Prozentual | AB179: 0.3 | AC179: Nein
A180: E1006601S725010022700240358500001 | B180: DE0002147250100001002270024003585 | D180: Gammertingen | E180: Baden-Württemberg | F180: 72501 | G180: Salierstr. 24 | H180: 8437031 | I180: 9.45 | J180: Solar/Gebäude | K180: 2010-04-14 | P180: NS | Q180: Nein | R180: Nein | S180: Nicht regelbar | T180: Nein | U180: Nein | V180: SOT | W180: Nein | X180: Nein | AC180: Nein
A181: E1006601S725010020200110058700001 | B181: DE0002147250100001002020011000587 | D181: Gammertingen | E181: Baden-Württemberg | F181: 72501 | G181: Schelmengartenstr. 11 | H181: 8437031 | I181: 8.575 | J181: Solar | K181: 2006-07-10 | P181: NS | Q181: Nein | R181: Nein | S181: Nicht regelbar | T181: Nein | U181: Nein | V181: SOT | W181: Nein | X181: Nein | AC181: Nein
A182: E1006601S725010020200150059000001 | B182: DE0002147250100001002020015000590 | D182: Gammertingen | E182: Baden-Württemberg | F182: 72501 | G182: Schelmengartenstr. 15 | H182: 8437031 | I182: 6.12 | J182: Solar/Gebäude | K182: 2010-06-29 | P182: NS | Q182: Nein | R182: Nein | S182: Nicht regelbar | T182: Nein | U182: Nein | V182: SOT | W182: Nein | X182: Nein | AC182: Nein
A183: E1006601S725010020200090058500001 | B183: DE0002147250100001002020009000585 | D183: Gammertingen | E183: Baden-Württemberg | F183: 72501 | G183: Schelmengartenstr. 9 | H183: 8437031 | I183: 7.98 | J183: Solar | K183: 2007-12-27 | P183: NS | Q183: Nein | R183: Nein | S183: Nicht regelbar | T183: Nein | U183: Nein | V183: SOT | W183: Nein | X183: Nein | AC183: Nein
A184: E1006601S725010030500010171400001 | B184: DE0002147250100001003050001001714 | D184: Gammertingen | E184: Baden-Württemberg | F184: 72501 | G184: Schillerstr. 1/1 | H184: 8437031 | I184: 6.3 | J184: Solar/Gebäude | K184: 2009-12-30 | P184: NS | Q184: Nein | R184: Nein | S184: Nicht regelbar | T184: Nein | U184: Nein | V184: SOT | W184: Nein | X184: Nein | AC184: Nein
A185: E1006601S725010030500010171500001 | B185: DE0002147250100001003050001001715 | D185: Gammertingen | E185: Baden-Württemberg | F185: 72501 | G185: Schillerstr. 1/1 | H185: 8437031 | I185: 6.3 | J185: Solar/Gebäude | K185: 2009-12-31 | P185: NS | Q185: Nein | R185: Nein | S185: Nicht regelbar | T185: Nein | U185: Nein | V185: SOT | W185: Nein | X185: Nein | AC185: Nein
A186: E1006601S725010030500190175400001 | B186: DE0002147250100001003050019001754 | D186: Gammertingen | E186: Baden-Württemberg | F186: 72501 | G186: Schillerstr. 19 | H186: 8437031 | I186: 4.73 | J186: Solar | K186: 2005-06-13 | P186: NS | Q186: Nein | R186: Nein | S186: Nicht regelbar | T186: Nein | U186: Nein | V186: SOT | W186: Nein | X186: Nein | AC186: Nein
A187: E1006601S725010030500220176000001 | B187: DE0002147250100001003050022001760 | D187: Gammertingen | E187: Baden-Württemberg | F187: 72501 | G187: Schillerstr. 22 | H187: 8437031 | I187: 7.56 | J187: Solar | K187: 2008-12-12 | P187: NS | Q187: Nein | R187: Nein | S187: Nicht regelbar | T187: Nein | U187: Nein | V187: SOT | W187: Nein | X187: Nein | AC187: Nein
A188: E1006601S725010030500050172100001 | B188: DE0002147250100001003050005001721 | D188: Gammertingen | E188: Baden-Württemberg | F188: 72501 | G188: Schillerstr. 5 | H188: 8437031 | I188: 8.65 | J188: Solar | K188: 2007-06-20 | P188: NS | Q188: Nein | R188: Nein | S188: Nicht regelbar | T188: Nein | U188: Nein | V188: SOT | W188: Nein | X188: Nein | AC188: Nein
A189: E1006001S725010030500030171800001 | B189: DE8002147250100001003050003001718 | D189: Gammertingen | E189: Baden-Württemberg | F189: 72501 | G189: Schillerstraße 3 | H189: 8437031 | I189: 7.25 | J189: Solar/Gebäude | K189: 2011-10-11 | P189: NS | Q189: Nein | R189: Nein | S189: Nicht regelbar | T189: Nein | U189: Nein | V189: SOT | W189: Nein | X189: Nein | AC189: Nein
A190: E1006001S725010011300060051900001 | B190: DE8002147250100001001130006000519 | D190: Gammertingen | E190: Baden-Württemberg | F190: 72501 | G190: Schwedengasse 6 | H190: 8437031 | I190: 18.845 | J190: Solar/Gebäude | K190: 2011-12-05 | P190: NS | Q190: Nein | R190: Nein | S190: Nicht regelbar | T190: Nein | U190: Nein | V190: SOT | W190: Nein | X190: Nein | AC190: Nein
A191: E1006601W725010011300060051800001 | B191: DE0002147250100001001130006000518 | D191: Gammertingen | E191: Baden-Württemberg | F191: 72501 | G191: Schwedengasse 6 | H191: 8437031 | I191: 40 | J191: Wasser | K191: 1950-01-15 | O191: 2012-01-10 | P191: NS | Q191: Nein | R191: Nein | S191: Nicht regelbar | T191: Ja | U191: Nein | V191: WAL | W191: Nein | X191: Nein | AC191: Ja
A192: E1006001S725010023600110410000001 | B192: DE0002147250100001002360011004100 | D192: Gammertingen | E192: Baden-Württemberg | F192: 72501 | G192: Schweriner Str. 11 | H192: 8437031 | I192: 3.975 | J192: Solar/Gebäude | K192: 2012-08-16 | P192: NS | Q192: Ja (keine Belieferung Dritter) | R192: Nein | S192: regelbar nach § 6 Abs. 2 EEG 2012 | T192: Nein | U192: Nein | V192: SOT | W192: Nein | X192: Nein | AA192: Prozentual | AB192: 0.3 | AC192: Nein
A193: E1006601S725010023600110409900001 | B193: DE0002147250100001002360011004099 | D193: Gammertingen | E193: Baden-Württemberg | F193: 72501 | G193: Schweriner Str. 11 | H193: 8437031 | I193: 3.23 | J193: Solar | K193: 2002-12-23 | P193: NS | Q193: Nein | R193: Nein | S193: Nicht regelbar | T193: Nein | U193: Nein | V193: SOT | W193: Nein | X193: Nein | AC193: Nein
A194: E1006601S725010023600210146900001 | B194: DE0002147250100001002360021001469 | D194: Gammertingen | E194: Baden-Württemberg | F194: 72501 | G194: Schweriner Str. 21 | H194: 8437031 | I194: 15.4 | J194: Solar/Gebäude | K194: 2009-12-30 | P194: NS | Q194: Nein | R194: Nein | S194: Nicht regelbar | T194: Nein | U194: Nein | V194: SOT | W194: Nein | X194: Nein | AC194: Nein
A195: E1006001S725010040900350270800001 | B195: DE0002147250100001004090035002708 | D195: Gammertingen | E195: Baden-Württemberg | F195: 72501 | G195: Sigmaringer Str. 35 | H195: 8437031 | I195: 12.48 | J195: Solar/Gebäude | K195: 2012-10-28 | P195: NS | Q195: Ja (keine Belieferung Dritter) | R195: Nein | S195: regelbar nach § 6 Abs. 2 EEG 2012 | T195: Nein | U195: Nein | V195: SOT | W195: Nein | X195: Nein | AA195: Prozentual | AB195: 0.3 | AC195: Nein
A196: E1006601S725010040900420000700001 | B196: DE0002147250100001004090042000007 | D196: Gammertingen | E196: Baden-Württemberg | F196: 72501 | G196: Sigmaringer Str. 42 | H196: 8437031 | I196: 59.68 | J196: Solar/Gebäude | K196: 2009-12-04 | P196: NS | Q196: Nein | R196: Nein | S196: regelbar nach § 9 Abs. 2 EEG 2014 | T196: Nein | U196: Nein | V196: SOT | W196: Nein | X196: Nein | AC196: Nein
A197: E1006601S725010040900440272500001 | B197: DE0002147250100001004090044002725 | D197: Gammertingen | E197: Baden-Württemberg | F197: 72501 | G197: Sigmaringer Str. 44 | H197: 8437031 | I197: 80.33 | J197: Solar/Gebäude | K197: 2009-12-30 | P197: NS | Q197: Nein | R197: Nein | S197: regelbar nach § 9 Abs. 2 EEG 2014 | T197: Nein | U197: Nein | V197: SOT | W197: Nein | X197: Nein | AC197: Nein
A198: E1006601S725010040900570274700001 | B198: DE0002147250100001004090057002747 | D198: Gammertingen | E198: Baden-Württemberg | F198: 72501 | G198: Sigmaringer Str. 57 | H198: 8437031 | I198: 6.4 | J198: Solar | K198: 2003-11-04 | P198: NS | Q198: Nein | R198: Nein | S198: Nicht regelbar | T198: Nein | U198: Nein | V198: SOT | W198: Nein | X198: Nein | AC198: Nein
A199: E1006601S725010040900570274800001 | B199: DE0002147250100001004090057002748 | D199: Gammertingen | E199: Baden-Württemberg | F199: 72501 | G199: Sigmaringer Str. 57 | H199: 8437031 | I199: 6.3 | J199: Solar | K199: 2005-08-12 | P199: NS | Q199: Nein | R199: Nein | S199: Nicht regelbar | T199: Nein | U199: Nein | V199: SOT | W199: Nein | X199: Nein | AC199: Nein
A200: E1006601S725010040900570274900001 | B200: DE0002147250100001004090057002749 | D200: Gammertingen | E200: Baden-Württemberg | F200: 72501 | G200: Sigmaringer Str. 57 | H200: 8437031 | I200: 16.2 | J200: Solar | K200: 2006-11-13 | P200: NS | Q200: Nein | R200: Nein | S200: Nicht regelbar | T200: Nein | U200: Nein | V200: SOT | W200: Nein | X200: Nein | AC200: Nein
A201: E1006001S725010040900630275800001 | B201: DE0002147250100001004090063002758 | D201: Gammertingen | E201: Baden-Württemberg | F201: 72501 | G201: Sigmaringer Str. 63 | H201: 8437031 | I201: 17.28 | J201: Solar/Gebäude | K201: 2013-05-31 | P201: NS | Q201: Ja (keine Belieferung Dritter) | R201: Nein | S201: regelbar nach § 6 Abs. 2 EEG 2012 | T201: Nein | U201: Nein | V201: SOT | W201: Nein | X201: Nein | AA201: Prozentual | AB201: 0.3 | AC201: Nein
A202: E1006601S725010040900730277100001 | B202: DE0002147250100001004090073002771 | D202: Gammertingen | E202: Baden-Württemberg | F202: 72501 | G202: Sigmaringer Str. 73 | H202: 8437031 | I202: 1 | J202: Solar | K202: 2006-07-06 | P202: NS | Q202: Nein | R202: Nein | S202: Nicht regelbar | T202: Nein | U202: Nein | V202: SOT | W202: Nein | X202: Nein | AC202: Nein
A203: E1006601S725010040900790278000001 | B203: DE0002147250100001004090079002780 | D203: Gammertingen | E203: Baden-Württemberg | F203: 72501 | G203: Sigmaringer Str. 79 | H203: 8437031 | I203: 30.015 | J203: Solar | K203: 2008-12-04 | P203: NS | Q203: Nein | R203: Nein | S203: regelbar nach § 9 Abs. 2 EEG 2014 | T203: Nein | U203: Nein | V203: SOT | W203: Nein | X203: Nein | AC203: Nein
... 18 more rows

Sheet Direktvermarktung
A3: Netzbetreiber : | B3: =Deckblatt!C11 -> Gammertinger Energie- u. Wasserversorgung GmbH
B5: Prozentualer Anteil der direkt vermarkteten Anlagen in der Marktprämie | N5: Prozentualer Anteil der Anlagen in der Ausfallvermarktung | Z5: Prozentualer Anteil der direkt vermarkteten Anlagen in der sonstigen Direktvermarktung
A6: Anlagenschlüssel | B6: Monat Januar 2017 | C6: Monat Februar 2017 | D6: Monat März 2017 | E6: Monat April 2017 | F6: Monat Mai 2017 | G6: Monat Juni 2017 | H6: Monat Juli 2017 | I6: Monat August 2017 | J6: Monat September 2017 | K6: Monat Oktober 2017 | L6: Monat November 2017 | M6: Monat Dezember 2017 | N6: Monat Januar 2017 | O6: Monat Februar 2017 | P6: Monat März 2017 | Q6: Monat April 2017 | R6: Monat Mai 2017 | S6: Monat Juni 2017 | T6: Monat Juli 2017 | U6: Monat August 2017 | V6: Monat September 2017 | W6: Monat Oktober 2017 | X6: Monat November 2017 | Y6: Monat Dezember 2017 | Z6: Monat Januar 2017 | AA6: Monat Februar 2017 | AB6: Monat März 2017 | AC6: Monat April 2017 | AD6: Monat Mai 2017 | AE6: Monat Juni 2017 | AF6: Monat Juli 2017 | AG6: Monat August 2017 | AH6: Monat September 2017 | AI6: Monat Oktober 2017 | AJ6: Monat November 2017 | AK6: Monat Dezember 2017
A7: E1006001S725010010900240040800001 | K7: 0.855 | L7: 0.658 | M7: 0.6414

Sheet Einspeisevergütung_Sonst
G1: =Deckblatt!H1 -> 2018-04-30
A3: Netzbetreiber : | B3: =Deckblatt!C11 -> Gammertinger Energie- u. Wasserversorgung GmbH
A5: Anlagenschlüssel | B5: Vergütungskategorie (Festvergütung, Selbstverbrauch oder sonstige Direktvermarktung) | C5: Monat, in dem Strommeng erzeugt bzw. gewälzt wurde | D5: erzeugte Strommenge in der jeweiligen Vergütungskategorie [kWh] | E5: tatsächlich ausbezahlte EEG-Mindestvergütung für Kategorien ohne festen Vergütungssatz [€] | F5: Vergütungssatz der angegebenen Kategorie [ct/kWh) | G5: berechnete EEG-Mindestvergütung [€]
A6: Pflichfeld | B6: Pflichtfeld | C6: Pflichtfeld bei Kategorien, die mit Marktwert zu vergüten sind (...MW) | D6: Pflichfeld | E6: Pflichtfeld bei Kategorien ohne festen Vergütungssatz
A7: E1006601S725010021200160359400001 | B7: SoK81a------01 | D7: 978 | F7: 50.62 | G7: 495.06
A8: E1006601S725010021200030087200001 | B8: SgK330------09 | D8: 11890 | F8: 43.01 | G8: 5113.89
A9: E1006601S725010021200050000200001 | B9: SoK111------08 | D9: 7239 | F9: 46.75 | G9: 3384.23
A10: E1006001S725010021200090088700001 | B10: SgK330------12 | D10: 3468 | F10: 24.43 | G10: 847.23
A11: E1006001S725010021200090088700001 | B11: SgK33410----12 | D11: 1144 | F11: 24.43 | G11: 279.48
A12: E1006001S725010021200090088700001 | B12: SgK33420----12 | D12: -1144 | F12: 16.38 | G12: -187.39
A13: E1006601S725010041200040282000001 | B13: SgK330------10 | D13: 24715 | F13: 39.14 | G13: 9673.45
A14: E1006601S725010010100250003300001 | B14: SoK111------06 | D14: 6233 | F14: 51.8 | G14: 3228.69
A15: E1006601S725010010100080000100001 | B15: SgK330---Jul10 | D15: 3645 | F15: 34.05 | G15: 1241.12
A16: E1006001S725010021800030363100001 | B16: SgK330------11 | D16: 2514 | F16: 28.74 | G16: 722.52
A17: E1006601S725010021800030363100001 | B17: SoK81a------01 | D17: 2230 | F17: 50.62 | G17: 1128.83
A18: E1006601S725010021800050010400001 | B18: SoK111------08 | D18: 5804 | F18: 46.75 | G18: 2713.37
A19: E1006601S725010021800080100600001 | B19: SgK330------11 | D19: 8487 | F19: 28.74 | G19: 2439.16
A20: E1006601S725010010200100409400001 | B20: SoK81a------02 | D20: 2199 | F20: 48.1 | G20: 1057.72
A21: E1006601S725010022600170117100001 | B21: SoK111------05 | D21: 4289 | F21: 54.53 | G21: 2338.79
A22: E1006601S725010022600290118700001 | B22: SgK330------11 | D22: 2687 | F22: 28.74 | G22: 772.24
A23: E1006601S725010022600290118700001 | B23: SgK33410----11 | D23: 1747 | F23: 28.74 | G23: 502.09
A24: E1006601S725010022600290118700001 | B24: SgK33420----11 | D24: -1330 | F24: 16.38 | G24: -217.85
A25: E1006601S725010022600290118700001 | B25: SgK33430----11 | D25: -417 | F25: 12 | G25: -50.04
A26: E1006601S725010022600030114300001 | B26: SoK81a------01 | D26: 1617 | F26: 50.62 | G26: 818.53
A27: E1006601S725010022600060114900001 | B27: SoK81a------03 | D27: 2851 | F27: 45.7 | G27: 1302.91
A28: E1006601S725010022600080345200001 | B28: SoK81a------01 | D28: 1747 | F28: 50.62 | G28: 884.33
A29: E1006601S725010022600080345200002 | B29: SoK111------07 | D29: 1819 | F29: 49.21 | G29: 895.13
A30: E1006601S725010031700030232100001 | B30: SoK81a------03 | D30: 3330 | F30: 45.7 | G30: 1521.81
A31: E1006001S725010021000130084900001 | B31: SgK330------11 | D31: 12945 | F31: 28.74 | G31: 3720.39
A32: E1006001S725010031400040202900001 | B32: SgK330------12 | D32: 10401 | F32: 24.43 | G32: 2540.96
A33: E1006001S725010031400040202900001 | B33: SgK33410----12 | D33: 173 | F33: 24.43 | G33: 42.26
A34: E1006001S725010031400040202900001 | B34: SgK33420----12 | D34: -173 | F34: 16.38 | G34: -28.34
A35: E1006001S725010031400040202900002 | B35: SgK4820--Dez17 | D35: 0 | F35: 12.2 | G35: 0
A36: E1006001S725010011400120052500001 | B36: SgK4820--Jun17 | D36: 748 | F36: 12.24 | G36: 91.56
A37: E1006001S725010022700190122600001 | B37: SgK3220--Jul12 | D37: 2825 | F37: 18.92 | G37: 534.49
A38: E1006601S725010022700310125400001 | B38: SgK330------09 | D38: 6089 | F38: 43.01 | G38: 2618.88
A39: E1006001S725010022700070120500001 | B39: SgK330------11 | D39: 10089 | F39: 28.74 | G39: 2899.58
A40: E1006601S725010041700010385300001 | B40: SoK81a------02 | D40: 2000 | F40: 48.1 | G40: 962
A41: E1006601S725010041700160300700001 | B41: SgK330---Okt10 | D41: 3642 | F41: 33.03 | G41: 1202.95
A42: E1006001S725010041700040299200001 | B42: SgK330------11 | D42: 8751 | F42: 28.74 | G42: 2515.04
A43: E1006601S725010041700050299200001 | B43: SoK81a------03 | D43: 8963 | F43: 45.7 | G43: 4096.09
A44: E1006601S725010041700070299700001 | B44: SoK81a------01 | D44: 1971 | F44: 50.62 | G44: 997.72
A45: E1006601S725010021100100086100001 | B45: SoK111------06 | D45: 6328 | F45: 51.8 | G45: 3277.9
A46: E1006601S725010021100030085200001 | B46: SgK330---Jul10 | D46: 7891 | F46: 34.05 | G46: 2686.89
A47: E1006601S725010023100140403100001 | B47: SgK330------10 | D47: 29466 | F47: 39.14 | G47: 11532.99
A48: E1006601S725010023100220000100001 | B48: SgK330------10 | D48: 18776.9 | F48: 39.14 | G48: 7349.28
A49: E1006601S725010023100220000100001 | B49: SgK331------10 | D49: 43812.7 | F49: 37.23 | G49: 16311.47
A50: E1006601S725010023100220000100001 | B50: SgK332------10 | D50: 16010.4 | F50: 35.23 | G50: 5640.46
A51: E1006601S725010023100220000300001 | B51: SgK332---Okt10 | D51: 506400 | F51: 29.73 | G51: 150552.72
A52: E1006001S725010023100050135800001 | B52: SgK330------11 | D52: 27716 | F52: 28.74 | G52: 7965.58
A53: E1006601S725010023100060000200001 | B53: SgK330------11 | D53: 31276.7 | F53: 28.74 | G53: 8988.92
A54: E1006601S725010023100060000200001 | B54: SgK331------11 | D54: 375.3 | F54: 27.33 | G54: 102.57
A55: E1006601S725010023100080400000001 | B55: SoK111------07 | D55: 31608.7 | F55: 49.21 | G55: 15554.64
A56: E1006601S725010023100080400000001 | B56: SoK112------07 | D56: 1264.3 | F56: 46.82 | G56: 591.95
A57: E1006601S725010023100090405700001 | B57: SgK330------10 | D57: 12263 | F57: 39.14 | G57: 4799.74
A58: E1006001S725010042200010313800001 | B58: SgK3220--Okt12 | D58: 11272 | F58: 18.36 | G58: 2069.54
A59: E1006001S725010042200060314100001 | B59: SgK3220--Mai12 | D59: 4074 | F59: 19.31 | G59: 786.69
A60: E1006601S725010020300100064100001 | B60: SoK111------05 | D60: 4868 | F60: 54.53 | G60: 2654.52
A61: E1006601S725010020300100064200001 | B61: SgK330------09 | D61: 7615 | F61: 43.01 | G61: 3275.21
A62: E1006601S725010020300150064900001 | B62: SoK111------07 | D62: 13732 | F62: 49.21 | G62: 6757.52
A63: E1006601S725010020300150065000001 | B63: SgK330------10 | D63: 19098 | F63: 39.14 | G63: 7474.96
A64: E1006601S725010020300150065100001 | B64: SgK330------10 | D64: 9211 | F64: 39.14 | G64: 3605.19
A65: E1006001S725010020300030063100001 | B65: SgK3220--Mai13 | D65: 3888 | F65: 15.63 | G65: 607.69
A66: E1006001S725010020300060000100001 | B66: SgK5120--Nov16 | D66: 1957 | F66: 12.31 | G66: 240.91
A67: E1006001S725010022900020366400001 | B67: SgK330------11 | D67: 11131 | F67: 28.74 | G67: 3199.05
A68: E1006601S725010022900020366200001 | B68: SoK81a------01 | D68: 7562 | F68: 50.62 | G68: 3827.88
A69: E1006601S725010022900020366300001 | B69: SoK111------04 | D69: 1318 | F69: 57.4 | G69: 756.53
A70: E1006601S725010022900030129700001 | B70: SgK330------09 | D70: 4982 | F70: 43.01 | G70: 2142.76
A71: E1006601S725010022900030129800001 | B71: SgK330------09 | D71: 5063 | F71: 43.01 | G71: 2177.6
A72: E1006001S725010022900060130300001 | B72: SgK330------11 | D72: 29504 | F72: 28.74 | G72: 8479.45
A73: E1006601S725010023500140143000001 | B73: SgK330------10 | D73: 14607 | F73: 39.14 | G73: 5717.18
A74: E1006001S725010023500240144600001 | B74: SgK33a2-----SV | D74: 2181 | F74: 0 | G74: 0
A75: E1006001S725010023500240144600001 | B75: SgK3220--Jul12 | D75: 9199.3 | F75: 18.92 | G75: 1740.51
A76: E1006001S725010023500240144600001 | B76: SgK3221--Jul12 | D76: 956.7 | F76: 17.95 | G76: 171.73
A77: E1006601S725010023500260144800001 | B77: SoK111------04 | D77: 6432 | F77: 57.4 | G77: 3691.97
A78: E1006601S725010023500280144900001 | B78: SgK330------09 | D78: 11890 | F78: 43.01 | G78: 5113.89
A79: E1006001S725010023500420000400001 | B79: SgK3220--Mai14 | D79: 3678 | F79: 13.14 | G79: 483.29
A80: E1006001S725010023500050000300001 | B80: SgK3220--Jan13 | D80: 6835 | F80: 17.02 | G80: 1163.32
A81: E1006601S725010023500090141700001 | B81: SoK111------07 | D81: 8035 | F81: 49.21 | G81: 3954.02
A82: E1006001S725010024100110000300001 | B82: SgK3220--Jun14 | D82: 6088 | F82: 13.01 | G82: 792.05
A83: E1006001S725010031100020000400001 | B83: SgK5120--Apr15 | D83: 4042 | F83: 12.47 | G83: 504.04
A84: E1006601S725010031100250191100001 | B84: SgK330---Okt10 | D84: 6062 | F84: 33.03 | G84: 2002.28
A85: E1006601S725010031100040188200001 | B85: SoK111------08 | D85: 6684 | F85: 46.75 | G85: 3124.77
A86: E1006601S725010031100040188300001 | B86: SgK330------09 | D86: 4702 | F86: 43.01 | G86: 2022.33
A87: E1006601S725010023900050149600001 | B87: SoK111------08 | D87: 8936 | F87: 46.75 | G87: 4177.58
A88: E1006601S725010020800130076900001 | B88: SgK330------10 | D88: 25589 | F88: 39.14 | G88: 10015.53
A89: E1006001S725010020800170000100001 | B89: SgK5120--Jun15 | D89: 1384 | F89: 12.4 | G89: 171.62
A90: E1006001S725010020800250079200001 | B90: SgK330------11 | D90: 6675 | F90: 28.74 | G90: 1918.4
A91: E1006001S725010020800080076100001 | B91: SgK330------11 | D91: 11823 | F91: 28.74 | G91: 3397.93
A92: E1006001S725010020800090076400001 | B92: SgK4820--Jul17 | D92: 2006 | F92: 12.2 | G92: 244.73
A93: E1006001S725010020100160057100001 | B93: SgK5120--Jun16 | D93: 1400 | F93: 12.31 | G93: 172.34
A94: E1006601S725010022400110111500001 | B94: SgK330------11 | D94: 14526 | F94: 28.74 | G94: 4174.77
A95: E1006601S725010022400060111700001 | B95: SgK330------09 | D95: 13859 | F95: 43.01 | G95: 5960.76
A96: E1006001S725010022400090111200001 | B96: SgK3220--Dez12 | D96: 7835 | F96: 17.45 | G96: 1367.21
A97: E1006001S725010020900150082800001 | B97: SgK330------11 | D97: 20794 | F97: 28.74 | G97: 5976.2
A98: E1006001S725010020900070081400001 | B98: SgK4820--Mrz17 | D98: 4667 | F98: 12.3 | G98: 574.04
A99: E1006601S725010040300050244300001 | B99: SoK111------08 | D99: 7034 | F99: 46.75 | G99: 3288.4
A100: E1006601S725010042000110307200001 | B100: SgK330------11 | D100: 8740 | F100: 28.74 | G100: 2511.88
A101: E1006001S725010042000120000500001 | B101: SgK330------12 | D101: 6272 | F101: 24.43 | G101: 1532.25
A102: E1006001S725010042000120000500001 | B102: SgK33410----12 | D102: 3116 | F102: 24.43 | G102: 761.24
A103: E1006001S725010042000120000500001 | B103: SgK33420----12 | D103: -2816 | F103: 16.38 | G103: -461.26
A104: E1006001S725010042000120000500001 | B104: SgK33430----12 | D104: -300 | F104: 12 | G104: -36
A105: E1006001S725010042000290310300001 | B105: SgK4820--Jul17 | D105: 825 | F105: 12.2 | G105: 100.65
A106: E1006601S725010042000050346400001 | B106: SgK330------09 | D106: 7010 | F106: 43.01 | G106: 3015
A107: E1006601S725010030100220153900001 | B107: SoK111------06 | D107: 9600 | F107: 51.8 | G107: 4972.8
A108: E1006001S725010000000000040100001 | B108: SgK4820--Apr17 | D108: 2805 | F108: 12.3 | G108: 345.02
A109: E1006001S725010000000000040100001 | B109: SgK4821--Apr17 | D109: 8415.5 | F109: 11.96 | G109: 1006.49
A110: E1006001S725010000000000040100001 | B110: SgK4822--Apr17 | D110: 16600.5 | F110: 10.69 | G110: 1774.59
A111: E1006001S725010041600110000100001 | B111: SgK5120--Okt14 | D111: 2819 | F111: 12.65 | G111: 356.6
A112: E1006601S725010041600020296200001 | B112: SgK330------11 | D112: 24439 | F112: 28.74 | G112: 7023.77
A113: E1006601S725010041600040298200001 | B113: SgK330------09 | D113: 31478 | F113: 43.01 | G113: 13538.69
A114: E1006601S725010041600040298300001 | B114: SgK330------10 | D114: 10883 | F114: 39.14 | G114: 4259.61
A115: E1006601S725010041600060296800001 | B115: SgK330------09 | D115: 11767 | F115: 43.01 | G115: 5060.99
A116: E1006601S725010030400070167100001 | B116: SgK330------09 | D116: 5756 | F116: 43.01 | G116: 2475.66
A117: E1006601S725010030400080167200001 | B117: SgK330---Okt10 | D117: 7907 | F117: 33.03 | G117: 2611.68
A118: E1006001S725010042300020314500001 | B118: SgK5120--Jan16 | D118: 2854 | F118: 12.31 | G118: 351.33
A119: E1006601S725010042500100317400001 | B119: SgK330------10 | D119: 11331 | F119: 39.14 | G119: 4434.95
A120: E1006601S725010042500140317800001 | B120: SoK111------04 | D120: 6334 | F120: 57.4 | G120: 3635.72
A121: E1006001S725010042500060362800001 | B121: SgK5120--Sep16 | D121: 1959 | F121: 12.31 | G121: 241.15
A122: E1006601S725010031550090197300001 | B122: SgK330------10 | D122: 14959 | F122: 39.14 | G122: 5854.95
A123: E1006001S725010010300070011500001 | B123: SgK5120--Aug16 | D123: 7113 | F123: 12.31 | G123: 875.61
A124: E1006601S725010042900010368900001 | B124: SoK81a------01 | D124: 2928 | F124: 50.62 | G124: 1482.15
A125: E1006001S725010042900070417700001 | B125: SgK330------12 | D125: 8954 | F125: 24.43 | G125: 2187.46
A126: E1006601S725010042900080389800001 | B126: SoK111------07 | D126: 4318 | F126: 49.21 | G126: 2124.89
A127: E1006601S725010042900080389900001 | B127: SgK330------10 | D127: 3538 | F127: 39.14 | G127: 1384.77
A128: E1006601S725010023000010000100001 | B128: SoK111------07 | D128: 28008 | F128: 49.21 | G128: 13782.74
A129: E1006601S725010021300100000100001 | B129: SoK111------08 | D129: 9310 | F129: 46.75 | G129: 4352.43
A130: E1006001S725010021300320093100001 | B130: SgK3220--Okt12 | D130: 6495 | F130: 18.36 | G130: 1192.48
A131: E1006001S725010021300320093100001 | B131: SgK3221--Okt12 | D131: 14406 | F131: 17.42 | G131: 2509.53
A132: E1006001S725010021300320093100001 | B132: SgK33a2-----SV | D132: 3339 | F132: 0 | G132: 0
A133: E1006601S725010021300340093200001 | B133: SoK111------06 | D133: 5757 | F133: 51.8 | G133: 2982.13
A134: E1006601S725010030600180404000001 | B134: SoK81a------02 | D134: 2480 | F134: 48.1 | G134: 1192.88
A135: E1006601S725010030600030176600001 | B135: SgK330------09 | D135: 7481 | F135: 43.01 | G135: 3217.58
A136: E1006601S725010030600090000900001 | B136: SoK111------08 | D136: 13841 | F136: 46.75 | G136: 6470.67
A137: E1006001S725010023800070149100001 | B137: SgK330------12 | D137: 8709 | F137: 24.43 | G137: 2127.61
A138: E1006001S725010023800070149100001 | B138: SgK33410----12 | D138: 1062 | F138: 24.43 | G138: 259.45
A139: E1006001S725010023800070149100001 | B139: SgK33420----12 | D139: -1062 | F139: 16.38 | G139: -173.96
A140: E1006601S725010010800230000100001 | B140: SoK111------04 | D140: 937 | F140: 57.4 | G140: 537.84
A141: E1006601S725010010800250000100001 | B141: SoK111------04 | D141: 673 | F141: 57.4 | G141: 386.3
A142: E1006601S725010022800170128600001 | B142: SgK330------09 | D142: 6156 | F142: 43.01 | G142: 2647.7
A143: E1006001S725010022800170128700001 | B143: SgK5120--Apr16 | D143: 2610 | F143: 12.31 | G143: 321.29
A144: E1006601S725010022800060127000001 | B144: SoK81a------03 | D144: 5776 | F144: 45.7 | G144: 2639.63
A145: E1006601S725010022800060127100001 | B145: SoK111------04 | D145: 1957 | F145: 57.4 | G145: 1123.32
A146: E1006001S725010024300190000500001 | B146: SgK4820--Jan17 | D146: 6861 | F146: 12.3 | G146: 843.9
A147: E1006601S725010024300020416100001 | B147: SoK111------07 | D147: 5890 | F147: 49.21 | G147: 2898.47
A148: E1006601S725010024300090410600001 | B148: SoK81a------03 | D148: 1656 | F148: 45.7 | G148: 756.79
A149: E1006601S725010040200060000100001 | B149: SgK330------10 | D149: 10481 | F149: 39.14 | G149: 4102.26
A150: E1006601S725010042100140358500001 | B150: SoK81a------01 | D150: 7094 | F150: 50.62 | G150: 3590.98
A151: E1006001S725010042100150418200001 | B151: SgK3220--Mrz13 | D151: 5303 | F151: 16.28 | G151: 863.33
A152: E1006001S725010042100200312600001 | B152: SgK3220--Mai12 | D152: 5223 | F152: 19.31 | G152: 1008.56
A153: E1006601S725010024600020000200001 | B153: SoK111------07 | D153: 24846.2 | F153: 49.21 | G153: 12226.82
A154: E1006601S725010024600020000200001 | B154: SoK112------07 | D154: 7039.8 | F154: 46.82 | G154: 3296.03
A155: E1006601S725010020350100065300001 | B155: SgK330------10 | D155: 36560.9 | F155: 39.14 | G155: 14309.94
A156: E1006601S725010020350100065300001 | B156: SgK331------10 | D156: 34489.1 | F156: 37.23 | G156: 12840.29
A157: E1006601S725010020350020000200001 | B157: SgK330------10 | D157: 32569.4 | F157: 39.14 | G157: 12747.66
A158: E1006601S725010020350020000200001 | B158: SgK331------10 | D158: 75995.2 | F158: 37.23 | G158: 28293.01
A159: E1006601S725010020350020000200001 | B159: SgK332------10 | D159: 4885.4 | F159: 35.23 | G159: 1721.13
A160: E1006001S725010020350060000200001 | B160: SgK4820--Jul17 | D160: 1436.1 | F160: 12.2 | G160: 175.2
A161: E1006001S725010020350060000200001 | B161: SgK4821--Jul17 | D161: 4308.8 | F161: 11.87 | G161: 511.45
A162: E1006001S725010020350060000200001 | B162: SgK4822--Jul17 | D162: 6289.1 | F162: 10.61 | G162: 667.27
A163: E1006601S725010031600100215500001 | B163: SgK330------10 | D163: 8941 | F163: 39.14 | G163: 3499.51
A164: E1006001S725010031600110000100001 | B164: SgK5120--Dez14 | D164: 5292 | F164: 12.59 | G164: 666.26
A165: E1006001S725010031600130000100001 | B165: SgK3220--Feb14 | D165: 6134 | F165: 13.55 | G165: 831.16
A166: E1006601S725010031600060215000001 | B166: SgK330---Jul10 | D166: 9680 | F166: 34.05 | G166: 3296.04
A167: E1006601S725010040600020250000001 | B167: SgK330---Okt10 | D167: 23724.6 | F167: 33.03 | G167: 7836.24
A168: E1006601S725010040600020250000001 | B168: SgK331---Okt10 | D168: 48975.4 | F168: 31.42 | G168: 15388.07
A169: E1006601S725010022000130104700001 | B169: SoK111------05 | D169: 6156 | F169: 54.53 | G169: 3356.87
A170: E1006601S725010022000070104000001 | B170: SgK330---Okt10 | D170: 4287 | F170: 33.03 | G170: 1416
A171: E1006601S725010022000070104000001 | B171: SgK33410-Okt10 | D171: 1445 | F171: 33.03 | G171: 477.28
A172: E1006601S725010022000070104000001 | B172: SgK33420-Okt10 | D172: -1445 | F172: 16.38 | G172: -236.69
A173: E1006001S725010031500100210700001 | B173: SgK4820--Jun17 | D173: 3230 | F173: 12.24 | G173: 395.35
A174: E1006601S725010031500110211100001 | B174: SgK330------09 | D174: 6213 | F174: 43.01 | G174: 2672.21
A175: E1006601S725010031500090210600001 | B175: SoK111------05 | D175: 4234 | F175: 54.53 | G175: 2308.8
A176: E1006601S725010020400050151200001 | B176: SgK330------09 | D176: 8488 | F176: 43.01 | G176: 3650.69
A177: E1006601S725010024000060151300001 | B177: SoK111------07 | D177: 10697 | F177: 49.21 | G177: 5263.99
A178: E1006601S725010024000060151400001 | B178: SgK330---Jul10 | D178: 6668 | F178: 34.05 | G178: 2270.45
A179: E1006001S725010024200110000300001 | B179: SgK5120--Dez14 | D179: 2718 | F179: 12.59 | G179: 342.2
A180: E1006001S725010024200040414700001 | B180: SgK3220--Mrz13 | D180: 7208 | F180: 16.28 | G180: 1173.46
A181: E1006001S725010024200060000200001 | B181: SgK330------11 | D181: 9132 | F181: 28.74 | G181: 2624.54
A182: E1006601S725010024200080000300001 | B182: SoK111------08 | D182: 7095 | F182: 46.75 | G182: 3316.91
A183: E1006601S725010022300070110200001 | B183: SgK330------10 | D183: 12592 | F183: 39.14 | G183: 4928.51
A184: E1006001S725010040800270000400001 | B184: SgK5120--Okt16 | D184: 9138.2 | F184: 12.31 | G184: 1124.91
A185: E1006001S725010040800270000400001 | B185: SgK5121--Okt16 | D185: 27414.7 | F185: 11.97 | G185: 3281.54
A186: E1006001S725010040800270000400001 | B186: SgK5122--Okt16 | D186: 39870.1 | F186: 10.71 | G186: 4270.09
A187: E1006001S725010040800270000400001 | B187: SgK33a2-----SV | D187: 11108 | F187: 0 | G187: 0
A188: E1006601S725010040800060251400001 | B188: SoK111------07 | D188: 24567 | F188: 49.21 | G188: 12089.42
A189: E1006001S725010031000010186300001 | B189: SgK330------11 | D189: 4394 | F189: 28.74 | G189: 1262.84
A190: E1006601S725010020400030000200001 | B190: SoK111------08 | D190: 25183.4 | F190: 46.75 | G190: 11773.24
A191: E1006601S725010020400030000200001 | B191: SoK112------08 | D191: 27216.6 | F191: 44.48 | G191: 12105.94
A192: E1006001S725010020400040065800001 | B192: SgK3220--Jul12 | D192: 9150 | F192: 18.92 | G192: 1731.18
A193: E1006601S725010041550110404700001 | B193: SoK81a------02 | D193: 3127 | F193: 48.1 | G193: 1504.09
A194: E1006601S725010041550140292700001 | B194: SgK330---Jul10 | D194: 15634 | F194: 34.05 | G194: 5323.38
A195: E1006601S725010041550150292800001 | B195: SoK111------06 | D195: 5204 | F195: 51.8 | G195: 2695.67
A196: E1006601S725010041550190293300001 | B196: SgK330------10 | D196: 9826 | F196: 39.14 | G196: 3845.9
A197: E1006601S725010041550340418800001 | B197: SoK81a------03 | D197: 1827 | F197: 45.7 | G197: 834.94
A198: E1006601S725010041550350294900001 | B198: SgK330------09 | D198: 10535 | F198: 43.01 | G198: 4531.1
A199: E1006001S725010041550360348600001 | B199: SgK4820--Sep17 | D199: 706 | F199: 12.2 | G199: 86.13
A200: E1006601S725010041550040291300001 | B200: SgK330------09 | D200: 9244 | F200: 43.01 | G200: 3975.84
A201: E1006601S725010041550450295600001 | B201: SgK330------10 | D201: 9804 | F201: 39.14 | G201: 3837.29
A202: E1006601S725010041550050291400001 | B202: SgK330------11 | D202: 13694 | F202: 28.74 | G202: 3935.66
... 63 more rows

Sheet Ausfallvermarktung
G1: =Deckblatt!H1 -> 2018-04-30
A3: Netzbetreiber : | B3: =Deckblatt!C11 -> Gammertinger Energie- u. Wasserversorgung GmbH
A5: Anlagenschlüssel | B5: Vergütungskategorie (Festvergütung in Ausnahmefällen) | C5: Monat, in dem Strommeng erzeugt bzw. gewälzt wurde | D5: erzeugte Strommenge in der jeweiligen Vergütungskategorie [kWh] | E5: tatsächlich ausbezahlte EEG-Mindestvergütung für Kategorien ohne festen Vergütungssatz [€] | F5: Vergütungssatz der angegebenen Kategorie [ct/kWh) | G5: berechnete EEG-Mindestvergütung [€]
A6: Pflichfeld | B6: Pflichtfeld | C6: Pflichtfeld bei Kategorien, die mit Marktwert zu vergüten sind (...MW) | D6: Pflichfeld | E6: Pflichtfeld bei Kategorien ohne festen Vergütungssatz

Sheet Mieterstrom
E1: =Deckblatt!H1 -> 2018-04-30
A3: Netzbetreiber : | B3: =Deckblatt!C11 -> Gammertinger Energie- u. Wasserversorgung GmbH
A5: Anlagenschlüssel | B5: Vergütungskategorie | C5: erzeugte Strommenge in der jeweiligen Vergütungskategorie [kWh] | D5: Zuschlagssatz der angegebenen Kategorie [ct/kWh) | E5: berechneter Mieterstromzuschlag [€]
A6: Pflichfeld | B6: Pflichtfeld | C6: Pflichfeld

Sheet Preisblätter-vNE
E1: =Deckblatt!H1 -> 2018-04-30
B3: Netzbetreiber : | C3: =Deckblatt!C11 -> Gammertinger Energie- u. Wasserversorgung GmbH
C5: Name des Netzgebiets bzw. gültiger Zeitraum des Preisblatts*
B6: Preisblatt 1 | C6: Gammertinger Energie- und Wasserversorgung GmbH | F6: *Sofern Sie im Jahr 2017 mehrere gültige Preisblätter hatten (aufgrund von unterjährigen Anpassungen, bzw. mehreren Netzgebieten), sind die vermiedenen Netzentgelte für die unterschiedlichen Zeiträume bzw. Netzgebiete separat auszuweisen. Bei einer unterjährigen Anpassung Ihres Preisblattes sind die betroffenen Anlagen im Tabellenblatt "vNE" pro Zeitraum einmal aufzuführen und Vermeidungsarbeit und Vermeidungsleistung sinnvoll (entsprechend der von Ihnen vorgegebenen Berechnung der vNE) zu verteilen.
B7: Preisblatt 2
B8: Preisblatt 3
A10: Preisblatt 1 | B10: Korrekturfaktor im Falle von Rückspeisungen (> 0 und <= 2 mit max. 14 Nachkommastellen (= 1,00 sofern keine Angabe) | C10: Arbeitspreis** [ct/kWh] | D10: Leistungspreis** [€/kW*a] | E10: Anmerkungen | F10: **Preise gemäß Preisblatt für das Jahr 2017. Die für Ihr Netz vorgelagerten Netzebenen ist der Preis aus dem Preisblatt des vorgelagerten Netzbetreibers einzutragen. Die Preisblätter (auch das des vorgelagerten Netzbetreibers) sind uns zusammen mit der Jahresmeldung bis spätestens zum 31.05.2018 per E-Mail zuzusenden. Für den Fall, dass für die Berechnung der vNE nicht die direkt überlagerte Spannungsebene verwendet wurde, ist der verwendete Wert in die entsprechende Zeile der direkt überlagerten Ebene einzutragen - auch wenn der Preis im Preisblatt für eine höhere Ebene gilt. Dies ist entsprechend im Feld "Anmerkungen" kenntlich zu machen. Sofern es zu einer Rückspeisung in eine oder mehrere überlagerte Spannungsebenen gekommen ist und sich dadurch Auswirkungen auf die Berechnung der vermiedenen Netzentgelte einer Spannungsebene ergeben, ist in der Spalte B ein entsprechender Korrekturfaktor anzugeben.
A11: Spannungsebene: HöS
A12: Spannungsebene: Hös/HS
A13: Spannungsebene: HS
A14: Spannungsebene: HS/MS | C14: 0.29 | D14: 70.14 | E14: HS/MS Netze BW
A15: Spannungsebene: MS | C15: 0.93 | D15: 96.12 | E15: MS GEW
A16: Spannungsebene: MS/NS | C16: 1.18 | D16: 107.36 | E16: MS/NS GEW
A17: Spannungsebene: NS
A20: Preisblatt 2 | B20: Korrekturfaktor im Falle von Rückspeisungen (> 0 und <= 2 mit max. 14 Nachkommastellen (= 1,00 sofern keine Angabe) | C20: Arbeitspreis** [ct/kWh] | D20: Leistungspreis** [€/kW*a] | E20: Anmerkungen | F20: **Preise gemäß Preisblatt für das Jahr 2017. Die für Ihr Netz vorgelagerten Netzebenen ist der Preis aus dem Preisblatt des vorgelagerten Netzbetreibers einzutragen. Die Preisblätter (auch das des vorgelagerten Netzbetreibers) sind uns zusammen mit der Jahresmeldung bis spätestens zum 31.05.2018 per E-Mail zuzusenden. Für den Fall, dass für die Berechnung der vNE nicht die direkt überlagerte Spannungsebene verwendet wurde, ist der verwendete Wert in die entsprechende Zeile der direkt überlagerten Ebene einzutragen - auch wenn der Preis im Preisblatt für eine höhere Ebene gilt. Dies ist entsprechend im Feld "Anmerkungen" kenntlich zu machen. Sofern es zu einer Rückspeisung in eine oder mehrere überlagerte Spannungsebenen gekommen ist und sich dadurch Auswirkungen auf die Berechnung der vermiedenen Netzentgelte einer Spannungsebene ergeben, ist in der Spalte B ein entsprechender Korrekturfaktor anzugeben.
A21: Spannungsebene: HöS
A22: Spannungsebene: Hös/HS
A23: Spannungsebene: HS
A24: Spannungsebene: HS/MS
A25: Spannungsebene: MS
A26: Spannungsebene: MS/NS
A27: Spannungsebene: NS
A30: Preisblatt 3 | B30: Korrekturfaktor im Falle von Rückspeisungen (> 0 und <= 2 mit max. 14 Nachkommastellen (= 1,00 sofern keine Angabe) | C30: Arbeitspreis** [ct/kWh] | D30: Leistungspreis** [€/kW*a] | E30: Anmerkungen | F30: **Preise gemäß Preisblatt für das Jahr 2017. Die für Ihr Netz vorgelagerten Netzebenen ist der Preis aus dem Preisblatt des vorgelagerten Netzbetreibers einzutragen. Die Preisblätter (auch das des vorgelagerten Netzbetreibers) sind uns zusammen mit der Jahresmeldung bis spätestens zum 31.05.2018 per E-Mail zuzusenden. Für den Fall, dass für die Berechnung der vNE nicht die direkt überlagerte Spannungsebene verwendet wurde, ist der verwendete Wert in die entsprechende Zeile der direkt überlagerten Ebene einzutragen - auch wenn der Preis im Preisblatt für eine höhere Ebene gilt. Dies ist entsprechend im Feld "Anmerkungen" kenntlich zu machen. Sofern es zu einer Rückspeisung in eine oder mehrere überlagerte Spannungsebenen gekommen ist und sich dadurch Auswirkungen auf die Berechnung der vermiedenen Netzentgelte einer Spannungsebene ergeben, ist in der Spalte B ein entsprechender Korrekturfaktor anzugeben.
A31: Spannungsebene: HöS
A32: Spannungsebene: Hös/HS
A33: Spannungsebene: HS
A34: Spannungsebene: HS/MS
A35: Spannungsebene: MS
A36: Spannungsebene: MS/NS
A37: Spannungsebene: NS

Sheet vNE
H1: =Deckblatt!H1 -> 2018-04-30
A3: Netzbetreiber : | B3: =Deckblatt!C11 -> Gammertinger Energie- u. Wasserversorgung GmbH
A5: Anlagenschlüssel | B5: vNE-Kategorie | C5: Für Angabe gültiges Preisblatt entsprechend Tabellenblatt "Preisblätter vNE" | D5: Leistungsanteil an den vNE* [€] | E5: Arbeitsanteil an den vNE [€] | F5: nur eingeschränkte Prüfung möglich optional - sofern Sondersachverhalte vorliegen | G5: Erläuterung für eingeschränkte Prüfung Plichtfeld sofern Spalte F befüllt ist | H5: berechnete vNE gesamt [€]
A6: E1006601S725010021200160359400001 | B6: So-vNNe--SpE07 | C6: Preisblatt 1 | E6: =Einspeisevergütung_Sonst!D7*'Preisblätter-vNE'!C$16/100 -> 11.5404 | H6: 11.54
A7: E1006601S725010021200030087200001 | B7: Sg-vNNe--SpE07 | C7: Preisblatt 1 | E7: =Einspeisevergütung_Sonst!D8*'Preisblätter-vNE'!C$16/100 -> 140.302 | H7: 140.3
A8: E1006601S725010021200050000200001 | B8: So-vNNe--SpE07 | C8: Preisblatt 1 | E8: =Einspeisevergütung_Sonst!D9*'Preisblätter-vNE'!C$16/100 -> 85.4202 | H8: 85.42
A9: E1006001S725010021200090088700001 | B9: Sg-vNNe--SpE07 | C9: Preisblatt 1 | E9: =Einspeisevergütung_Sonst!D10*'Preisblätter-vNE'!C$16/100 -> 40.9224 | H9: 40.92
A10: E1006601S725010041200040282000001 | B10: Sg-vNNe--SpE07 | C10: Preisblatt 1 | E10: =Einspeisevergütung_Sonst!D13*'Preisblätter-vNE'!C$16/100 -> 291.637 | H10: 291.64
A11: E1006601S725010010100250003300001 | B11: So-vNNe--SpE07 | C11: Preisblatt 1 | E11: =Einspeisevergütung_Sonst!D14*'Preisblätter-vNE'!C$16/100 -> 73.5494 | H11: 73.55
A12: E1006601S725010010100080000100001 | B12: Sg-vNNe--SpE07 | C12: Preisblatt 1 | E12: =Einspeisevergütung_Sonst!D15*'Preisblätter-vNE'!C$16/100 -> 43.011 | H12: 43.01
A13: E1006001S725010021800030363100001 | B13: Sg-vNNe--SpE07 | C13: Preisblatt 1 | E13: =Einspeisevergütung_Sonst!D16*'Preisblätter-vNE'!C$16/100 -> 29.6652 | H13: 29.67
A14: E1006601S725010021800030363100001 | B14: So-vNNe--SpE07 | C14: Preisblatt 1 | E14: =Einspeisevergütung_Sonst!D17*'Preisblätter-vNE'!C$16/100 -> 26.314 | H14: 26.31
A15: E1006601S725010021800050010400001 | B15: So-vNNe--SpE07 | C15: Preisblatt 1 | E15: =Einspeisevergütung_Sonst!D18*'Preisblätter-vNE'!C$16/100 -> 68.4872 | H15: 68.49
A16: E1006601S725010021800080100600001 | B16: Sg-vNNe--SpE07 | C16: Preisblatt 1 | E16: =Einspeisevergütung_Sonst!D19*'Preisblätter-vNE'!C$16/100 -> 100.1466 | H16: 100.15
A17: E1006601S725010010200100409400001 | B17: So-vNNe--SpE07 | C17: Preisblatt 1 | E17: =Einspeisevergütung_Sonst!D20*'Preisblätter-vNE'!C$16/100 -> 25.9482 | H17: 25.95
A18: E1006601S725010022600170117100001 | B18: So-vNNe--SpE07 | C18: Preisblatt 1 | E18: =Einspeisevergütung_Sonst!D21*'Preisblätter-vNE'!C$16/100 -> 50.6102 | H18: 50.61
A19: E1006601S725010022600290118700001 | B19: Sg-vNNe--SpE07 | C19: Preisblatt 1 | E19: =Einspeisevergütung_Sonst!D22*'Preisblätter-vNE'!C$16/100 -> 31.7066 | H19: 31.71
A20: E1006601S725010022600030114300001 | B20: So-vNNe--SpE07 | C20: Preisblatt 1 | E20: =Einspeisevergütung_Sonst!D26*'Preisblätter-vNE'!C$16/100 -> 19.0806 | H20: 19.08
A21: E1006601S725010022600060114900001 | B21: So-vNNe--SpE07 | C21: Preisblatt 1 | E21: =Einspeisevergütung_Sonst!D27*'Preisblätter-vNE'!C$16/100 -> 33.6418 | H21: 33.64
A22: E1006601S725010022600080345200001 | B22: So-vNNe--SpE07 | C22: Preisblatt 1 | E22: =Einspeisevergütung_Sonst!D28*'Preisblätter-vNE'!C$16/100 -> 20.6146 | H22: 20.61
A23: E1006601S725010022600080345200002 | B23: So-vNNe--SpE07 | C23: Preisblatt 1 | E23: =Einspeisevergütung_Sonst!D29*'Preisblätter-vNE'!C$16/100 -> 21.4642 | H23: 21.46
A24: E1006601S725010031700030232100001 | B24: So-vNNe--SpE07 | C24: Preisblatt 1 | E24: =Einspeisevergütung_Sonst!D30*'Preisblätter-vNE'!C$16/100 -> 39.294 | H24: 39.29
A25: E1006001S725010021000130084900001 | B25: Sg-vNNe--SpE07 | C25: Preisblatt 1 | E25: =Einspeisevergütung_Sonst!D31*'Preisblätter-vNE'!C$16/100 -> 152.751 | H25: 152.75
A26: E1006001S725010031400040202900001 | B26: Sg-vNNe--SpE07 | C26: Preisblatt 1 | E26: =Einspeisevergütung_Sonst!D32*'Preisblätter-vNE'!C$16/100 -> 122.7318 | H26: 122.73
A27: E1006001S725010031400040202900002 | B27: Sg-vNNe--SpE07 | C27: Preisblatt 1 | E27: =Einspeisevergütung_Sonst!D35*'Preisblätter-vNE'!C$16/100 -> 0 | H27: 0
A28: E1006001S725010011400120052500001 | B28: Sg-vNNe--SpE07 | C28: Preisblatt 1 | E28: =Einspeisevergütung_Sonst!D36*'Preisblätter-vNE'!C$16/100 -> 8.8264 | H28: 8.83
A29: E1006001S725010022700190122600001 | B29: Sg-vNNe--SpE07 | C29: Preisblatt 1 | E29: =Einspeisevergütung_Sonst!D37*'Preisblätter-vNE'!C$16/100 -> 33.335 | H29: 33.34
A30: E1006601S725010022700310125400001 | B30: Sg-vNNe--SpE07 | C30: Preisblatt 1 | E30: =Einspeisevergütung_Sonst!D38*'Preisblätter-vNE'!C$16/100 -> 71.8502 | H30: 71.85
A31: E1006001S725010022700070120500001 | B31: Sg-vNNe--SpE07 | C31: Preisblatt 1 | E31: =Einspeisevergütung_Sonst!D39*'Preisblätter-vNE'!C$16/100 -> 119.0502 | H31: 119.05
A32: E1006601S725010041700010385300001 | B32: So-vNNe--SpE07 | C32: Preisblatt 1 | E32: =Einspeisevergütung_Sonst!D40*'Preisblätter-vNE'!C$16/100 -> 23.6 | H32: 23.6
A33: E1006601S725010041700160300700001 | B33: Sg-vNNe--SpE07 | C33: Preisblatt 1 | E33: =Einspeisevergütung_Sonst!D41*'Preisblätter-vNE'!C$16/100 -> 42.9756 | H33: 42.98
A34: E1006001S725010041700040299200001 | B34: Sg-vNNe--SpE07 | C34: Preisblatt 1 | E34: =Einspeisevergütung_Sonst!D42*'Preisblätter-vNE'!C$16/100 -> 103.2618 | H34: 103.26
A35: E1006601S725010041700050299200001 | B35: So-vNNe--SpE07 | C35: Preisblatt 1 | E35: =Einspeisevergütung_Sonst!D43*'Preisblätter-vNE'!C$16/100 -> 105.7634 | H35: 105.76
A36: E1006601S725010041700070299700001 | B36: So-vNNe--SpE07 | C36: Preisblatt 1 | E36: =Einspeisevergütung_Sonst!D44*'Preisblätter-vNE'!C$16/100 -> 23.2578 | H36: 23.26
A37: E1006601S725010021100100086100001 | B37: So-vNNe--SpE07 | C37: Preisblatt 1 | E37: =Einspeisevergütung_Sonst!D45*'Preisblätter-vNE'!C$16/100 -> 74.6704 | H37: 74.67
A38: E1006601S725010021100030085200001 | B38: Sg-vNNe--SpE07 | C38: Preisblatt 1 | E38: =Einspeisevergütung_Sonst!D46*'Preisblätter-vNE'!C$16/100 -> 93.1138 | H38: 93.11
A39: E1006601S725010023100140403100001 | B39: Sg-vNNe--SpE07 | C39: Preisblatt 1 | E39: =Einspeisevergütung_Sonst!D47*'Preisblätter-vNE'!C$16/100 -> 347.6988 | H39: 347.7
A40: E1006601S725010023100220000100001 | B40: Sg-vNNe--SpE07 | C40: Preisblatt 1 | D40: 1148.61 | E40: =(Einspeisevergütung_Sonst!D48+Einspeisevergütung_Sonst!D49+Einspeisevergütung_Sonst!D50)*'Preisblätter-vNE'!C$16/100 -> 927.48 | H40: 2076.09
A41: E1006601S725010023100220000300001 | B41: Sg-vNNe--SpE07 | C41: Preisblatt 1 | D41: 5907.16 | E41: =Einspeisevergütung_Sonst!D51*'Preisblätter-vNE'!C$16/100 -> 5975.52 | H41: 11882.68
A42: E1006001S725010023100050135800001 | B42: Sg-vNNe--SpE07 | C42: Preisblatt 1 | E42: =Einspeisevergütung_Sonst!D52*'Preisblätter-vNE'!C$16/100 -> 327.0488 | H42: 327.05
A43: E1006601S725010023100060000200001 | B43: Sg-vNNe--SpE07 | C43: Preisblatt 1 | E43: =(Einspeisevergütung_Sonst!D53+Einspeisevergütung_Sonst!D54)*'Preisblätter-vNE'!C$16/100 -> 373.4936 | H43: 373.49
A44: E1006601S725010023100080400000001 | B44: So-vNNe--SpE07 | C44: Preisblatt 1 | E44: =(Einspeisevergütung_Sonst!D55+Einspeisevergütung_Sonst!D56)*'Preisblätter-vNE'!C$16/100 -> 387.9014 | H44: 387.9
A45: E1006601S725010023100090405700001 | B45: Sg-vNNe--SpE07 | C45: Preisblatt 1 | E45: =Einspeisevergütung_Sonst!D57*'Preisblätter-vNE'!C$16/100 -> 144.7034 | H45: 144.7
A46: E1006001S725010042200010313800001 | B46: Sg-vNNe--SpE07 | C46: Preisblatt 1 | E46: =Einspeisevergütung_Sonst!D58*'Preisblätter-vNE'!C$16/100 -> 133.0096 | H46: 133.01
A47: E1006001S725010042200060314100001 | B47: Sg-vNNe--SpE07 | C47: Preisblatt 1 | E47: =Einspeisevergütung_Sonst!D59*'Preisblätter-vNE'!C$16/100 -> 48.0732 | H47: 48.07
A48: E1006601S725010020300100064100001 | B48: So-vNNe--SpE07 | C48: Preisblatt 1 | E48: =Einspeisevergütung_Sonst!D60*'Preisblätter-vNE'!C$16/100 -> 57.4424 | H48: 57.44
A49: E1006601S725010020300100064200001 | B49: Sg-vNNe--SpE07 | C49: Preisblatt 1 | E49: =Einspeisevergütung_Sonst!D61*'Preisblätter-vNE'!C$16/100 -> 89.857 | H49: 89.86
A50: E1006601S725010020300150064900001 | B50: So-vNNe--SpE07 | C50: Preisblatt 1 | E50: =Einspeisevergütung_Sonst!D62*'Preisblätter-vNE'!C$16/100 -> 162.0376 | H50: 162.04
A51: E1006601S725010020300150065000001 | B51: Sg-vNNe--SpE07 | C51: Preisblatt 1 | E51: =Einspeisevergütung_Sonst!D63*'Preisblätter-vNE'!C$16/100 -> 225.3564 | H51: 225.36
A52: E1006601S725010020300150065100001 | B52: Sg-vNNe--SpE07 | C52: Preisblatt 1 | E52: =Einspeisevergütung_Sonst!D64*'Preisblätter-vNE'!C$16/100 -> 108.6898 | H52: 108.69
A53: E1006001S725010020300030063100001 | B53: Sg-vNNe--SpE07 | C53: Preisblatt 1 | E53: =Einspeisevergütung_Sonst!D65*'Preisblätter-vNE'!C$16/100 -> 45.8784 | H53: 45.88
A54: E1006001S725010020300060000100001 | B54: Sg-vNNe--SpE07 | C54: Preisblatt 1 | E54: =Einspeisevergütung_Sonst!D66*'Preisblätter-vNE'!C$16/100 -> 23.0926 | H54: 23.09
A55: E1006001S725010022900020366400001 | B55: Sg-vNNe--SpE07 | C55: Preisblatt 1 | E55: =Einspeisevergütung_Sonst!D67*'Preisblätter-vNE'!C$16/100 -> 131.3458 | H55: 131.35
A56: E1006601S725010022900020366200001 | B56: So-vNNe--SpE07 | C56: Preisblatt 1 | E56: =Einspeisevergütung_Sonst!D68*'Preisblätter-vNE'!C$16/100 -> 89.2316 | H56: 89.23
A57: E1006601S725010022900020366300001 | B57: So-vNNe--SpE07 | C57: Preisblatt 1 | E57: =Einspeisevergütung_Sonst!D69*'Preisblätter-vNE'!C$16/100 -> 15.5524 | H57: 15.55
A58: E1006601S725010022900030129700001 | B58: Sg-vNNe--SpE07 | C58: Preisblatt 1 | E58: =Einspeisevergütung_Sonst!D70*'Preisblätter-vNE'!C$16/100 -> 58.7876 | H58: 58.79
A59: E1006601S725010022900030129800001 | B59: Sg-vNNe--SpE07 | C59: Preisblatt 1 | E59: =Einspeisevergütung_Sonst!D71*'Preisblätter-vNE'!C$16/100 -> 59.7434 | H59: 59.74
A60: E1006001S725010022900060130300001 | B60: Sg-vNNe--SpE07 | C60: Preisblatt 1 | E60: =Einspeisevergütung_Sonst!D72*'Preisblätter-vNE'!C$16/100 -> 348.1472 | H60: 348.15
A61: E1006601S725010023500140143000001 | B61: Sg-vNNe--SpE07 | C61: Preisblatt 1 | E61: =Einspeisevergütung_Sonst!D73*'Preisblätter-vNE'!C$16/100 -> 172.3626 | H61: 172.36
A62: E1006001S725010023500240144600001 | B62: Sg-vNNe--SpE07 | C62: Preisblatt 1 | E62: =(Einspeisevergütung_Sonst!D75+Einspeisevergütung_Sonst!D76)*'Preisblätter-vNE'!C$16/100 -> 119.8408 | H62: 119.84
A63: E1006601S725010023500260144800001 | B63: So-vNNe--SpE07 | C63: Preisblatt 1 | E63: =Einspeisevergütung_Sonst!D77*'Preisblätter-vNE'!C$16/100 -> 75.8976 | H63: 75.9
A64: E1006601S725010023500280144900001 | B64: Sg-vNNe--SpE07 | C64: Preisblatt 1 | E64: =Einspeisevergütung_Sonst!D78*'Preisblätter-vNE'!C$16/100 -> 140.302 | H64: 140.3
A65: E1006001S725010023500420000400001 | B65: Sg-vNNe--SpE07 | C65: Preisblatt 1 | E65: =Einspeisevergütung_Sonst!D79*'Preisblätter-vNE'!C$16/100 -> 43.4004 | H65: 43.4
A66: E1006001S725010023500050000300001 | B66: Sg-vNNe--SpE07 | C66: Preisblatt 1 | E66: =Einspeisevergütung_Sonst!D80*'Preisblätter-vNE'!C$16/100 -> 80.653 | H66: 80.65
A67: E1006601S725010023500090141700001 | B67: So-vNNe--SpE07 | C67: Preisblatt 1 | E67: =Einspeisevergütung_Sonst!D81*'Preisblätter-vNE'!C$16/100 -> 94.813 | H67: 94.81
A68: E1006001S725010024100110000300001 | B68: Sg-vNNe--SpE07 | C68: Preisblatt 1 | E68: =Einspeisevergütung_Sonst!D82*'Preisblätter-vNE'!C$16/100 -> 71.8384 | H68: 71.84
A69: E1006001S725010031100020000400001 | B69: Sg-vNNe--SpE07 | C69: Preisblatt 1 | E69: =Einspeisevergütung_Sonst!D83*'Preisblätter-vNE'!C$16/100 -> 47.6956 | H69: 47.7
A70: E1006601S725010031100250191100001 | B70: Sg-vNNe--SpE07 | C70: Preisblatt 1 | E70: =Einspeisevergütung_Sonst!D84*'Preisblätter-vNE'!C$16/100 -> 71.5316 | H70: 71.53
A71: E1006601S725010031100040188200001 | B71: So-vNNe--SpE07 | C71: Preisblatt 1 | E71: =Einspeisevergütung_Sonst!D85*'Preisblätter-vNE'!C$16/100 -> 78.8712 | H71: 78.87
A72: E1006601S725010031100040188300001 | B72: Sg-vNNe--SpE07 | C72: Preisblatt 1 | E72: =Einspeisevergütung_Sonst!D86*'Preisblätter-vNE'!C$16/100 -> 55.4836 | H72: 55.48
A73: E1006601S725010023900050149600001 | B73: So-vNNe--SpE07 | C73: Preisblatt 1 | E73: =Einspeisevergütung_Sonst!D87*'Preisblätter-vNE'!C$16/100 -> 105.4448 | H73: 105.44
A74: E1006601S725010020800130076900001 | B74: Sg-vNNe--SpE07 | C74: Preisblatt 1 | E74: =Einspeisevergütung_Sonst!D88*'Preisblätter-vNE'!C$16/100 -> 301.9502 | H74: 301.95
A75: E1006001S725010020800170000100001 | B75: Sg-vNNe--SpE07 | C75: Preisblatt 1 | E75: =Einspeisevergütung_Sonst!D89*'Preisblätter-vNE'!C$16/100 -> 16.3312 | H75: 16.33
A76: E1006001S725010020800250079200001 | B76: Sg-vNNe--SpE07 | C76: Preisblatt 1 | E76: =Einspeisevergütung_Sonst!D90*'Preisblätter-vNE'!C$16/100 -> 78.765 | H76: 78.77
A77: E1006001S725010020800080076100001 | B77: Sg-vNNe--SpE07 | C77: Preisblatt 1 | E77: =Einspeisevergütung_Sonst!D91*'Preisblätter-vNE'!C$16/100 -> 139.5114 | H77: 139.51
A78: E1006001S725010020800090076400001 | B78: Sg-vNNe--SpE07 | C78: Preisblatt 1 | E78: =Einspeisevergütung_Sonst!D92*'Preisblätter-vNE'!C$16/100 -> 23.6708 | H78: 23.67
A79: E1006001S725010020100160057100001 | B79: Sg-vNNe--SpE07 | C79: Preisblatt 1 | E79: =Einspeisevergütung_Sonst!D93*'Preisblätter-vNE'!C$16/100 -> 16.52 | H79: 16.52
A80: E1006601S725010022400110111500001 | B80: Sg-vNNe--SpE07 | C80: Preisblatt 1 | E80: =Einspeisevergütung_Sonst!D94*'Preisblätter-vNE'!C$16/100 -> 171.4068 | H80: 171.41
A81: E1006601S725010022400060111700001 | B81: Sg-vNNe--SpE07 | C81: Preisblatt 1 | E81: =Einspeisevergütung_Sonst!D95*'Preisblätter-vNE'!C$16/100 -> 163.5362 | H81: 163.54
A82: E1006001S725010022400090111200001 | B82: Sg-vNNe--SpE07 | C82: Preisblatt 1 | E82: =Einspeisevergütung_Sonst!D96*'Preisblätter-vNE'!C$16/100 -> 92.453 | H82: 92.45
A83: E1006001S725010020900150082800001 | B83: Sg-vNNe--SpE07 | C83: Preisblatt 1 | E83: =Einspeisevergütung_Sonst!D97*'Preisblätter-vNE'!C$16/100 -> 245.3692 | H83: 245.37
A84: E1006001S725010020900070081400001 | B84: Sg-vNNe--SpE07 | C84: Preisblatt 1 | E84: =Einspeisevergütung_Sonst!D98*'Preisblätter-vNE'!C$16/100 -> 55.0706 | H84: 55.07
A85: E1006601S725010040300050244300001 | B85: So-vNNe--SpE07 | C85: Preisblatt 1 | E85: =Einspeisevergütung_Sonst!D99*'Preisblätter-vNE'!C$16/100 -> 83.0012 | H85: 83
A86: E1006601S725010042000110307200001 | B86: Sg-vNNe--SpE07 | C86: Preisblatt 1 | E86: =Einspeisevergütung_Sonst!D100*'Preisblätter-vNE'!C$16/100 -> 103.132 | H86: 103.13
A87: E1006001S725010042000120000500001 | B87: Sg-vNNe--SpE07 | C87: Preisblatt 1 | E87: =Einspeisevergütung_Sonst!D101*'Preisblätter-vNE'!C$16/100 -> 74.0096 | H87: 74.01
A88: E1006001S725010042000290310300001 | B88: Sg-vNNe--SpE07 | C88: Preisblatt 1 | E88: =Einspeisevergütung_Sonst!D105*'Preisblätter-vNE'!C$16/100 -> 9.735 | H88: 9.74
A89: E1006601S725010042000050346400001 | B89: Sg-vNNe--SpE07 | C89: Preisblatt 1 | E89: =Einspeisevergütung_Sonst!D106*'Preisblätter-vNE'!C$16/100 -> 82.718 | H89: 82.72
A90: E1006601S725010030100220153900001 | B90: So-vNNe--SpE07 | C90: Preisblatt 1 | E90: =Einspeisevergütung_Sonst!D107*'Preisblätter-vNE'!C$16/100 -> 113.28 | H90: 113.28
A91: E1006001S725010000000000040100001 | B91: Sg-vNNe--SpE07 | C91: Preisblatt 1 | E91: =(Einspeisevergütung_Sonst!D108+Einspeisevergütung_Sonst!D109+Einspeisevergütung_Sonst!D110)*'Preisblätter-vNE'!C$16/100 -> 328.2878 | H91: 328.29
A92: E1006001S725010041600110000100001 | B92: Sg-vNNe--SpE07 | C92: Preisblatt 1 | E92: =Einspeisevergütung_Sonst!D111*'Preisblätter-vNE'!C$16/100 -> 33.2642 | H92: 33.26
A93: E1006601S725010041600020296200001 | B93: Sg-vNNe--SpE07 | C93: Preisblatt 1 | E93: =Einspeisevergütung_Sonst!D112*'Preisblätter-vNE'!C$16/100 -> 288.3802 | H93: 288.38
A94: E1006601S725010041600040298200001 | B94: Sg-vNNe--SpE07 | C94: Preisblatt 1 | E94: =Einspeisevergütung_Sonst!D113*'Preisblätter-vNE'!C$16/100 -> 371.4404 | H94: 371.44
A95: E1006601S725010041600040298300001 | B95: Sg-vNNe--SpE07 | C95: Preisblatt 1 | E95: =Einspeisevergütung_Sonst!D114*'Preisblätter-vNE'!C$16/100 -> 128.4194 | H95: 128.42
A96: E1006601S725010041600060296800001 | B96: Sg-vNNe--SpE07 | C96: Preisblatt 1 | E96: =Einspeisevergütung_Sonst!D115*'Preisblätter-vNE'!C$16/100 -> 138.8506 | H96: 138.85
A97: E1006601S725010030400070167100001 | B97: Sg-vNNe--SpE07 | C97: Preisblatt 1 | E97: =Einspeisevergütung_Sonst!D116*'Preisblätter-vNE'!C$16/100 -> 67.9208 | H97: 67.92
A98: E1006601S725010030400080167200001 | B98: Sg-vNNe--SpE07 | C98: Preisblatt 1 | E98: =Einspeisevergütung_Sonst!D117*'Preisblätter-vNE'!C$16/100 -> 93.3026 | H98: 93.3
A99: E1006001S725010042300020314500001 | B99: Sg-vNNe--SpE07 | C99: Preisblatt 1 | E99: =Einspeisevergütung_Sonst!D118*'Preisblätter-vNE'!C$16/100 -> 33.6772 | H99: 33.68
A100: E1006601S725010042500100317400001 | B100: Sg-vNNe--SpE07 | C100: Preisblatt 1 | E100: =Einspeisevergütung_Sonst!D119*'Preisblätter-vNE'!C$16/100 -> 133.7058 | H100: 133.71
A101: E1006601S725010042500140317800001 | B101: So-vNNe--SpE07 | C101: Preisblatt 1 | E101: =Einspeisevergütung_Sonst!D120*'Preisblätter-vNE'!C$16/100 -> 74.7412 | H101: 74.74
A102: E1006001S725010042500060362800001 | B102: Sg-vNNe--SpE07 | C102: Preisblatt 1 | E102: =Einspeisevergütung_Sonst!D121*'Preisblätter-vNE'!C$16/100 -> 23.1162 | H102: 23.12
A103: E1006601S725010031550090197300001 | B103: Sg-vNNe--SpE07 | C103: Preisblatt 1 | E103: =Einspeisevergütung_Sonst!D122*'Preisblätter-vNE'!C$16/100 -> 176.5162 | H103: 176.52
A104: E1006001S725010010300070011500001 | B104: Sg-vNNe--SpE07 | C104: Preisblatt 1 | E104: =Einspeisevergütung_Sonst!D123*'Preisblätter-vNE'!C$16/100 -> 83.9334 | H104: 83.93
A105: E1006601S725010042900010368900001 | B105: So-vNNe--SpE07 | C105: Preisblatt 1 | E105: =Einspeisevergütung_Sonst!D124*'Preisblätter-vNE'!C$16/100 -> 34.5504 | H105: 34.55
A106: E1006001S725010042900070417700001 | B106: Sg-vNNe--SpE07 | C106: Preisblatt 1 | E106: =Einspeisevergütung_Sonst!D125*'Preisblätter-vNE'!C$16/100 -> 105.6572 | H106: 105.66
A107: E1006601S725010042900080389800001 | B107: So-vNNe--SpE07 | C107: Preisblatt 1 | E107: =Einspeisevergütung_Sonst!D126*'Preisblätter-vNE'!C$16/100 -> 50.9524 | H107: 50.95
A108: E1006601S725010042900080389900001 | B108: Sg-vNNe--SpE07 | C108: Preisblatt 1 | E108: =Einspeisevergütung_Sonst!D127*'Preisblätter-vNE'!C$16/100 -> 41.7484 | H108: 41.75
A109: E1006601S725010023000010000100001 | B109: So-vNNe--SpE07 | C109: Preisblatt 1 | E109: =Einspeisevergütung_Sonst!D128*'Preisblätter-vNE'!C$16/100 -> 330.4944 | H109: 330.49
A110: E1006601S725010021300100000100001 | B110: So-vNNe--SpE07 | C110: Preisblatt 1 | E110: =Einspeisevergütung_Sonst!D129*'Preisblätter-vNE'!C$16/100 -> 109.858 | H110: 109.86
A111: E1006001S725010021300320093100001 | B111: Sg-vNNe--SpE07 | C111: Preisblatt 1 | E111: =(Einspeisevergütung_Sonst!D130+Einspeisevergütung_Sonst!D131)*'Preisblätter-vNE'!C$16/100 -> 246.6318 | H111: 246.63
A112: E1006601S725010021300340093200001 | B112: So-vNNe--SpE07 | C112: Preisblatt 1 | E112: =Einspeisevergütung_Sonst!D133*'Preisblätter-vNE'!C$16/100 -> 67.9326 | H112: 67.93
A113: E1006601S725010030600180404000001 | B113: So-vNNe--SpE07 | C113: Preisblatt 1 | E113: =Einspeisevergütung_Sonst!D134*'Preisblätter-vNE'!C$16/100 -> 29.264 | H113: 29.26
A114: E1006601S725010030600030176600001 | B114: Sg-vNNe--SpE07 | C114: Preisblatt 1 | E114: =Einspeisevergütung_Sonst!D135*'Preisblätter-vNE'!C$16/100 -> 88.2758 | H114: 88.28
A115: E1006601S725010030600090000900001 | B115: So-vNNe--SpE07 | C115: Preisblatt 1 | E115: =Einspeisevergütung_Sonst!D136*'Preisblätter-vNE'!C$16/100 -> 163.3238 | H115: 163.32
A116: E1006001S725010023800070149100001 | B116: Sg-vNNe--SpE07 | C116: Preisblatt 1 | E116: =Einspeisevergütung_Sonst!D137*'Preisblätter-vNE'!C$16/100 -> 102.7662 | H116: 102.77
A117: E1006601S725010010800230000100001 | B117: So-vNNe--SpE07 | C117: Preisblatt 1 | E117: =Einspeisevergütung_Sonst!D140*'Preisblätter-vNE'!C$16/100 -> 11.0566 | H117: 11.06
A118: E1006601S725010010800250000100001 | B118: So-vNNe--SpE07 | C118: Preisblatt 1 | E118: =Einspeisevergütung_Sonst!D141*'Preisblätter-vNE'!C$16/100 -> 7.9414 | H118: 7.94
A119: E1006601S725010022800170128600001 | B119: Sg-vNNe--SpE07 | C119: Preisblatt 1 | E119: =Einspeisevergütung_Sonst!D142*'Preisblätter-vNE'!C$16/100 -> 72.6408 | H119: 72.64
A120: E1006001S725010022800170128700001 | B120: Sg-vNNe--SpE07 | C120: Preisblatt 1 | E120: =Einspeisevergütung_Sonst!D143*'Preisblätter-vNE'!C$16/100 -> 30.798 | H120: 30.8
A121: E1006601S725010022800060127000001 | B121: So-vNNe--SpE07 | C121: Preisblatt 1 | E121: =Einspeisevergütung_Sonst!D144*'Preisblätter-vNE'!C$16/100 -> 68.1568 | H121: 68.16
A122: E1006601S725010022800060127100001 | B122: So-vNNe--SpE07 | C122: Preisblatt 1 | E122: =Einspeisevergütung_Sonst!D145*'Preisblätter-vNE'!C$16/100 -> 23.0926 | H122: 23.09
A123: E1006001S725010024300190000500001 | B123: Sg-vNNe--SpE07 | C123: Preisblatt 1 | E123: =Einspeisevergütung_Sonst!D146*'Preisblätter-vNE'!C$16/100 -> 80.9598 | H123: 80.96
A124: E1006601S725010024300020416100001 | B124: So-vNNe--SpE07 | C124: Preisblatt 1 | E124: =Einspeisevergütung_Sonst!D147*'Preisblätter-vNE'!C$16/100 -> 69.502 | H124: 69.5
A125: E1006601S725010024300090410600001 | B125: So-vNNe--SpE07 | C125: Preisblatt 1 | E125: =Einspeisevergütung_Sonst!D148*'Preisblätter-vNE'!C$16/100 -> 19.5408 | H125: 19.54
A126: E1006601S725010040200060000100001 | B126: Sg-vNNe--SpE07 | C126: Preisblatt 1 | E126: =Einspeisevergütung_Sonst!D149*'Preisblätter-vNE'!C$16/100 -> 123.6758 | H126: 123.68
A127: E1006601S725010042100140358500001 | B127: So-vNNe--SpE07 | C127: Preisblatt 1 | E127: =Einspeisevergütung_Sonst!D150*'Preisblätter-vNE'!C$16/100 -> 83.7092 | H127: 83.71
A128: E1006001S725010042100150418200001 | B128: Sg-vNNe--SpE07 | C128: Preisblatt 1 | E128: =Einspeisevergütung_Sonst!D151*'Preisblätter-vNE'!C$16/100 -> 62.5754 | H128: 62.58
A129: E1006001S725010042100200312600001 | B129: Sg-vNNe--SpE07 | C129: Preisblatt 1 | E129: =Einspeisevergütung_Sonst!D152*'Preisblätter-vNE'!C$16/100 -> 61.6314 | H129: 61.63
A130: E1006601S725010024600020000200001 | B130: So-vNNe--SpE07 | C130: Preisblatt 1 | E130: =(Einspeisevergütung_Sonst!D153+Einspeisevergütung_Sonst!D154)*'Preisblätter-vNE'!C$16/100 -> 376.2548 | H130: 376.25
A131: E1006601S725010020350100065300001 | B131: Sg-vNNe--SpE07 | C131: Preisblatt 1 | D131: 0 | E131: =(Einspeisevergütung_Sonst!D155+Einspeisevergütung_Sonst!D156)*'Preisblätter-vNE'!C$16/100 -> 838.39 | H131: 838.39
A132: E1006601S725010020350020000200001 | B132: Sg-vNNe--SpE07 | C132: Preisblatt 1 | D132: 1455.33 | E132: =(Einspeisevergütung_Sonst!D157+Einspeisevergütung_Sonst!D158+Einspeisevergütung_Sonst!D159)*'Preisblätter-vNE'!C$16/100 -> 1338.71 | H132: 2794.04
A133: E1006001S725010020350060000200001 | B133: Sg-vNNe--SpE07 | C133: Preisblatt 1 | E133: =(Einspeisevergütung_Sonst!D160+Einspeisevergütung_Sonst!D161+Einspeisevergütung_Sonst!D162)*'Preisblätter-vNE'!C$16/100 -> 142.0012 | H133: 142
A134: E1006601S725010031600100215500001 | B134: Sg-vNNe--SpE07 | C134: Preisblatt 1 | E134: =Einspeisevergütung_Sonst!D163*'Preisblätter-vNE'!C$16/100 -> 105.5038 | H134: 105.5
A135: E1006001S725010031600110000100001 | B135: Sg-vNNe--SpE07 | C135: Preisblatt 1 | E135: =Einspeisevergütung_Sonst!D164*'Preisblätter-vNE'!C$16/100 -> 62.4456 | H135: 62.45
A136: E1006001S725010031600130000100001 | B136: Sg-vNNe--SpE07 | C136: Preisblatt 1 | E136: =Einspeisevergütung_Sonst!D165*'Preisblätter-vNE'!C$16/100 -> 72.3812 | H136: 72.38
A137: E1006601S725010031600060215000001 | B137: Sg-vNNe--SpE07 | C137: Preisblatt 1 | E137: =Einspeisevergütung_Sonst!D166*'Preisblätter-vNE'!C$16/100 -> 114.224 | H137: 114.22
A138: E1006601S725010040600020250000001 | B138: Sg-vNNe--SpE07 | C138: Preisblatt 1 | D138: 0 | E138: =(Einspeisevergütung_Sonst!D167+Einspeisevergütung_Sonst!D168)*'Preisblätter-vNE'!C$16/100 -> 857.86 | H138: 857.86
A139: E1006601S725010022000130104700001 | B139: So-vNNe--SpE07 | C139: Preisblatt 1 | E139: =Einspeisevergütung_Sonst!D169*'Preisblätter-vNE'!C$16/100 -> 72.6408 | H139: 72.64
A140: E1006601S725010022000070104000001 | B140: Sg-vNNe--SpE07 | C140: Preisblatt 1 | E140: =Einspeisevergütung_Sonst!D170*'Preisblätter-vNE'!C$16/100 -> 50.5866 | H140: 50.59
A141: E1006001S725010031500100210700001 | B141: Sg-vNNe--SpE07 | C141: Preisblatt 1 | E141: =Einspeisevergütung_Sonst!D173*'Preisblätter-vNE'!C$16/100 -> 38.114 | H141: 38.11
A142: E1006601S725010031500110211100001 | B142: Sg-vNNe--SpE07 | C142: Preisblatt 1 | E142: =Einspeisevergütung_Sonst!D174*'Preisblätter-vNE'!C$16/100 -> 73.3134 | H142: 73.31
A143: E1006601S725010031500090210600001 | B143: So-vNNe--SpE07 | C143: Preisblatt 1 | E143: =Einspeisevergütung_Sonst!D175*'Preisblätter-vNE'!C$16/100 -> 49.9612 | H143: 49.96
A144: E1006001S725010010900240040800001 | B144: Sg-vNNe--SpE07 | C144: Preisblatt 1 | E144: =(Marktprämien!E7+Marktprämien!E8+Marktprämien!E9+Marktprämien!E10+Marktprämien!E11+Marktprämien!E12+Marktprämien!E13+Marktprämien!E14+Marktprämien!E15)*'Preisblätter-vNE'!C16/100 -> 178.652 | H144: 178.65
A145: E1006601S725010020400050151200001 | B145: Sg-vNNe--SpE07 | C145: Preisblatt 1 | E145: =Einspeisevergütung_Sonst!D176*'Preisblätter-vNE'!C$16/100 -> 100.1584 | H145: 100.16
A146: E1006601S725010024000060151300001 | B146: So-vNNe--SpE07 | C146: Preisblatt 1 | E146: =Einspeisevergütung_Sonst!D177*'Preisblätter-vNE'!C$16/100 -> 126.2246 | H146: 126.22
A147: E1006601S725010024000060151400001 | B147: Sg-vNNe--SpE07 | C147: Preisblatt 1 | E147: =Einspeisevergütung_Sonst!D178*'Preisblätter-vNE'!C$16/100 -> 78.6824 | H147: 78.68
A148: E1006001S725010024200110000300001 | B148: Sg-vNNe--SpE07 | C148: Preisblatt 1 | E148: =Einspeisevergütung_Sonst!D179*'Preisblätter-vNE'!C$16/100 -> 32.0724 | H148: 32.07
A149: E1006001S725010024200040414700001 | B149: Sg-vNNe--SpE07 | C149: Preisblatt 1 | E149: =Einspeisevergütung_Sonst!D180*'Preisblätter-vNE'!C$16/100 -> 85.0544 | H149: 85.05
A150: E1006001S725010024200060000200001 | B150: Sg-vNNe--SpE07 | C150: Preisblatt 1 | E150: =Einspeisevergütung_Sonst!D181*'Preisblätter-vNE'!C$16/100 -> 107.7576 | H150: 107.76
A151: E1006601S725010024200080000300001 | B151: So-vNNe--SpE07 | C151: Preisblatt 1 | E151: =Einspeisevergütung_Sonst!D182*'Preisblätter-vNE'!C$16/100 -> 83.721 | H151: 83.72
A152: E1006601S725010022300070110200001 | B152: Sg-vNNe--SpE07 | C152: Preisblatt 1 | E152: =Einspeisevergütung_Sonst!D183*'Preisblätter-vNE'!C$16/100 -> 148.5856 | H152: 148.59
A153: E1006001S725010040800270000400001 | B153: Sg-vNNe--SpE07 | C153: Preisblatt 1 | E153: =(Einspeisevergütung_Sonst!D184+Einspeisevergütung_Sonst!D185+Einspeisevergütung_Sonst!D186)*'Preisblätter-vNE'!C$16/100 -> 901.7914 | H153: 901.79
A154: E1006601S725010040800060251400001 | B154: So-vNNe--SpE07 | C154: Preisblatt 1 | E154: =Einspeisevergütung_Sonst!D188*'Preisblätter-vNE'!C$16/100 -> 289.8906 | H154: 289.89
A155: E1006001S725010031000010186300001 | B155: Sg-vNNe--SpE07 | C155: Preisblatt 1 | E155: =Einspeisevergütung_Sonst!D189*'Preisblätter-vNE'!C$16/100 -> 51.8492 | H155: 51.85
A156: E1006601S725010020400030000200001 | B156: So-vNNe--SpE07 | C156: Preisblatt 1 | E156: =(Einspeisevergütung_Sonst!D190+Einspeisevergütung_Sonst!D191)*'Preisblätter-vNE'!C$16/100 -> 618.32 | H156: 618.32
A157: E1006001S725010020400040065800001 | B157: Sg-vNNe--SpE07 | C157: Preisblatt 1 | E157: =Einspeisevergütung_Sonst!D192*'Preisblätter-vNE'!C$16/100 -> 107.97 | H157: 107.97
A158: E1006601S725010041550110404700001 | B158: So-vNNe--SpE07 | C158: Preisblatt 1 | E158: =Einspeisevergütung_Sonst!D193*'Preisblätter-vNE'!C$16/100 -> 36.8986 | H158: 36.9
A159: E1006601S725010041550140292700001 | B159: Sg-vNNe--SpE07 | C159: Preisblatt 1 | E159: =Einspeisevergütung_Sonst!D194*'Preisblätter-vNE'!C$16/100 -> 184.4812 | H159: 184.48
A160: E1006601S725010041550150292800001 | B160: So-vNNe--SpE07 | C160: Preisblatt 1 | E160: =Einspeisevergütung_Sonst!D195*'Preisblätter-vNE'!C$16/100 -> 61.4072 | H160: 61.41
A161: E1006601S725010041550190293300001 | B161: Sg-vNNe--SpE07 | C161: Preisblatt 1 | E161: =Einspeisevergütung_Sonst!D196*'Preisblätter-vNE'!C$16/100 -> 115.9468 | H161: 115.95
A162: E1006601S725010041550340418800001 | B162: So-vNNe--SpE07 | C162: Preisblatt 1 | E162: =Einspeisevergütung_Sonst!D197*'Preisblätter-vNE'!C$16/100 -> 21.5586 | H162: 21.56
A163: E1006601S725010041550350294900001 | B163: Sg-vNNe--SpE07 | C163: Preisblatt 1 | E163: =Einspeisevergütung_Sonst!D198*'Preisblätter-vNE'!C$16/100 -> 124.313 | H163: 124.31
A164: E1006001S725010041550360348600001 | B164: Sg-vNNe--SpE07 | C164: Preisblatt 1 | E164: =Einspeisevergütung_Sonst!D199*'Preisblätter-vNE'!C$16/100 -> 8.3308 | H164: 8.33
A165: E1006601S725010041550040291300001 | B165: Sg-vNNe--SpE07 | C165: Preisblatt 1 | E165: =Einspeisevergütung_Sonst!D200*'Preisblätter-vNE'!C$16/100 -> 109.0792 | H165: 109.08
A166: E1006601S725010041550450295600001 | B166: Sg-vNNe--SpE07 | C166: Preisblatt 1 | E166: =Einspeisevergütung_Sonst!D201*'Preisblätter-vNE'!C$16/100 -> 115.6872 | H166: 115.69
A167: E1006601S725010041550050291400001 | B167: Sg-vNNe--SpE07 | C167: Preisblatt 1 | E167: =Einspeisevergütung_Sonst!D202*'Preisblätter-vNE'!C$16/100 -> 161.5892 | H167: 161.59
A168: E1006601S725010041550070291700001 | B168: Sg-vNNe--SpE07 | C168: Preisblatt 1 | E168: =Einspeisevergütung_Sonst!D203*'Preisblätter-vNE'!C$16/100 -> 162.9698 | H168: 162.97
A169: E1006601S725010041550080291800001 | B169: So-vNNe--SpE07 | C169: Preisblatt 1 | E169: =Einspeisevergütung_Sonst!D204*'Preisblätter-vNE'!C$16/100 -> 140.6678 | H169: 140.67
A170: E1006001S725010011000070043200001 | B170: Sg-vNNe--SpE07 | C170: Preisblatt 1 | E170: =Einspeisevergütung_Sonst!D205*'Preisblätter-vNE'!C$16/100 -> 26.2668 | H170: 26.27
A171: E1006601S725010023700030147700001 | B171: Sg-vNNe--SpE07 | C171: Preisblatt 1 | E171: =Einspeisevergütung_Sonst!D206*'Preisblätter-vNE'!C$16/100 -> 130.0478 | H171: 130.05
A172: E1006001S725010023700050000100001 | B172: Sg-vNNe--SpE07 | C172: Preisblatt 1 | E172: =Einspeisevergütung_Sonst!D207*'Preisblätter-vNE'!C$16/100 -> 147.2522 | H172: 147.25
A173: E1006601S725010011100020387200001 | B173: So-vNNe--SpE07 | C173: Preisblatt 1 | E173: =Einspeisevergütung_Sonst!D208*'Preisblätter-vNE'!C$16/100 -> 22.3728 | H173: 22.37
A174: E1006601S725010011100020387200002 | B174: So-vNNe--SpE07 | C174: Preisblatt 1 | E174: =Einspeisevergütung_Sonst!D209*'Preisblätter-vNE'!C$16/100 -> 22.3728 | H174: 22.37
A175: E1006001S725010042700120319600001 | B175: Sg-vNNe--SpE07 | C175: Preisblatt 1 | E175: =Einspeisevergütung_Sonst!D210*'Preisblätter-vNE'!C$16/100 -> 134.5082 | H175: 134.51
A176: E1006601S725010042700170342900001 | B176: Sg-vNNe--SpE07 | C176: Preisblatt 1 | E176: =Einspeisevergütung_Sonst!D211*'Preisblätter-vNE'!C$16/100 -> 95.6272 | H176: 95.63
A177: E1006001S725010042700210000300001 | B177: Sg-vNNe--SpE07 | C177: Preisblatt 1 | E177: =Einspeisevergütung_Sonst!D212*'Preisblätter-vNE'!C$16/100 -> 148.2434 | H177: 148.24
A178: E1006601S725010022700240358500001 | B178: Sg-vNNe--SpE07 | C178: Preisblatt 1 | E178: =Einspeisevergütung_Sonst!D215*'Preisblätter-vNE'!C$16/100 -> 122.0474 | H178: 122.05
A179: E1006601S725010020200110058700001 | B179: So-vNNe--SpE07 | C179: Preisblatt 1 | E179: =Einspeisevergütung_Sonst!D216*'Preisblätter-vNE'!C$16/100 -> 107.1676 | H179: 107.17
A180: E1006601S725010020200150059000001 | B180: Sg-vNNe--SpE07 | C180: Preisblatt 1 | E180: =Einspeisevergütung_Sonst!D217*'Preisblätter-vNE'!C$16/100 -> 77.231 | H180: 77.23
A181: E1006601S725010020200090058500001 | B181: So-vNNe--SpE07 | C181: Preisblatt 1 | E181: =Einspeisevergütung_Sonst!D218*'Preisblätter-vNE'!C$16/100 -> 92.748 | H181: 92.75
A182: E1006601S725010030500010171400001 | B182: Sg-vNNe--SpE07 | C182: Preisblatt 1 | E182: =Einspeisevergütung_Sonst!D219*'Preisblätter-vNE'!C$16/100 -> 74.6704 | H182: 74.67
A183: E1006601S725010030500010171500001 | B183: Sg-vNNe--SpE07 | C183: Preisblatt 1 | E183: =Einspeisevergütung_Sonst!D220*'Preisblätter-vNE'!C$16/100 -> 72.7116 | H183: 72.71
A184: E1006601S725010030500190175400001 | B184: So-vNNe--SpE07 | C184: Preisblatt 1 | E184: =Einspeisevergütung_Sonst!D221*'Preisblätter-vNE'!C$16/100 -> 47.8962 | H184: 47.9
A185: E1006601S725010030500220176000001 | B185: So-vNNe--SpE07 | C185: Preisblatt 1 | E185: =Einspeisevergütung_Sonst!D222*'Preisblätter-vNE'!C$16/100 -> 87.8274 | H185: 87.83
A186: E1006601S725010030500050172100001 | B186: So-vNNe--SpE07 | C186: Preisblatt 1 | E186: =Einspeisevergütung_Sonst!D223*'Preisblätter-vNE'!C$16/100 -> 113.4216 | H186: 113.42
A187: E1006001S725010030500030171800001 | B187: Sg-vNNe--SpE07 | C187: Preisblatt 1 | E187: =Einspeisevergütung_Sonst!D224*'Preisblätter-vNE'!C$16/100 -> 79.1662 | H187: 79.17
A188: E1006001S725010011300060051900001 | B188: Sg-vNNe--SpE07 | C188: Preisblatt 1 | E188: =Einspeisevergütung_Sonst!D225*'Preisblätter-vNE'!C$16/100 -> 191.2544 | H188: 191.25
A189: E1006601W725010011300060051800001 | B189: Wa-vNNe--SpE07 | C189: Preisblatt 1 | D189: 0 | E189: =Einspeisevergütung_Sonst!D226*'Preisblätter-vNE'!C$16/100 -> 1053.3388 | H189: 1053.34
A190: E1006001S725010023600110410000001 | B190: Sg-vNNe--SpE07 | C190: Preisblatt 1 | E190: =Einspeisevergütung_Sonst!D227*'Preisblätter-vNE'!C$16/100 -> 14.3016 | H190: 14.3
A191: E1006601S725010023600110409900001 | B191: So-vNNe--SpE07 | C191: Preisblatt 1 | E191: =Einspeisevergütung_Sonst!D228*'Preisblätter-vNE'!C$16/100 -> 37.406 | H191: 37.41
A192: E1006601S725010023600210146900001 | B192: Sg-vNNe--SpE07 | C192: Preisblatt 1 | E192: =Einspeisevergütung_Sonst!D229*'Preisblätter-vNE'!C$16/100 -> 201.7092 | H192: 201.71
A193: E1006001S725010040900350270800001 | B193: Sg-vNNe--SpE07 | C193: Preisblatt 1 | E193: =(Einspeisevergütung_Sonst!D230+Einspeisevergütung_Sonst!D231+Einspeisevergütung_Sonst!D232)*'Preisblätter-vNE'!C$16/100 -> 153.8366 | H193: 153.84
A194: E1006601S725010040900420000700001 | B194: Sg-vNNe--SpE07 | C194: Preisblatt 1 | E194: =(Einspeisevergütung_Sonst!D234+Einspeisevergütung_Sonst!D235)*'Preisblätter-vNE'!C$16/100 -> 584.69 | H194: 584.69
A195: E1006601S725010040900440272500001 | B195: Sg-vNNe--SpE07 | C195: Preisblatt 1 | E195: =(Einspeisevergütung_Sonst!D236+Einspeisevergütung_Sonst!D237)*'Preisblätter-vNE'!C$16/100 -> 736.3672 | H195: 736.37
A196: E1006601S725010040900570274700001 | B196: So-vNNe--SpE07 | C196: Preisblatt 1 | E196: =Einspeisevergütung_Sonst!D238*'Preisblätter-vNE'!C$16/100 -> 75.9448 | H196: 75.94
A197: E1006601S725010040900570274800001 | B197: So-vNNe--SpE07 | C197: Preisblatt 1 | E197: =Einspeisevergütung_Sonst!D239*'Preisblätter-vNE'!C$16/100 -> 75.52 | H197: 75.52
A198: E1006601S725010040900570274900001 | B198: So-vNNe--SpE07 | C198: Preisblatt 1 | E198: =Einspeisevergütung_Sonst!D240*'Preisblätter-vNE'!C$16/100 -> 179.5606 | H198: 179.56
A199: E1006001S725010040900630275800001 | B199: Sg-vNNe--SpE07 | C199: Preisblatt 1 | E199: =(Einspeisevergütung_Sonst!D241+Einspeisevergütung_Sonst!D242)*'Preisblätter-vNE'!C$16/100 -> 68.617 | H199: 68.62
A200: E1006601S725010040900730277100001 | B200: So-vNNe--SpE07 | C200: Preisblatt 1 | E200: =Einspeisevergütung_Sonst!D244*'Preisblätter-vNE'!C$16/100 -> 8.6376 | H200: 8.64
A201: E1006601S725010040900790278000001 | B201: So-vNNe--SpE07 | C201: Preisblatt 1 | E201: =(Einspeisevergütung_Sonst!D245+Einspeisevergütung_Sonst!D246)*'Preisblätter-vNE'!C$16/100 -> 298.1624 | H201: 298.16
A202: E1006601S725010040900790278200001 | B202: Sg-vNNe--SpE07 | C202: Preisblatt 1 | E202: =Einspeisevergütung_Sonst!D247*'Preisblätter-vNE'!C$16/100 -> 287.2474 | H202: 287.25
... 15 more rows

Sheet Marktprämien
J1: =Deckblatt!H1 -> 2018-04-30
A3: Netzbetreiber : | B3: =Deckblatt!C11 -> Gammertinger Energie- u. Wasserversorgung GmbH
A5: Anlagenschlüssel | B5: Vergütungskategorie, die mit dem Anlagenbetreiber abgerechnet worden wären, wenn die Anlage in der Festvergütung vergütet worden wäre | C5: Monat, in dem Strommenge über das Marktprämienmodell erzeugt bzw. direkt vermarktet wurde | D5: Fernsteuerbar (d.h. Verwendung der erhöhten Managementprämie) | E5: über das Marktprämienmodell direktvermarktete Strommenge [kWh] | F5: Ausbezahlte Marktprämie in [€] (nur für Kategorien ohne festen Vergütungssatz) | G5: anzulegender Wert [ct/kWh] | H5: Marktwert [ct/kWh] | I5: Managementprämie [ct/kWh] | J5: berechnete Marktprämie in [€]
A6: Pflichtfeld | B6: Pflichtfeld (Auswahlfeld - separate Zeile pro Monat) | C6: Pflichtfeld (Auswahlfeld - separate Zeile pro Monat) | D6: Pflichtfeld (Auswahlfeld - separate Zeile pro Monat - keine Angabe entspr. Nein) | E6: Pflichtfeld (separate Zeile pro Monat) | F6: Pflichtfeld bei Kategorien ohne festen Vergütungssatz
A7: E1006001S725010010900240040800001 | B7: SgK4820--Okt17 | C7: Oktober | D7: Ja | E7: 277.4 | G7: 12.6 | H7: 2.912 | I7: 0 | J7: 26.87
A8: E1006001S725010010900240040800001 | B8: SgK4821--Okt17 | C8: Oktober | D8: Ja | E8: 832.3 | G8: 12.27 | H8: 2.912 | I8: 0 | J8: 77.89
A9: E1006001S725010010900240040800001 | B9: SgK4822--Okt17 | C9: Oktober | D9: Ja | E9: 8572.3 | G9: 11.01 | H9: 2.912 | I9: 0 | J9: 694.18
A10: E1006001S725010010900240040800001 | B10: SgK4820--Okt17 | C10: November | D10: Ja | E10: 128 | G10: 12.6 | H10: 4.297 | I10: 0 | J10: 10.63
A11: E1006001S725010010900240040800001 | B11: SgK4821--Okt17 | C11: November | D11: Ja | E11: 384 | G11: 12.27 | H11: 4.297 | I11: 0 | J11: 30.62
A12: E1006001S725010010900240040800001 | B12: SgK4822--Okt17 | C12: November | D12: Ja | E12: 3955 | G12: 11.01 | H12: 4.297 | I12: 0 | J12: 265.5
A13: E1006001S725010010900240040800001 | B13: SgK4820--Okt17 | C13: Dezember | D13: Ja | E13: 28.4 | G13: 12.6 | H13: 3.299 | I13: 0 | J13: 2.64
A14: E1006001S725010010900240040800001 | B14: SgK4821--Okt17 | C14: Dezember | D14: Ja | E14: 85.2 | G14: 12.27 | H14: 3.299 | I14: 0 | J14: 7.64
A15: E1006001S725010010900240040800001 | B15: SgK4822--Okt17 | C15: Dezember | D15: Ja | E15: 877.4 | G15: 11.01 | H15: 3.299 | I15: 0 | J15: 67.66

Sheet Flexibilitätsvergütung
E1: =Deckblatt!H1 -> 2018-04-30
A3: Netzbetreiber : | B3: =Deckblatt!C11 -> Gammertinger Energie- u. Wasserversorgung GmbH
A5: Anlagenschlüssel | B5: Vergütungskategorie | C5: erzeugte Strommenge in der jeweiligen Kategorie [kWh] | D5: Zusatzleistung [kW] | E5: Flexibilitätsvergütung [€]
A6: Pflichtfeld | B6: Pflichtfeld | C6: nur erforderlich bei Flexibilitätsprämie | D6: nur erforderlich bei Flexibilitätsprämie | E6: Pflichtfeld

Sheet Eigenversorgung
H1: =Deckblatt!$H1 -> 2018-04-30
A3: Netzbetreiber : | B3: =Deckblatt!C11 -> Gammertinger Energie- u. Wasserversorgung GmbH
C5: Eigenversorgung für 2017
A6: Anlagenschlüssel | B6: Anlagenart (EEG/Nicht-EEG) | C6: Umlagekategorie | D6: Strommenge [kWh] | E6: Erhaltene Zahlung vom Anlagenbetreiber [€] | F6: Sollzahlung [€] | G6: Noch ausstehende Zahlung [€] | H6: Erhaltene Zahlung [€]
A7: Pflichtfeld | B7: Pflichtfeld | C7: Pflichtfeld | D7: Pflichtfeld | E7: Pflichtfeld
A8: E1006001S725010040800270000400001 | B8: EEG-Anlage | C8: EV6111-EEG-RED | D8: 11108 | E8: 305.69 | F8: 305.69 | G8: 0 | H8: 305.69

Sheet Nachträgliche EV-Korrekturen (hidden)
E1: =Deckblatt!H1 -> 2018-04-30
A3: Netzbetreiber : | B3: =Deckblatt!C11 -> Gammertinger Energie- u. Wasserversorgung GmbH
A5: EEG-Umlageart | B5: Anspruchsgrundlage für die Korrektur | C5: betrifft Kalenderjahr [JJJJ] | D5: ggf. Änderung der umlagepflichtigen Strommmengen [kWh] | E5: erhaltene Zahlung [EUR]

Sheet Nachträgliche Korrekturen (hidden)
J1: =Deckblatt!H1 -> 2018-04-30
A3: Netzbetreiber : | C3: =Deckblatt!C11 -> Gammertinger Energie- u. Wasserversorgung GmbH
A5: Anlagenschlüssel bzw. im Falle eines vollstreckbaren Titels nur Angabe des betroffenen Energieträgers in der Form "Energieträger: …." (z. B. Energieträger: Solar oder Energieträger: Wind...) | B5: Art der Förderung | C5: Anspruchsgrundlage für die Korrektur | D5: betrifft Abrechnung (Jahr) [JJJJ] | E5: ggf. Name [Gericht/Notar] | F5: Aktenzeichen/Urkundennummer | G5: Strommenge [kWh] | H5: finanzielle Förderung vor Abzug der vNE [EUR] | I5: vNE [EUR] | J5: finanzielle Förderung nach Abzug der vNE [EUR]

Sheet MPM_Ergebnissblatt
N1: =Deckblatt!H1 -> 2018-04-30
A3: Netzbetreiber : | B3: =Deckblatt!C11 -> Gammertinger Energie- u. Wasserversorgung GmbH
A5: Anlagenschlüssel | B5: Marktprämie [€] | C5: Marktprämie [€] | D5: Marktprämie [€] | E5: Marktprämie [€] | F5: Marktprämie [€] | G5: Marktprämie [€] | H5: Marktprämie [€] | I5: Marktprämie [€] | J5: Marktprämie [€] | K5: Marktprämie [€] | L5: Marktprämie [€] | M5: Marktprämie [€] | N5: Marktprämie gesamt [€]
B6: Januar | C6: Februar | D6: März | E6: April | F6: Mai | G6: Juni | H6: Juli | I6: August | J6: September | K6: Oktober | L6: November | M6: Dezember | N6: 2015
A7: E1006001S725010010900240040800001 | B7: 0 | C7: 0 | D7: 0 | E7: 0 | F7: 0 | G7: 0 | H7: 0 | I7: 0 | J7: 0 | K7: 798.94 | L7: 306.75 | M7: 77.94 | N7: 1183.63

Sheet Versionsübersicht
A1: Version | B1: Änderungen im Vergleich zur Vorversion | C1: Datum der Auslieferung
A2: 3.0 | B2: Änderungen für Jahresmeldung 2016 in 2017: Erweiterung der Zusammenfassung (Testatdaten) entsprechend den IDW-Vorgaben Ausgabe des betroffenen Anlagenschlüssels in separater Spalte im Fehlerprotokoll Eigenversorgung nur noch fürs Jahr der Jahresmeldung möglich (alle Korrekturen für Vorjahre müssen über die Korrekturjahresmeldung gemeldet werden) Leistungs- und Arbeitsnateil können bei vNE's nun auch in separaten Zeilen gemeldet werden (BugFix) Auch bei Anlagen mit Inbetriebnahme nach dem 1.8.2014 korrekte Berechnung der Marktprämie im Falle der Verwendung der Übergangskategorien für 2014 (BugFix) Volllasstundenprüfung bei PV-Anlagen mit Limit 1.500 h anstatt 1.800 h Korrekturfaktor für Berechnung des Arbeitsanteils bei VNE im Preisblatt (im Fall von Rückspeisungen) Neues Tabellenblatt für Zeitplan Neues Tabellenblatt für Versionshistorie Neues Tabellenblatt für Nachträgliche Korrekturen der Eigenversorgung aus Vorjahren (Daten können aus Ergebnis der Korrekturjahresmeldung übernommen werden) Tabellenblatt für Nachträgliche Korrekturen ergänzt um Art der Förderung (Daten können aus Ergebnis der Korrekturjahresmeldung übernommen werden) Als Ausgleichbilanzkreise sind nur noch echte Bilanzkreise zulässig, keine Lieferantenkonten Toleranz bei Validierung des vergüteten Selbstverabruchs von 0,001 kWh auf 1 kWh erhöht Stammdatenmeldung um neue Attribute (entsptr. neues Stammdatenformular) ergänzt Berücksichtigung der Stromsteuerbegünstigung gemäß §§71-73 EEG 2017 Plausibilisierung des Flexibilitätszuschlags und der Flexibilitätsprämie | C2: 2017-03-28
A3: 3.1 | B3: 3 fehlende Vergütungskategorien ergänzt und eine unnötige entfernt Förderart Einspeisevergütungen Singular Optimierung, Aktivierung bzw. Vervollständigung diverser Auswahllisten Korrektur der Berechnung der Marktprämie bei nach 8.2014 modernisierten Wasserkraftwerken (wegen fehlender Managementprämie) Fehlerhafte Prüfung der Zulässigkeit von Vergütungskategorien bei Gültigkeit im 1. bis 3. Quartal 2016 Umbennennung der Ergebnisblätter (und Aktualisierung des Zeitraums) | C3: 2017-04-07
A4: 3.2 | B4: Fehlerkorrekturen bei der Prüfung der Flexibilitätsprämie | C4: 2017-04-10
A5: 3.3 | B5: Vollstreckbare Titel mit ÜNB auch bei Daten Prüfungsvermerk (Nachträgliche Korrekturen) mit ausgeben Weitere Korrekturen bei der Prüfung der Flexibilitätsprämie | C5: 2017-04-11
A6: 3.4 | B6: Fehlerkorrekur bei der Verrabeitung der Nachträglichen Korrekturen (fehlender Objektverweis im Falle das nur vollstreckbare Titel ohne direkten Bezug zu einer Anlage gemeldet werden) unpassende Gültigkeitsprüfung bei Eingabe in Spalte A ("Anlagenschlüssel...") im Tabellenblatt "Nachträgliche Korekturen" entfernt | C6: 2017-04-19
A7: 3.5 | B7: Eigenversorgung wurde bei der Prüfung der Höchstbemessungsleistung noch nicht berücksichtigt -> korrigiert Fehlende Biomassekategorien ergänzt (BiK51nM1K16-02…) | C7: 2017-04-20
A8: 3.6 | B8: Zellenformat beim Gemeindeschlüssel war zum Teil fehlerhaft (Datum). Kann im Makro zu Überlauf führen | C8: 21.04.2017
A9: 3.7 | B9: Sondersachverhalt bei Anlagenzusammenfassung bei Prüfung der Flexibilitätsprämie berückischtigt technischer Fehler (Division durch 0) bei Angabe von Flexibilitätsprämie ohne Einspesiungen behoben | C9: 2017-04-26
A10: 3.8 | B10: AddIn integriert | C10: 2017-04-26
A11: 3.9 | B11: Korrekturen am AddIn (fehlende Art der Förderung) und Fehler bei Ausgabe der nachträglichen Korrekturen korrigiert (wenn ausschließlich Übergangsbestimmung und keine sonstigen Korrekturen) | C11: 2017-04-27
A12: 3.10 | B12: Fehler bei Saldobildung im Prüfungvermerk korrigiert: Nachträgliche Korrekturen von Eigenversorgern nach §61 Abs. 3 i.V.m. § 62 Abs. 2 EEG 2017 müssen abgezogen werden, nicht addiert Fehler bei Angabe der zu testierende Strommenge im Prüfungvermerk (betr. EEG-Umlage nach § 61 Abs. 1 Satz 2 EEG 2014 (volle Umlage)): Falscher Zellenbezug, daher Anzeige des Betrags anstatt der Menge Fehler bei Nichterfüllung technischer Vorgaben und Inbetriebnahme ab 8.2014: MW-Sanktion zulässig (vormalig nur 0-Sanktion) Bei allen aMW-Kategorien darf keine Monatsangabe verlangt werden (derzeit nur bei MIM-aMW) Verbesserte Fehlerbehandlung im Falle ungültiger Formeln im Eingabebereich (z.B. Rückgabewerte #NV oder #BEZUG) | C12: 2017-05-05
A13: 3.11 | B13: unvollständigen Satz im Prüfungvermerk vervollständigt (Zelle A81) Prüfung der Marktstammdatenregisternummer angepasst | C13: 2017-05-23
A14: 3.12 | B14: Fehler im AddIn beim Schreiben der geographischen Daten in die XML-Datei | C14: 2017-05-30
A15: 4.0 | B15: Anpassungen für 2017 (Mieterstrom, Korrekturen nicht mehr enthalten, weitere Prüfungenbei Ausschreibungen, neue Umlagen und Vergütungskategorien) | C15: 2018-03-15
A16: 4.1 | B16: Korrekturfaktor bei Ausschreibung (Wind) berücksichtigt und Überprüfung der Zulässigkeit der Endvergütung abhängig von Standort- und Referenzertrag bei Wondkraftanlagen > 50 kW | C16: 2018-03-16
A17: 4.2 | B17: Verhalten im Falle vorliegender Warnungen angepasst | C17: 2018-03-19
A18: 4.3 | B18: Standort- und Referenzertrag erst nach 5 Jahren Pflicht bei Anlagen, die nicht ausgeschrieben wurden | C18: 2018-03-19
A19: 4.4 | B19: Fehlerbehebung: Implizite Ausnahme wegen Zusammenlegung (Marktintegrationsmodell) wurde in falsche Spalte geschrieben, wodurch es zu Folgefehlern kommt | C19: 2018-04-05
A20: 4.5 | B20: Fehlerbehebung: Feldprüfung verlangt bei Eingabe der xxK24---MPM--0 - Kategorien fälschlicherwiese ein Leerzeichen hinter der 0 Jahresanagbe bei EV noch 2016, Aushalliste bei Refernzenalage hatte gefhlt und bei intelleigen Messysteme ohne Nein | C20: 2018-04-20
A21: 4.6 | B21: AddIn für 2017 aktualisiert, Präfix bei Gemeindeschlüssel zusätzlich prüfen, Korrektur bei Prüfung der Anfangsvergütung bei Windkraftanlagen mit Inbetriebnahme vor dem 1.4.2000 | C21: 2018-04-27
A22: 4.7 | B22: Standort- und Referenzertrag nur bei ausgeschriebenen Anlagen erzwingen, bei anderen führt es lediglich zum Verlust des Anspruchs auf verlängerte Anfangvergütung | C22: 2018-04-30

Sheet Marktwerte
A1: Monat | B1: Januar | C1: Februar | D1: März | E1: April | F1: Mai | G1: Juni | H1: Juli | I1: August | J1: September | K1: Oktober | L1: November | M1: Dezember
B2: 2017 | C2: =B2 -> 2017 | D2: =C2 -> 2017 | E2: 2017 | F2: 2017 | G2: 2017 | H2: 2017 | I2: 2017 | J2: 2017 | K2: 2017 | L2: 2017 | M2: 2017
A3: MW-EPEX (Marktwert-EPEX) | B3: 5.237 | C3: 3.97 | D3: 3.17 | E3: 2.887 | F3: 3.046 | G3: 3 | H3: 3.301 | I3: 3.085 | J3: 3.435 | K3: 2.825 | L3: 4.037 | M3: 3.077
A5: MW Wind (Marktwert Wind) | B5: 4.066 | C5: 3.293 | D5: 2.872 | E5: 2.36 | F5: 2.621 | G5: 2.549 | H5: 2.892 | I5: 2.721 | J5: 2.765 | K5: 1.872 | L5: 3.088 | M5: 2.192
A6: PM Wind (Managementprämie Wind) | B6: 0 | C6: =$B6 -> 0 | D6: =$B6 -> 0 | E6: 0 | F6: 0 | G6: 0 | H6: 0 | I6: 0 | J6: 0 | K6: 0 | L6: 0 | M6: 0
A7: PM Wind fst. (Managementprämie Wind fernsteuerbar) | B7: 0.4 | C7: =$B7 -> 0.4 | D7: 0.4 | E7: 0.4 | F7: 0.4 | G7: 0.4 | H7: 0.4 | I7: 0.4 | J7: 0.4 | K7: 0.4 | L7: 0.4 | M7: 0.4
A8: RW Wind (Referenzmarktwert Wind) | B8: =B5-B6 -> 4.066 | C8: =C5-C6 -> 3.293 | D8: 2.872 | E8: 2.36 | F8: 2.621 | G8: 2.549 | H8: 2.892 | I8: 2.721 | J8: 2.765 | K8: 1.872 | L8: 3.088 | M8: 2.192
A9: RW Wind (Referenzmarktwert Wind fernsteuerbar) | B9: =B5-B7 -> 3.666 | C9: =C5-C7 -> 2.893 | D9: 2.472 | E9: 1.96 | F9: 2.221 | G9: 2.149 | H9: 2.492 | I9: 2.321 | J9: 2.365 | K9: 1.472 | L9: 2.688 | M9: 1.792
A11: MW Solar (Marktwert Solar) | B11: 5.697 | C11: 4.156 | D11: 3.077 | E11: 2.523 | F11: 2.984 | G11: 2.943 | H11: 3.23 | I11: 3.021 | J11: 3.554 | K11: 2.912 | L11: 4.297 | M11: 3.299
A12: PM Solar (Managementprämie Solar) | B12: =B6 -> 0 | C12: =$B12 -> 0 | D12: =$B12 -> 0 | E12: 0 | F12: 0 | G12: 0 | H12: 0 | I12: 0 | J12: 0 | K12: 0 | L12: 0 | M12: 0
A13: PM Solar fst. (Managementprämie Solar fernsteuerbar) | B13: =B7 -> 0.4 | C13: =$B13 -> 0.4 | D13: 0.4 | E13: 0.4 | F13: 0.4 | G13: 0.4 | H13: 0.4 | I13: 0.4 | J13: 0.4 | K13: 0.4 | L13: 0.4 | M13: 0.4
A14: RW Solar (Referenzmarktwert Solar) | B14: =B11-B12 -> 5.697 | C14: 4.156 | D14: 3.077 | E14: 2.523 | F14: 2.984 | G14: 2.943 | H14: 3.23 | I14: 3.021 | J14: 3.554 | K14: 2.912 | L14: 4.297 | M14: 3.299
A15: RW Solar (Referenzmarktwert Solar fernsteuerbar) | B15: =B11-B13 -> 5.297 | C15: 3.756 | D15: 2.677 | E15: 2.123 | F15: 2.584 | G15: 2.543 | H15: 2.83 | I15: 2.621 | J15: 3.154 | K15: 2.512 | L15: 3.897 | M15: 2.899
A17: MW steuerbar (Marktwert steuerbar) | B17: =B3 -> 5.237 | C17: 3.97 | D17: 3.17 | E17: 2.887 | F17: 3.046 | G17: 3 | H17: 3.301 | I17: 3.085 | J17: 3.435 | K17: 2.825 | L17: 4.037 | M17: 3.077
A18: PM steuerbar (Managementprämie steuerbar) | B18: 0.2 | C18: =$B18 -> 0.2 | D18: =$B18 -> 0.2 | E18: 0.2 | F18: 0.2 | G18: 0.2 | H18: 0.2 | I18: 0.2 | J18: 0.2 | K18: 0.2 | L18: 0.2 | M18: 0.2
A19: PM steuerbar (Managementprämie fernsteuerbar) | B19: =B18 -> 0.2 | C19: =$B19 -> 0.2 | D19: 0.2 | E19: 0.2 | F19: 0.2 | G19: 0.2 | H19: 0.2 | I19: 0.2 | J19: 0.2 | K19: 0.2 | L19: 0.2 | M19: 0.2
A20: RW steuerbar (Referenzmarktwert steuerbar) | B20: =B17-B18 -> 5.037 | C20: 3.77 | D20: 2.97 | E20: 2.687 | F20: 2.846 | G20: 2.8 | H20: 3.101 | I20: 2.885 | J20: 3.235 | K20: 2.625 | L20: 3.837 | M20: 2.877
A21: RW steuerbar (Referenzmarktwert steuerbar fernsteuerbar) | B21: =B17-B19 -> 5.037 | C21: 3.77 | D21: 2.97 | E21: 2.687 | F21: 2.846 | G21: 2.8 | H21: 3.101 | I21: 2.885 | J21: 3.235 | K21: 2.625 | L21: 3.837 | M21: 2.877
A25: Legende:
A26: erfasste Daten
A27: berechnete Daten

Sheet Erläuterungen Kategorien (hidden)
A1: Erläuterungen zur EEG-Vergütungskategorientabelle bis einschl. Inbetriebnahmejahr 2011
A2: Informationen zu den Vergütungskategorien auf der gemeinsamen Internetseite der vier Übertragungsnetzbetreiber: www.eeg-kwk.net
A3: Bedeutung der farblichen Hinterlegung der Einträge:
A4: weiß | B4: Vergütungskategorie stimmt mit bisheriger Kategorie nach EEG 2004 überein
A5: grün | B5: Vergütungskategorie bestand bereits nach EEG 2004, Vergütung wird ab 1.1.2009 erhöht
A6: gelb | B6: Vergütungskategorie ist neu nach EEG 2009
A7: orange | B7: Vergütungskategorie ist 2012/2013 neu nach EEG 2009
A8: rosa | B8: Vergütungskategorie ist 2012 neu nach EEG 2012, nur auf Anlagen mit Inbetriebnahme nach 31.12.2011 anwendbar
A9: braun | B9: Vergütungskategorie ist 2012 neu nach EEG 2012, auch auf Anlagen mit Inbetriebnahme vor 1.1.2012 anwendbar
A10: rosa / braun | B10: Vergütungskategorie ist 2012 neu nach EEG 2012, Anwendbarkeit auf Anlagen mit Inbetriebnahme vor 1.1.2012 unsicher
A11: violett | B11: Vergütungskategorie ist 2012 neu nach EEG 2012 in der am 29.06.2012 beschlossenen Fassung (sogenannte PV-Novelle)
A12: blau | B12: Vergütungskategorie ist 2013 neu nach EEG 2012 und/oder der Managementprämienverordnung (MaPrV)
A13: blassblau | B13: Vergütungskategorie ist 2013 ergänzt worden
A15: Anmerkung: | B15: Sofern eine Unterscheidung zwischen dem EEG 2012 in der vom 01.01.2012 bis 31.03.2012 geltenden alten Fassung und der ab 01.04.2012 gelten neuen Fassung erforderlich ist, ist dies durch die Verwendung von EEG 2012 a.F. bzw. EEG 2012 n.F. gekennzeichnet.
A17: Bonusregeln für Anlagen bis einschließlich Inbetriebnahmejahr 2008
A18: aus EEG 2004 und EEG 2009
A19: Bonusregel a1: (§ 8 Abs. 2 Satz 1 EEG 2004) in Höhe von 6,0 ct/kWh für den Anteil der eingespeisten Wirkarbeit bis einschließlich 500 kW
A21: Bonusregel a2: (§ 8 Abs. 2 Satz 1 EEG 2004) in Höhe von 4,0 ct/kWh für den Anteil der eingespeisten Wirkarbeit oberhalb von 500 kW bis einschließlich 5 MW
A23: Bonusregeln a1 und a2 jeweils bei Anlagen mit ausschließlichem Einsatz von Biomasse aus: (a) Pflanzen oder Pflanzenbestandteilen ohne Aufbereitung im Sinne von § 8 Abs. 2 Satz 1 Nr. 1 EEG, (b) Gülle und Schlempe im Sinne von § 8 Abs. 2 Satz 1 Nr. 1 EEG oder (c) Stoffgemisch aus (a) und (b) sofern ein Tagebuch über den ausschließlichen Einsatz dieser Stoffe geführt wird oder eine Genehmigung der Anlage für den ausschließlichen Einsatz dieser Stoffe vorliegt, sowie keine Biomasseanlagen auf demselben Gelände betrieben werden, in denen Strom aus sonstigen Stoffen gewonnen wird.
A25: Bonusregel a3: (§ 8 Abs. 2 Satz 2 EEG 2004) in Höhe von 2,5 ct/kWh bei Verbrennung von Holz für den Anteil oberhalb von 500 kW bis einschließlich 5 MW.
A27: Weitere Nawaro-Bonusregeln G, M1, M2, L, X1, X2: siehe Erläuterungen unten für Inbetriebnahmejahre ab 2009.
A29: Bonusregel b: (§ 8 Abs. 4 EEG 2004) in Höhe von 2,0 ct/kWh für Anlagen, die auch in Kraft-Wärmekopplung betrieben werden, bei ausschließlicher Verwendung von Biomasse gemäß Biomasseverordnung und Umwandlung der Biomasse durch thermochemische Vergasung oder Trockenfermentation oder Aufarbeitung des Biogases auf Erdgasqualität oder Erzeugung des Stroms mittels Brennstoffzelle, Gasturbine, Dampfmotoren, Organic-Rankine-Anlagen, Mehrstoffgemisch-Anlagen (u.a. Kalina-Cycle-Anlagen) bzw. Stirling-Motoren für den Anteil bis einschließlich 5 MW.
A31: KWK-Bonusregeln (KWK, KA3, K09, K10, K11 und K12): Bonus KWK (§ 8 Abs. 3 EEG 2004) in Höhe von 2,0 ct/kWh bei ausschließlicher Verwendung von Biomasse gemäß Biomasseverordnung für Anlagen, die KWK-Anlage gemäß FW 308 sind und dies entsprechend nachweisen. Die Bonusregel gilt nur für den KWK-Anteil des erzeugten elektrischen Stroms. Bonus K09, K10, K11 und K12 (§ 66 Abs. 1 Nr. 3 Satz 1 EEG 2009): Für Biomasseanlagen, die vor dem 01.01.2009 in Betrieb genommen wurden und die nach dem 31.12.2008 erstmals in Kraft-Wärme-Kopplung nach Maßgabe der Anlage 3 zum EEG 2009 betrieben wurden, beträgt der KWK-Bonus 3,00 ct/kWh bei erstmaligem KWK-Betrieb in 2009 (Bonus K09), 2,97 ct/kWh bei erstmaligem KWK-Betrieb in 2010 (Bonus K10), 2,94 ct/kWh bei erstmaligem KWK-Betrieb in 2011 (Bonus K11) und 2,91 ct/kWh bei erstmaligem KWK-Betrieb in 2012 (Bonus K12). Bonus KA3 (§ 66 Abs. 1 Nr. 3 Satz 2 EEG 2009): Für Strom aus sonstigen Biomasseanlagen mit Inbetriebnahme vor dem 01.01.2009, der in Kraft-Wärme-Kopplung nach Maßgabe der Anlage 3 zum EEG 2009 erzeugt worden ist, beträgt der KWK-Bonus bis einschließlich einer Leistung von 500 Kilowatt 3,0 ct/kWh.
A33: Bonusregel y: (§ 66 Abs.1 Nr. 4a EEG 2009) Strom aus Biomasseanlagen bis zu einer Anlagenleistung von 500 KW, die Biogas einsetzen, erhalten eine um 1,0 ct/kWh höhere Vergütung, wenn entsprechende Formaldehydgrenzwerte nach TA Luft eingehalten werden (Bonus y).
A35: Bonusregel S: (§ 66 Abs. 1 Nr. 6 EEG 2009) Windenergieanlagen, die nach dem 31.12.2001 und vor dem 01.01.2009 in Betrieb genommen worden sind, erhalten einen Systemdienstleistungsbonus von 0,7 ct/kWh, wenn sie infolge einer Nachrüstung vor dem 01.01.2011 die Anforderungen der Verordnung nach § 64 Abs. 1 Nr. 1 EEG 2009 erstmals einhalten.
A38: Bonusregeln für Anlagen mit Inbetriebnahmejahr 2009, 2010, 2011, 2012
A39: aus EEG 2009
F40: Bonushöhe
A41: Bonusbezeichnung | B41: Beschreibung | C41: Einschränkung | D41: gesetzliche Norm | F41: IB in 2009 | G41: IB in 2010 | H41: IB in 2011 | I41: IB in 2012
A42: Immissionsbonus | C42: Biomasse
A43: i | B43: Immissionsschutzrechtlich genehmigte Anlagen | C43: < 0,5 MW | D43: § 27 Abs. 5 EEG | F43: 1 | G43: 0.99 | H43: 0.98
A45: Technologiebonus | C45: Deponiegas, Klärgas, Grubengas (nur t3), Biomasse
A46: t1 | B46: Technologiebonus Gasaufbereitung; | C46: < 5 MW, 0-350 Normkubikmeter pro Std. | D46: § 27 Abs. 4 Satz 1 Nr. 1 EEG; Anlage 1 Punkt I., 2a | F46: 2 | G46: 1,98 (Biom.) 1,97 (Gase) | H46: 1,96 (Biom.) 1,94 (Gase)
A47: t2 | B47: Technologiebonus Gasaufbereitung; | C47: < 5 MW, 350-700 Normkubikmeter pro Std. | D47: § 27 Abs. 4 Satz 1 Nr. 1 EEG; Anlage 1 Punkt I., 2b | F47: 1 | G47: 0.99 | H47: 0,98 (Biom.) 0,97 (Gase)
A48: t3 | B48: Technonogiebonus Innovative Anlagentechnik | C48: < 5 MW | D48: § 27 Abs. 4 Satz 1 Nr. 1 EEG; Anlage 1 Punkt II., 2 | F48: 2 | G48: 1,98 (Biom.) 1,97 (Gase) | H48: 1,96 (Biom.) 1,94 (Gase) | I48: 1,94 (Biom.)
A50: Nawarobonus | C50: Biomasse
A51: a1 | B51: Nawarobonus_allgemein | C51: <0,5 MW | D51: § 27 Abs. 4 Satz 1 Nr. 2 EEG; Anlage 2 Punkt VI., 1a (1) | F51: 6 | G51: 5.94 | H51: 5.88 | I51: 5.82
A52: a2 | B52: Nawarobonus_allgemein | C52: 0,5-5 MW | D52: § 27 Abs. 4 Satz 1 Nr. 2 EEG; Anlage 2 Punkt VI., 1a (2) | F52: 4 | G52: 3.96 | H52: 3.92 | I52: 3.88
A53: ah | B53: Nawarobonus_allgemein | C53: 0,5-5 MW; Einschränkung Holz | D53: § 27 Abs. 4 Satz 1 Nr. 2 EEG; Anlage 2 Punkt VI., 1b | F53: 2.5 | G53: 2.48 | H53: 2.45 | I53: 2.43
A55: G | B55: Nawarobonus_Biogas | C55: <0,5 MW; | D55: § 27 Abs. 4 Satz 1 Nr. 2 EEG; Anlage 2 Punkt VI., 2a | F55: 7 | G55: 6.93 | H55: 6.86
A56: M1 | B56: Nawarobonus_Biogas | C56: 0-0,150 MW; Gülleanteil > 30 % | D56: § 27 Abs. 4 Satz 1 Nr. 2 EEG; Anlage 2 Punkt VI., 2b (1) | F56: 11 | G56: 10.89 | H56: 10.78
A57: M2 | B57: Nawarobonus_Biogas | C57: 0,150-0,5 MW; Gülleanteil > 30 % | D57: § 27 Abs. 4 Satz 1 Nr. 2 EEG; Anlage 2 Punkt VI., 2b (2) | F57: 8 | G57: 7.92 | H57: 7.84
A59: L | B59: Nawarobonus_Biogas | C59: 0-0,5 MW; Landschaftspflege | D59: § 27 Abs. 4 Satz 1 Nr. 2 EEG; Anlage 2 Punkt VI., 2c | F59: 9 | G59: 8.91 | H59: 8.82
A60: X1 | B60: Nawarobonus_Biogas | C60: 0-0,150 MW; Landschaftspflege; Gülleanteil > 30 % | D60: § 27 Abs. 4 Satz 1 Nr. 2 EEG; Anlage 2 Punkt VI., 2b (1) und Punkt VI., 2c (Kombination aus Bonus M1 und Bonus L) | F60: 13 | G60: 12.87 | H60: 12.74
A61: X2 | B61: Nawarobonus_Biogas | C61: 0,150-0,5 MW; Landschaftspflege; Gülleanteil > 30 % | D61: § 27 Abs. 4 Satz 1 Nr. 2 EEG; Anlage 2 Punkt VI., 2b (2) und Punkt VI., 2c (Kombination aus Bonus M2 und Bonus L) | F61: 10 | G61: 9.9 | H61: 9.8
A63: KWK-Bonus | C63: Biomasse
A64: K | B64: KWK-Bonus | C64: Anteil KWK-Strom | D64: § 27 Abs. 4 Satz 1 Nr. 3 EEG | F64: 3 | G64: 2.97 | H64: 2.94 | I64: 2.91
A66: Wärmenutzungs-bonus | C66: Geothermie
A67: W | B67: Wärmenutzungsbonus | D67: § 28 Abs. 2 EEG; Anlage 4 | F67: 3 | G67: 2.97 | H67: 2.94
A69: Bonus für Einsatz petrothermaler Technik | C69: Geothermie
A70: P | B70: Bonus petrothermale Technik | D70: § 28 Abs. 3 EEG | F70: 4 | G70: 3.96 | H70: 3.92
A72: Systemdienst-leistungsbonus | C72: Wind
A73: S | B73: Systemdienstleistungs-bonus | D73: § 29 Abs. 2 EEG | F73: 0.5 | G73: 0.5 | H73: 0.49
A78: Hinweise zu den Bezeichnungen der Vergütungskategorien
A79: vgl. auch: Umsetzungshilfe zum EEG 2009, Version 1.1 vom 01.12.2009, Anhang 3, online unter http://www.bdew.de/bdew.nsf/id/DE_EEG-Verfahrensbeschreibun_und_-Umsetzungshilfen
A81: 1. Biomasseanlagen mit Inbetriebnahme bis Ende 2003
A82: und alle anderen Anlagen mit Inbetriebnahme bis Juli 2004
A83: Stellen 1-2: | B83: Energieart:
B84: Wa = Wasser,
B85: Bi = Biomasse,
B86: Ga = Deponie-, Klär- und Grubengas
B87: Ge = Geothermie
B88: Wi = Wind
B89: So = Solarenergie
A90: Stelle 3: | B90: „K“ für Kategorie
A91: Stelle 4 | B91: relevanter Paragraph aus dem EEG 2000:
B92: 4 für Wasserkraft sowie Deponie-, Klär- und Grubengas
B93: 5 für Biomasse
B94: 6 für Geothermie
B95: 7 für Windenergie
B96: 8 für Solarenergie
A97: Stelle 5 | B97: fortlaufende Nummer (i.d.R. entsprechende(r) Satz/ Ziffer innerhalb des Paragraphen) zur Angabe der jeweiligen Vergütungszone
A98: Stelle 6 | B98: „n“ bei Biomasseanlagen für die Vergütungszone 0-150 kW
B99: „a“ sonst
A100: Stellen 7-12 (Biomasse) | B100: Angabe der Bonusregelungen:
B101: Die Kürzel für die gewährten Vergütungsboni werden in den Stellen 7 bis 12 nach und nach in folgender Reihenfolge eingeführt:
B102: 1. NaWaRo-Bonus (a1, a2, a3, G, M1, M2, L, X1 oder X2)
B103: 2. KWK-Bonus (KWK, KA3 oder K09)
B104: 3. Formaldehyd-Bonus (y)
B105: Alle 3 Bonustypen sind – unter Beachtung der verschiedenen Geltungsbereiche (Vergütungszonen) – miteinander kombinierbar.
B106: Weitere, noch freie Stellen werden mit Minuszeichen aufgefüllt.
A107: Stellen 7-12 (außer Biomasse) | B107: Minuszeichen
A108: Stellen 13 bis 14: | B108: Inbetriebnahmejahr (2-stellig)
A111: 2. Biomasseanlagen des Inbetriebnahmezeitraums Januar 2004 bis Ende 2008
A112: und alle anderen Anlagen des Inbetriebnahmezeitraums August 2004 bis Ende 2008
A113: Stellen 1-2: | B113: Energieart (vgl. oben)
A114: Stelle 3: | B114: „K“ für Kategorie
A115: Stelle 4 (Wa, Ga, Bi, Ge) bzw. 4-5 (Wind, Solar) | B115: relevanter Paragraph aus dem EEG 2004:
B116: 6 für Wasserkraft
B117: 7 für Deponie-, Klär- und Grubengas
B118: 8 für Biomasse
B119: 9 für Geothermie
B120: 10 für Windenergie
B121: 11 für Solarenergie
A122: Stelle 5 (Wa, Ga, Bi, Ge) bzw. 6 (Wind, Solar) | B122: fortlaufende Nummer (i.d.R. entsprechende(r) Satz/ Ziffer innerhalb des Paragraphen zur Angabe der einzelnen Vergütungszone
B123: bzw. zur Darstellung weiterer vergütungsrelevanter Angaben:
B124: a) Zuschlag bei Gasen nach EEG 2004
B125: b) Wind: Unterscheidung zwischen Anfangs- und Endvergütung
B126: c) Solarenergie: Fassadenbonus
A127: Stellen 6 bis 12 (Biomasse) | B127: Angabe der Vergütungsboni bei Biomasseanlagen
B128: Die Kürzel für die gewährten Vergütungsboni werden in den Stellen 6 bis 12 nach und nach in folgender Reihenfolge eingeführt:
B129: 1. NaWaRo-Bonus (a1, a2, a3, G, M1, M2, L, X1 oder X2)
B130: 2. Technologiebonus (b)
B131: 3. Formaldehyd-Bonus (y)
B132: 4. KWK-Bonus (KWK, KA3, K09, K10, K11 oder K12)
B133: Alle 4 Bonustypen sind – unter Beachtung der verschiedenen Geltungsbereiche (Vergütungszonen) – miteinander kombinierbar.
B134: Freie Stellen bis Stelle 12 werden mit Minuszeichen aufgefüllt.
A135: Stellen 6 bis 7 (Geothermie) | B135: Angabe der Vergütungsboni bei Geothermieanlagen :
B136: Die Kürzel für die gewährten Vergütungsboni werden in den Stellen 6 bis 7 in folgender Reihenfolge eingeführt:
B137: 1. Wärmenutzungs-Bonus (W)
B138: 2. Bonus für petrothermale Techniken (P)
B139: Die Bonustypen sind miteinander kombinierbar.
B140: Freie Stellen bis Stelle 12 werden mit Minuszeichen aufgefüllt.
A141: Stelle 7 (Windenergie) | B141: Angabe des Systemdienstleistungs-Bonus (SDL-Bonus):
B142: „S“ bei Vorliegen der Voraussetzungen für den SDL-Bonus
B143: Alle weiteren Stellen bis Stelle 12 werden mit Minuszeichen aufgefüllt
A144: Stellen 13 bis 14: | B144: Inbetriebnahmejahr (2-stellig)
A147: 3. Anlagen mit Vergütung nach EEG 2009
A148: Stellen 1-2: | B148: Energieart:
B149: Wa = Wasser,
B150: Bi = Biomasse,
B151: De = Deponiegas (ab Inbetriebnahmejahr 2009)
B152: Kl = Klärgas (ab Inbetriebnahmejahr 2009)
B153: Gr = Grubengas (ab Inbetriebnahmejahr 2009)
B154: Ge = Geothermie
B155: Wn = Wind onshore (ab Inbetriebnahmejahr 2009)
B156: Wr = Wind Repowering (ab Inbetriebnahmejahr 2009)
B157: Wf = Wind offshore (ab Inbetriebnahmejahr 2009)
B158: So = Solarenergie-Freiflächenanlagen
B159: Sg = Solarenergie an oder auf Gebäuden (ab Inbetriebnahmejahr 2009)
A160: Stelle 3: | B160: „K“ für Kategorie
A161: Stellen 4-5 | B161: relevanter Paragraph aus dem EEG 2009:
B162: 23 für Wasserkraft
B163: 24 für Deponiegas
B164: 25 für Klärgas
B165: 26 für Grubengas
B166: 27 für Biomasse
B167: 28 für Geothermie
B168: 29 für Windenergie an Land
B169: 30 für Windenergie an Land Repowering
B170: 31 für Windenergie offshore
B171: 32 für Solarenergie (Freiflächenanlagen)
B172: 33 für Solarenergie an oder auf Gebäuden
A173: Stelle 6 | B173: fortlaufende Nummer (i.d.R. entsprechende(r) Satz/ Ziffer innerhalb des Paragraphen) zur Darstellung der jeweiligen Vergütungszone
B174: oder anderer vergütungsrelevanter Angaben:
B175: a) Wasserkraft: modernisierte Anlage oder Neubau
B176: b) Windenergie: Anfangs- oder Endvergütung
B177: c) Solarenergie: „normale“ Vergütung oder Eigenverbrauch
A178: Stelle 7-8 (Biomasse) | B178: Angabe der Vergütungsboni:
B179: Die Kürzel für die gewährten Vergütungsboni werden in den Stellen 7 bis 12 nach und nach in folgender Reihenfolge eingeführt:
B180: 1. Technologiebonus (t1, t2, t3)
B181: 2. NaWaRo-Bonus (a1, a2, ah, G, M1, M2, L, X1 oder X2)
B182: 3. Formaldehyd-Bonus (i)
B183: 4. KWK-Bonus (K)
B184: Alle 4 Bonustypen sind – unter Beachtung der verschiedenen Geltungsbereiche (Vergütungszonen) – miteinander kombinierbar.
A185: Stellen 7-8 (Geothermie) | B185: Angabe der Vergütungsboni:
B186: Die Kürzel für die gewährten Vergütungsboni werden in den Stellen 7 bis 8 in folgender Reihenfolge eingeführt:
B187: 1. Wärmenutzungs-Bonus (W)
B188: 2. Bonus für petrothermale Techniken (P)
B189: Die Bonustypen sind miteinander kombinierbar.
A190: Stelle 7 (Windenergie) | B190: Angabe des Systemdienstleistungs-Bonus (SDL-Bonus):
B191: „S“ bei Vorliegen der Voraussetzungen für den SDL-Bonus
A192: Stellen 7-8 (Solar) | B192: Angabe zum Solarstrom-Selbstverbrauch in Stelle 7:
B193: "1" - fiktive Einspeisung des selbstverbrauchten Stroms
B194: "2" - fiktive Rückspeisung des selbstverbrauchten Stroms, ggf. nur Anteil bis zu 30 % der Gesamterzeugung der Anlage im Kalenderjahr
B195: "3" - fiktive Rückspeisung des selbstverbrauchten Stroms über 30 % der Gesamterzeugung der Anlage im Kalenderjahr
B196: In Stelle 8 wird die Leistungsstufe (0 … 30 kW, 30 … 100 kW und 100 … 500 kW) unterschieden.
A197: Stellen 7-12 | B197: "BS" (teilweise nur "B") für Bestandsschutz: Durch Übergangsbestimmungen geregelter Investitionsschutz des Weitergeltens von Vergütungen
A198: Alle weiteren Stellen bis Stelle 12 werden mit Minuszeichen aufgefüllt, Ausnahmen:
B199: - unterjährig einsetzende neue Vergütungssätze (bei Photovoltaikanlagen ab Juli, September oder Oktober): Monatsangaben in den Stellen 10 bis 12
B200: - "BS" (teilweise nur "B") für Bestandsschutz: Durch Übergangsbestimmungen geregelter Investitionsschutz des Weitergeltens von Vergütungen
A201: Stellen 13 bis 14: | B201: Inbetriebnahmejahr (2-stellig)
A204: 4. Anlagen mit Vergütung nach EEG 2012
A205: Stellen 1-2: | B205: Energieart:
B206: Wa = Wasser,
B207: Bi = Biomasse,
B208: Ga = Deponie-, Klär- oder Grubengas (bis Inbetriebnahmejahr 2008)
B209: De = Deponiegas (ab Inbetriebnahmejahr 2009)
B210: Kl = Klärgas (ab Inbetriebnahmejahr 2009)
B211: Gr = Grubengas (ab Inbetriebnahmejahr 2009)
B212: Ge = Geothermie
B213: Wi = Wind (bis Inbetriebnahmejahr 2008)
B214: Wn = Wind onshore (ab Inbetriebnahmejahr 2009)
B215: Wr = Wind Repowering (ab Inbetriebnahmejahr 2009)
B216: Wf = Wind offshore (ab Inbetriebnahmejahr 2009)
B217: So = Solarenergie-Freiflächenanlagen (auch an oder auf Gebäuden bis Inbetriebnahmejahr 2008)
B218: Sg = Solarenergie an oder auf Gebäuden (ab Inbetriebnahmejahr 2009)
A219: Stelle 3: | B219: „K“ für Kategorie
A220: Stellen 4-5, teils 4-6 | B220: relevanter Paragraph aus dem EEG 2012:
B221: 17 für Verringerung des Vergütungsanspruchs (alle Energieträger)
B222: 23 für Wasserkraft
B223: 24 für Deponiegas
B224: 25 für Klärgas
B225: 26 für Grubengas
B226: 27 für Biomasse
B227: 27a für Vergärung von Bioabfällen (Energieträger Biomasse)
B228: 27b für Vergärung von Gülle (Energieträger Biomasse)
B229: 28 für Geothermie
B230: 29 für Windenergie an Land
B231: 30 für Windenergie an Land Repowering
... 74 more rows

Sheet Beispiel Solarstromeigenverbr. (hidden)
A1: Beispiel für den Solarstrom-Eigenverbrauch einer PV-Anlage
A3: Photovoltaikanlage an oder auf Gebäude, Inbetriebnahme im Juli 2010
A4: elektrische Leistung: 200 kW
A5: Von der gesamten im Kalenderjahr erzeugten Strommenge von 200.000 kWh werden zeitgleich 80.000 kWh nach § 33 Abs. 2 EEG selbst verbraucht.
A7: 1. Aufteilung auf die Leistungszonen
A9: Bei Photovoltaikanlagen erfolgt die Aufteilung der Einspeisung auf die Leistungszone entsprechend der installierten Leistung.
A11: Der Leistungszone 0-30 kW werden zugerechnet:
A12: 30 / 200 = 15 % der erzeugten und selbstverbrauchten Strommenge
B13: Gesamterzeugung: | D13: 30.000 kWh
B14: Selbstverbrauch: | D14: 12.000 kWh
B15: davon | C15: bis 30 % Gesamterzeugung: | D15: 9.000 kWh
C16: über 30 % Gesamterzeugung: | D16: 3.000 kWh
B17: Einspeisung ins Netz: | D17: 18.000 kWh
A19: Der Leistungszone 30-100 kW werden zugerechnet:
A20: 70 / 200 = 35 % der erzeugten und selbstverbrauchten Strommenge
B21: Gesamterzeugung: | D21: 70.000 kWh
B22: Selbstverbrauch: | D22: 28.000 kWh
B23: davon | C23: bis 30 % Gesamterzeugung: | D23: 21.000 kWh
C24: über 30 % Gesamterzeugung: | D24: 7.000 kWh
B25: Einspeisung ins Netz: | D25: 42.000 kWh
A27: Der Leistungszone 100-1000 kW werden zugerechnet:
A28: Rest: 100 / 200 = 50 % der erzeugten und selbstverbrauchten Strommenge
B29: Gesamterzeugung: | D29: 100.000 kWh
B30: Selbstverbrauch: | D30: 40.000 kWh
B31: davon | C31: bis 30 % Gesamterzeugung: | D31: 30.000 kWh
C32: über 30 % Gesamterzeugung: | D32: 10.000 kWh
B33: Einspeisung ins Netz: | D33: 60.000 kWh
A36: 2. Vergütungskategorien
A38: Aus diesen Angaben ergibt sich folgende Aufteilung der gesamten EEG-Strommenge auf die Vergütungskategorien:
A40: Vergütungskategorie | B40: Vergütungssatz der Vergütungskategorie | D40: Strommenge, die der jeweiligen Kategorie zugerechnet wird | F40: Vergütung | H40: Beschreibung der Vergütungskategorie
B41: (ct/kWh) | D41: (kWh) | F41: (Euro)
A43: SgK330---Jul10 | B43: 34.05 | D43: 18000 | F43: =D43*B43/100 -> 6129 | H43: 0-30 KW
A44: SgK33410-Jul10 | B44: 34.05 | D44: 12000 | F44: 4086 | H44: 0-30 KW, selbstverbrauchte Erzeugung
A45: SgK33420-Jul10 | B45: 16.38 | D45: -9000 | F45: -1474.2 | H45: 0-30 KW, Rückvergütung für Selbstverbrauch bis 30% der Gesamterzeugung der Anlage
A46: SgK33430-Jul10 | B46: 12 | D46: -3000 | F46: -360 | H46: 0-30 KW, Rückvergütung für Selbstverbrauch über 30% der Gesamterzeugung der Anlage
A47: SgK331---Jul10 | B47: 32.39 | D47: 42000 | F47: 13603.8 | H47: 30-100 KW
A48: SgK33411-Jul10 | B48: 32.39 | D48: 28000 | F48: 9069.2 | H48: 30-100 KW, selbstverbrauchte Erzeugung
A49: SgK33421-Jul10 | B49: 16.38 | D49: -21000 | F49: -3439.8 | H49: 30-100 KW, Rückvergütung für Selbstverbrauch bis 30% der Gesamterzeugung der Anlage
A50: SgK33431-Jul10 | B50: 12 | D50: -7000 | F50: -840 | H50: 30-100 KW, Rückvergütung für Selbstverbrauch über 30% der Gesamterzeugung der Anlage
A51: SgK332---Jul10 | B51: 30.65 | D51: 60000 | F51: 18390 | H51: 100 KW-1 MW
A52: SgK33412-Jul10 | B52: 30.65 | D52: 40000 | F52: 12260 | H52: 100-500 KW, selbstverbrauchte Erzeugung
A53: SgK33422-Jul10 | B53: 16.38 | D53: -30000 | F53: -4914 | H53: 100-500 KW, Rückvergütung für Selbstverbrauch bis 30% der Gesamterzeugung der Anlage
A54: SgK33432-Jul10 | B54: 12 | D54: -10000 | F54: -1200 | H54: 100-500 KW, Rückvergütung für Selbstverbrauch über 30% der Gesamterzeugung der Anlage
A56: Summe | D56: =SUM(D43:D54) -> 120000 | F56: =SUM(F43:F54) -> 51310
A58: Die summierte Strommenge von 120.000 kWh entspricht der tatsächlichen Netzeinspeisung.
A59: Diese Strommenge ist bei der Berechnung der vermiedenen Netzentgelte zugrunde zu legen.
A60: Das heißt, dass für den selbst verbrauchten Strom (im Beispiel 80.000 kWh) keine vermiedenen Netzentgelte berechnet werden.
A63: 3. Berechnung der vermiedenen Netzentgelte:
A65: Erfolgt die Einspeisung z.B. in Spannungsebene 5 (Mittelspannung), so werden die vermiedenen Netzentgelte in die vNNE-Kategorie
A66: der Spannungsebene 5 eingetragen:
A67: Sg-vNNe--SpE05
A69: Die Höhe der vermiedenen Netzentgelte bemisst sich allerdings nach den Netzentgelten (Leistungsanteil und Arbeitsanteil) der
A70: Spannungsebene, in der durch die EEG-Einspeisung Netznutzung vermieden wird.
A71: In der Regel ist dies die Netz- bzw. Umspannebene, die der Einspeiseebene direkt vorgelagert ist - in diesem Beispiel wäre demnach
A72: das Netzentgelt der Ebene 4 (HS/MS) für die Berechnung der vermiedenen Netzentgelte maßgeblich.

Sheet Beispiel Biomasseanlage (hidden)
A1: Beispiel für die Einordnung einer EEG-Anlage in die zutreffenden EEG-Vergütungskategorien
A3: Biomasseanlage, Inbetriebnahme in 2006
A4: elektrische Leistung: 400 kW
A5: Stromerzeugung erfolgt zu 30% in KWK-Betrieb, Anforderungen der Anlage 3 zum EEG werden erfüllt
A6: Die Anlage hat Anspruch auf den allgemeinen NaWaRo-Bonus a1
A8: Berechnung der EEG-Vergütung in 2009:
A10: 1. Berechnung der Leistung nach § 18 Abs. 2 EEG, die für die Aufteilung in die Vergütungszonen relevant ist ("Bemessungsleistung"):
A12: EEG-Strom-Erzeugung in 2009: | D12: W2009 = | E12: 3285000 | F12: kWh
A14: Anzahl der Stunden des Jahres 2009: | D14: n2009 = | E14: 8760 | F14: h
A16: Anzahl der Stunden von Jahresbeginn 2009 bis zur erstmaligen
A17: Erzeugung von Strom aus Erneuerbaren Energien | D17: n2009,vorEEGErzeugung = | E17: 0 | F17: h
A19: Anzahl der Stunden im Jahr 2009 von der endgültigen
A20: Stilllegung bis zum Ende des Kalenderjahres 2009: | D20: n2009,nachStillegung = | E20: 0 | F20: h
A22: Bemessungsleistung PB,i nach § 18 Abs. 2 EEG: | D22: PB,2009 = | E22: =E12/(E14-E17-E20) -> 375 | F22: kW
A24: Formel für PB,i allgemein (vgl. EEG-Verfahrensbeschreibung):
A31: 2. Aufteilung der Stromerzeugung auf die Vergütungskategorien:
A33: zu beachten: | B33: 1. Aufteilung auf die Leistungszonen 0-150 kW und 150-500 kW
B34: 2. Aufteilung zwischen KWK-Anteil und Nicht-KWK-Anteil
A36: Der Leistungszone 0-150 kW werden zugerechnet:
A37: 150 / 375 = 40 % der erzeugten Strommenge
A38: davon entfallen | B38: 70 % auf den Nicht-KWK-Anteil und
B39: 30 % auf den KWK-Anteil
A41: Der Leistungszone 150-500 kW werden zugerechnet:
A42: (375-150) / 375 = 60 % der erzeugten Strommenge
A43: davon entfallen | B43: 70 % auf den Nicht-KWK-Anteil und
B44: 30 % auf den KWK-Anteil
A47: Aus diesen Angaben ergibt sich folgende Aufteilung der gesamten EEG-Strommenge auf die Vergütungskategorien:
A49: Vergütungskategorie | B49: Anteil der gesamten Strom-erzeugung, der der jeweilig. Kategorie zugerechnet wird | D49: Strommenge, die der jeweiligen Kategorie zugerechnet wird | F49: Vergütungssatz der Vergütungskategorie | G49: Vergütung
E50: (kWh) | F50: (ct/kWh) | G50: (Euro)
A52: BiK81a1-----06 | B52: 40% * 70% = | C52: =0.4*0.7 -> 0.28 | D52: 28% von 3.285.000 = | E52: =C52*E$12 -> 919800 | F52: 17.67 | G52: =E52*F52/100 -> 162528.66
A53: BiK81a1KA3--06 | B53: 40% * 30% = | C53: =0.4*0.3 -> 0.12 | D53: 12% von 3.285.000 = | E53: =C53*E$12 -> 394200 | F53: 20.67 | G53: =E53*F53/100 -> 81481.14
A54: BiK82a1-----06 | B54: 60% * 70% = | C54: =0.6*0.7 -> 0.42 | D54: 42% von 3.285.000 = | E54: =C54*E$12 -> 1379700 | F54: 15.6 | G54: =E54*F54/100 -> 215233.2
A55: BiK82a1KA3--06 | B55: 60% * 30% = | C55: =0.6*0.3 -> 0.18 | D55: 18% von 3.285.000 = | E55: =C55*E$12 -> 591300 | F55: 18.6 | G55: =E55*F55/100 -> 109981.8
A57: Summe | C57: =SUM(C52:C55) -> 1 | E57: =SUM(E52:E55) -> 3285000 | G57: =SUM(G52:G55) -> 569224.8
A60: In Formelschreibweise lässt sich die Vergütungsberechnung für 2009 in diesem Beispiel wie folgt darstellen:
A75: = 162.528,66 Euro + 81.481.14 Euro + 215.233,20 Euro + 109.981,80 Euro
A77: = 569.224,80 Euro
A82: 3. Berechnung der vermiedenen Netzentgelte:
A84: Erfolgt die Einspeisung z.B. in Spannungsebene 5 (Mittelspannung), so werden die vermiedenen Netzentgelte in die vNNE-Kategorie
A85: der Spannungsebene 5 eingetragen:
A86: Bi-vNNe--SpE05
A88: Die Höhe der vermiedenen Netzentgelte bemisst sich allerdings nach den Netzentgelten (Leistungsanteil und Arbeitsanteil) der
A89: Spannungsebene, in der durch die EEG-Einspeisung Netznutzung vermieden wird.
A90: In der Regel ist dies die Netz- bzw. Umspannebene, die der Einspeiseebene direkt vorgelagert ist - in diesem Beispiel wäre demnach
A91: das Netzentgelt der Ebene 4 (HS/MS) für die Berechnung der vermiedenen Netzentgelte maßgeblich.

Sheet Konfiguration (hidden)
A1: Energieträger | B1: Typ | C1: Erlaubt in Stammdaten ? | D1: Code | E1: ShortCode | G1: Spannungsebenen | I1: Code | L1: Einspeisemanagement | M1: Code | N1: Erlaubt in Auswahl ? | P1: Bundesländer | Q1: Code | S1: Buchungstypen | U1: Prüfungsschritt/Fehlernummer: | V1: Fehlerbeschreibung | W1: Anlagenschlüssel (sofern möglich) | X1: Zeile (bei Schritt 1 u. 2) | Y1: Tabellenblatt (nur bei Schritt 1 und 2) | Z1: Spalte (nur bei Schritt 2, sofern möglich) | AC1: Inbetriebnahmejahre | AD1: Von | AE1: Bis | AG1: SORT_KEY | AH1: TYP | AI1: EEG_Kategorien | AJ1: VEG | AK1: VEG_KONTROLLE | AL1: VIN_Kontrolle | AM1: VIN | AN1: Leistungsgrenze Von | AO1: Leistungsgrenze Bis | AP1: Ergänzende Infos | AQ1: TEC-Bonus | AR1: KWK-Bonus | AS1: RV-Anteil | AT1: KWK | AU1: Anfangs (A) bzw. Endvergütung (Bei Wind) oder SV-kategorie (Sv) o. Spanungsebene (bei vNNE) o. nur Negative Vergütung (NegVerg) oder nur gegen Nachweis (NACHWEIS) oder Modernisierung (MOD) oder Marktintegrationsmodell (MIM/MIMA) oder Bemessungsleistung (BEM) oder Flexibilitätszuschalg (FLZ) oder Bezugsmonat bei DV oder Bedingung (PotMIM) für MIM bzw. Auschlusskriterium für MIM (NotMIM) | AV1: Vergütungssatz | AW1: Ausfallvergütung | AX1: anz-wert | AY1: mieterstromzuschlag | AZ1: Fernsteuerbar | BC1: MPM-Auswahl | BF1: AV-Ausswahl | BI1: MS-Ausswahl | BK1: Erläuterung der 3 Prüfungsschritte: | BZ1: Legende zu Gründen für die nachträgliche Korrekturen nach § 62 EEG 2017 | CA1: ausführliche Gründe | CC1: Ausnahmen | CE1: Ausnahmen vNE | CG1: ID | CH1: Kennung | CI1: Diskriminator | CJ1: Unternehmen | CK1: BNetzA-Nr | CO1: Gütefaktor | CP1: Korrekturfaktor
A2: Wasser | B2: Wasserkraft | C2: Ja | D2: Wasser | E2: Wa | G2: HöS | H2: keine gültige Spannungsebene | I2: HOES | J2: - | L2: Nicht regelbar | M2: nr | N2: Ja | P2: Baden-Württemberg | Q2: BW | S2: BIL | AC2: Inbetriebnahme 01.01. bis 31.07.2004 | AD2: 2004-01-01 | AE2: 2004-07-31 | AG2: 1 | AH2: EEG | AI2: WaK41a------01 | AJ2: Wasser | AK2: =VLOOKUP(AJ2,ENERGIETRAEGER,1,FALSE) -> Wasser | AL2: =IF(AM2<>"",VLOOKUP(AM2,VIN,1,FALSE),"") -> Inbetriebnahme bis 2001 | AM2: Inbetriebnahme bis 2001 | AP2: 0-0,5 MW | AV2: 7.67 | AW2: 6.14 | AX2: 7.67 | BB2: EEG | BC2: WaK41a------01 | BE2: EEG | BF2: WaK41a------01 | BH2: EEG | BI2: SgK4820--Jul17 | BK2: Schritt 1 von 3 (Stammdatenprüfung): | BL2: Prüfung der Stammdaten (Tabellenblatt "Stammdaten") auf Vollständigkeit und Gültigkeit | BZ2: 1a | CA2: 1 a) Rückforderungen mit Abwicklung auf Grund von § 57 Abs. 5 EEG 2017 (§62 Abs. 1 Nr. 1 EEG 2017) | CC2: Volllaststunden | CE2: Abweichender Arbeitsanteil | CG2: 12166 | CH2: ALBSTADT_VNB | CI2: N/A | CJ2: Albstadtwerke GmbH | CK2: 10001350 | CO2: 0 | CP2: 1.29
A3: Biomasse | B3: Biomasse | C3: Ja | D3: Biomasse | E3: Bi | G3: Hös/HS | H3: Spannungsebene: HöS | I3: HSHOES | J3: HOES | L3: regelbar nach § 9 Abs. 1 EEG 2014 | M3: P61 | N3: Ja | P3: Bayern | Q3: BY | S3: BIP | AC3: Inbetriebnahme 01-03/2012 | AD3: 2012-01-01 | AE3: 2012-03-31 | AG3: =AG2+1 -> 2 | AH3: EEG | AI3: WaK42a------01 | AJ3: Wasser | AK3: Wasser | AL3: Inbetriebnahme bis 2001 | AM3: Inbetriebnahme bis 2001 | AP3: 0,5-5 MW | AV3: 6.65 | AW3: 5.32 | AX3: 6.65 | BB3: EEG | BC3: WaK42a------01 | BE3: EEG | BF3: WaK42a------01 | BH3: EEG | BI3: SgK4821--Jul17 | BK3: Schritt 2a von 3 (Bewegungsdatenprüfung ohne Marktprämie): | BL3: Prüfung der Angaben in den Tabellenblättern "Einspeisevergütung_Sonst", "Ausfallvermarktung", "Nachträgliche Korrekturen", "Eigenversorgung" und "vNE" auf Vollständigkeit und Gültigkeit (nur möglich, wenn die Stammdatenprüfung ohne Fehler durchlaufen wurde) | BZ3: 1b | CA3: 1 b) Rückforderungen, die in einem vollstreckbaren Titel mit dem ÜNB berücksichtigt werden (§62 Abs. 1 Nr. 6 EEG 2017) | CC3: Fehlende Bewegungsdaten | CE3: Abweichender Leistungsanteil | CG3: 12002 | CH3: ALBWERK_GEISLINGEN_VNB | CI3: N/A | CJ3: Albwerk GmbH & Co. KG | CK3: 10000414 | CL3: =EXACT(CK3,CK2) -> FALSE | CO3: 70 | CP3: 1.29
A4: Geothermie | B4: Geothermie | C4: Ja | D4: Geothermie | E4: Ge | G4: HS | H4: Spannungsebene: Hös/HS | I4: HS | J4: HSHOES | L4: regelbar nach § 9 Abs. 2 EEG 2014 | M4: P62 | N4: Ja | P4: Hessen | Q4: HE | S4: GAL | AC4: Inbetriebnahme 01-06/2010 | AD4: 2010-01-01 | AE4: 2010-06-30 | AG4: =AG3+1 -> 3 | AH4: EEG | AI4: WaK41a------02 | AJ4: Wasser | AK4: Wasser | AL4: Inbetriebnahme 2002 | AM4: Inbetriebnahme 2002 | AP4: 0-0,5 MW | AV4: 7.67 | AW4: 6.14 | AX4: 7.67 | BB4: EEG | BC4: WaK41a------02 | BE4: EEG | BF4: WaK41a------02 | BH4: EEG | BI4: SgK4822--Jul17 | BK4: Schritt 2b von 3 (Bewegungsdatenprüfung für Marktprämie): | BL4: Prüfung der Angaben zur Direktvermarktung vom Typ Marktprämie (Tabellenblätter "MPM_anzulegender_Wert" und "MPM_Monatswerte") auf Vollständigkeit und Gültigkeit (nur möglich, wenn die Stammdatenprüfung ohne Fehler durchlaufen wurde) | BZ4: 2 | CA4: 2. rechtskräftige Gerichtsentscheidungen im Hauptsacheverfahren (§ 62 Abs. 1 Nr. 2 EEG 2017) | CC4: Aufteilung des Selbstverbrauchs | CE4: Abweichender Arbeitsanteil / Abweichender Leistungsanteil | CG4: 12425 | CH4: BADEN_REBLAND_VNB | CI4: N/A | CJ4: Baden-Baden Rebland | CK4: 10000831 | CL4: FALSE | CO4: 80 | CP4: 1.16
A5: Wind | B5: Windenergie an Land | C5: Ja | D5: Wind | E5: Wi | G5: HS/MS | H5: Spannungsebene: HS | I5: MSHS | J5: HS | L5: 70%-Begrenzung | M5: 70P | N5: Ja | P5: Rheinland-Pfalz | Q5: RP | S5: GAP | AC5: Inbetriebnahme 01-07/2004 | AD5: 2004-01-01 | AE5: 2004-07-31 | AG5: 4 | AH5: EEG | AI5: WaK42a------02 | AJ5: Wasser | AK5: Wasser | AL5: Inbetriebnahme 2002 | AM5: Inbetriebnahme 2002 | AP5: 0,5-5 MW | AV5: 6.65 | AW5: 5.32 | AX5: 6.65 | BB5: EEG | BC5: WaK42a------02 | BE5: EEG | BF5: WaK42a------02 | BH5: EEG | BI5: SgK4820--Aug17 | BK5: Schritt 3 von 3 (abschließende Prüfung) | BL5: Prüfung der Gesamtergebnisse auf Plausibilität und Vollständigkeit (nur möglich, wenn alle vorherigen Prüfungsschritte ohne Fehler durchlaufen wurden) | BZ5: 3 | CA5: 3. Übermittlung und Abgleich von Daten nach § 73 Abs. 5 EEG 2017 (§62 Abs. 1 Nr. 3 EEG 2017) | CC5: Volllaststunden u. Aufteilung des Selbstverbrauchs | CG5: 12490 | CH5: EWARISS_VNB | CI5: N/A | CJ5: e.wa riss Netze GmbH | CK5: 10003099 | CL5: FALSE | CO5: 90 | CP5: 1.07
A6: Solar | B6: Solare Strahlungsenergie | C6: Ja | D6: Solar | E6: So | G6: MS | H6: Spannungsebene: HS/MS | I6: MS | J6: MSHS | L6: regelbar nach § 6 Abs. 1 EEG 2012 | M6: P61 | N6: Ja | S6: GEL | AC6: Inbetriebnahme 04/2012 | AD6: 2012-04-01 | AE6: 2012-04-30 | AG6: 5 | AH6: EEG | AI6: WaK41a------03 | AJ6: Wasser | AK6: Wasser | AL6: Inbetriebnahme 2003 | AM6: Inbetriebnahme 2003 | AP6: 0-0,5 MW | AV6: 7.67 | AW6: 6.14 | AX6: 7.67 | BB6: EEG | BC6: WaK41a------03 | BE6: EEG | BF6: WaK41a------03 | BH6: EEG | BI6: SgK4821--Aug17 | BZ6: 4 | CA6: 4. Verfahren bei der Clearingstelle nach § 81 EEG 2017 (§ 62 Abs. 1 Nr. 4 EEG 2017) | CC6: Flexibilitätsprämie | CG6: 12556 | CH6: ENERGIEDIENST_NETZE_VNB | CI6: N/A | CJ6: ED Netze GmbH | CK6: 10001411 | CL6: FALSE | CO6: 100 | CP6: 1
A7: Solar/Gebäude | B7: Solare Strahlungsenergie | C7: Ja | D7: SolarGebaeude | E7: Sg | G7: MS/NS | H7: Spannungsebene: MS | I7: NSMS | J7: MS | L7: regelbar nach § 6 Abs. 2 EEG 2012 | M7: P62 | N7: Ja | S7: GEP | AC7: Inbetriebnahme 04-06/2012 | AD7: 2012-04-01 | AE7: 2012-06-30 | AG7: 6 | AH7: EEG | AI7: WaK42a------03 | AJ7: Wasser | AK7: Wasser | AL7: Inbetriebnahme 2003 | AM7: Inbetriebnahme 2003 | AP7: 0,5-5 MW | AV7: 6.65 | AW7: 5.32 | AX7: 6.65 | BB7: EEG | BC7: WaK42a------03 | BE7: EEG | BF7: WaK42a------03 | BH7: EEG | BI7: SgK4822--Aug17 | BZ7: 5 | CA7: 5. Entscheidungen der Bundesnetzagentur nach § 85 EEG 2017 (§ 62 Abs. 1 Nr. 5 EEG 2017) | CC7: Volllaststunden und Flexibilitätsprämie | CG7: 12018 | CH7: EGT_VNB | CI7: N/A | CJ7: EGT Energie GmbH | CK7: 10001370 | CL7: FALSE | CO7: 110 | CP7: 0.94
A8: Deponiegas | B8: Deponie-, Klär-, Grubengas | C8: Ja | D8: Deponiegas | E8: De | G8: NS | H8: Spannungsebene: MS/NS | I8: NS | J8: NSMS | L8: regelbar nach § 9 Abs. 1 EEG 2017 | M8: P61 | N8: Ja | S8: SOL | AC8: Inbetriebnahme 05/2012 | AD8: 2012-05-01 | AE8: 2012-05-31 | AG8: 7 | AH8: EEG | AI8: WaK41a------04 | AJ8: Wasser | AK8: Wasser | AL8: Inbetriebnahme 01-07/2004 | AM8: Inbetriebnahme 01-07/2004 | AP8: 0-0,5 MW | AV8: 7.67 | AW8: 6.14 | AX8: 7.67 | BB8: EEG | BC8: WaK41a------04 | BE8: EEG | BF8: WaK41a------04 | BH8: EEG | BI8: SgK4820--Sep17 | BZ8: 6 | CA8: 6 a) vollstreckbarer Titel mit Anlagenbetreiber, der erst nach der Abrechnung nach § 58 Abs. 1 EEG 2017 ergangen ist (§ 62 Abs. 1 Nr. 6 EEG 2017) | CC8: Marktintegrationsmodell | CG8: 12273 | CH8: EHINGER ENERGIE_VNB | CI8: N/A | CJ8: Ehinger Energie GmbH & Co. KG | CK8: 10000849 | CL8: FALSE | CO8: 120 | CP8: 0.89
A9: Klärgas | B9: Deponie-, Klär-, Grubengas | C9: Ja | D9: Klaergas | E9: Kl | L9: regelbar nach § 9 Abs. 2 EEG 2017 | M9: P62 | N9: Ja | S9: SOP | AC9: Inbetriebnahme 06/2012 | AD9: 2012-06-01 | AE9: 2012-06-30 | AG9: 8 | AH9: EEG | AI9: WaK42a------04 | AJ9: Wasser | AK9: Wasser | AL9: Inbetriebnahme 01-07/2004 | AM9: Inbetriebnahme 01-07/2004 | AP9: 0,5-5 MW | AV9: 6.65 | AW9: 5.32 | AX9: 6.65 | BB9: EEG | BC9: WaK42a------04 | BE9: EEG | BF9: WaK42a------04 | BH9: EEG | BI9: SgK4821--Sep17 | BZ9: 7 | CA9: 6 b) vollstreckbarer Titel mit ÜNB erforderlich | CC9: Volllaststunden u. Marktintegrationsmodell | CG9: 12022 | CH9: EG_HAUINGEN_VNB | CI9: N/A | CJ9: Elektrizitäts-Genossenschaft Hauingen e.G. | CK9: 10000071 | CL9: FALSE | CO9: 130 | CP9: 0.85
A10: Grubengas | B10: Deponie-, Klär-, Grubengas | C10: Ja | D10: Grubengas | E10: Gr | L10: regelbar nach § 9 Abs. 1 | M10: P61 | N10: Ja | S10: SOT | AC10: Inbetriebnahme 07/2012 | AD10: 2012-07-01 | AE10: 2012-07-31 | AG10: 9 | AH10: EEG | AI10: WaK61-------04 | AJ10: Wasser | AK10: Wasser | AL10: Inbetriebnahme 08-12/2004 | AM10: Inbetriebnahme 08-12/2004 | AP10: 0-0,5 MW | AV10: 9.67 | AW10: 7.74 | AX10: 9.67 | BB10: EEG | BC10: WaK61-------04 | BE10: EEG | BF10: WaK61-------04 | BH10: EEG | BI10: SgK4822--Sep17 | BZ10: 7a | CA10: 7. Zahlungen, die nach §26 Abs. 2 EEG 2017 zu einem späteren Zeitpunkt fällig geworden sind (§ 62 Abs. 1 Nr. 7 EEG 2017) | CC10: Volllaststunden u. Marktintegrationsmodell bei < 10kWp (implizit angenommen) | CG10: 12431 | CH10: RÖTHENBACH_VNB | CI10: N/A | CJ10: Elektrizitäts-Genossenschaft Röthenbach eG | CK10: 10000118 | CL10: FALSE | CO10: 140 | CP10: 0.81
A11: Wind onshore | B11: Windenergie an Land | C11: Ja | D11: WindOnshore | E11: Wn | L11: regelbar nach § 9 Abs. 2 | M11: P62 | N11: Ja | S11: WNL | AC11: Inbetriebnahme 07-09/2010 | AD11: 2010-07-01 | AE11: 2010-09-30 | AG11: 10 | AH11: EEG | AI11: WaK62-------04 | AJ11: Wasser | AK11: Wasser | AL11: Inbetriebnahme 08-12/2004 | AM11: Inbetriebnahme 08-12/2004 | AP11: 0,5-5 MW | AV11: 6.65 | AW11: 5.32 | AX11: 6.65 | BB11: EEG | BC11: WaK62-------04 | BE11: EEG | BF11: WaK62-------04 | BH11: EEG | BI11: SgK4820--Okt17 | BZ11: 8a | CA11: 8 a) Nachträgliche finanzielle Förderung aufgrund einer Übergangsbestimmung: Erfolgte Meldung nach §71 Nr. 1 EEG 2017, unterlassene Meldung im Anlagenregister (§100 Abs. 1 Satz 5 i.V.m. §52 Abs. 3 EEG 2017) | CC11: Marktintegrationsmodell bei < 10kWp (implizit angenommen) | CG11: 12269 | CH11: VKW_VNB | CI11: N/A | CJ11: Elektrizitätsnetze Allgäu GmbH | CK11: 10001685 | CL11: FALSE | CO11: 150 | CP11: 0.79
A12: Wind Repowering | B12: Windenergie an Land | C12: Ja | D12: WindRepowering | E12: Wr | S12: WNP | AC12: Inbetriebnahme 08/2012 | AD12: 2012-08-01 | AE12: 2012-08-31 | AG12: 11 | AH12: EEG | AI12: WaK63-------04 | AJ12: Wasser | AK12: Wasser | AL12: Inbetriebnahme 08-12/2004 | AM12: Inbetriebnahme 08-12/2004 | AP12: >5 MW , Zubau 0-0,5 MW | AV12: 7.67 | AW12: 6.14 | AX12: 7.67 | BB12: EEG | BC12: WaK63-------04 | BE12: EEG | BF12: WaK63-------04 | BH12: EEG | BI12: SgK4821--Okt17 | BZ12: 8b | CA12: 8 b) Nachträgliche finanzielle Förderung aufgrund einer Übergangsbestimmung: Bestandschutz für Biomasseanlagen mit Baugenehmigung vor dem 23.01.2014 (§100 Abs. 4 Satz 2 ggf. i.V.m. §50b Satz 4 EEG 2017) | CG12: 12023 | CH12: AACH_VNB | CI12: N/A | CJ12: Elektrizitätswerk Aach eG | CK12: 10000190 | CL12: FALSE | CO12: 999999999999999 | CP12: 0.79
A13: Deponie-,Klär-,Grubengas | B13: Deponie-, Klär-, Grubengas | C13: Nein | D13: Gas | E13: Ga | S13: WAL | AC13: Inbetriebnahme 08-12/2004 | AD13: 2004-08-01 | AE13: 2004-12-31 | AG13: 12 | AH13: EEG | AI13: WaK64-------04 | AJ13: Wasser | AK13: Wasser | AL13: Inbetriebnahme 08-12/2004 | AM13: Inbetriebnahme 08-12/2004 | AP13: >5 MW , Zubau 0,5-10 MW | AV13: 6.65 | AW13: 5.32 | AX13: 6.65 | BB13: EEG | BC13: WaK64-------04 | BE13: EEG | BF13: WaK64-------04 | BH13: EEG | BI13: SgK4822--Okt17 | CG13: 13295 | CH13: EBT_VNB | CI13: N/A | CJ13: Elektrizitätswerk Braunsbach - Tullau GmbH (EBT) | CK13: 10001599 | CL13: FALSE
S14: WAP | AC14: Inbetriebnahme 09/2012 | AD14: 2012-09-01 | AE14: 2012-09-30 | AG14: 13 | AH14: EEG | AI14: WaK65-------04 | AJ14: Wasser | AK14: Wasser | AL14: Inbetriebnahme 08-12/2004 | AM14: Inbetriebnahme 08-12/2004 | AP14: >5 MW , Zubau 10-20 MW | AV14: 6.1 | AW14: 4.88 | AX14: 6.1 | BB14: EEG | BC14: WaK65-------04 | BE14: EEG | BF14: WaK65-------04 | BH14: EEG | BI14: SgK4820--Nov17 | CG14: 31314 | CH14: SCHAFFHAUSEN_VNB | CI14: alt | CJ14: Elektrizitätswerk des Kantons Schaffhausen AG | CK14: 10001486 | CL14: FALSE
G15: SV | H15: Code | I15: Erlaubt in Auswahl ? | AC15: Inbetriebnahme 10/2012 | AD15: 2012-10-01 | AE15: 2012-10-31 | AG15: 14 | AH15: EEG | AI15: WaK66-------04 | AJ15: Wasser | AK15: Wasser | AL15: Inbetriebnahme 08-12/2004 | AM15: Inbetriebnahme 08-12/2004 | AP15: >5 MW , Zubau 20-50 MW | AV15: 4.56 | AW15: 3.65 | AX15: 4.56 | BB15: EEG | BC15: WaK66-------04 | BE15: EEG | BF15: WaK66-------04 | BH15: EEG | BI15: SgK4821--Nov17 | CG15: 12031 | CH15: KANDERN_VNB | CI15: N/A | CJ15: Elektrizitätswerk Kandern Bissinger GmbH | CK15: 10000082 | CL15: =EXACT(CK15,#REF!) -> 
G16: Nein | H16: NEIN | I16: Ja | AC16: Inbetriebnahme 10-12/2010 | AD16: 2010-10-01 | AE16: 2010-12-31 | AG16: 15 | AH16: EEG | AI16: WaK67-------04 | AJ16: Wasser | AK16: Wasser | AL16: Inbetriebnahme 08-12/2004 | AM16: Inbetriebnahme 08-12/2004 | AP16: >5 MW , Zubau 50-150 MW | AV16: 3.7 | AW16: 2.96 | AX16: 3.7 | BB16: EEG | BC16: WaK67-------04 | BE16: EEG | BF16: WaK67-------04 | BH16: EEG | BI16: SgK4822--Nov17 | CG16: 12038 | CH16: LEY_VNB | CI16: N/A | CJ16: Elektrizitätswerk Ley | CK16: 10000358 | CL16: =EXACT(CK16,CK15) -> FALSE
A17: EV-Anlagenarten | B17: Code | C17: DB-Code | G17: Ja (keine Belieferung Dritter) | H17: JA_OHNE_DRITTBELIEFERUNG | I17: Ja | AC17: Inbetriebnahme 11/2012 | AD17: 2012-11-01 | AE17: 2012-11-30 | AG17: 16 | AH17: EEG | AI17: WaK61-------05 | AJ17: Wasser | AK17: Wasser | AL17: Inbetriebnahme 2005 | AM17: Inbetriebnahme 2005 | AP17: 0-0,5 MW | AV17: 9.67 | AW17: 7.74 | AX17: 9.67 | BB17: EEG | BC17: WaK61-------05 | BE17: EEG | BF17: WaK61-------05 | BH17: EEG | BI17: SgK4820--Dez17 | CG17: 12429 | CH17: OTTENHÖFEN_MOSER_VNB | CI17: N/A | CJ17: Elektrizitätswerk Ottenhöfen Moser GmbH & Co. KG | CK17: 10001348 | CL17: FALSE
A18: EEG-Anlage | B18: EEG | C18: EEG | G18: Ja (mit Belieferung Dritter) | H18: JA_MIT_DRITTBELIEFERUNG | I18: Ja | AC18: Inbetriebnahme 12/2012 | AD18: 2012-12-01 | AE18: 2012-12-31 | AG18: 17 | AH18: EEG | AI18: WaK62-------05 | AJ18: Wasser | AK18: Wasser | AL18: Inbetriebnahme 2005 | AM18: Inbetriebnahme 2005 | AP18: 0,5-5 MW | AV18: 6.65 | AW18: 5.32 | AX18: 6.65 | BB18: EEG | BC18: WaK62-------05 | BE18: EEG | BF18: WaK62-------05 | BH18: EEG | BI18: SgK4821--Dez17 | CG18: 12125 | CH18: TULLAU_VNB | CI18: N/A | CJ18: Elektrizitätswerk Tullau GmbH | CK18: 10001600 | CL18: FALSE
A19: KWK-Anlage i.S.v. § 61b Nr. 2 EEG | B19: KWK | C19: HEKWK | G19: Ja (Lieferkonstellation unbekannt) | H19: JA_UNBEKANNT | I19: Ja | AC19: Inbetriebnahme 01/2013 | AD19: 2013-01-01 | AE19: 2013-01-31 | AG19: 18 | AH19: EEG | AI19: WaK63-------05 | AJ19: Wasser | AK19: Wasser | AL19: Inbetriebnahme 2005 | AM19: Inbetriebnahme 2005 | AP19: >5 MW , Zubau 0-0,5 MW | AV19: 7.59 | AW19: 6.07 | AX19: 7.59 | BB19: EEG | BC19: WaK63-------05 | BE19: EEG | BF19: WaK63-------05 | BH19: EEG | BI19: SgK4822--Dez17 | CG19: 12043 | CH19: WENNENMÜHLE_VNB | CI19: N/A | CJ19: Elektrizitätswerk Wennenmühle Schörger KG | CK19: 10001066 | CL19: FALSE
A20: sonstige KWK-Anlage | B20: KONV | C20: SOKWK | AC20: Inbetriebnahme 02/2013 | AD20: 2013-02-01 | AE20: 2013-02-28 | AG20: 19 | AH20: EEG | AI20: WaK64-------05 | AJ20: Wasser | AK20: Wasser | AL20: Inbetriebnahme 2005 | AM20: Inbetriebnahme 2005 | AP20: >5 MW , Zubau 0,5-10 MW | AV20: 6.58 | AW20: 5.26 | AX20: 6.58 | BB20: EEG | BC20: WaK64-------05 | BE20: EEG | BF20: WaK64-------05 | BH20: EEG | BI20: SgK4820--Jan18 | CG20: 12039 | CH20: SCHÖNAU_VNB | CI20: N/A | CJ20: Elektrizitätswerke Schönau Netze GmbH | CK20: 10000256 | CL20: FALSE
A21: konventionelle Anlage | B21: KONV | C21: KONV | G21: Ja | AC21: Inbetriebnahme 03/2013 | AD21: 2013-03-01 | AE21: 2013-03-31 | AG21: 20 | AH21: EEG | AI21: WaK65-------05 | AJ21: Wasser | AK21: Wasser | AL21: Inbetriebnahme 2005 | AM21: Inbetriebnahme 2005 | AP21: >5 MW , Zubau 10-20 MW | AV21: 6.04 | AW21: 4.83 | AX21: 6.04 | BB21: EEG | BC21: WaK65-------05 | BE21: EEG | BF21: WaK65-------05 | BH21: EEG | BI21: SgK4821--Jan18 | CG21: 12024 | CH21: TRÜCK_VNB | CI21: N/A | CJ21: Elektro-Trück GmbH | CK21: 10002968 | CL21: FALSE
A22: sonstige Stromerzeugungsanlage | B22: KONV | C22: SOANL | G22: Nein | AC22: Inbetriebnahme 04/2013 | AD22: 2013-04-01 | AE22: 2013-04-30 | AG22: 21 | AH22: EEG | AI22: WaK66-------05 | AJ22: Wasser | AK22: Wasser | AL22: Inbetriebnahme 2005 | AM22: Inbetriebnahme 2005 | AP22: >5 MW , Zubau 20-50 MW | AV22: 4.51 | AW22: 3.61 | AX22: 4.51 | BB22: EEG | BC22: WaK66-------05 | BE22: EEG | BF22: WaK66-------05 | BH22: EEG | BI22: SgK4822--Jan18 | CG22: 12458 | CH22: eneRegio_VNB | CI22: N/A | CJ22: eneREGIO GmbH | CK22: 10000480 | CL22: FALSE
AC23: Inbetriebnahme 05/2013 | AD23: 2013-05-01 | AE23: 2013-05-31 | AG23: 22 | AH23: EEG | AI23: WaK67-------05 | AJ23: Wasser | AK23: Wasser | AL23: Inbetriebnahme 2005 | AM23: Inbetriebnahme 2005 | AP23: >5 MW , Zubau 50-150 MW | AV23: 3.66 | AW23: 2.93 | AX23: 3.66 | BB23: EEG | BC23: WaK67-------05 | BE23: EEG | BF23: WaK67-------05 | BH23: EEG | BI23: SgK4820--Feb18 | CG23: 12095 | CH23: BITZ_VNB | CI23: N/A | CJ23: Energie und Wasserversorgung Bitz GmbH | CK23: 10001352 | CL23: FALSE
AC24: Inbetriebnahme 06/2013 | AD24: 2013-06-01 | AE24: 2013-06-30 | AG24: 23 | AH24: EEG | AI24: WaK61-------06 | AJ24: Wasser | AK24: Wasser | AL24: Inbetriebnahme 2006 | AM24: Inbetriebnahme 2006 | AP24: 0-0,5 MW | AV24: 9.67 | AW24: 7.74 | AX24: 9.67 | BB24: EEG | BC24: WaK61-------06 | BE24: EEG | BF24: WaK61-------06 | BH24: EEG | BI24: SgK4821--Feb18 | BZ24: Legende zu Gründen für die nachträgliche Korrekturen der Eigenversorgung | CA24: ausführliche Gründe | CG24: 12059 | CH24: BRUCHSAL_VNB | CI24: N/A | CJ24: Energie- und Wasserversorgung Bruchsal GmbH (ewb) | CK24: 10001144 | CL24: FALSE
AC25: Inbetriebnahme 07/2013 | AD25: 2013-07-01 | AE25: 2013-07-31 | AG25: 24 | AH25: EEG | AI25: WaK62-------06 | AJ25: Wasser | AK25: Wasser | AL25: Inbetriebnahme 2006 | AM25: Inbetriebnahme 2006 | AP25: 0,5-5 MW | AV25: 6.65 | AW25: 5.32 | AX25: 6.65 | BB25: EEG | BC25: WaK62-------06 | BE25: EEG | BF25: WaK62-------06 | BH25: EEG | BI25: SgK4822--Feb18 | BZ25: EV10 | CA25: Nachträglich von Eigenversorgern erhaltene EEG-Umlage für in Vorjahren gemeldete EEG-umlagepflichtige Strommengen | CG25: 12101 | CH25: KIRCHZARTEN_VNB | CI25: N/A | CJ25: Energie- und Wasserversorgung Kirchzarten GmbH | CK25: 10000658 | CL25: FALSE
A26: Umlagen | B26: Code EEG | C26: Code KWK | D26: Code KONV | E26: Code NON-EEG | F26: Preis | G26: Preis Vorjahr | H26: Verdichtung | AC26: Inbetriebnahme 08/2013 | AD26: 2013-08-01 | AE26: 2013-08-31 | AG26: 25 | AH26: EEG | AI26: WaK63-------06 | AJ26: Wasser | AK26: Wasser | AL26: Inbetriebnahme 2006 | AM26: Inbetriebnahme 2006 | AP26: >5 MW, Zubau 0-0,5 MW | AV26: 7.51 | AW26: 6.01 | AX26: 7.51 | BB26: EEG | BC26: WaK63-------06 | BE26: EEG | BF26: WaK63-------06 | BH26: EEG | BI26: SgK4820--Mrz18 | BZ26: EV20 | CA26: Nachträgliche Korrekturen von Eigenversorgern nach § 61 Abs. 3 i.V.m § 62 Abs. 2 EEG 2017 | CG26: 12109 | CH26: UNTERKIRNACH_VNB | CI26: N/A | CJ26: Energie-Gesellschaft Unterkirnach mbH | CK26: 10001570 | CL26: FALSE
A27: EV6111-EEG-RED | B27: EV6111-EEG-RED | C27: INVALID | D27: INVALID | E27: INVALID | F27: 2.752 | G27: 2.2239 | H27: 40% der EEG-Umlage | AC27: Inbetriebnahme 09/2013 | AD27: 2013-09-01 | AE27: 2013-09-30 | AG27: 26 | AH27: EEG | AI27: WaK64-------06 | AJ27: Wasser | AK27: Wasser | AL27: Inbetriebnahme 2006 | AM27: Inbetriebnahme 2006 | AP27: >5 MW, Zubau 0,5-10 MW | AV27: 6.51 | AW27: 5.21 | AX27: 6.51 | BB27: EEG | BC27: WaK64-------06 | BE27: EEG | BF27: WaK64-------06 | BH27: EEG | BI27: SgK4821--Mrz18 | CG27: 31158 | CH27: EV_FILSTAL_VNB | CI27: N/A | CJ27: Energieversorgung Filstal GmbH & Co. KG | CK27: 10003890 | CL27: FALSE
A28: EV6111NEEG-RED | B28: INVALID | C28: EV6111NEEG-RED | D28: INVALID | E28: INVALID | F28: 2.752 | G28: 2.2239 | H28: 40% der EEG-Umlage | AC28: Inbetriebnahme 10/2013 | AD28: 2013-10-01 | AE28: 2013-10-31 | AG28: 27 | AH28: EEG | AI28: WaK65-------06 | AJ28: Wasser | AK28: Wasser | AL28: Inbetriebnahme 2006 | AM28: Inbetriebnahme 2006 | AP28: >5 MW , Zubau 10-20 MW | AV28: 5.98 | AW28: 4.78 | AX28: 5.98 | BB28: EEG | BC28: WaK65-------06 | BE28: EEG | BF28: WaK65-------06 | BH28: EEG | BI28: SgK4822--Mrz18 | CG28: 12065 | CH28: GAILDORF_VNB | CI28: N/A | CJ28: Energieversorgung Gaildorf OHG | CK28: 10001604 | CL28: FALSE
A29: EV613-4------0 | B29: EV613-4------0 | C29: EV613-4------0 | D29: EV613-4------0 | E29: EV613-4------0 | F29: 0 | G29: 0 | H29: Entfall der eine Umlage | AC29: Inbetriebnahme 11/2013 | AD29: 2013-11-01 | AE29: 2013-11-30 | AG29: 28 | AH29: EEG | AI29: WaK66-------06 | AJ29: Wasser | AK29: Wasser | AL29: Inbetriebnahme 2006 | AM29: Inbetriebnahme 2006 | AP29: >5 MW , Zubau 20-50 MW | AV29: 4.46 | AW29: 3.57 | AX29: 4.46 | BB29: EEG | BC29: WaK66-------06 | BE29: EEG | BF29: WaK66-------06 | BH29: EEG | BI29: SgK4820--Apr18 | CG29: 34906 | CH29: KLETTGAU_RHEINTAL_EV_VNB | CI29: N/A | CJ29: Energieversorgung Klettgau-Rheintal GmbH & Co. KG | CK29: 10006778 | CL29: FALSE
A30: EV611---EEG100 | B30: EV611---EEG100 | C30: INVALID | D30: INVALID | E30: INVALID | F30: 6.88 | G30: 6.354 | H30: 100% der EEG-Umlage | AC30: Inbetriebnahme 12/2013 | AD30: 2013-12-01 | AE30: 2013-12-31 | AG30: 29 | AH30: EEG | AI30: WaK67-------06 | AJ30: Wasser | AK30: Wasser | AL30: Inbetriebnahme 2006 | AM30: Inbetriebnahme 2006 | AP30: >5 MW , Zubau 50-150 MW | AV30: 3.62 | AW30: 2.9 | AX30: 3.62 | BB30: EEG | BC30: WaK67-------06 | BE30: EEG | BF30: WaK67-------06 | BH30: EEG | BI30: SgK4821--Apr18 | CG30: 12069 | CH30: SÜDBAAR_VNB | CI30: N/A | CJ30: Energieversorgung Südbaar GmbH & Co. KG | CK30: 10000223 | CL30: FALSE
A31: EV611--HKWK100 | B31: INVALID | C31: EV611--HKWK100 | D31: INVALID | E31: INVALID | F31: 6.88 | G31: 6.354 | H31: 100% der EEG-Umlage | AC31: Inbetriebnahme 01/2014 | AD31: 2014-01-01 | AE31: 2014-01-31 | AG31: 30 | AH31: EEG | AI31: WaK61-------07 | AJ31: Wasser | AK31: Wasser | AL31: Inbetriebnahme 2007 | AM31: Inbetriebnahme 2007 | AP31: 0-0,5 MW | AV31: 9.67 | AW31: 7.74 | AX31: 9.67 | BB31: EEG | BC31: WaK61-------07 | BE31: EEG | BF31: WaK61-------07 | BH31: EEG | BI31: SgK4822--Apr18 | CG31: 30843 | CH31: TITISEE_NEUSTADT_EV_VNB | CI31: N/A | CJ31: Energieversorgung Titisee-Neustadt GmbH | CK31: 10003638 | CL31: FALSE
A32: EV611--NEEG100 | B32: INVALID | C32: INVALID | D32: EV611--NEEG100 | E32: EV611--NEEG100 | F32: 6.88 | G32: 6.354 | H32: 100% der EEG-Umlage | AC32: Inbetriebnahme 02/2014 | AD32: 2014-02-01 | AE32: 2014-02-28 | AG32: 31 | AH32: EEG | AI32: WaK62-------07 | AJ32: Wasser | AK32: Wasser | AL32: Inbetriebnahme 2007 | AM32: Inbetriebnahme 2007 | AP32: 0,5-5 MW | AV32: 6.65 | AW32: 5.32 | AX32: 6.65 | BB32: EEG | BC32: WaK62-------07 | BE32: EEG | BF32: WaK62-------07 | BH32: EEG | BI32: SgK4820--Mai18 | CG32: 12229 | CH32: TROSSINGEN_VNB | CI32: N/A | CJ32: Energieversorgung Trossingen GmbH (EnTro) | CK32: 10000641 | CL32: FALSE
A33: EV61122-EEG100 | B33: EV61122-EEG100 | C33: INVALID | D33: INVALID | E33: INVALID | F33: 6.88 | G33: 6.354 | H33: 100% der EEG-Umlage | AC33: Inbetriebnahme 03/2014 | AD33: 2014-03-01 | AE33: 2014-03-31 | AG33: 32 | AH33: EEG | AI33: WaK63-------07 | AJ33: Wasser | AK33: Wasser | AL33: Inbetriebnahme 2007 | AM33: Inbetriebnahme 2007 | AP33: >5 MW , Zubau 0-0,5 MW | AV33: 7.43 | AW33: 5.94 | AX33: 7.43 | BB33: EEG | BC33: WaK63-------07 | BE33: EEG | BF33: WaK63-------07 | BH33: EEG | BI33: SgK4821--Mai18 | BZ33: Arten der Förderung | CA33: Code | CG33: 12221 | CH33: ENRW_VNB | CI33: N/A | CJ33: ENRW Energieversorgung Rottweil GmbH & Co. KG | CK33: 10001429 | CL33: FALSE
A34: EV61122NEEG100 | B34: INVALID | C34: EV61122NEEG100 | D34: EV61122NEEG100 | E34: EV61122NEEG100 | F34: 6.88 | G34: 6.354 | H34: 100% der EEG-Umlage | AC34: Inbetriebnahme 04/2014 | AD34: 2014-04-01 | AE34: 2014-04-30 | AG34: 33 | AH34: EEG | AI34: WaK64-------07 | AJ34: Wasser | AK34: Wasser | AL34: Inbetriebnahme 2007 | AM34: Inbetriebnahme 2007 | AP34: >5 MW , Zubau 0,5-10 MW | AV34: 6.44 | AW34: 5.15 | AX34: 6.44 | BB34: EEG | BC34: WaK64-------07 | BE34: EEG | BF34: WaK64-------07 | BH34: EEG | BI34: SgK4822--Mai18 | BZ34: Marktprämie | CA34: MP | CG34: 12067 | CH34: EOW_VNB | CI34: N/A | CJ34: EOW Energieversorgung Oberes Wiesental GmbH | CK34: 10000598 | CL34: FALSE
A35: EV61g2-EEG--20 | B35: EV61g2-EEG--20 | C35: INVALID | D35: INVALID | E35: INVALID | F35: 1.376 | G35: 1.2708 | H35: Erhöhung der EEG-Umlage um 20 Prozentpunkte aufgrund Sanktionierung nach § 61g Abs. 2 i.V.m. § 61a, § 61b, § 61c, § 61d EEG 2017 | AC35: Inbetriebnahme 05/2014 | AD35: 2014-05-01 | AE35: 2014-05-31 | AG35: 34 | AH35: EEG | AI35: WaK65-------07 | AJ35: Wasser | AK35: Wasser | AL35: Inbetriebnahme 2007 | AM35: Inbetriebnahme 2007 | AP35: >5 MW , Zubau 10-20 MW | AV35: 5.92 | AW35: 4.74 | AX35: 5.92 | BB35: EEG | BC35: WaK65-------07 | BE35: EEG | BF35: WaK65-------07 | BH35: EEG | BI35: SgK4820--Jun18 | BZ35: Einspeisevergütung | CA35: EEGEV | CG35: 12459 | CH35: FAIR_ENERGIE_VNB | CI35: N/A | CJ35: FairNetz GmbH | CK35: 10006804 | CL35: FALSE
A36: EV61g2-NEEG-20 | B36: INVALID | C36: EV61g2-EEG--20 | D36: EV61g2-EEG--20 | E36: EV61g2-EEG--20 | F36: 1.376 | G36: 1.2708 | H36: Erhöhung der EEG-Umlage um 20 Prozentpunkte aufgrund Sanktionierung nach § 61g Abs. 2 i.V.m. § 61a, § 61b, § 61c, § 61d EEG 2017 | AC36: Inbetriebnahme 06/2014 | AD36: 2014-06-01 | AE36: 2014-06-30 | AG36: 35 | AH36: EEG | AI36: WaK66-------07 | AJ36: Wasser | AK36: Wasser | AL36: Inbetriebnahme 2007 | AM36: Inbetriebnahme 2007 | AP36: >5 MW , Zubau 20-50 MW | AV36: 4.42 | AW36: 3.54 | AX36: 4.42 | BB36: EEG | BC36: WaK66-------07 | BE36: EEG | BF36: WaK66-------07 | BH36: EEG | BI36: SgK4821--Jun18 | BZ36: Grünstromprivileg | CA36: GSP | CG36: 12543 | CH36: FREUDENBERG_SERVICE_VNB | CI36: N/A | CJ36: Freudenberg Service KG | CK36: 10001849 | CL36: FALSE
A37: EV6124-EEG---0 | B37: EV6124-EEG---0 | C37: INVALID | D37: INVALID | E37: INVALID | F37: 0 | G37: 0 | H37: Entfall der eine Umlage | AC37: Inbetriebnahme 07/2014 | AD37: 2014-07-01 | AE37: 2014-07-31 | AG37: 36 | AH37: EEG | AI37: WaK67-------07 | AJ37: Wasser | AK37: Wasser | AL37: Inbetriebnahme 2007 | AM37: Inbetriebnahme 2007 | AP37: >5 MW , Zubau 50-150 MW | AV37: 3.58 | AW37: 2.86 | AX37: 3.58 | BB37: EEG | BC37: WaK67-------07 | BE37: EEG | BF37: WaK67-------07 | BH37: EEG | BI37: SgK4822--Jun18 | BZ37: Förderung für Flexibilität | CA37: FLEXIBILITAET | CG37: 12086 | CH37: FÜRSTLICH_WALDBURG_ZEILSCHE_HV_VNB | CI37: N/A | CJ37: Fürstl. Waldburg-Zeil`sche Hauptverwaltung | CK37: 10003163 | CL37: FALSE
A38: EV6124NEEG---0 | B38: INVALID | C38: EV6124NEEG---0 | D38: EV6124NEEG---0 | E38: EV6124NEEG---0 | F38: 0 | G38: 0 | H38: Entfall der eine Umlage | AC38: Inbetriebnahme 08/2014 | AD38: 2014-08-01 | AE38: 2014-08-31 | AG38: 37 | AH38: EEG | AI38: WaK61-------08 | AJ38: Wasser | AK38: Wasser | AL38: Inbetriebnahme 2008 | AM38: Inbetriebnahme 2008 | AP38: 0-0,5 MW | AV38: 9.67 | AW38: 7.74 | AX38: 9.67 | BB38: EEG | BC38: WaK61-------08 | BE38: EEG | BF38: WaK61-------08 | BH38: EEG | BI38: SgK4820--Jul18 | CG38: 12087 | CH38: GAMMERTINGEN_VNB | CI38: N/A | CJ38: Gammertinger Energie- u. Wasserversorgung GmbH | CK38: 10000066 | CL38: FALSE
A39: SP61k1--AUS-EV | B39: SP61k1--AUS-EV | C39: SP61k1--AUS-EV | D39: SP61k1--AUS-EV | E39: SP61k1--AUS-EV | H39: § 61k Abs. 1 EEG 2017 (von einem elektrischen, chemischen, mechanischem oder physikalischen Stromspeicher bei der Beladung verbrauchter Strom) | AC39: Inbetriebnahme 09/2014 | AD39: 2014-09-01 | AE39: 2014-09-30 | AG39: 38 | AH39: EEG | AI39: WaK62-------08 | AJ39: Wasser | AK39: Wasser | AL39: Inbetriebnahme 2008 | AM39: Inbetriebnahme 2008 | AP39: 0,5-5 MW | AV39: 6.65 | AW39: 5.32 | AX39: 6.65 | BB39: EEG | BC39: WaK62-------08 | BE39: EEG | BF39: WaK62-------08 | BH39: EEG | BI39: SgK4821--Jul18 | CG39: 12030 | CH39: HEINZELMANN_VNB | CI39: N/A | CJ39: Gebr. Heinzelmann Stromhandels- und Vertriebs-GmbH & Co. KG | CK39: 10001410 | CL39: FALSE
A40: SP61k2--AUS-EV | B40: SP61k2--AUS-EV | C40: SP61k2--AUS-EV | D40: SP61k2--AUS-EV | E40: SP61k2--AUS-EV | H40: § 61k Abs. 2 EEG 2017 (zur Erzeugung von Speichergas verbrauchter Strom) | AC40: Inbetriebnahme 10/2014 | AD40: 2014-10-01 | AE40: 2014-10-31 | AG40: 39 | AH40: EEG | AI40: WaK63-------08 | AJ40: Wasser | AK40: Wasser | AL40: Inbetriebnahme 2008 | AM40: Inbetriebnahme 2008 | AP40: >5 MW , Zubau 0-0,5 MW | AV40: 7.36 | AW40: 5.89 | AX40: 7.36 | BB40: EEG | BC40: WaK63-------08 | BE40: EEG | BF40: WaK63-------08 | BH40: EEG | BI40: SgK4822--Jul18 | CG40: 12091 | CH40: MILLER_VNB | CI40: N/A | CJ40: Gebrüder Miller GmbH & Co. KG | CK40: 10001133 | CL40: FALSE
A41: EV604-EEG-ZINS | B41: EV604-EEG-ZINS | C41: INVALID | D41: INVALID | E41: INVALID | H41: Zinsen aufgrund von § 61i Abs. 4 i.V.m. § 60 Abs. 3 EEG 2017 | AC41: Inbetriebnahme 11/2014 | AD41: 2014-11-01 | AE41: 2014-11-30 | AG41: 40 | AH41: EEG | AI41: WaK64-------08 | AJ41: Wasser | AK41: Wasser | AL41: Inbetriebnahme 2008 | AM41: Inbetriebnahme 2008 | AP41: >5 MW , Zubau 0,5-10 MW | AV41: 6.38 | AW41: 5.1 | AX41: 6.38 | BB41: EEG | BC41: WaK64-------08 | BE41: EEG | BF41: WaK64-------08 | BH41: EEG | BI41: SgK4820--Aug18 | CG41: 12093 | CH41: BAIERSBRONN_VNB | CI41: N/A | CJ41: Gemeindewerke Baiersbronn | CK41: 10001510 | CL41: FALSE
A42: EV604NEEG-ZINS | B42: INVALID | C42: EV604NEEG-ZINS | D42: EV604NEEG-ZINS | E42: EV604NEEG-ZINS | H42: Zinsen aufgrund von § 61i Abs. 4 i.V.m. § 60 Abs. 3 EEG 2017 | AC42: Inbetriebnahme 12/2014 | AD42: 2014-12-01 | AE42: 2014-12-31 | AG42: 41 | AH42: EEG | AI42: WaK65-------08 | AJ42: Wasser | AK42: Wasser | AL42: Inbetriebnahme 2008 | AM42: Inbetriebnahme 2008 | AP42: >5 MW , Zubau 10-20 MW | AV42: 5.86 | AW42: 4.69 | AX42: 5.86 | BB42: EEG | BC42: WaK65-------08 | BE42: EEG | BF42: WaK65-------08 | BH42: EEG | BI42: SgK4821--Aug18 | CG42: 12099 | CH42: HOHENTENGEN_VNB | CI42: N/A | CJ42: Gemeindewerke der Gemeinde Hohentengen | CK42: 10000805 | CL42: FALSE
AC43: Inbetriebnahme 01/2015 | AD43: 2015-01-01 | AE43: 2015-01-31 | AG43: 42 | AH43: EEG | AI43: WaK66-------08 | AJ43: Wasser | AK43: Wasser | AL43: Inbetriebnahme 2008 | AM43: Inbetriebnahme 2008 | AP43: >5 MW , Zubau 20-50 MW | AV43: 4.38 | AW43: 3.5 | AX43: 4.38 | BB43: EEG | BC43: WaK66-------08 | BE43: EEG | BF43: WaK66-------08 | BH43: EEG | BI43: SgK4822--Aug18 | CG43: 12096 | CH43: HARDT_VNB | CI43: N/A | CJ43: Gemeindewerke Hardt | CK43: 10000809 | CL43: FALSE
AC44: Inbetriebnahme 02/2015 | AD44: 2015-02-01 | AE44: 2015-02-28 | AG44: 43 | AH44: EEG | AI44: WaK67-------08 | AJ44: Wasser | AK44: Wasser | AL44: Inbetriebnahme 2008 | AM44: Inbetriebnahme 2008 | AP44: >5 MW , Zubau 50-150 MW | AV44: 3.54 | AW44: 2.83 | AX44: 3.54 | BB44: EEG | BC44: WaK67-------08 | BE44: EEG | BF44: WaK67-------08 | BH44: EEG | BI44: SgK4820--Sep18 | CG44: 12102 | CH44: KLETTGAU_VNB | CI44: N/A | CJ44: Gemeindewerke Klettgau | CK44: 10001326 | CL44: FALSE
AC45: Inbetriebnahme 03/2015 | AD45: 2015-03-01 | AE45: 2015-03-31 | AG45: 44 | AH45: EEG | AI45: WaK230------09 | AJ45: Wasser | AK45: Wasser | AL45: Inbetriebnahme 2009 | AM45: Inbetriebnahme 2009 | AP45: 0-0,5 MW, Anlage < 5 MW | AV45: 12.67 | AW45: 10.14 | AX45: 12.67 | BB45: EEG | BC45: WaK230------09 | BE45: EEG | BF45: WaK230------09 | BH45: EEG | BI45: SgK4821--Sep18 | CG45: 12103 | CH45: KRAUCHENWIES_VNB | CI45: N/A | CJ45: Gemeindewerke Krauchenwies | CK45: 10001603 | CL45: FALSE
AC46: Inbetriebnahme 04/2015 | AD46: 2015-04-01 | AE46: 2015-04-30 | AG46: 45 | AH46: EEG | AI46: WaK231------09 | AJ46: Wasser | AK46: Wasser | AL46: Inbetriebnahme 2009 | AM46: Inbetriebnahme 2009 | AP46: 0-0,5 MW, Anlage < 5 MW, Modernisierung | AU46: MOD | AV46: 11.67 | AW46: 9.34 | AX46: 11.67 | BB46: EEG | BC46: WaK231------09 | BE46: EEG | BF46: WaK231------09 | BH46: EEG | BI46: SgK4822--Sep18 | CG46: 12104 | CH46: LOTTSTETTEN_VNB | CI46: N/A | CJ46: Gemeindewerke Lottstetten | CK46: 10001437 | CL46: FALSE
AC47: Inbetriebnahme 05/2015 | AD47: 2015-05-01 | AE47: 2015-05-31 | AG47: 46 | AH47: EEG | AI47: WaK232------09 | AJ47: Wasser | AK47: Wasser | AL47: Inbetriebnahme 2009 | AM47: Inbetriebnahme 2009 | AP47: 0,5-2 MW, Anlage < 5 MW | AV47: 8.65 | AW47: 6.92 | AX47: 8.65 | BB47: EEG | BC47: WaK232------09 | BE47: EEG | BF47: WaK232------09 | BH47: EEG | BI47: SgK4820--Okt18 | CG47: 12094 | CH47: NIEFERN_ÖSCHELBRONN_VNB | CI47: N/A | CJ47: Gemeindewerke Niefern-Öschelbronn | CK47: 10001377 | CL47: FALSE
AC48: Inbetriebnahme 06/2015 | AD48: 2015-06-01 | AE48: 2015-06-30 | AG48: 47 | AH48: EEG | AI48: WaK233------09 | AJ48: Wasser | AK48: Wasser | AL48: Inbetriebnahme 2009 | AM48: Inbetriebnahme 2009 | AP48: 2-5 MW, Anlage < 5 MW | AV48: 7.65 | AW48: 6.12 | AX48: 7.65 | BB48: EEG | BC48: WaK233------09 | BE48: EEG | BF48: WaK233------09 | BH48: EEG | BI48: SgK4821--Okt18 | CG48: 12106 | CH48: SCHUTTERWALD_VNB | CI48: N/A | CJ48: Gemeindewerke Schutterwald | CK48: 10000259 | CL48: =EXACT(CK48,CK47) -> FALSE
AC49: Inbetriebnahme 07/2015 | AD49: 2015-07-01 | AE49: 2015-07-31 | AG49: 48 | AH49: EEG | AI49: WaK234------09 | AJ49: Wasser | AK49: Wasser | AL49: Inbetriebnahme 2009 | AM49: Inbetriebnahme 2009 | AP49: 0,5-5 MW, Anlage < 5 MW, Modernisierung | AU49: MOD | AV49: 8.65 | AW49: 6.92 | AX49: 8.65 | BB49: EEG | BC49: WaK234------09 | BE49: EEG | BF49: WaK234------09 | BH49: EEG | BI49: SgK4822--Okt18 | CG49: 12107 | CH49: SINZHEIM_VNB | CI49: N/A | CJ49: Gemeindewerke Sinzheim | CK49: 10000569 | CL49: FALSE
AC50: Inbetriebnahme 08/2015 | AD50: 2015-08-01 | AE50: 2015-08-31 | AG50: 49 | AH50: EEG | AI50: WaK235------09 | AJ50: Wasser | AK50: Wasser | AL50: Inbetriebnahme 2009 | AM50: Inbetriebnahme 2009 | AP50: >5 MW, Zubau 0-0,5 MW | AV50: 7.29 | AW50: 5.83 | AX50: 7.29 | BB50: EEG | BC50: WaK235------09 | BE50: EEG | BF50: WaK235------09 | BH50: EEG | BI50: SgK4820--Nov18 | CG50: 12108 | CH50: STEIßLINGEN_VNB | CI50: N/A | CJ50: Gemeindewerke Steißlingen | CK50: 10000062 | CL50: FALSE
AC51: Inbetriebnahme 09/2015 | AD51: 2015-09-01 | AE51: 2015-09-30 | AG51: 50 | AH51: EEG | AI51: WaK236------09 | AJ51: Wasser | AK51: Wasser | AL51: Inbetriebnahme 2009 | AM51: Inbetriebnahme 2009 | AP51: >5 MW, Zubau 0,5-10 MW | AV51: 6.32 | AW51: 5.06 | AX51: 6.32 | BB51: EEG | BC51: WaK236------09 | BE51: EEG | BF51: WaK236------09 | BH51: EEG | BI51: SgK4821--Nov18 | CG51: 17027 | CH51: GW_UMKIRCH_VNB | CI51: N/A | CJ51: Gemeindewerke Umkirch GmbH | CK51: 10003371 | CL51: FALSE
AC52: Inbetriebnahme 10/2015 | AD52: 2015-10-01 | AE52: 2015-10-31 | AG52: 51 | AH52: EEG | AI52: WaK237------09 | AJ52: Wasser | AK52: Wasser | AL52: Inbetriebnahme 2009 | AM52: Inbetriebnahme 2009 | AP52: >5 MW, Zubau 10-20 MW | AV52: 5.8 | AW52: 4.64 | AX52: 5.8 | BB52: EEG | BC52: WaK237------09 | BE52: EEG | BF52: WaK237------09 | BH52: EEG | BI52: SgK4822--Nov18 | CG52: 12111 | CH52: ZWIEFALTEN_VNB | CI52: N/A | CJ52: Getreidemühle Zwiefalten e.G. | CK52: 10000091 | CL52: FALSE
AC53: Inbetriebnahme 11/2015 | AD53: 2015-11-01 | AE53: 2015-11-30 | AG53: 52 | AH53: EEG | AI53: WaK238------09 | AJ53: Wasser | AK53: Wasser | AL53: Inbetriebnahme 2009 | AM53: Inbetriebnahme 2009 | AP53: >5 MW, Zubau 20-50 MW | AV53: 4.34 | AW53: 3.47 | AX53: 4.34 | BB53: EEG | BC53: WaK238------09 | BE53: EEG | BF53: WaK238------09 | BH53: EEG | BI53: SgK4820--Dez18 | CG53: 12444 | CH53: HAID_VNB | CI53: N/A | CJ53: Haid-Energie GmbH | CK53: 10002935 | CL53: FALSE
A54: Liefermonate | AC54: Inbetriebnahme 12/2015 | AD54: 2015-12-01 | AE54: 2015-12-31 | AG54: 53 | AH54: EEG | AI54: WaK239------09 | AJ54: Wasser | AK54: Wasser | AL54: Inbetriebnahme 2009 | AM54: Inbetriebnahme 2009 | AP54: >5 MW, Zubau >50 MW | AV54: 3.5 | AW54: 2.8 | AX54: 3.5 | BB54: EEG | BC54: WaK239------09 | BE54: EEG | BF54: WaK239------09 | BH54: EEG | BI54: SgK4821--Dez18 | CG54: 12753 | CH54: HELOG_VNB | CI54: N/A | CJ54: Hellenstein-Energie-Logistik GmbH | CK54: 10000359 | CL54: FALSE
A55: Januar | B55: 1 | AC55: Inbetriebnahme 2002 | AD55: 2002-01-01 | AE55: 2002-12-31 | AG55: 54 | AH55: EEG | AI55: WaK230------10 | AJ55: Wasser | AK55: Wasser | AL55: Inbetriebnahme 2010 | AM55: Inbetriebnahme 2010 | AP55: 0-0,5 MW, Anlage < 5 MW | AV55: 12.67 | AW55: 10.14 | AX55: 12.67 | BB55: EEG | BC55: WaK230------10 | BE55: EEG | BF55: WaK230------10 | BH55: EEG | BI55: SgK4822--Dez18 | CG55: 12033 | CH55: STENGLE_VNB | CI55: N/A | CJ55: Karl Stengle GmbH & Co. KG | CK55: 10001090 | CL55: FALSE
A56: Februar | B56: 2 | AC56: Inbetriebnahme 2003 | AD56: 2003-01-01 | AE56: 2003-12-31 | AG56: 55 | AH56: EEG | AI56: WaK231------10 | AJ56: Wasser | AK56: Wasser | AL56: Inbetriebnahme 2010 | AM56: Inbetriebnahme 2010 | AP56: 0-0,5 MW, Anlage < 5 MW, Modernisierung | AU56: MOD | AV56: 11.67 | AW56: 9.34 | AX56: 11.67 | BB56: EEG | BC56: WaK231------10 | BE56: EEG | BF56: WaK231------10 | CG56: 12131 | CH56: KÖHLGARTENWIESE_VNB | CI56: N/A | CJ56: Kraftwerk Köhlgartenwiese GmbH | CK56: 10001720 | CL56: FALSE
A57: März | B57: 3 | AC57: Inbetriebnahme 2004 | AD57: 2004-01-01 | AE57: 2004-12-31 | AG57: 56 | AH57: EEG | AI57: WaK232------10 | AJ57: Wasser | AK57: Wasser | AL57: Inbetriebnahme 2010 | AM57: Inbetriebnahme 2010 | AP57: 0,5-2 MW, Anlage < 5 MW | AV57: 8.65 | AW57: 6.92 | AX57: 8.65 | BB57: EEG | BC57: WaK232------10 | BE57: EEG | BF57: WaK232------10 | CG57: 12089 | CH57: OETTINGEN_VNB | CI57: N/A | CJ57: MDN Main-Donau Netzgesellschaft mbH | CK57: 10001915 | CL57: FALSE
A58: April | B58: 4 | AC58: Inbetriebnahme 2005 | AD58: 2005-01-01 | AE58: 2005-12-31 | AG58: 57 | AH58: EEG | AI58: WaK233------10 | AJ58: Wasser | AK58: Wasser | AL58: Inbetriebnahme 2010 | AM58: Inbetriebnahme 2010 | AP58: 2-5 MW, Anlage < 5 MW | AV58: 7.65 | AW58: 6.12 | AX58: 7.65 | BB58: EEG | BC58: WaK233------10 | BE58: EEG | BF58: WaK233------10 | CG58: 12041 | CH58: TAUBERRETTERSHEIM_VNB | CI58: N/A | CJ58: Müller - Mühle GmbH & Co. KG | CK58: 10000583 | CL58: FALSE
A59: Mai | B59: 5 | G59: Speicher | H59: Code | I59: Erlaubt in Auswahl ? | AC59: Inbetriebnahme 2006 | AD59: 2006-01-01 | AE59: 2006-12-31 | AG59: 58 | AH59: EEG | AI59: WaK234------10 | AJ59: Wasser | AK59: Wasser | AL59: Inbetriebnahme 2010 | AM59: Inbetriebnahme 2010 | AP59: 0,5-5 MW, Anlage < 5 MW, Modernisierung | AU59: MOD | AV59: 8.65 | AW59: 6.92 | AX59: 8.65 | BB59: EEG | BC59: WaK234------10 | BE59: EEG | BF59: WaK234------10 | CG59: 30853 | CH59: HIRSCHBERG_VIERNHEIM_VNB | CI59: N/A | CJ59: Netzbetrieb Hirschberg GmbH & Co. KG | CK59: 10006792 | CL59: FALSE
A60: Juni | B60: 6 | G60: Ja | H60: J | I60: Ja | AC60: Inbetriebnahme 2007 | AD60: 2007-01-01 | AE60: 2007-12-31 | AG60: 59 | AH60: EEG | AI60: WaK235------10 | AJ60: Wasser | AK60: Wasser | AL60: Inbetriebnahme 2010 | AM60: Inbetriebnahme 2010 | AP60: >5 MW, Zubau 0-0,5 MW | AV60: 7.22 | AW60: 5.78 | AX60: 7.22 | BB60: EEG | BC60: WaK235------10 | BE60: EEG | BF60: WaK235------10 | CG60: 12053 | CH60: ENBW_REGIONAL_VNB | CI60: N/A | CJ60: Netze BW GmbH | CK60: 10000843 | CL60: FALSE
A61: Juli | B61: 7 | G61: Nein | H61: N | I61: Ja | AC61: Inbetriebnahme 2008 | AD61: 2008-01-01 | AE61: 2008-12-31 | AG61: 60 | AH61: EEG | AI61: WaK236------10 | AJ61: Wasser | AK61: Wasser | AL61: Inbetriebnahme 2010 | AM61: Inbetriebnahme 2010 | AP61: >5 MW, Zubau 0,5-10 MW | AV61: 6.26 | AW61: 5.01 | AX61: 6.26 | BB61: EEG | BC61: WaK236------10 | BE61: EEG | BF61: WaK236------10 | CG61: 12036 | CH61: MITTELBADEN_VNB | CI61: N/A | CJ61: Netze Mittelbaden GmbH & Co. KG | CK61: 10001904 | CL61: FALSE
A62: August | B62: 8 | G62: Nicht bekannt | H62: N/A | I62: Ja | AC62: Inbetriebnahme 2009 | AD62: 2009-01-01 | AE62: 2009-12-31 | AG62: 61 | AH62: EEG | AI62: WaK237------10 | AJ62: Wasser | AK62: Wasser | AL62: Inbetriebnahme 2010 | AM62: Inbetriebnahme 2010 | AP62: >5 MW, Zubau 10-20 MW | AV62: 5.74 | AW62: 4.59 | AX62: 5.74 | BB62: EEG | BC62: WaK237------10 | BE62: EEG | BF62: WaK237------10 | CG62: 12151 | CH62: ENBW_ODR_VNB | CI62: N/A | CJ62: Netzgesellschaft Ostwürttemberg DonauRies GmbH | CK62: 10002974 | CL62: FALSE
A63: September | B63: 9 | AC63: Inbetriebnahme 2010 | AD63: 2010-01-01 | AE63: 2010-12-31 | AG63: 62 | AH63: EEG | AI63: WaK238------10 | AJ63: Wasser | AK63: Wasser | AL63: Inbetriebnahme 2010 | AM63: Inbetriebnahme 2010 | AP63: >5 MW, Zubau 20-50 MW | AV63: 4.3 | AW63: 3.44 | AX63: 4.3 | BB63: EEG | BC63: WaK238------10 | BE63: EEG | BF63: WaK238------10 | CG63: 12277 | CH63: ZEAG_VNB | CI63: N/A | CJ63: NHF Netzgesellschaft Heilbronn-Franken mbH | CK63: 10002970 | CL63: FALSE
A64: Oktober | B64: 10 | AC64: Inbetriebnahme 2011 | AD64: 2011-01-01 | AE64: 2011-12-31 | AG64: 63 | AH64: EEG | AI64: WaK239------10 | AJ64: Wasser | AK64: Wasser | AL64: Inbetriebnahme 2010 | AM64: Inbetriebnahme 2010 | AP64: >5 MW, Zubau >50 MW | AV64: 3.47 | AW64: 2.78 | AX64: 3.47 | BB64: EEG | BC64: WaK239------10 | BE64: EEG | BF64: WaK239------10 | CG64: 14049 | CH64: NHF_VNB | CI64: N/A | CJ64: NHF Netzgesellschaft Heilbronn-Franken mbH | CK64: 10003031 | CL64: FALSE
A65: November | B65: 11 | AC65: Inbetriebnahme 2012 | AD65: 2012-01-01 | AE65: 2012-12-31 | AG65: 64 | AH65: EEG | AI65: WaK230------11 | AJ65: Wasser | AK65: Wasser | AL65: Inbetriebnahme 2011 | AM65: Inbetriebnahme 2011 | AP65: 0-0,5 MW, Anlage < 5 MW | AV65: 12.67 | AW65: 10.14 | AX65: 12.67 | BB65: EEG | BC65: WaK230------11 | BE65: EEG | BF65: WaK230------11 | CG65: 30764 | CH65: ODENWALD_NETZ_VNB | CI65: N/A | CJ65: Odenwald Netzgesellschaft GmbH & Co.KG | CK65: 10003422 | CL65: FALSE
A66: Dezember | B66: 12 | AC66: Inbetriebnahme 2013 | AD66: 2013-01-01 | AE66: 2013-12-31 | AG66: 65 | AH66: EEG | AI66: WaK231------11 | AJ66: Wasser | AK66: =VLOOKUP(AJ66,ENERGIETRAEGER,1,FALSE) -> Wasser | AL66: =IF(AM66<>"",VLOOKUP(AM66,VIN,1,FALSE),"") -> Inbetriebnahme 2011 | AM66: Inbetriebnahme 2011 | AP66: 0-0,5 MW, Anlage < 5 MW, Modernisierung | AU66: MOD | AV66: 11.67 | AW66: 9.34 | AX66: 11.67 | BB66: EEG | BC66: WaK231------11 | BE66: EEG | BF66: WaK231------11 | CG66: 12156 | CH66: MAIER_EW_VNB | CI66: N/A | CJ66: Philipp Maier jr. Säge- und Elektrizitätswerk | CK66: 10001408 | CL66: =EXACT(CK66,CK65) -> FALSE
G67: EV_BILANZ | H67: Code | I67: Erlaubt in Auswahl ? | AC67: Inbetriebnahme 2014 | AD67: 2014-01-01 | AE67: 2014-12-31 | AG67: 66 | AH67: EEG | AI67: WaK232------11 | AJ67: Wasser | AK67: Wasser | AL67: Inbetriebnahme 2011 | AM67: Inbetriebnahme 2011 | AP67: 0,5-2 MW, Anlage < 5 MW | AV67: 8.65 | AW67: 6.92 | AX67: 8.65 | BB67: EEG | BC67: WaK232------11 | BE67: EEG | BF67: WaK232------11 | CG67: 30852 | CH67: LINZGAU_REGIONALNETZE_VNB | CI67: N/A | CJ67: Regionalnetze Linzgau GmbH | CK67: 10003828 | CL67: FALSE
G68: Leistungsband | H68: LEIB | I68: Ja | AC68: Inbetriebnahme 08-12/2014 | AD68: 2014-08-01 | AE68: 2014-12-31 | AG68: =AG67+1 -> 67 | AH68: EEG | AI68: WaK233------11 | AJ68: Wasser | AK68: Wasser | AL68: Inbetriebnahme 2011 | AM68: Inbetriebnahme 2011 | AP68: 2-5 MW, Anlage < 5 MW | AV68: 7.65 | AW68: 6.12 | AX68: 7.65 | BB68: EEG | BC68: WaK233------11 | BE68: EEG | BF68: WaK233------11 | CG68: 16640 | CH68: REGIONALWERK_BODENSEE_VNB | CI68: N/A | CJ68: Regionalwerk Bodensee Netze GmbH & Co. KG | CK68: 10006789 | CL68: FALSE
G69: Prozentual | H69: PROZ | I69: Ja | AC69: Inbetriebnahme 2015 | AD69: 2015-01-01 | AE69: 2015-12-31 | AG69: 68 | AH69: EEG | AI69: WaK234------11 | AJ69: Wasser | AK69: Wasser | AL69: Inbetriebnahme 2011 | AM69: Inbetriebnahme 2011 | AP69: 0,5-5 MW, Anlage < 5 MW, Modernisierung | AU69: MOD | AV69: 8.65 | AW69: 6.92 | AX69: 8.65 | BB69: EEG | BC69: WaK234------11 | BE69: EEG | BF69: WaK234------11 | CG69: 33705 | CH69: REMSTALWERK_NETZ_VNB | CI69: N/A | CJ69: Remstalwerk Netzgesellschaft GmbH | CK69: 10008368 | CL69: FALSE
G70: Standardprofil | H70: STDP | I70: Ja | AC70: Inbetriebnahme 2016 | AD70: 2016-01-01 | AE70: 2016-12-31 | AG70: 69 | AH70: EEG | AI70: WaK235------11 | AJ70: Wasser | AK70: Wasser | AL70: Inbetriebnahme 2011 | AM70: Inbetriebnahme 2011 | AP70: >5 MW, Zubau 0-0,5 MW | AV70: 7.14 | AW70: 5.71 | AX70: 7.14 | BB70: EEG | BC70: WaK235------11 | BE70: EEG | BF70: WaK235------11 | CG70: 12162 | CH70: RHEIN_NECKAR_HAFEN_VNB | CI70: N/A | CJ70: Staatl. Rhein-Neckar Hafengesellschaft mbH | CK70: 10001780 | CL70: FALSE
G71: Sonstiges | H71: SNST | I71: Ja | AC71: Inbetriebnahme 01/2016 | AD71: 2016-01-01 | AE71: 2016-01-31 | AG71: 70 | AH71: EEG | AI71: WaK236------11 | AJ71: Wasser | AK71: Wasser | AL71: Inbetriebnahme 2011 | AM71: Inbetriebnahme 2011 | AP71: >5 MW, Zubau 0,5-10 MW | AV71: 6.19 | AW71: 4.95 | AX71: 6.19 | BB71: EEG | BC71: WaK236------11 | BE71: EEG | BF71: WaK236------11 | CG71: 30886 | CH71: STADTWERK_AM_SEE_VNB | CI71: N/A | CJ71: Stadtwerk am See GmbH & Co. KG | CK71: 10003707 | CL71: FALSE
A72: Umlagen für Korrekturen | B72: Code | G72: Keine Berücksichtigung | H72: KBER | I72: Ja | AC72: Inbetriebnahme 02/2016 | AD72: 2016-02-01 | AE72: 2016-02-29 | AG72: 71 | AH72: EEG | AI72: WaK237------11 | AJ72: Wasser | AK72: Wasser | AL72: Inbetriebnahme 2011 | AM72: Inbetriebnahme 2011 | AP72: >5 MW, Zubau 10-20 MW | AV72: 5.68 | AW72: 4.54 | AX72: 5.68 | BB72: EEG | BC72: WaK237------11 | BE72: EEG | BF72: WaK237------11 | CG72: 12169 | CH72: TAUBERFRANKEN_VNB | CI72: N/A | CJ72: Stadtwerk Tauberfranken GmbH | CK72: 10000460 | CL72: FALSE
A73: EEG-Umlage nach § 61 Abs. 1 Satz 1 Nr. 1 EEG 2014 (30% der vollen Umlage) | B73: RED | G73: Keine Angabe | H73: N/A | I73: Nein | AC73: Inbetriebnahme 03/2016 | AD73: 2016-03-01 | AE73: 2016-03-31 | AG73: 72 | AH73: EEG | AI73: WaK238------11 | AJ73: Wasser | AK73: Wasser | AL73: Inbetriebnahme 2011 | AM73: Inbetriebnahme 2011 | AP73: >5 MW, Zubau 20-50 MW | AV73: 4.25 | AW73: 3.4 | AX73: 4.25 | BB73: EEG | BC73: WaK238------11 | BE73: EEG | BF73: WaK238------11 | CG73: 12165 | CH73: AALEN_VNB | CI73: N/A | CJ73: Stadtwerke Aalen GmbH | CK73: 10001635 | CL73: FALSE
A74: EEG-Umlage nach § 61 Abs. 1 Satz 2 EEG 2014 (volle Umlage) | B74: VOLL | AC74: Inbetriebnahme 04/2016 | AD74: 2016-04-01 | AE74: 2016-04-30 | AG74: 73 | AH74: EEG | AI74: WaK239------11 | AJ74: Wasser | AK74: Wasser | AL74: Inbetriebnahme 2011 | AM74: Inbetriebnahme 2011 | AP74: >5 MW, Zubau >50 MW | AV74: 3.43 | AW74: 2.74 | AX74: 3.43 | BB74: EEG | BC74: WaK239------11 | BE74: EEG | BF74: WaK239------11 | CG74: 12167 | CH74: ALTENSTEIG_VNB | CI74: N/A | CJ74: Stadtwerke Altensteig | CK74: 10000245 | CL74: FALSE
A75: EEG-Umlage nach § 61 Abs. 2 Nr. 4 EEG 2014 (keine Umlage) | B75: NULL | G75: AENDERUNG | H75: Code | I75: Erlaubt in Auswahl ? | AC75: Inbetriebnahme 05/2016 | AD75: 2016-05-01 | AE75: 2016-05-31 | AG75: 74 | AH75: EEG | AI75: WaK230BS----12 | AJ75: Wasser | AK75: Wasser | AL75: Inbetriebnahme 2012 | AM75: Inbetriebnahme 2012 | AP75: 0-0,5 MW, Anlage 0,5-5 MW, wasserrechtliche Genehmigung vor 01.01.2012 (Bestandsschutz nach § 66 Abs. 5 EEG 2012) | AV75: 12.67 | AW75: 10.14 | AX75: 12.67 | BB75: EEG | BC75: WaK230BS----12 | BE75: EEG | BF75: WaK230BS----12 | CG75: 12170 | CH75: BAD_SÄCKINGEN_VNB | CI75: N/A | CJ75: Stadtwerke Bad Säckingen GmbH | CK75: 10001386 | CL75: FALSE
G76: Fehlerkorrektur | H76: FEKO | I76: Ja | AC76: Inbetriebnahme 06/2016 | AD76: 2016-06-01 | AE76: 2016-06-30 | AG76: 75 | AH76: EEG | AI76: WaK231BS----12 | AJ76: Wasser | AK76: Wasser | AL76: Modernisierung 2012 | AM76: Modernisierung 2012 | AP76: 0-0,5 MW, Anlage < 5 MW mit IB vor 01.08.2004, Modernisierung (Bestandsschutz nach § 66 Abs. 14 EEG 2012) | AV76: 11.67 | AW76: 9.34 | AX76: 11.67 | BB76: EEG | BC76: WaK231BS----12 | BE76: EEG | BF76: WaK231BS----12 | CG76: 12222 | CH76: SAULGAU_VNB | CI76: N/A | CJ76: Stadtwerke Bad Saulgau | CK76: 10000729 | CL76: FALSE
G77: Anlagenerweiterung | H77: AERW | I77: Ja | AC77: Inbetriebnahme 07/2016 | AD77: 2016-07-01 | AE77: 2016-07-31 | AG77: 76 | AH77: EEG | AI77: WaK232BS----12 | AJ77: Wasser | AK77: Wasser | AL77: Inbetriebnahme 2012 | AM77: Inbetriebnahme 2012 | AP77: 0,5-2 MW, Anlage 0,5-5 MW, wasserrechtliche Genehmigung vor 01.01.2012 (Bestandsschutz nach § 66 Abs. 5 EEG 2012) | AV77: 8.65 | AW77: 6.92 | AX77: 8.65 | BB77: EEG | BC77: WaK232BS----12 | BE77: EEG | BF77: WaK232BS----12 | CG77: 12244 | CH77: BAD_WILDBAD_VNB | CI77: N/A | CJ77: Stadtwerke Bad Wildbad GmbH & Co. KG | CK77: 10001715 | CL77: FALSE
G78: Anlagenrückbau | H78: ARÜB | I78: Ja | AC78: Inbetriebnahme 08/2016 | AD78: 2016-08-01 | AE78: 2016-08-31 | AG78: 77 | AH78: EEG | AI78: WaK233BS----12 | AJ78: Wasser | AK78: Wasser | AL78: Inbetriebnahme 2012 | AM78: Inbetriebnahme 2012 | AP78: 2-5 MW, Anlage 0,5-5 MW, wasserrechtliche Genehmigung vor 01.01.2012 (Bestandsschutz nach § 66 Abs. 5 EEG 2012) | AV78: 7.65 | AW78: 6.12 | AX78: 7.65 | BB78: EEG | BC78: WaK233BS----12 | BE78: EEG | BF78: WaK233BS----12 | CG78: 12172 | CH78: BALINGEN_VNB | CI78: N/A | CJ78: Stadtwerke Balingen | CK78: 10001667 | CL78: FALSE
G79: Anlagenteilung | H79: ATLG | I79: Ja | AC79: Inbetriebnahme 09/2016 | AD79: 2016-09-01 | AE79: 2016-09-30 | AG79: 78 | AH79: EEG | AI79: WaK234BS----12 | AJ79: Wasser | AK79: Wasser | AL79: Modernisierung 2012 | AM79: Modernisierung 2012 | AP79: 0,5-5 MW, Anlage < 5 MW mit IB vor 01.08.2004, Modernisierung (Bestandsschutz nach § 66 Abs. 14 EEG 2012) | AU79: MOD | AV79: 8.65 | AW79: 6.92 | AX79: 8.65 | BB79: EEG | BC79: WaK234BS----12 | BE79: EEG | BF79: WaK234BS----12 | CG79: 12174 | CH79: BIETIGHEIM_BISSINGEN_VNB | CI79: Bietigheim | CJ79: Stadtwerke Bietigheim-Bissingen GmbH | CK79: 10000386 | CL79: FALSE
G80: Umbau der Anlage | H80: AUMB | I80: Ja | AC80: Inbetriebnahme 10/2016 | AD80: 2016-10-01 | AE80: 2016-10-31 | AG80: 79 | AH80: EEG | AI80: WaK230------12 | AJ80: Wasser | AK80: Wasser | AL80: Inbetriebnahme 2012 | AM80: Inbetriebnahme 2012 | AP80: 0-0,5 MW | AV80: 12.7 | AW80: 10.16 | AX80: 12.7 | BB80: EEG | BC80: WaK230------12 | BE80: EEG | BF80: WaK230------12 | CG80: 33264 | CH80: OBERRIEXINGEN_VNB | CI80: Oberriexingen | CJ80: Stadtwerke Bietigheim-Bissingen GmbH | CK80: 10000386 | CL80: TRUE
G81: Sonstiges | H81: SNST | I81: Ja | AC81: Inbetriebnahme 11/2016 | AD81: 2016-11-01 | AE81: 2016-11-30 | AG81: 80 | AH81: EEG | AI81: WaK231------12 | AJ81: Wasser | AK81: Wasser | AL81: Inbetriebnahme 2012 | AM81: Inbetriebnahme 2012 | AP81: 0,5-2 MW | AV81: 8.3 | AW81: 6.64 | AX81: 8.3 | BB81: EEG | BC81: WaK231------12 | BE81: EEG | BF81: WaK231------12 | CG81: 12163 | CH81: BRÄUNLINGEN_VNB | CI81: N/A | CJ81: Stadtwerke Bräunlingen | CK81: 10001011 | CL81: FALSE
AC82: Inbetriebnahme 12/2016 | AD82: 2016-12-01 | AE82: 2016-12-31 | AG82: 81 | AH82: EEG | AI82: WaK232------12 | AJ82: Wasser | AK82: Wasser | AL82: Inbetriebnahme 2012 | AM82: Inbetriebnahme 2012 | AP82: 2-5 MW | AV82: 6.3 | AW82: 5.04 | AX82: 6.3 | BB82: EEG | BC82: WaK232------12 | BE82: EEG | BF82: WaK232------12 | CG82: 12176 | CH82: BUCHEN_VNB | CI82: N/A | CJ82: Stadtwerke Buchen GmbH & Co. KG | CK82: 10000330 | CL82: FALSE
AC83: Inbetriebnahme 01-03/2016 | AD83: 2016-01-01 | AE83: 2016-03-31 | AG83: 82 | AH83: EEG | AI83: WaK233------12 | AJ83: Wasser | AK83: Wasser | AL83: Inbetriebnahme 2012 | AM83: Inbetriebnahme 2012 | AP83: 5-10 MW | AV83: 5.5 | AW83: 4.4 | AX83: 5.5 | BB83: EEG | BC83: WaK233------12 | BE83: EEG | BF83: WaK233------12 | CG83: 12177 | CH83: BÜHL_VNB | CI83: N/A | CJ83: Stadtwerke Bühl GmbH | CK83: 10000951 | CL83: FALSE
AC84: Inbetriebnahme 04-06/2016 | AD84: 2016-04-01 | AE84: 2016-06-30 | AG84: 83 | AH84: EEG | AI84: WaK234------12 | AJ84: Wasser | AK84: Wasser | AL84: Inbetriebnahme 2012 | AM84: Inbetriebnahme 2012 | AP84: 10-20 MW | AV84: 5.3 | AW84: 4.24 | AX84: 5.3 | BB84: EEG | BC84: WaK234------12 | BE84: EEG | BF84: WaK234------12 | CG84: 12178 | CH84: CRAILSHEIM_VNB | CI84: N/A | CJ84: Stadtwerke Crailsheim GmbH | CK84: 10000844 | CL84: FALSE
G85: int. Messsysteme | H85: Code | I85: Erlaubt in Auswahl ? | AC85: Inbetriebnahme 07-09/2016 | AD85: 2016-07-01 | AE85: 2016-09-30 | AG85: 84 | AH85: EEG | AI85: WaK235------12 | AJ85: Wasser | AK85: Wasser | AL85: Inbetriebnahme 2012 | AM85: Inbetriebnahme 2012 | AP85: 20-50 MW | AV85: 4.2 | AW85: 3.36 | AX85: 4.2 | BB85: EEG | BC85: WaK235------12 | BE85: EEG | BF85: WaK235------12 | CG85: 12180 | CH85: EBERBACH_VNB | CI85: N/A | CJ85: Stadtwerke Eberbach | CK85: 10000580 | CL85: FALSE
G86: Nicht bekannt | H86: N/A | I86: Ja | AC86: Inbetriebnahme 10-12/2016 | AD86: 2016-10-01 | AE86: 2016-12-31 | AG86: 85 | AH86: EEG | AI86: WaK236------12 | AJ86: Wasser | AK86: Wasser | AL86: Inbetriebnahme 2012 | AM86: Inbetriebnahme 2012 | AP86: > 50 MW | AV86: 3.4 | AW86: 2.72 | AX86: 3.4 | BB86: EEG | BC86: WaK236------12 | BE86: EEG | BF86: WaK236------12 | CG86: 12182 | CH86: ELZACH_VNB | CI86: N/A | CJ86: Stadtwerke Elzach | CK86: 10000627 | CL86: FALSE
A87: BKR-Blacklist | G87: Ja | H87: J | I87: Ja | AC87: Inbetriebnahme 2017 | AD87: 2017-01-01 | AE87: 2017-12-31 | AG87: 86 | AH87: EEG | AI87: WaK230M-----12 | AJ87: Wasser | AK87: Wasser | AL87: Modernisierung 2012 | AM87: Modernisierung 2012 | AP87: 0-0,5 MW, IB vor 01.01.2009, Modernisierung 2012 | AU87: MOD | AV87: 12.7 | AW87: 10.16 | AX87: 12.7 | BB87: EEG | BC87: WaK230M-----12 | BE87: EEG | BF87: WaK230M-----12 | CG87: 12722 | CH87: EMMENDINGEN_VNB | CI87: N/A | CJ87: Stadtwerke Emmendingen GmbH | CK87: 10001137 | CL87: FALSE
A88: 11XENBW-H------P | G88: Nein | H88: N | I88: Ja | AC88: Inbetriebnahme 01/2017 | AD88: 2017-01-01 | AE88: 2017-01-31 | AG88: 87 | AH88: EEG | AI88: WaK231M-----12 | AJ88: Wasser | AK88: Wasser | AL88: Modernisierung 2012 | AM88: Modernisierung 2012 | AP88: 0,5-2 MW, IB vor 01.01.2009, Modernisierung 2012 | AU88: MOD | AV88: 8.3 | AW88: 6.64 | AX88: 8.3 | BB88: EEG | BC88: WaK231M-----12 | BE88: EEG | BF88: WaK231M-----12 | CG88: 12183 | CH88: ENGEN_VNB | CI88: N/A | CJ88: Stadtwerke Engen GmbH | CK88: 10000257 | CL88: FALSE
A89: 11XTNG-AUS-EEG-V | AC89: Inbetriebnahme 02/2017 | AD89: 2017-02-01 | AE89: 2017-02-28 | AG89: 88 | AH89: EEG | AI89: WaK232M-----12 | AJ89: Wasser | AK89: Wasser | AL89: Modernisierung 2012 | AM89: Modernisierung 2012 | AP89: 2-5 MW, IB vor 01.01.2009, Modernisierung 2012 | AU89: MOD | AV89: 6.3 | AW89: 5.04 | AX89: 6.3 | BB89: EEG | BC89: WaK232M-----12 | BE89: EEG | BF89: WaK232M-----12 | CG89: 12186 | CH89: FELLBACH_VNB | CI89: N/A | CJ89: Stadtwerke Fellbach GmbH | CK89: 10000154 | CL89: FALSE
A90: 11XTNGPORTFOLIOO | AC90: Inbetriebnahme 03/2017 | AD90: 2017-03-01 | AE90: 2017-03-31 | AG90: 89 | AH90: EEG | AI90: WaK233M-----12 | AJ90: Wasser | AK90: Wasser | AL90: Modernisierung 2012 | AM90: Modernisierung 2012 | AP90: 5-10 MW, IB vor 01.01.2009, Modernisierung 2012 | AU90: MOD | AV90: 5.5 | AW90: 4.4 | AX90: 5.5 | BB90: EEG | BC90: WaK233M-----12 | BE90: EEG | BF90: WaK233M-----12 | CG90: 31019 | CH90: FREUDENBERG_STADTWERK_VNB | CI90: N/A | CJ90: Stadtwerke Freudenberg GmbH | CK90: 10003827 | CL90: FALSE
A91: 11XFC-CONS-----0 | AC91: Inbetriebnahme 04/2017 | AD91: 2017-04-01 | AE91: 2017-04-30 | AG91: 90 | AH91: EEG | AI91: WaK234M-----12 | AJ91: Wasser | AK91: Wasser | AL91: Modernisierung 2012 | AM91: Modernisierung 2012 | AP91: 10-20 MW, IB vor 01.01.2009, Modernisierung 2012 | AU91: MOD | AV91: 5.3 | AW91: 4.24 | AX91: 5.3 | BB91: EEG | BC91: WaK234M-----12 | BE91: EEG | BF91: WaK234M-----12 | CG91: 12190 | CH91: GAGGENAU_VNB | CI91: N/A | CJ91: Stadtwerke Gaggenau | CK91: 10000786 | CL91: FALSE
A92: ENBW_EEG_DEFT | AC92: Inbetriebnahme 05/2017 | AD92: 2017-05-01 | AE92: 2017-05-31 | AG92: 91 | AH92: EEG | AI92: WaK235M-----12 | AJ92: Wasser | AK92: Wasser | AL92: Modernisierung 2012 | AM92: Modernisierung 2012 | AP92: 20-50 MW, IB vor 01.01.2009, Modernisierung 2012 | AU92: MOD | AV92: 4.2 | AW92: 3.36 | AX92: 4.2 | BB92: EEG | BC92: WaK235M-----12 | BE92: EEG | BF92: WaK235M-----12 | CG92: 12191 | CH92: GENGENBACH_VNB | CI92: N/A | CJ92: Stadtwerke Gengenbach | CK92: 10000080 | CL92: FALSE
A93: 11XENBW-NEEG-DFU | AC93: Inbetriebnahme 06/2017 | AD93: 2017-06-01 | AE93: 2017-06-30 | AG93: 92 | AH93: EEG | AI93: WaK236M-----12 | AJ93: Wasser | AK93: Wasser | AL93: Modernisierung 2012 | AM93: Modernisierung 2012 | AP93: > 50 MW, IB vor 01.01.2009, Modernisierung 2012 | AU93: MOD | AV93: 3.4 | AW93: 2.72 | AX93: 3.4 | BB93: EEG | BC93: WaK236M-----12 | BE93: EEG | BF93: WaK236M-----12 | CG93: 12195 | CH93: HASLACH_VNB | CI93: N/A | CJ93: Stadtwerke Haslach | CK93: 10000626 | CL93: FALSE
A94: 11XENBW-N-EEG--3 | AC94: Inbetriebnahme 07/2017 | AD94: 2017-07-01 | AE94: 2017-07-31 | AG94: 93 | AH94: EEG | AI94: WaK230BS----13 | AJ94: Wasser | AK94: Wasser | AL94: Inbetriebnahme 2013 | AM94: Inbetriebnahme 2013 | AP94: 0-0,5 MW, Anlage 0,5-5 MW, wasserrechtliche Genehmigung vor 01.01.2012 (Bestandsschutz nach § 66 Abs. 5 EEG 2012) | AV94: 12.67 | AW94: 10.14 | AX94: 12.67 | BB94: EEG | BC94: WaK230BS----13 | BE94: EEG | BF94: WaK230BS----13 | CG94: 12196 | CH94: HEIDELBERG_VNB | CI94: N/A | CJ94: Stadtwerke Heidelberg Netze GmbH | CK94: 10003223 | CL94: FALSE
A95: 11XRWENET-N-EEGV | AC95: Inbetriebnahme 08/2017 | AD95: 2017-08-01 | AE95: 2017-08-31 | AG95: 94 | AH95: EEG | AI95: WaK231BS----13 | AJ95: Wasser | AK95: Wasser | AL95: Modernisierung 2013 | AM95: Modernisierung 2013 | AP95: 0-0,5 MW, Anlage < 5 MW mit IB vor 01.08.2004, Modernisierung (Bestandsschutz nach § 66 Abs. 14 EEG 2012) | AV95: 11.67 | AW95: 9.34 | AX95: 11.67 | BB95: EEG | BC95: WaK231BS----13 | BE95: EEG | BF95: WaK231BS----13 | CG95: 12198 | CH95: HOCKENHEIM_VNB | CI95: N/A | CJ95: Stadtwerke Hockenheim | CK95: 10001208 | CL95: FALSE
A96: 11XTENNET-UENBEJ | AC96: Inbetriebnahme 09/2017 | AD96: 2017-09-01 | AE96: 2017-09-30 | AG96: 95 | AH96: EEG | AI96: WaK232BS----13 | AJ96: Wasser | AK96: Wasser | AL96: Inbetriebnahme 2013 | AM96: Inbetriebnahme 2013 | AP96: 0,5-2 MW, Anlage 0,5-5 MW, wasserrechtliche Genehmigung vor 01.01.2012 (Bestandsschutz nach § 66 Abs. 5 EEG 2012) | AV96: 8.65 | AW96: 6.92 | AX96: 8.65 | BB96: EEG | BC96: WaK232BS----13 | BE96: EEG | BF96: WaK232BS----13 | CG96: 12201 | CH96: KARLSRUHE_VNB | CI96: N/A | CJ96: Stadtwerke Karlsruhe Netzservice GmbH | CK96: 10002798 | CL96: FALSE
A97: 11XVE-N-EEG----P | AC97: Inbetriebnahme 10/2017 | AD97: 2017-10-01 | AE97: 2017-10-31 | AG97: 96 | AH97: EEG | AI97: WaK233BS----13 | AJ97: Wasser | AK97: Wasser | AL97: Inbetriebnahme 2013 | AM97: Inbetriebnahme 2013 | AP97: 2-5 MW, Anlage 0,5-5 MW, wasserrechtliche Genehmigung vor 01.01.2012 (Bestandsschutz nach § 66 Abs. 5 EEG 2012) | AV97: 7.65 | AW97: 6.12 | AX97: 7.65 | BB97: EEG | BC97: WaK233BS----13 | BE97: EEG | BF97: WaK233BS----13 | CG97: 12202 | CH97: KONSTANZ_VNB | CI97: N/A | CJ97: Stadtwerke Konstanz GmbH | CK97: 10001064 | CL97: FALSE
A98: 11XTNG-REST----C | AC98: Inbetriebnahme 11/2017 | AD98: 2017-11-01 | AE98: 2017-11-30 | AG98: 97 | AH98: EEG | AI98: WaK234BS----13 | AJ98: Wasser | AK98: Wasser | AL98: Modernisierung 2013 | AM98: Modernisierung 2013 | AP98: 0,5-5 MW, Anlage < 5 MW mit IB vor 01.08.2004, Modernisierung (Bestandsschutz nach § 66 Abs. 14 EEG 2012) | AV98: 8.65 | AW98: 6.92 | AX98: 8.65 | BB98: EEG | BC98: WaK234BS----13 | BE98: EEG | BF98: WaK234BS----13 | CG98: 12203 | CH98: SW_LAUFENBURG_VNB | CI98: N/A | CJ98: Stadtwerke Laufenburg | CK98: 10001572 | CL98: FALSE
A99: 11XENBW-N-EEG-RL | AC99: Inbetriebnahme 12/2017 | AD99: 2017-12-01 | AE99: 2017-12-31 | AG99: 98 | AH99: EEG | AI99: WaK230------13 | AJ99: Wasser | AK99: Wasser | AL99: Inbetriebnahme 2013 | AM99: Inbetriebnahme 2013 | AP99: 0-0,5 MW | AV99: 12.57 | AW99: 10.06 | AX99: 12.57 | BB99: EEG | BC99: WaK230------13 | BE99: EEG | BF99: WaK230------13 | CG99: 12204 | CH99: LINDAU_VNB | CI99: N/A | CJ99: Stadtwerke Lindau GmbH & Co.KG | CK99: 10001733 | CL99: FALSE
A100: 11XEON-N-EEG-R-Y | AC100: Inbetriebnahme 01-03/2017 | AD100: 2017-01-01 | AE100: 2017-03-31 | AG100: 99 | AH100: EEG | AI100: WaK231------13 | AJ100: Wasser | AK100: Wasser | AL100: Inbetriebnahme 2013 | AM100: Inbetriebnahme 2013 | AP100: 0,5-2 MW | AV100: 8.22 | AW100: 6.58 | AX100: 8.22 | BB100: EEG | BC100: WaK231------13 | BE100: EEG | BF100: WaK231------13 | CG100: 13749 | CH100: LUDWIGSBURG_VNB | CI100: N/A | CJ100: Stadtwerke Ludwigsburg-Kornwestheim GmbH | CK100: 10003102 | CL100: FALSE
A101: 11XRWE-N-EEG-R-G | AC101: Inbetriebnahme 04-06/2017 | AD101: 2017-04-01 | AE101: 2017-06-30 | AG101: 100 | AH101: EEG | AI101: WaK232------13 | AJ101: Wasser | AK101: Wasser | AL101: Inbetriebnahme 2013 | AM101: Inbetriebnahme 2013 | AP101: 2-5 MW | AV101: 6.24 | AW101: 4.99 | AX101: 6.24 | BB101: EEG | BC101: WaK232------13 | BE101: EEG | BF101: WaK232------13 | CG101: 12206 | CH101: MENGEN_VNB | CI101: N/A | CJ101: Stadtwerke Mengen | CK101: 10001553 | CL101: FALSE
A102: 11XVE-N-EEG-R--O | AC102: Inbetriebnahme 07-09/2017 | AD102: 2017-07-01 | AE102: 2017-09-30 | AG102: 101 | AH102: EEG | AI102: WaK233------13 | AJ102: Wasser | AK102: Wasser | AL102: Inbetriebnahme 2013 | AM102: Inbetriebnahme 2013 | AP102: 5-10 MW | AV102: 5.45 | AW102: 4.36 | AX102: 5.45 | BB102: EEG | BC102: WaK233------13 | BE102: EEG | BF102: WaK233------13 | CG102: 33198 | CH102: METZINGEN_VNB | CI102: N/A | CJ102: Stadtwerke Metzingen | CK102: 10007134 | CL102: FALSE
A103: 11XFC-PROD-----E | AC103: Inbetriebnahme 10-12/2017 | AD103: 2017-10-01 | AE103: 2017-12-31 | AG103: 102 | AH103: EEG | AI103: WaK234------13 | AJ103: Wasser | AK103: Wasser | AL103: Inbetriebnahme 2013 | AM103: Inbetriebnahme 2013 | AP103: 10-20 MW | AV103: 5.25 | AW103: 4.2 | AX103: 5.25 | BB103: EEG | BC103: WaK234------13 | BE103: EEG | BF103: WaK234------13 | CG103: 12207 | CH103: MOSBACH_VNB | CI103: N/A | CJ103: Stadtwerke Mosbach GmbH | CK103: 10001054 | CL103: FALSE
A104: 11XENBW-WIND-EX0 | AC104: Inbetriebnahme 2018 | AD104: 2018-01-01 | AE104: 2018-12-31 | AG104: 103 | AH104: EEG | AI104: WaK235------13 | AJ104: Wasser | AK104: Wasser | AL104: Inbetriebnahme 2013 | AM104: Inbetriebnahme 2013 | AP104: 20-50 MW | AV104: 4.16 | AW104: 3.33 | AX104: 4.16 | BB104: EEG | BC104: WaK235------13 | BE104: EEG | BF104: WaK235------13 | CG104: 12208 | CH104: MÖSSINGEN_VNB | CI104: N/A | CJ104: Stadtwerke Mössingen | CK104: 10001360 | CL104: FALSE
A105: 11XENBW-WIND-IMA | AC105: Inbetriebnahme 01/2018 | AD105: 2018-01-01 | AE105: 2018-01-31 | AG105: 104 | AH105: EEG | AI105: WaK236------13 | AJ105: Wasser | AK105: Wasser | AL105: Inbetriebnahme 2013 | AM105: Inbetriebnahme 2013 | AP105: > 50 MW | AV105: 3.37 | AW105: 2.7 | AX105: 3.37 | BB105: EEG | BC105: WaK236------13 | BE105: EEG | BF105: WaK236------13 | CG105: 12209 | CH105: MÜHLACKER_VNB | CI105: N/A | CJ105: Stadtwerke Mühlacker GmbH | CK105: 10000346 | CL105: FALSE
A106: 11XTNG-WIND-V--C | AC106: Inbetriebnahme 02/2018 | AD106: 2018-02-01 | AE106: 2018-02-28 | AG106: 105 | AH106: EEG | AI106: WaK230M-----13 | AJ106: Wasser | AK106: Wasser | AL106: Modernisierung 2013 | AM106: Modernisierung 2013 | AP106: 0-0,5 MW, IB vor 01.01.2009, Modernisierung 2013 | AU106: MOD | AV106: 12.57 | AW106: 10.06 | AX106: 12.57 | BB106: EEG | BC106: WaK230M-----13 | BE106: EEG | BF106: WaK230M-----13 | CG106: 12212 | CH106: NEUFFEN_VNB | CI106: N/A | CJ106: Stadtwerke Neuffen AG | CK106: 10000441 | CL106: FALSE
A107: 10YDE-ENBW-----N | AC107: Inbetriebnahme 03/2018 | AD107: 2018-03-01 | AE107: 2018-03-31 | AG107: 106 | AH107: EEG | AI107: WaK231M-----13 | AJ107: Wasser | AK107: Wasser | AL107: Modernisierung 2013 | AM107: Modernisierung 2013 | AP107: 0,5-2 MW, IB vor 01.01.2009, Modernisierung 2013 | AU107: MOD | AV107: 8.22 | AW107: 6.58 | AX107: 8.22 | BB107: EEG | BC107: WaK231M-----13 | BE107: EEG | BF107: WaK231M-----13 | CG107: 12213 | CH107: NÜRTINGEN_VNB | CI107: N/A | CJ107: Stadtwerke Nürtingen GmbH | CK107: 10000295 | CL107: FALSE
A108: 10YDE-RWENET---I | AC108: Inbetriebnahme 04/2018 | AD108: 2018-04-01 | AE108: 2018-04-30 | AG108: 107 | AH108: EEG | AI108: WaK232M-----13 | AJ108: Wasser | AK108: Wasser | AL108: Modernisierung 2013 | AM108: Modernisierung 2013 | AP108: 2-5 MW, IB vor 01.01.2009, Modernisierung 2013 | AU108: MOD | AV108: 6.24 | AW108: 4.99 | AX108: 6.24 | BB108: EEG | BC108: WaK232M-----13 | BE108: EEG | BF108: WaK232M-----13 | CG108: 12214 | CH108: OBERKIRCH_VNB | CI108: N/A | CJ108: Stadtwerke Oberkirch GmbH | CK108: 10000618 | CL108: FALSE
A109: 10YDE-EON------1 | AC109: Inbetriebnahme 05/2018 | AD109: 2018-05-01 | AE109: 2018-05-31 | AG109: 108 | AH109: EEG | AI109: WaK233M-----13 | AJ109: Wasser | AK109: Wasser | AL109: Modernisierung 2013 | AM109: Modernisierung 2013 | AP109: 5-10 MW, IB vor 01.01.2009, Modernisierung 2013 | AU109: MOD | AV109: 5.45 | AW109: 4.36 | AX109: 5.45 | BB109: EEG | BC109: WaK233M-----13 | BE109: EEG | BF109: WaK233M-----13 | CG109: 12181 | CH109: PFULLENDORF_VNB | CI109: N/A | CJ109: Stadtwerke Pfullendorf GmbH | CK109: 10001132 | CL109: FALSE
A110: 10YDE-VE-------2 | AC110: Inbetriebnahme 06/2018 | AD110: 2018-06-01 | AE110: 2018-06-30 | AG110: 109 | AH110: EEG | AI110: WaK234M-----13 | AJ110: Wasser | AK110: Wasser | AL110: Modernisierung 2013 | AM110: Modernisierung 2013 | AP110: 10-20 MW, IB vor 01.01.2009, Modernisierung 2013 | AU110: MOD | AV110: 5.25 | AW110: 4.2 | AX110: 5.25 | BB110: EEG | BC110: WaK234M-----13 | BE110: EEG | BF110: WaK234M-----13 | CG110: 12216 | CH110: RADOLFZELL_VNB | CI110: N/A | CJ110: Stadtwerke Radolfzell GmbH | CK110: 10000883 | CL110: =EXACT(CK110,CK109) -> FALSE
AC111: Inbetriebnahme 07/2018 | AD111: 2018-07-01 | AE111: 2018-07-31 | AG111: 110 | AH111: EEG | AI111: WaK235M-----13 | AJ111: Wasser | AK111: Wasser | AL111: Modernisierung 2013 | AM111: Modernisierung 2013 | AP111: 20-50 MW, IB vor 01.01.2009, Modernisierung 2013 | AU111: MOD | AV111: 4.16 | AW111: 3.33 | AX111: 4.16 | BB111: EEG | BC111: WaK235M-----13 | BE111: EEG | BF111: WaK235M-----13 | CG111: 12223 | CH111: SCHORNDORF_VNB | CI111: N/A | CJ111: Stadtwerke Schorndorf GmbH | CK111: 10000060 | CL111: FALSE
AC112: Inbetriebnahme 08/2018 | AD112: 2018-08-01 | AE112: 2018-08-31 | AG112: 111 | AH112: EEG | AI112: WaK236M-----13 | AJ112: Wasser | AK112: Wasser | AL112: Modernisierung 2013 | AM112: Modernisierung 2013 | AP112: > 50 MW, IB vor 01.01.2009, Modernisierung 2013 | AU112: MOD | AV112: 3.37 | AW112: 2.7 | AX112: 3.37 | BB112: EEG | BC112: WaK236M-----13 | BE112: EEG | BF112: WaK236M-----13 | CG112: 12496 | CH112: SCHRAMBERG_VNB | CI112: N/A | CJ112: Stadtwerke Schramberg GmbH & Co. KG | CK112: 10001185 | CL112: FALSE
AC113: Inbetriebnahme 09/2018 | AD113: 2018-09-01 | AE113: 2018-09-30 | AG113: 112 | AH113: EEG | AI113: WaK230------14 | AJ113: Wasser | AK113: Wasser | AL113: Inbetriebnahme 2014 | AM113: Inbetriebnahme 2014 | AP113: 0-0,5 MW | AV113: 12.45 | AW113: 9.96 | AX113: 12.45 | BB113: EEG | BC113: WaK230------14 | BE113: EEG | BF113: WaK230------14 | CG113: 12248 | CH113: SCHWÄBISCH_GMÜND_VNB | CI113: N/A | CJ113: Stadtwerke Schwäbisch Gmünd GmbH | CK113: 10000462 | CL113: FALSE
AC114: Inbetriebnahme 10/2018 | AD114: 2018-10-01 | AE114: 2018-10-31 | AG114: 113 | AH114: EEG | AI114: WaK231------14 | AJ114: Wasser | AK114: Wasser | AL114: Inbetriebnahme 2014 | AM114: Inbetriebnahme 2014 | AP114: 0,5-2 MW | AV114: 8.13 | AW114: 6.5 | AX114: 8.13 | BB114: EEG | BC114: WaK231------14 | BE114: EEG | BF114: WaK231------14 | CG114: 12225 | CH114: SIGMARINGEN_VNB | CI114: N/A | CJ114: Stadtwerke Sigmaringen | CK114: 10001057 | CL114: FALSE
AC115: Inbetriebnahme 11/2018 | AD115: 2018-11-01 | AE115: 2018-11-30 | AG115: 114 | AH115: EEG | AI115: WaK232------14 | AJ115: Wasser | AK115: Wasser | AL115: Inbetriebnahme 2014 | AM115: Inbetriebnahme 2014 | AP115: 2-5 MW | AV115: 6.17 | AW115: 4.94 | AX115: 6.17 | BB115: EEG | BC115: WaK232------14 | BE115: EEG | BF115: WaK232------14 | CG115: 12227 | CH115: SINDELFINGEN_VNB | CI115: N/A | CJ115: Stadtwerke Sindelfingen GmbH | CK115: 10000431 | CL115: FALSE
AC116: Inbetriebnahme 12/2018 | AD116: 2018-12-01 | AE116: 2018-12-31 | AG116: 115 | AH116: EEG | AI116: WaK233------14 | AJ116: Wasser | AK116: Wasser | AL116: Inbetriebnahme 2014 | AM116: Inbetriebnahme 2014 | AP116: 5-10 MW | AV116: 5.39 | AW116: 4.31 | AX116: 5.39 | BB116: EEG | BC116: WaK233------14 | BE116: EEG | BF116: WaK233------14 | CG116: 17174 | CH116: SW_SINSHEIM_VNB | CI116: N/A | CJ116: Stadtwerke Sinsheim Versorgungs GmbH & Co. KG | CK116: 10003336 | CL116: FALSE
AC117: Inbetriebnahme 01-03/2018 | AD117: 2018-01-01 | AE117: 2018-03-31 | AG117: 116 | AH117: EEG | AI117: WaK234------14 | AJ117: Wasser | AK117: Wasser | AL117: Inbetriebnahme 2014 | AM117: Inbetriebnahme 2014 | AP117: 10-20 MW | AV117: 5.19 | AW117: 4.15 | AX117: 5.19 | BB117: EEG | BC117: WaK234------14 | BE117: EEG | BF117: WaK234------14 | CG117: 12230 | CH117: TÜBINGEN_VNB | CI117: N/A | CJ117: Stadtwerke Tübingen GmbH | CK117: 10000434 | CL117: FALSE
AC118: Inbetriebnahme 04-06/2018 | AD118: 2018-04-01 | AE118: 2018-06-30 | AG118: 117 | AH118: EEG | AI118: WaK235------14 | AJ118: Wasser | AK118: Wasser | AL118: Inbetriebnahme 2014 | AM118: Inbetriebnahme 2014 | AP118: 20-50 MW | AV118: 4.12 | AW118: 3.3 | AX118: 4.12 | BB118: EEG | BC118: WaK235------14 | BE118: EEG | BF118: WaK235------14 | CG118: 12231 | CH118: TUTTLINGEN_VNB | CI118: N/A | CJ118: Stadtwerke Tuttlingen GmbH | CK118: 10000979 | CL118: FALSE
AC119: Inbetriebnahme 07-09/2018 | AD119: 2018-07-01 | AE119: 2018-09-30 | AG119: 118 | AH119: EEG | AI119: WaK236------14 | AJ119: Wasser | AK119: Wasser | AL119: Inbetriebnahme 2014 | AM119: Inbetriebnahme 2014 | AP119: > 50 MW | AV119: 3.33 | AW119: 2.66 | AX119: 3.33 | BB119: EEG | BC119: WaK236------14 | BE119: EEG | BF119: WaK236------14 | CG119: 12232 | CH119: ÜBERLINGEN_VNB | CI119: N/A | CJ119: Stadtwerke Überlingen GmbH | CK119: 10000306 | CL119: FALSE
AC120: Inbetriebnahme 10-12/2018 | AD120: 2018-10-01 | AE120: 2018-12-31 | AG120: 119 | AH120: EEG | AI120: WaK230M-----14 | AJ120: Wasser | AK120: Wasser | AL120: Modernisierung 2014 | AM120: Modernisierung 2014 | AP120: 0-0,5 MW, IB vor 01.01.2009, Modernisierung 2014 | AU120: MOD | AV120: 12.45 | AW120: 9.96 | AX120: 12.45 | BB120: EEG | BC120: WaK230M-----14 | BE120: EEG | BF120: WaK230M-----14 | CG120: 12233 | CH120: SWU_VNB | CI120: N/A | CJ120: Stadtwerke Ulm/Neu-Ulm Netze GmbH | CK120: 10001254 | CL120: FALSE
AC121: Inbetriebnahme 30.06. bis 31.12.2006 | AD121: 2006-06-30 | AE121: 2006-12-31 | AG121: 120 | AH121: EEG | AI121: WaK231M-----14 | AJ121: Wasser | AK121: Wasser | AL121: Modernisierung 2014 | AM121: Modernisierung 2014 | AP121: 0,5-2 MW, IB vor 01.01.2009, Modernisierung 2014 | AU121: MOD | AV121: 8.13 | AW121: 6.5 | AX121: 8.13 | BB121: EEG | BC121: WaK231M-----14 | BE121: EEG | BF121: WaK231M-----14 | CG121: 12235 | CH121: VIERNHEIM_VNB | CI121: N/A | CJ121: Stadtwerke Viernheim Netz GmbH | CK121: 10001072 | CL121: FALSE
AC122: Inbetriebnahme bis 2001 | AE122: 2001-12-31 | AG122: 121 | AH122: EEG | AI122: WaK232M-----14 | AJ122: Wasser | AK122: Wasser | AL122: Modernisierung 2014 | AM122: Modernisierung 2014 | AP122: 2-5 MW, IB vor 01.01.2009, Modernisierung 2014 | AU122: MOD | AV122: 6.17 | AW122: 4.94 | AX122: 6.17 | BB122: EEG | BC122: WaK232M-----14 | BE122: EEG | BF122: WaK232M-----14 | CG122: 12236 | CH122: VILLINGEN_SCHWENNINGEN_VNB | CI122: N/A | CJ122: Stadtwerke Villingen-Schwenningen GmbH | CK122: 10001344 | CL122: FALSE
AC123: Inbetriebnahme bis 2012 | AE123: 2012-12-31 | AG123: 122 | AH123: EEG | AI123: WaK233M-----14 | AJ123: Wasser | AK123: Wasser | AL123: Modernisierung 2014 | AM123: Modernisierung 2014 | AP123: 5-10 MW, IB vor 01.01.2009, Modernisierung 2014 | AU123: MOD | AV123: 5.39 | AW123: 4.31 | AX123: 5.39 | BB123: EEG | BC123: WaK233M-----14 | BE123: EEG | BF123: WaK233M-----14 | CG123: 12237 | CH123: WAIBLINGEN_VNB | CI123: N/A | CJ123: Stadtwerke Waiblingen GmbH | CK123: 10000726 | CL123: FALSE
AC124: Modernisierung 2012 | AD124: 2012-01-01 | AE124: 2012-12-31 | AG124: 123 | AH124: EEG | AI124: WaK234M-----14 | AJ124: Wasser | AK124: Wasser | AL124: Modernisierung 2014 | AM124: Modernisierung 2014 | AP124: 10-20 MW, IB vor 01.01.2009, Modernisierung 2014 | AU124: MOD | AV124: 5.19 | AW124: 4.15 | AX124: 5.19 | BB124: EEG | BC124: WaK234M-----14 | BE124: EEG | BF124: WaK234M-----14 | CG124: 12238 | CH124: WALDKIRCH_VNB | CI124: N/A | CJ124: Stadtwerke Waldkirch GmbH | CK124: 10000533 | CL124: FALSE
AC125: Modernisierung 2013 | AD125: 2013-01-01 | AE125: 2013-12-31 | AG125: 124 | AH125: EEG | AI125: WaK235M-----14 | AJ125: Wasser | AK125: Wasser | AL125: Modernisierung 2014 | AM125: Modernisierung 2014 | AP125: 20-50 MW, IB vor 01.01.2009, Modernisierung 2014 | AU125: MOD | AV125: 4.12 | AW125: 3.3 | AX125: 4.12 | BB125: EEG | BC125: WaK235M-----14 | BE125: EEG | BF125: WaK235M-----14 | CG125: 12239 | CH125: WALDSHUT_TIENGEN_VNB | CI125: N/A | CJ125: Stadtwerke Waldshut-Tiengen GmbH | CK125: 10001346 | CL125: FALSE
AC126: Modernisierung 2014 | AD126: 2014-01-01 | AE126: 2014-07-31 | AG126: 125 | AH126: EEG | AI126: WaK236M-----14 | AJ126: Wasser | AK126: Wasser | AL126: Modernisierung 2014 | AM126: Modernisierung 2014 | AP126: > 50 MW, IB vor 01.01.2009, Modernisierung 2014 | AU126: MOD | AV126: 3.33 | AW126: 2.66 | AX126: 3.33 | BB126: EEG | BC126: WaK236M-----14 | BE126: EEG | BF126: WaK236M-----14 | CG126: 12240 | CH126: WALLDORF_VNB | CI126: N/A | CJ126: Stadtwerke Walldorf GmbH & Co. KG | CK126: 10001727 | CL126: FALSE
AC127: Modernisierung 08-12/2014 | AD127: 2014-08-01 | AE127: 2014-12-31 | AG127: 126 | AH127: EEG | AI127: WaK400------14 | AJ127: Wasser | AK127: Wasser | AL127: Inbetriebnahme 08-12/2014 | AM127: Inbetriebnahme 08-12/2014 | AP127: 0-0,5 MW | AV127: 12.32 | AW127: 10.02 | AX127: 12.52 | BB127: EEG | BC127: WaK400------14 | BE127: EEG | BF127: WaK400------14 | CG127: 12242 | CH127: WEINHEIM_VNB | CI127: N/A | CJ127: Stadtwerke Weinheim GmbH | CK127: 10000469 | CL127: FALSE
AC128: Modernisierung 2015 | AD128: 2015-01-01 | AE128: 2015-12-31 | AG128: 127 | AH128: EEG | AI128: WaK401------14 | AJ128: Wasser | AK128: Wasser | AL128: Inbetriebnahme 08-12/2014 | AM128: Inbetriebnahme 08-12/2014 | AP128: 0,5-2 MW | AV128: 8.05 | AW128: 6.6 | AX128: 8.25 | BB128: EEG | BC128: WaK401------14 | BE128: EEG | BF128: WaK401------14 | CG128: 12243 | CH128: WERTHEIM_VNB | CI128: N/A | CJ128: Stadtwerke Wertheim GmbH | CK128: 10000806 | CL128: FALSE
AC129: Modernisierung 2016 | AD129: 2016-01-01 | AE129: 2016-12-31 | AG129: 128 | AH129: EEG | AI129: WaK402------14 | AJ129: Wasser | AK129: Wasser | AL129: Inbetriebnahme 08-12/2014 | AM129: Inbetriebnahme 08-12/2014 | AP129: 2-5 MW | AV129: 6.11 | AW129: 5.05 | AX129: 6.31 | BB129: EEG | BC129: WaK402------14 | BE129: EEG | BF129: WaK402------14 | CG129: 12217 | CH129: RASTATT_VNB | CI129: N/A | CJ129: star. Energiewerke GmbH & Co.KG | CK129: 10000284 | CL129: =EXACT(CK129,CK128) -> FALSE
AC130: Modernisierung 2017 | AD130: 2017-01-01 | AE130: 2017-12-31 | AG130: 129 | AH130: EEG | AI130: WaK403------14 | AJ130: Wasser | AK130: =VLOOKUP(AJ130,ENERGIETRAEGER,1,FALSE) -> Wasser | AL130: =IF(AM130<>"",VLOOKUP(AM130,VIN,1,FALSE),"") -> Inbetriebnahme 08-12/2014 | AM130: Inbetriebnahme 08-12/2014 | AP130: 5-10 MW | AV130: 5.34 | AW130: 4.43 | AX130: 5.54 | BB130: EEG | BC130: WaK403------14 | BE130: EEG | BF130: WaK403------14 | CG130: 12247 | CH130: SAIG_VNB | CI130: N/A | CJ130: Strombezugsgenossenschaft Saig eG | CK130: 10000236 | CL130: FALSE
AC131: Modernisierung 2018 | AD131: 2018-01-01 | AE131: 2018-12-31 | AG131: 130 | AH131: EEG | AI131: WaK404------14 | AJ131: Wasser | AK131: Wasser | AL131: Inbetriebnahme 08-12/2014 | AM131: Inbetriebnahme 08-12/2014 | AP131: 10-20 MW | AV131: 5.14 | AW131: 4.27 | AX131: 5.34 | BB131: EEG | BC131: WaK404------14 | BE131: EEG | BF131: WaK404------14 | CG131: 30831 | CH131: HECHINGEN_VNB | CI131: N/A | CJ131: Stromnetzgesellschaft Hechingen GmbH & Co. KG | CK131: 10003521 | CL131: =EXACT(CK131,CK130) -> FALSE
AC132: Inbetriebnahme 07-09/2012 | AD132: 2012-07-01 | AE132: 2012-09-30 | AG132: =AG131+1 -> 131 | AH132: EEG | AI132: WaK405------14 | AJ132: Wasser | AK132: Wasser | AL132: Inbetriebnahme 08-12/2014 | AM132: Inbetriebnahme 08-12/2014 | AP132: 20-50 MW | AV132: 4.08 | AW132: 3.42 | AX132: 4.28 | BB132: EEG | BC132: WaK405------14 | BE132: EEG | BF132: WaK405------14 | CG132: 30763 | CH132: STROMNETZ_HERRENBERG_VNB | CI132: N/A | CJ132: Stromnetzgesellschaft Herrenberg mbH & Co. KG | CK132: 10003426 | CL132: FALSE
AC133: Inbetriebnahme bis 31.07.2014 | AE133: 2014-07-31 | AG133: 132 | AH133: EEG | AI133: WaK406------14 | AJ133: Wasser | AK133: Wasser | AL133: Inbetriebnahme 08-12/2014 | AM133: Inbetriebnahme 08-12/2014 | AP133: > 50 MW | AV133: 3.3 | AW133: 2.8 | AX133: 3.5 | BB133: EEG | BC133: WaK406------14 | BE133: EEG | BF133: WaK406------14 | CG133: 12249 | CH133: SULZ_VNB | CI133: N/A | CJ133: Stromversorgung Sulz GmbH | CK133: 10000497 | CL133: FALSE
AC134: Inbetriebnahme ab 08.2014 | AD134: 2014-08-01 | AG134: 133 | AH134: EEG | AI134: WaK400M-----14 | AJ134: Wasser | AK134: Wasser | AL134: Modernisierung 08-12/2014 | AM134: Modernisierung 08-12/2014 | AP134: 0-0,5 MW, IB vor 01.01.2009, Modernisierung 2014 | AU134: MOD | AV134: 12.52 | AW134: 10.02 | AX134: 12.52 | BB134: EEG | BC134: WaK400M-----14 | BE134: EEG | BF134: WaK400M-----14 | CG134: 12274 | CH134: WILLY_VON_BERG_VNB | CI134: N/A | CJ134: Stromversorgung von Berg GmbH | CK134: 10002965 | CL134: FALSE
AC135: Inbetriebnahme ab 09.2015 | AD135: 2015-09-01 | AG135: 134 | AH135: EEG | AI135: WaK401M-----14 | AJ135: Wasser | AK135: Wasser | AL135: Modernisierung 08-12/2014 | AM135: Modernisierung 08-12/2014 | AP135: 0,5-2 MW, IB vor 01.01.2009, Modernisierung 2014 | AU135: MOD | AV135: 8.25 | AW135: 6.6 | AX135: 8.25 | BB135: EEG | BC135: WaK401M-----14 | BE135: EEG | BF135: WaK401M-----14 | CG135: 33208 | CH135: STUTTGART_NETZE_BETRIEB_VNB | CI135: N/A | CJ135: Stuttgart Netze Betrieb GmbH EEG | CK135: 10007065 | CL135: FALSE
AC136: Inbetriebnahme ab 01.2017 | AD136: 2017-01-01 | AG136: 135 | AH136: EEG | AI136: WaK402M-----14 | AJ136: Wasser | AK136: Wasser | AL136: Modernisierung 08-12/2014 | AM136: Modernisierung 08-12/2014 | AP136: 2-5 MW, IB vor 01.01.2009, Modernisierung 2014 | AU136: MOD | AV136: 6.31 | AW136: 5.05 | AX136: 6.31 | BB136: EEG | BC136: WaK402M-----14 | BE136: EEG | BF136: WaK402M-----14 | CG136: 12184 | CH136: ETTLINGEN_VNB | CI136: N/A | CJ136: SWE Netz GmbH | CK136: 10003627 | CL136: FALSE
AG137: 136 | AH137: EEG | AI137: WaK403M-----14 | AJ137: Wasser | AK137: Wasser | AL137: Modernisierung 08-12/2014 | AM137: Modernisierung 08-12/2014 | AP137: 5-10 MW, IB vor 01.01.2009, Modernisierung 2014 | AU137: MOD | AV137: 5.54 | AW137: 4.43 | AX137: 5.54 | BB137: EEG | BC137: WaK403M-----14 | BE137: EEG | BF137: WaK403M-----14 | CG137: 12215 | CH137: PFORZHEIM_VNB | CI137: N/A | CJ137: SWP Stadtwerke Pforzheim GmbH & Co.KG | CK137: 10000996 | CL137: FALSE
AG138: 137 | AH138: EEG | AI138: WaK404M-----14 | AJ138: Wasser | AK138: Wasser | AL138: Modernisierung 08-12/2014 | AM138: Modernisierung 08-12/2014 | AP138: 10-20 MW, IB vor 01.01.2009, Modernisierung 2014 | AU138: MOD | AV138: 5.34 | AW138: 4.27 | AX138: 5.34 | BB138: EEG | BC138: WaK404M-----14 | BE138: EEG | BF138: WaK404M-----14 | CG138: 17213 | CH138: SWÜ_NETZ_VNB | CI138: N/A | CJ138: SWÜ Netz GmbH | CK138: 10003335 | CL138: FALSE
AG139: 138 | AH139: EEG | AI139: WaK405M-----14 | AJ139: Wasser | AK139: Wasser | AL139: Modernisierung 08-12/2014 | AM139: Modernisierung 08-12/2014 | AP139: 20-50 MW, IB vor 01.01.2009, Modernisierung 2014 | AU139: MOD | AV139: 4.28 | AW139: 3.42 | AX139: 4.28 | BB139: EEG | BC139: WaK405M-----14 | BE139: EEG | BF139: WaK405M-----14 | CG139: 12816 | CH139: SÜWAG_ÜWA_VNB | CI139: N/A | CJ139: Syna GmbH | CK139: 10001495 | CL139: FALSE
AG140: 139 | AH140: EEG | AI140: WaK406M-----14 | AJ140: Wasser | AK140: Wasser | AL140: Modernisierung 08-12/2014 | AM140: Modernisierung 08-12/2014 | AP140: > 50 MW, IB vor 01.01.2009, Modernisierung 2014 | AU140: MOD | AV140: 3.5 | AW140: 2.8 | AX140: 3.5 | BB140: EEG | BC140: WaK406M-----14 | BE140: EEG | BF140: WaK406M-----14 | CG140: 12124 | CH140: MARKELSHEIM_VNB | CI140: N/A | CJ140: TauberEnergie Kuhn, Karl und Andreas Kuhn OHG | CK140: 10001265 | CL140: FALSE
AG141: 140 | AH141: EEG | AI141: WaK400------15 | AJ141: Wasser | AK141: Wasser | AL141: Inbetriebnahme 2015 | AM141: Inbetriebnahme 2015 | AP141: 0-0,5 MW | AV141: 12.32 | AW141: 10.02 | AX141: 12.52 | BB141: EEG | BC141: WaK400------15 | BE141: EEG | BF141: WaK400------15 | CG141: 12255 | CH141: TWF_VNB | CI141: N/A | CJ141: Technische Werke Friedrichshafen GmbH | CK141: 10000375 | CL141: FALSE
AG142: 141 | AH142: EEG | AI142: WaK401------15 | AJ142: Wasser | AK142: Wasser | AL142: Inbetriebnahme 2015 | AM142: Inbetriebnahme 2015 | AP142: 0,5-2 MW | AV142: 8.05 | AW142: 6.6 | AX142: 8.25 | BB142: EEG | BC142: WaK401------15 | BE142: EEG | BF142: WaK401------15 | CG142: 12088 | CH142: SINGEN_VNB | CI142: Singen | CJ142: Thüga Energienetze GmbH | CK142: 10002915 | CL142: FALSE
AG143: 142 | AH143: EEG | AI143: WaK402------15 | AJ143: Wasser | AK143: Wasser | AL143: Inbetriebnahme 2015 | AM143: Inbetriebnahme 2015 | AP143: 2-5 MW | AV143: 6.11 | AW143: 5.05 | AX143: 6.31 | BB143: EEG | BC143: WaK402------15 | BE143: EEG | BF143: WaK402------15 | CG143: 15363 | CH143: SINGEN_VNB Schweiz | CI143: Singen Schweiz | CJ143: Thüga Energienetze GmbH Netzgebiet Schweiz VNB | CK143: 10002915 | CL143: TRUE
AG144: 143 | AH144: EEG | AI144: WaK403------15 | AJ144: Wasser | AK144: Wasser | AL144: Inbetriebnahme 2015 | AM144: Inbetriebnahme 2015 | AP144: 5-10 MW | AV144: 5.34 | AW144: 4.43 | AX144: 5.54 | BB144: EEG | BC144: WaK403------15 | BE144: EEG | BF144: WaK403------15 | CG144: 12875 | CH144: ENBW_TNG_VNB | CI144: N/A | CJ144: TransnetBW GmbH | CK144: 10000502 | CL144: FALSE
AG145: 144 | AH145: EEG | AI145: WaK404------15 | AJ145: Wasser | AK145: Wasser | AL145: Inbetriebnahme 2015 | AM145: Inbetriebnahme 2015 | AP145: 10-20 MW | AV145: 5.14 | AW145: 4.27 | AX145: 5.34 | BB145: EEG | BC145: WaK404------15 | BE145: EEG | BF145: WaK404------15 | CG145: 13817 | CH145: TWS_NETZE_GMBH_VNB | CI145: N/A | CJ145: TWS Netz GmbH | CK145: 10003091 | CL145: FALSE
AG146: 145 | AH146: EEG | AI146: WaK405------15 | AJ146: Wasser | AK146: Wasser | AL146: Inbetriebnahme 2015 | AM146: Inbetriebnahme 2015 | AP146: 20-50 MW | AV146: 4.08 | AW146: 3.42 | AX146: 4.28 | BB146: EEG | BC146: WaK405------15 | BE146: EEG | BF146: WaK405------15 | CG146: 12257 | CH146: EPPLER_VNB | CI146: N/A | CJ146: Überlandwerk Eppler GmbH | CK146: 10001398 | CL146: FALSE
AG147: 146 | AH147: EEG | AI147: WaK406------15 | AJ147: Wasser | AK147: Wasser | AL147: Inbetriebnahme 2015 | AM147: Inbetriebnahme 2015 | AP147: > 50 MW | AV147: 3.3 | AW147: 2.8 | AX147: 3.5 | BB147: EEG | BC147: WaK406------15 | BE147: EEG | BF147: WaK406------15 | CG147: 30842 | CH147: VERSORGUNGSWERKE_HEDDESHEIM_VNB | CI147: N/A | CJ147: VersorgungsWerke Heddesheim GmbH & Co. KG | CK147: 10006798 | CL147: FALSE
AG148: 147 | AH148: EEG | AI148: WaK400M-----15 | AJ148: Wasser | AK148: Wasser | AL148: Modernisierung 2015 | AM148: Modernisierung 2015 | AP148: 0-0,5 MW, IB vor 01.01.2009, Modernisierung 2015 | AU148: MOD | AV148: 12.52 | AW148: 10.02 | AX148: 12.52 | BB148: EEG | BC148: WaK400M-----15 | BE148: EEG | BF148: WaK400M-----15 | CG148: 12032 | CH148: KAPPELRODECK_VNB | CI148: N/A | CJ148: Ziegler GmbH & Co. KG | CK148: 10000899 | CL148: FALSE
AG149: 148 | AH149: EEG | AI149: WaK401M-----15 | AJ149: Wasser | AK149: Wasser | AL149: Modernisierung 2015 | AM149: Modernisierung 2015 | AP149: 0,5-2 MW, IB vor 01.01.2009, Modernisierung 2015 | AU149: MOD | AV149: 8.25 | AW149: 6.6 | AX149: 8.25 | BB149: EEG | BC149: WaK401M-----15 | BE149: EEG | BF149: WaK401M-----15
AG150: 149 | AH150: EEG | AI150: WaK402M-----15 | AJ150: Wasser | AK150: Wasser | AL150: Modernisierung 2015 | AM150: Modernisierung 2015 | AP150: 2-5 MW, IB vor 01.01.2009, Modernisierung 2015 | AU150: MOD | AV150: 6.31 | AW150: 5.05 | AX150: 6.31 | BB150: EEG | BC150: WaK402M-----15 | BE150: EEG | BF150: WaK402M-----15
AG151: 150 | AH151: EEG | AI151: WaK403M-----15 | AJ151: Wasser | AK151: Wasser | AL151: Modernisierung 2015 | AM151: Modernisierung 2015 | AP151: 5-10 MW, IB vor 01.01.2009, Modernisierung 2015 | AU151: MOD | AV151: 5.54 | AW151: 4.43 | AX151: 5.54 | BB151: EEG | BC151: WaK403M-----15 | BE151: EEG | BF151: WaK403M-----15
AG152: 151 | AH152: EEG | AI152: WaK404M-----15 | AJ152: Wasser | AK152: Wasser | AL152: Modernisierung 2015 | AM152: Modernisierung 2015 | AP152: 10-20 MW, IB vor 01.01.2009, Modernisierung 2015 | AU152: MOD | AV152: 5.34 | AW152: 4.27 | AX152: 5.34 | BB152: EEG | BC152: WaK404M-----15 | BE152: EEG | BF152: WaK404M-----15
AG153: 152 | AH153: EEG | AI153: WaK405M-----15 | AJ153: Wasser | AK153: Wasser | AL153: Modernisierung 2015 | AM153: Modernisierung 2015 | AP153: 20-50 MW, IB vor 01.01.2009, Modernisierung 2015 | AU153: MOD | AV153: 4.28 | AW153: 3.42 | AX153: 4.28 | BB153: EEG | BC153: WaK405M-----15 | BE153: EEG | BF153: WaK405M-----15
AG154: 153 | AH154: EEG | AI154: WaK406M-----15 | AJ154: Wasser | AK154: Wasser | AL154: Modernisierung 2015 | AM154: Modernisierung 2015 | AP154: > 50 MW, IB vor 01.01.2009, Modernisierung 2015 | AU154: MOD | AV154: 3.5 | AW154: 2.8 | AX154: 3.5 | BB154: EEG | BC154: WaK406M-----15 | BE154: EEG | BF154: WaK406M-----15
AG155: 154 | AH155: EEG | AI155: WaK400------16 | AJ155: Wasser | AK155: Wasser | AL155: Inbetriebnahme 2016 | AM155: Inbetriebnahme 2016 | AP155: 0-0,5 MW | AV155: 12.26 | AW155: 9.97 | AX155: 12.46 | BB155: EEG | BC155: WaK400------16 | BE155: EEG | BF155: WaK400------16
AG156: 155 | AH156: EEG | AI156: WaK401------16 | AJ156: Wasser | AK156: Wasser | AL156: Inbetriebnahme 2016 | AM156: Inbetriebnahme 2016 | AP156: 0,5-2 MW | AV156: 8.01 | AW156: 6.57 | AX156: 8.21 | BB156: EEG | BC156: WaK401------16 | BE156: EEG | BF156: WaK401------16
AG157: 156 | AH157: EEG | AI157: WaK402------16 | AJ157: Wasser | AK157: Wasser | AL157: Inbetriebnahme 2016 | AM157: Inbetriebnahme 2016 | AP157: 2-5 MW | AV157: 6.08 | AW157: 5.02 | AX157: 6.28 | BB157: EEG | BC157: WaK402------16 | BE157: EEG | BF157: WaK402------16
AG158: 157 | AH158: EEG | AI158: WaK403------16 | AJ158: Wasser | AK158: Wasser | AL158: Inbetriebnahme 2016 | AM158: Inbetriebnahme 2016 | AP158: 5-10 MW | AV158: 5.31 | AW158: 4.41 | AX158: 5.51 | BB158: EEG | BC158: WaK403------16 | BE158: EEG | BF158: WaK403------16
AG159: 158 | AH159: EEG | AI159: WaK404------16 | AJ159: Wasser | AK159: Wasser | AL159: Inbetriebnahme 2016 | AM159: Inbetriebnahme 2016 | AP159: 10-20 MW | AV159: 5.11 | AW159: 4.25 | AX159: 5.31 | BB159: EEG | BC159: WaK404------16 | BE159: EEG | BF159: WaK404------16
AG160: 159 | AH160: EEG | AI160: WaK405------16 | AJ160: Wasser | AK160: Wasser | AL160: Inbetriebnahme 2016 | AM160: Inbetriebnahme 2016 | AP160: 20-50 MW | AV160: 4.06 | AW160: 3.41 | AX160: 4.26 | BB160: EEG | BC160: WaK405------16 | BE160: EEG | BF160: WaK405------16
AG161: 160 | AH161: EEG | AI161: WaK406------16 | AJ161: Wasser | AK161: Wasser | AL161: Inbetriebnahme 2016 | AM161: Inbetriebnahme 2016 | AP161: > 50 MW | AV161: 3.28 | AW161: 2.78 | AX161: 3.48 | BB161: EEG | BC161: WaK406------16 | BE161: EEG | BF161: WaK406------16
AG162: 161 | AH162: EEG | AI162: WaK400M-----16 | AJ162: Wasser | AK162: Wasser | AL162: Modernisierung 2016 | AM162: Modernisierung 2016 | AP162: 0-0,5 MW, IB vor 01.01.2009, Modernisierung 2016 | AU162: MOD | AV162: 12.46 | AW162: 9.97 | AX162: 12.46 | BB162: EEG | BC162: WaK400M-----16 | BE162: EEG | BF162: WaK400M-----16
AG163: 162 | AH163: EEG | AI163: WaK401M-----16 | AJ163: Wasser | AK163: Wasser | AL163: Modernisierung 2016 | AM163: Modernisierung 2016 | AP163: 0,5-2 MW, IB vor 01.01.2009, Modernisierung 2016 | AU163: MOD | AV163: 8.21 | AW163: 6.57 | AX163: 8.21 | BB163: EEG | BC163: WaK401M-----16 | BE163: EEG | BF163: WaK401M-----16
AG164: 163 | AH164: EEG | AI164: WaK402M-----16 | AJ164: Wasser | AK164: Wasser | AL164: Modernisierung 2016 | AM164: Modernisierung 2016 | AP164: 2-5 MW, IB vor 01.01.2009, Modernisierung 2016 | AU164: MOD | AV164: 6.28 | AW164: 5.02 | AX164: 6.28 | BB164: EEG | BC164: WaK402M-----16 | BE164: EEG | BF164: WaK402M-----16
AG165: 164 | AH165: EEG | AI165: WaK403M-----16 | AJ165: Wasser | AK165: Wasser | AL165: Modernisierung 2016 | AM165: Modernisierung 2016 | AP165: 5-10 MW, IB vor 01.01.2009, Modernisierung 2016 | AU165: MOD | AV165: 5.51 | AW165: 4.41 | AX165: 5.51 | BB165: EEG | BC165: WaK403M-----16 | BE165: EEG | BF165: WaK403M-----16
AG166: 165 | AH166: EEG | AI166: WaK404M-----16 | AJ166: Wasser | AK166: Wasser | AL166: Modernisierung 2016 | AM166: Modernisierung 2016 | AP166: 10-20 MW, IB vor 01.01.2009, Modernisierung 2016 | AU166: MOD | AV166: 5.31 | AW166: 4.25 | AX166: 5.31 | BB166: EEG | BC166: WaK404M-----16 | BE166: EEG | BF166: WaK404M-----16
AG167: 166 | AH167: EEG | AI167: WaK405M-----16 | AJ167: Wasser | AK167: Wasser | AL167: Modernisierung 2016 | AM167: Modernisierung 2016 | AP167: 20-50 MW, IB vor 01.01.2009, Modernisierung 2016 | AU167: MOD | AV167: 4.26 | AW167: 3.41 | AX167: 4.26 | BB167: EEG | BC167: WaK405M-----16 | BE167: EEG | BF167: WaK405M-----16
AG168: 167 | AH168: EEG | AI168: WaK406M-----16 | AJ168: Wasser | AK168: Wasser | AL168: Modernisierung 2016 | AM168: Modernisierung 2016 | AP168: > 50 MW, IB vor 01.01.2009, Modernisierung 2016 | AU168: MOD | AV168: 3.48 | AW168: 2.78 | AX168: 3.48 | BB168: EEG | BC168: WaK406M-----16 | BE168: EEG | BF168: WaK406M-----16
AG169: 168 | AH169: EEG | AI169: WaK400------17 | AJ169: Wasser | AK169: Wasser | AL169: Inbetriebnahme 2017 | AM169: Inbetriebnahme 2017 | AP169: 0-0,5 MW | AV169: 12.2 | AW169: 9.92 | AX169: 12.4 | BB169: EEG | BC169: WaK400------17 | BE169: EEG | BF169: WaK400------17
AG170: 169 | AH170: EEG | AI170: WaK401------17 | AJ170: Wasser | AK170: Wasser | AL170: Inbetriebnahme 2017 | AM170: Inbetriebnahme 2017 | AP170: 0,5-2 MW | AV170: 7.97 | AW170: 6.54 | AX170: 8.17 | BB170: EEG | BC170: WaK401------17 | BE170: EEG | BF170: WaK401------17
AG171: 170 | AH171: EEG | AI171: WaK402------17 | AJ171: Wasser | AK171: Wasser | AL171: Inbetriebnahme 2017 | AM171: Inbetriebnahme 2017 | AP171: 2-5 MW | AV171: 6.05 | AW171: 5 | AX171: 6.25 | BB171: EEG | BC171: WaK402------17 | BE171: EEG | BF171: WaK402------17
AG172: 171 | AH172: EEG | AI172: WaK403------17 | AJ172: Wasser | AK172: Wasser | AL172: Inbetriebnahme 2017 | AM172: Inbetriebnahme 2017 | AP172: 5-10 MW | AV172: 5.28 | AW172: 4.38 | AX172: 5.48 | BB172: EEG | BC172: WaK403------17 | BE172: EEG | BF172: WaK403------17
AG173: 172 | AH173: EEG | AI173: WaK404------17 | AJ173: Wasser | AK173: Wasser | AL173: Inbetriebnahme 2017 | AM173: Inbetriebnahme 2017 | AP173: 10-20 MW | AV173: 5.09 | AW173: 4.23 | AX173: 5.29 | BB173: EEG | BC173: WaK404------17 | BE173: EEG | BF173: WaK404------17
AG174: 173 | AH174: EEG | AI174: WaK405------17 | AJ174: Wasser | AK174: Wasser | AL174: Inbetriebnahme 2017 | AM174: Inbetriebnahme 2017 | AP174: 20-50 MW | AV174: 4.04 | AW174: 3.39 | AX174: 4.24 | BB174: EEG | BC174: WaK405------17 | BE174: EEG | BF174: WaK405------17
AG175: 174 | AH175: EEG | AI175: WaK406------17 | AJ175: Wasser | AK175: Wasser | AL175: Inbetriebnahme 2017 | AM175: Inbetriebnahme 2017 | AP175: > 50 MW | AV175: 3.27 | AW175: 2.78 | AX175: 3.47 | BB175: EEG | BC175: WaK406------17 | BE175: EEG | BF175: WaK406------17
AG176: 175 | AH176: EEG | AI176: WaK400M-----17 | AJ176: Wasser | AK176: Wasser | AL176: Modernisierung 2017 | AM176: Modernisierung 2017 | AP176: 0-0,5 MW, IB vor 01.01.2009, Modernisierung 2017 | AU176: MOD | AV176: 12.2 | AW176: 9.92 | AX176: 12.4 | BB176: EEG | BC176: WaK400M-----17 | BE176: EEG | BF176: WaK400M-----17
AG177: 176 | AH177: EEG | AI177: WaK401M-----17 | AJ177: Wasser | AK177: Wasser | AL177: Modernisierung 2017 | AM177: Modernisierung 2017 | AP177: 0,5-2 MW, IB vor 01.01.2009, Modernisierung 2017 | AU177: MOD | AV177: 7.97 | AW177: 6.54 | AX177: 8.17 | BB177: EEG | BC177: WaK401M-----17 | BE177: EEG | BF177: WaK401M-----17
AG178: 177 | AH178: EEG | AI178: WaK402M-----17 | AJ178: Wasser | AK178: Wasser | AL178: Modernisierung 2017 | AM178: Modernisierung 2017 | AP178: 2-5 MW, IB vor 01.01.2009, Modernisierung 2017 | AU178: MOD | AV178: 6.05 | AW178: 5 | AX178: 6.25 | BB178: EEG | BC178: WaK402M-----17 | BE178: EEG | BF178: WaK402M-----17
AG179: 178 | AH179: EEG | AI179: WaK403M-----17 | AJ179: Wasser | AK179: Wasser | AL179: Modernisierung 2017 | AM179: Modernisierung 2017 | AP179: 5-10 MW, IB vor 01.01.2009, Modernisierung 2017 | AU179: MOD | AV179: 5.28 | AW179: 4.38 | AX179: 5.48 | BB179: EEG | BC179: WaK403M-----17 | BE179: EEG | BF179: WaK403M-----17
AG180: 179 | AH180: EEG | AI180: WaK404M-----17 | AJ180: Wasser | AK180: Wasser | AL180: Modernisierung 2017 | AM180: Modernisierung 2017 | AP180: 10-20 MW, IB vor 01.01.2009, Modernisierung 2017 | AU180: MOD | AV180: 5.09 | AW180: 4.23 | AX180: 5.29 | BB180: EEG | BC180: WaK404M-----17 | BE180: EEG | BF180: WaK404M-----17
AG181: 180 | AH181: EEG | AI181: WaK405M-----17 | AJ181: Wasser | AK181: Wasser | AL181: Modernisierung 2017 | AM181: Modernisierung 2017 | AP181: 20-50 MW, IB vor 01.01.2009, Modernisierung 2017 | AU181: MOD | AV181: 4.04 | AW181: 3.39 | AX181: 4.24 | BB181: EEG | BC181: WaK405M-----17 | BE181: EEG | BF181: WaK405M-----17
AG182: 181 | AH182: EEG | AI182: WaK406M-----17 | AJ182: Wasser | AK182: Wasser | AL182: Modernisierung 2017 | AM182: Modernisierung 2017 | AP182: > 50 MW, IB vor 01.01.2009, Modernisierung 2017 | AU182: MOD | AV182: 3.27 | AW182: 2.78 | AX182: 3.47 | BB182: EEG | BC182: WaK406M-----17 | BE182: EEG | BF182: WaK406M-----17
AG183: 182 | AH183: EEG | AI183: WaK400------18 | AJ183: Wasser | AK183: Wasser | AL183: Inbetriebnahme 2018 | AM183: Inbetriebnahme 2018 | AP183: 0-0,5 MW | AV183: 12.14 | AW183: 9.87 | AX183: 12.34 | BB183: EEG | BC183: WaK400------18 | BE183: EEG | BF183: WaK400------18
AG184: 183 | AH184: EEG | AI184: WaK401------18 | AJ184: Wasser | AK184: Wasser | AL184: Inbetriebnahme 2018 | AM184: Inbetriebnahme 2018 | AP184: 0,5-2 MW | AV184: 7.93 | AW184: 6.5 | AX184: 8.13 | BB184: EEG | BC184: WaK401------18 | BE184: EEG | BF184: WaK401------18
AG185: 184 | AH185: EEG | AI185: WaK402------18 | AJ185: Wasser | AK185: Wasser | AL185: Inbetriebnahme 2018 | AM185: Inbetriebnahme 2018 | AP185: 2-5 MW | AV185: 6.02 | AW185: 4.98 | AX185: 6.22 | BB185: EEG | BC185: WaK402------18 | BE185: EEG | BF185: WaK402------18
AG186: 185 | AH186: EEG | AI186: WaK403------18 | AJ186: Wasser | AK186: Wasser | AL186: Inbetriebnahme 2018 | AM186: Inbetriebnahme 2018 | AP186: 5-10 MW | AV186: 5.25 | AW186: 4.36 | AX186: 5.45 | BB186: EEG | BC186: WaK403------18 | BE186: EEG | BF186: WaK403------18
AG187: 186 | AH187: EEG | AI187: WaK404------18 | AJ187: Wasser | AK187: Wasser | AL187: Inbetriebnahme 2018 | AM187: Inbetriebnahme 2018 | AP187: 10-20 MW | AV187: 5.06 | AW187: 4.21 | AX187: 5.26 | BB187: EEG | BC187: WaK404------18 | BE187: EEG | BF187: WaK404------18
AG188: 187 | AH188: EEG | AI188: WaK405------18 | AJ188: Wasser | AK188: Wasser | AL188: Inbetriebnahme 2018 | AM188: Inbetriebnahme 2018 | AP188: 20-50 MW | AV188: 4.02 | AW188: 3.38 | AX188: 4.22 | BB188: EEG | BC188: WaK405------18 | BE188: EEG | BF188: WaK405------18
AG189: 188 | AH189: EEG | AI189: WaK406------18 | AJ189: Wasser | AK189: Wasser | AL189: Inbetriebnahme 2018 | AM189: Inbetriebnahme 2018 | AP189: > 50 MW | AV189: 3.25 | AW189: 2.76 | AX189: 3.45 | BB189: EEG | BC189: WaK406------18 | BE189: EEG | BF189: WaK406------18
AG190: 189 | AH190: EEG | AI190: WaK400M-----18 | AJ190: Wasser | AK190: Wasser | AL190: Modernisierung 2018 | AM190: Modernisierung 2018 | AP190: 0-0,5 MW, IB vor 01.01.2009, Modernisierung 2018 | AU190: MOD | AV190: 12.14 | AW190: 9.87 | AX190: 12.34 | BB190: EEG | BC190: WaK400M-----18 | BE190: EEG | BF190: WaK400M-----18
AG191: 190 | AH191: EEG | AI191: WaK401M-----18 | AJ191: Wasser | AK191: Wasser | AL191: Modernisierung 2018 | AM191: Modernisierung 2018 | AP191: 0,5-2 MW, IB vor 01.01.2009, Modernisierung 2018 | AU191: MOD | AV191: 7.93 | AW191: 6.5 | AX191: 8.13 | BB191: EEG | BC191: WaK401M-----18 | BE191: EEG | BF191: WaK401M-----18
AG192: 191 | AH192: EEG | AI192: WaK402M-----18 | AJ192: Wasser | AK192: Wasser | AL192: Modernisierung 2018 | AM192: Modernisierung 2018 | AP192: 2-5 MW, IB vor 01.01.2009, Modernisierung 2018 | AU192: MOD | AV192: 6.02 | AW192: 4.98 | AX192: 6.22 | BB192: EEG | BC192: WaK402M-----18 | BE192: EEG | BF192: WaK402M-----18
AG193: 192 | AH193: EEG | AI193: WaK403M-----18 | AJ193: Wasser | AK193: Wasser | AL193: Modernisierung 2018 | AM193: Modernisierung 2018 | AP193: 5-10 MW, IB vor 01.01.2009, Modernisierung 2018 | AU193: MOD | AV193: 5.25 | AW193: 4.36 | AX193: 5.45 | BB193: EEG | BC193: WaK403M-----18 | BE193: EEG | BF193: WaK403M-----18
